Workbook

Sheet COVER PAGE
A3: LADWP
A5: OATT TRANSMISSION AND ANCILLARY SERVICES RATE MODEL
A13: TEST YEAR:
A14: FISCAL YEAR 2014-15
A17: JANUARY 17, 2017
A20: Prepared by:
A21: Task 2 Team

Sheet Control Sheet
A1: Los Angeles Department of Water and Power
A2: Statement | G2: Detail for Production and Transmission Rate Base Components
A3: Test Period: FY2014-15 (July 1, 2014 through June 30, 2015)
A4: (in Thousands of Dollars) | G4: 13 month Weighted Average Data
G6: FY 2014-15
A7: Legend | G7: Months | H7: Year
A8: Blue = Input costs | G8: June | H8: 2014
A9: Green = from another tab | G9: July | H9: 2014
A10: Black = equation | G10: August | H10: 2014
A11: Allocation Factors | G11: September | H11: 2014
A12: Red = Calculation checks | G12: October | H12: 2014
A13: Bold numbers = flow through to statement BK | G13: November | H13: 2014
A14: Gray = Subtotals of certain columns | G14: December | H14: 2014
G15: January | H15: 2015
G16: February | H16: 2015
G17: March | H17: 2015
A18: Depreciation Rate Switch | G18: April | H18: 2015
A19: User can choose between FY 2014-15 depreciation expense or use the new depreciation rates from the depreciation study. | G19: May | H19: 2015
G20: June | H20: 2015
A21: Switch | B21: 2 | C21: =IF(B21=1,A22,A23) -> Depreciation Expense at New Rates
A22: FY 14/15 Booked Depreciation Expense | B22: = 1 | G22: Receiving Station Study Reclassifications
A23: Depreciation Expense at New Rates | B23: = 2
G25: Distribution Allocation | H25: 0.5253
G26: Production Allocation | H26: 0.0348
G27: Transmission Allocation | H27: 0.4399
A28: Tab Descriptions | G28: Total | H28: =SUM(H25:H27) -> 1
A30: Tab | B30: Description of Tabs | D30: Error Check | G30: ECC Labor Ratios
A31: Cover Page
A32: Control Sheet | B32: Description of Tabs, Cost Statements, and Ancillary Services | D32: N/A
A33: Generator Ancillary Services (AS) Matrix | B33: Characteristics of Generating Stations such as which Generating Stations contribute to Ancillary Services | D33: N/A | G33: Total Salaries and Benefits (at June 30, 2015) | I33: =H43 -> 10688.299
A34: Statement AD: | B34: AD Plant In Service | D34: =IF(AD!E11="","Good","Error") -> Good | G34: Note: This is the salary level at June 30, 2015.
A35: Statement AE: | B35: AE Accumulated Depreciation and Amortization (Accum Deprec) | D35: =IF(AE!F11="","Good","Error") -> Good
A36: Statement AF: | B36: AF Specified Deferred Credits [CIAC] | D36: N/A | G36: Item | H36: Total | I36: Production | J36: Transmission | K36: Distribution
A37: Statement AG: | B37: AG Specified Plant Accounts and Deferred Debits | D37: N/A | G37: ECC Executive Officer | H37: =SUM(I37:K37) -> 768.383 | I37: 249.011 | J37: 249.011 | K37: 270.361
C38: Land Held For Future Use (Production) | D38: N/A | G38: Electrical Engineers | H38: 463.543 | I38: 130.342 | J38: 275.375 | K38: 57.826
C39: Acquisition Adjustment for Palo Verde | D39: N/A | G39: ENGRG Associates | H39: 2273.373 | I39: 352.538 | J39: 1513.111 | K39: 407.724
C40: Construction Work in Progress included in rate base | D40: N/A | G40: Load Dispatcher | H40: 4284.503 | I40: 751.199 | J40: 1358.967 | K40: 2174.337
A41: Statement AH: | B41: AH O&M Expenses by FERC Primary Account | D41: =IF(AH!E10="","Good","Error") -> Good | G41: Senior Load Dispatcher | H41: 2602.379 | I41: 749.715 | J41: 868.592 | K41: 984.072
A42: Statement AI: | B42: AI O&M Labor Expense | D42: =IF(AI!F10="","Good","Error") -> Good | G42: Clerical | H42: 296.118 | I42: 98.706 | J42: 98.706 | K42: 98.706
A43: Statement AJ: | B43: AJ Depreciation and Amortization Expenses as booked for FY 14/15 | D43: =IF('AJ '!E10="","Good","Error") -> Good | G43: Subtotal | H43: =SUM(H37:H42) -> 10688.299 | I43: =SUM(I37:I42) -> 2331.511 | J43: =SUM(J37:J42) -> 4363.762 | K43: =SUM(K37:K42) -> 3993.026
A44: Statement AJ - New Rates | B44: AJ Depreciation and Amortization Expenses - New Depreciation Accruals | D44: =IF('AJ - New Rates'!E10="","Good","Error") -> Good
A45: Statement AK: | B45: AK Taxes Other than Income Taxes | D45: =IF(AK!C11="","Good","Error") -> Good | G45: ECC Labor Ratios | H45: =SUM(I45:K45) -> 1 | I45: =I43/$H$43 -> 0.2181367681 | J45: =J43/$H$43 -> 0.4082746937 | K45: =K43/$H$43 -> 0.3735885383
A46: Statement AL: | B46: AL Working Capital | D46: =IF('AL '!D11="","Good","Error") -> Good
A47: Statement AM: | B47: AM Construction Work in Progress (CWIP) not included in rate base | D47: N/A | G47: FY14/15 GL ECC Labor | H47: =AI!AP61 -> 12914.50551
A48: Statement AU: | B48: AU Revenue Credits | D48: N/A | G48: ECC Labor Level at 6/30/15 | H48: =H43 -> 10688.299
A49: Statement AV: | B49: AV Cost of Capital | D49: N/A | G49: Difference | H49: =H47-H48 -> 2226.206513 | I49: =I45*$H$49 -> 485.6174938 | J49: =J45*$H$49 -> 908.9037821 | K49: =K45*$H$49 -> 831.685237
A50: Statement AW: | B50: AW Cost of Short Term Debt | D50: N/A
A51: Statement BB: | B51: BB Rate Divisor | D51: N/A | G51: Total ECC Labor | H51: =SUM(I51:K51) -> 12914.50551 | I51: =I49+I43 -> 2817.128494 | J51: =J49+J43 -> 5272.665782 | K51: =K49+K43 -> 4824.711237
A52: Statement BK | B52: BK Cost of Service by Generation Stations and Transmission | D52: =IF(BK!F14="","Good","Error") -> Good | G52: ECC Labor Ratios | H52: =SUM(I52:K52) -> 1 | I52: =I51/$H$51 -> 0.2181367681 | J52: =J51/$H$51 -> 0.4082746937 | K52: =K51/$H$51 -> 0.3735885383 | L52: (applies to O&M)
C53: Generating Stations COS assigned to each Ancillary Service Schedule | D53: N/A | G53: Labor Ratios (All labor) From Tab AI | H53: =SUM(I53:K53) -> 1 | I53: =AI!I173 -> 0.2554388041 | J53: =AI!AL173 -> 0.1148350631 | K53: =AI!AU173 -> 0.6297261328 | L53: (applies to plant and accumulated depreciation)
A54: Statement BL | B54: BL Derivation of Ancillary Service Schedule Rate Design using data from BK | D54: N/A
A55: Statement BM | B55: BM Construction Program Statement | D55: N/A | G55: In an effort to allocate ECC’s costs to G-T-D, Power System provided allocation rates based on each personnel’s task distribution to the three functions. FSO computed the salary component of $10,688,301, based on the following: 1. Job Position - Salary as of last payroll of June 2015 multiplied by G-T-D task allocation rates 2. Sum of all job positions in ECC, with salaries as of last payroll of June 2015 General ledger based actual ECC labor costs are $12,914,505.51, resulting in a difference of $2,226,204.51. The reason for these differences are attributed to payroll taxes, benefits and any salary changes occurring throughout the year due to retirements replaced by new hires, transfers to other work locations other than ECC which are all captured in the general ledger.
A56: Allocation Factors | B56: Allocation Factors Used in the COSS | D56: N/A
A57: 7 Factor Test Summary | B57: Summary of the Transmission Costs that are reclassified to other functions per the 7 Factor test | D57: =IF('7 Factor Summary'!E10="","Good","Error") -> Good
A58: Haynes Gross Plt & Accum Deprec | B58: Used to derive values for Haynes units 11-16 which are used in Schedule 6 | D58: =IF('Haynes Gross Plt & Accum Deprec'!D10="","Good","Error") -> Good
A59: Haynes Dep. and O&M Expense | B59: Used to derive values for Haynes units 11-16 which are used in Schedule 6 | D59: =IF('Haynes Dep Exp and O&M'!$D$11="","Good","Error") -> Good
A60: Unit Data | B60: Unit data used to derive reactive power calculations | D60: N/A
A61: Fixed Charge Rate & VAR Alloc | B61: Used to derive the fixed charge rate | D61: N/A
A62: Source Investment Data | B62: Plant data used to derive reactive power calculations | D62: =IF('Source Investment Data'!E10="","Good","Error") -> Good

Sheet Gen AS Matrix
B1: ='Control Sheet'!$A$1 -> Los Angeles Department of Water and Power
B2: =+'Control Sheet'!$A$32 -> Control Sheet
B3: =+'Control Sheet'!$B$32 -> Description of Tabs, Cost Statements, and Ancillary Services
B4: =+'Control Sheet'!$A$3 -> Test Period: FY2014-15 (July 1, 2014 through June 30, 2015)
B7: This matrix determines which LADWP Generator resources supply which type of Ancillary Services
F10: Owens Valley Units | T10: 4 LA Basin Thermal Units
C11: Hydro | D11: Hydro | E11: Hydro | F11: Hydro | G11: Hydro | H11: Hydro | I11: Hydro | J11: Hydro | K11: Hydro | L11: Hydro | M11: Hydro | N11: Hydro | O11: Hydro | P11: Hydro | Q11: Hydro | R11: Hydro | S11: Steam | T11: Steam | U11: Steam | V11: Steam | W11: Steam | X11: Nuclear | Y11: Other Prod
C12: Cottonwood | D12: Division Creek | E12: Big Pine | F12: Pleasant Valley | G12: Upper Gorge | H12: Middle Gorge | I12: Control Gorge | J12: S.F. 1 | K12: S.F. 2 | L12: San Fernando | M12: Foothill | N12: Franklin | O12: Sawtelle | P12: Haiwee | Q12: Pump Storage Castaic | R12: Hoover Purchased Power | S12: Harbor | T12: Valley | U12: Scattergood | V12: Haynes | W12: Navajo | X12: Palo Verde | Y12: Wind | Z12: Solar | AA12: IPP Purchased Power - Fixed | AB12: Transmission
B14: Ancillary Services Provided:
B15: Schedule 2 (Reactive Supply & Voltage Control) | C15: No | D15: No | E15: No | F15: No | G15: No | H15: No | I15: No | J15: No | K15: No | L15: No | M15: No | N15: No | O15: No | P15: No | Q15: Yes | R15: No | S15: Yes | T15: Yes | U15: Yes | V15: Yes | W15: No | X15: No | Y15: No | Z15: No | AA15: No
B16: Schedule 3 (Regulation & Frequency Response) | C16: No | D16: No | E16: No | F16: No | G16: No | H16: No | I16: No | J16: No | K16: No | L16: No | M16: No | N16: No | O16: No | P16: No | Q16: Yes | R16: Yes | S16: Yes | T16: Yes | U16: Yes | V16: Yes | W16: No | X16: No | Y16: No | Z16: No | AA16: No
B17: Schedule 5 (Spinning Reserves) | C17: No | D17: No | E17: No | F17: No | G17: No | H17: No | I17: No | J17: No | K17: No | L17: No | M17: No | N17: No | O17: No | P17: No | Q17: Yes | R17: Yes | S17: Yes | T17: Yes | U17: Yes | V17: Yes | W17: No | X17: No | Y17: No | Z17: No | AA17: No
B18: Schedule 6 (Supplemental Reserves) | C18: No | D18: No | E18: No | F18: No | G18: No | H18: No | I18: No | J18: No | K18: No | L18: No | M18: No | N18: No | O18: No | P18: No | Q18: Yes | R18: Yes | S18: No | T18: No | U18: No | V18: Yes for 6 units | W18: No | X18: No | Y18: No | Z18: No | AA18: No
B19: Schedule 10 (Generator Reg. & Freq. Response) | C19: No | D19: No | E19: No | F19: No | G19: No | H19: No | I19: No | J19: No | K19: No | L19: No | M19: No | N19: No | O19: No | P19: No | Q19: Yes | R19: Yes | S19: Yes | T19: Yes | U19: Yes | V19: Yes | W19: No | X19: No | Y19: No | Z19: No | AA19: No
B20: Generation Nameplate - MVA | C20: 1.9 | D20: 0.8 | E20: 4 | F20: 4 | G20: 37.5 | H20: 37.5 | I20: 37.5 | J20: 74.2 | K20: 52.5 | L20: 7 | M20: 11 | N20: 2.5 | P20: 7 | Q20: 1757.5 | R20: - | S20: 650.4 | T20: 812.2 | U20: 936 | V20: 2045.5 | W20: 2677.2 | X20: 4650 | Y20: 200.7 | Z20: 18.5
B21: Generation Nameplate - MW | C21: 1.5 | D21: 0.6 | E21: 3.2 | F21: 3.2 | G21: 37.5 | H21: 37.5 | I21: 37.5 | J21: 69.4 | K21: 42 | L21: 5.6 | M21: 11 | N21: 2 | P21: 5.6 | Q21: 1593 | R21: 2080 | S21: 548.2 | T21: 690.4 | U21: 823.2 | V21: 1776 | W21: 2409 | X21: 4248 | Y21: 205 | Z21: 18.5
B22: Rating Capability (MW) - Summer | C22: 1.9 | D22: 0.7 | E22: 3.1 | F22: 2.7 | G22: 37.5 | H22: 37.5 | I22: 37.5 | J22: 46.5 | K22: 18 | L22: 6 | M22: 9.9 | N22: 2 | P22: 4.2 | Q22: 1247 | R22: 491 | S22: 452 | T22: 556 | U22: 796 | V22: 1524.6 | W22: 477 | X22: 386.7 | Y22: 338.5 | Z22: 18.5
B24: The above matrix is reflective of the table below. "No" implies that ancillary services are not provided.
B29: ANCILLARY SERVICES PROVIDED BY POWER PLANT FOR FISCAL YEAR 2014-2015
B30: (Abbreviated terms are defined below Table)
D31: Voltage Level (kV) | E31: PERCENT | G31: DATE FIRST | H31: GENERATION | J31: RATING | L31: ANCILLARY SERVICES | P31: AGC Yes/No | Q31: AVC Yes/No
E32: GENERATING | G32: CARRIED | H32: NAMEPLATE | J32: CAPABILITY (MW) | L32: PROVIDED BY SCHEDULES
B33: NAME OF | C33: UNIT | E33: UNIT | F33: UNIT | G33: SYSTEM | L33: Please check one or more
B34: PLANT | C34: NO. | E34: OWNERSHIP | F34: TYPE | G34: LOAD | H34: MVA | I34: MW | J34: SUMMER | K34: WINTER | L34: S2 | M34: S3 | N34: S5 | O34: S6
B35: HYDRO
B36: San Francisquito Power Plant 1 | C36: 1A | D36: 115 | E36: 1 | F36: Hydro | G36: 1983-12-10 | H36: 25 | I36: 25 | J36: 46.5 | K36: 13 | L36: X | P36: No | Q36: Yes
C37: 3 | D37: 115 | E37: 1 | F37: Hydro | G37: 1917-04-16 | H37: 11.719 | I37: 9.375 | L37: X | P37: No | Q37: Yes
C38: 4 | D38: 115 | E38: 1 | F38: Hydro | G38: 1923-05-21 | H38: 12.5 | I38: 10 | L38: X | P38: No | Q38: Yes
C39: 5A | D39: 115 | E39: 1 | F39: Hydro | G39: 1987-04-09 | H39: 25 | I39: 25 | L39: X | P39: No | Q39: Yes
B40: San Francisquito Power Plant 2 | C40: 1 | D40: 115 | E40: 1 | F40: Hydro | G40: 1919-07-06 | H40: 17.5 | I40: 14 | J40: 18 | K40: 5.7 | L40: X | P40: No | Q40: Yes
C41: 2 | D41: 115 | E41: 1 | F41: Hydro | G41: 1919-08-07 | H41: 17.5 | I41: 14 | L41: X | P41: No | Q41: Yes
C42: 3 | D42: 115 | E42: 1 | F42: Hydro | G42: 1932-09-26 | H42: 17.5 | I42: 14 | L42: X | P42: No | Q42: Yes
B43: San Fernando Power Plant | C43: 1 | D43: 34.5 | E43: 1 | F43: Hydro | G43: 1922-10-22 | H43: 3.5 | I43: 2.8 | J43: 6 | K43: 2.1 | P43: No | Q43: No
C44: 2 | D44: 34.5 | E44: 1 | F44: Hydro | G44: 1922-10-22 | H44: 3.5 | I44: 2.8 | P44: No | Q44: No
B45: Foothill Power Plant | C45: 1 | D45: 34.5 | E45: 1 | F45: Hydro | G45: 1971-10-06 | H45: 11 | I45: 11 | J45: 9.9 | K45: 2.9 | P45: No | Q45: No
B46: Franklin Power Plant | C46: 1 | D46: 34.5 | E46: 1 | F46: Hydro | G46: 1921-06-03 | H46: 2.5 | I46: 2 | J46: 2 | K46: 0.4 | P46: No | Q46: No
B47: Sawtelle Power Plant | C47: 1 | D47: 34.5 | E47: 1 | F47: Hydro | G47: 1986-06-05 | H47: 0.711 | I47: 0.64 | J47: 0.65 | K47: 0.13 | P47: No | Q47: No
B48: Haiwee Power Plant | C48: 1 | D48: 34.5 | E48: 1 | F48: Hydro | G48: 1927-07-18 | H48: 3.5 | I48: 2.8 | J48: 11.83 | K48: 0 | P48: No | Q48: No
C49: 2 | D49: 34.5 | E49: 1 | F49: Hydro | G49: 1927-07-18 | H49: 3.5 | I49: 2.8 | P49: No | Q49: No
B50: Cottonwood Power Plant | C50: 1 | D50: 34.5 | E50: 1 | F50: Hydro | G50: 1908-11-13 | H50: 0.937 | I50: 0.75 | K50: 0.4 | P50: No | Q50: No
C51: 2 | D51: 34.5 | E51: 1 | F51: Hydro | G51: 1909-10-13 | H51: 0.937 | I51: 0.75 | P51: No | Q51: No
B52: Division Creek P. P. | C52: 1 | D52: 34.5 | E52: 1 | F52: Hydro | G52: 1909-03-22 | H52: 0.75 | I52: 0.6 | K52: 0.4 | P52: No | Q52: No
B53: Big Pine Power Plant | C53: 1 | D53: 34.5 | E53: 1 | F53: Hydro | G53: 1925-07-29 | H53: 4 | I53: 3.2 | K53: 0.4 | P53: No | Q53: No
B54: Pleasant Valley P. P. | C54: 1 | D54: 34.5 | E54: 1 | F54: Hydro | G54: 1958-02-05 | H54: 4 | I54: 3.2 | K54: 0 | P54: No | Q54: No
B55: Upper Gorge P. P. | C55: 1 | D55: 230 | E55: 1 | F55: Hydro | G55: 1953-06-15 | H55: 37.5 | I55: 37.5 | J55: 112.5 | K55: 109.5 | L55: X | N55: X | O55: X | P55: No | Q55: Yes
B56: Middle Gorge P. P. | C56: 1 | E56: 1 | F56: Hydro | G56: 1952-05-11 | H56: 37.5 | I56: 37.5 | L56: X | N56: X | O56: X | P56: No | Q56: Yes
B57: Control Gorge P. P. | C57: 1 | E57: 1 | F57: Hydro | G57: 1952-04-01 | H57: 37.5 | I57: 37.5 | L57: X | N57: X | O57: X | P57: No | Q57: Yes
B58: PUMP STORAGE [Hydro]
B59: Castaic Power Plant | C59: 1 | D59: 230 | E59: 1 | F59: Pump Storage | G59: 1973-07-11 | H59: 250 | I59: 212 | J59: 1247 | K59: 1175 | L59: X | M59: X | N59: X | O59: X | P59: Yes | Q59: Yes
C60: 2 | E60: 1 | F60: Pump Storage | G60: 1974-07-09 | H60: 287.5 | I60: 265 | L60: X | M60: X | N60: X | O60: X | P60: Yes | Q60: Yes
C61: 3 | E61: 1 | F61: Pump Storage | G61: 1976-07-13 | H61: 287.5 | I61: 265 | L61: X | M61: X | N61: X | O61: X | P61: Yes | Q61: Yes
C62: 4 | E62: 1 | F62: Pump Storage | G62: 1977-06-16 | H62: 287.5 | I62: 265 | L62: X | M62: X | N62: X | O62: X | P62: Yes | Q62: Yes
C63: 5 | E63: 1 | F63: Pump Storage | G63: 1977-12-16 | H63: 287.5 | I63: 265 | L63: X | M63: X | N63: X | O63: X | P63: Yes | Q63: Yes
C64: 6 | E64: 1 | F64: Pump Storage | G64: 1978-08-11 | H64: 287.5 | I64: 265 | L64: X | M64: X | N64: X | O64: X | P64: Yes | Q64: Yes
C65: 7 | E65: 1 | F65: Pump Storage | G65: 1972-01-27 | H65: 70 | I65: 56 | L65: X | M65: X | N65: X | O65: X | P65: Yes | Q65: Yes
B66: BASIN THERMAL
B67: Harbor Generating Station | C67: 1 | D67: 138 | E67: 1 | F67: Natural Gas [CC] | G67: 1995-01-31 | H67: 100.4 | I67: 85.34 | J67: 452 | K67: 78 | L67: X | M67: X | N67: X | P67: Yes | Q67: Yes
C68: 2 | E68: 1 | F68: Natural Gas [CC] | G68: 1995-01-31 | H68: 100.4 | I68: 85.34 | K68: 78 | L68: X | M68: X | N68: X | P68: Yes | Q68: Yes
C69: 5 | E69: 1 | F69: Natural Gas [CC] | G69: 1995-01-31 | H69: 93.75 | I69: 75 | K69: 65 | L69: X | M69: X | N69: X | P69: Yes | Q69: Yes
C70: 10 | E70: 1 | F70: Natural Gas [CT] | G70: 2002-01-04 | H70: 71.176 | I70: 60.5 | K70: 47.4 | L70: X | M70: X | N70: X | P70: Yes | Q70: Yes
C71: 11 | E71: 1 | F71: Natural Gas [CT] | G71: 2002-01-04 | H71: 71.176 | I71: 60.5 | K71: 47.4 | L71: X | M71: X | N71: X | P71: Yes | Q71: Yes
C72: 12 | E72: 1 | F72: Natural Gas [CT] | G72: 2002-01-04 | H72: 71.176 | I72: 60.5 | K72: 47.4 | L72: X | M72: X | N72: X | P72: Yes | Q72: Yes
C73: 13 | E73: 1 | F73: Natural Gas [CT] | G73: 2002-01-04 | H73: 71.176 | I73: 60.5 | K73: 47.4 | L73: X | M73: X | N73: X | P73: Yes | Q73: Yes
C74: 14 | E74: 1 | F74: Natural Gas [CT] | G74: 2002-01-04 | H74: 71.176 | I74: 60.5 | K74: 47.4 | L74: X | M74: X | N74: X | P74: Yes | Q74: Yes
B75: Valley Generating Station | C75: 5 | D75: 230 | E75: 1 | F75: Natural Gas [CT] | G75: 2001-08-17 | H75: 71.176 | I75: 60.5 | J75: 43 | K75: 43 | L75: X | M75: X | N75: X | P75: Yes | Q75: Yes
C76: 6 | E76: 1 | F76: Natural Gas [CC] | G76: 2003-09-04 | H76: 215 | I76: 182.75 | J76: 156 | K76: 162 | L76: X | M76: X | N76: X | P76: Yes | Q76: Yes
C77: 7 | E77: 1 | F77: Natural Gas [CC] | G77: 2003-09-09 | H77: 215 | I77: 182.75 | J77: 156 | K77: 162 | L77: X | M77: X | N77: X | P77: Yes | Q77: Yes
C78: 8 | E78: 1 | F78: Natural Gas [CC] | G78: 2003-11-13 | H78: 311 | I78: 264.35 | J78: 201 | K78: 209 | L78: X | M78: X | N78: X | P78: Yes | Q78: Yes
B79: Scattergood Generating Station | C79: 1 | D79: 138 | E79: 1 | F79: Natural Gas [ST] | G79: 1958-12-07 | H79: 192 | I79: 163.2 | J79: 796 | K79: 183 | L79: X | M79: X | N79: X | P79: Yes | Q79: Yes
C80: 2 | D80: 138 | E80: 1 | F80: Natural Gas [ST] | G80: 1959-07-01 | H80: 192 | I80: 163.2 | K80: 184 | L80: X | M80: X | N80: X | P80: Yes | Q80: Yes
C81: 3 | D81: 230 | E81: 1 | F81: Natural Gas [ST] | G81: 1974-10-06 | H81: 552 | I81: 496.8 | K81: 450 | L81: X | M81: X | N81: X | P81: Yes | Q81: Yes
B82: Haynes Generating Station | C82: 1 | D82: 230 | E82: 1 | F82: Natural Gas [ST] | G82: 1962-09-02 | H82: 270 | I82: 230 | J82: 1585.2 | K82: 1615.202 | L82: X | M82: X | N82: X | P82: Yes | Q82: Yes
C83: 2 | E83: 1 | F83: Natural Gas [ST] | G83: 1963-04-07 | H83: 270 | I83: 230 | L83: X | M83: X | N83: X | P83: Yes | Q83: Yes
C84: 8 | E84: 1 | F84: Natural Gas [ST] | G84: 2005-01-25 | H84: 311 | I84: 264 | L84: X | M84: X | N84: X | P84: Yes | Q84: Yes
C85: 9 | E85: 1 | F85: Natural Gas [CT] | G85: 2005-01-25 | H85: 215 | I85: 182.75 | L85: X | M85: X | N85: X | P85: Yes | Q85: Yes
C86: 10 | E86: 1 | F86: Natural Gas [CT] | G86: 2005-01-25 | H86: 215 | I86: 182.75 | L86: X | M86: X | N86: X | P86: Yes | Q86: Yes
C87: 11 | E87: 1 | F87: Natural Gas [CT] | G87: 2013-06-11 | H87: 127.282 | I87: 108.19 | L87: X | M87: X | N87: X | O87: X | P87: Yes | Q87: Yes
C88: 12 | E88: 1 | F88: Natural Gas [CT] | G88: 2013-06-12 | H88: 127.282 | I88: 108.19 | L88: X | M88: X | N88: X | O88: X | P88: Yes | Q88: Yes
C89: 13 | E89: 1 | F89: Natural Gas [CT] | G89: 2013-06-12 | H89: 127.282 | I89: 108.19 | L89: X | M89: X | N89: X | O89: X | P89: Yes | Q89: Yes
C90: 14 | E90: 1 | F90: Natural Gas [CT] | G90: 2013-06-19 | H90: 127.282 | I90: 108.19 | L90: X | M90: X | N90: X | O90: X | P90: Yes | Q90: Yes
C91: 15 | E91: 1 | F91: Natural Gas [CT] | G91: 2013-06-12 | H91: 127.282 | I91: 108.19 | L91: X | M91: X | N91: X | O91: X | P91: Yes | Q91: Yes
C92: 16 | E92: 1 | F92: Natural Gas [CT] | G92: 2013-06-12 | H92: 127.282 | I92: 108.19 | L92: X | M92: X | N92: X | O92: X | P92: Yes | Q92: Yes
B93: ANCILLARY SERVICES PROVIDED BY POWER PLANT FOR FISCAL YEAR 2014-2015
B94: (Abbreviated terms are defined below Table)
D95: Voltage Level (kV) | E95: PERCENT | G95: DATE FIRST | H95: GENERATION | J95: RATING | L95: ANCILLARY SERVICES | P95: AGC Yes/No | Q95: AVC Yes/No
E96: GENERATING | G96: CARRIED | H96: NAMEPLATE | J96: CAPABILITY (MW) | L96: PROVIDED BY SCHEDULES
B97: NAME OF | C97: UNIT | E97: UNIT | F97: UNIT | G97: SYSTEM | L97: Please check one or more
B98: PLANT | C98: NO. | E98: OWNERSHIP | F98: TYPE | G98: LOAD | H98: MVA | I98: MW | J98: SUMMER | K98: WINTER | L98: S2 | M98: S3 | N98: S5 | O98: S6
B100: EXTERNAL THERMAL
B101: Apex Generating Station | C101: 1A | E101: 1 | F101: Natural Gas [CC] | G101: 2014-03-28 | H101: 239 | I101: 162 | J101: 479.9 | K101: 531.86 | P101: No | Q101: No
C102: 1B | E102: 1 | F102: Natural Gas [CC] | G102: 2014-03-31 | H102: 239 | I102: 162 | P102: No | Q102: No
C103: STG | E103: 1 | F103: Natural Gas [ST] | G103: 2014-03-28 | H103: 264 | I103: 207.86 | P103: No | Q103: No
B104: Navajo Generating Station | C104: 1 | E104: 0.212 | F104: Coal [FF] | G104: 1974-02-01 | H104: 892.4 | I104: 803 | J104: 477 | K104: 477 | P104: No | Q104: No
C105: 2 | E105: 0.212 | F105: Coal [FF] | G105: 1974-12-02 | H105: 892.4 | I105: 803 | P105: No | Q105: No
C106: 3 | E106: 0.212 | F106: Coal [FF] | G106: 1975-11-29 | H106: 892.4 | I106: 803 | P106: No | Q106: No
B107: Intermountain Generating Station | C107: 1 | D107: 500DC | E107: 0.6679 | F107: Coal [FF] | G107: 1986-06-09 | H107: 991 | I107: 820 | J107: 1202 | K107: 1202 | L107: X | N107: X | P107: No | Q107: Yes
C108: 2 | E108: 0.6679 | F108: Coal [FF] | G108: 1987-04-30 | H108: 991 | I108: 820 | L108: X | N108: X | P108: No | Q108: Yes
B109: Palo Verde Nuclear Generating Station | C109: 1 | E109: 0.0966 | F109: Nuclear | G109: 1986-01-30 | H109: 1550 | I109: 1422 | J109: 380.314 | K109: 386.69 | P109: No | Q109: No
C110: 2 | E110: 0.0966 | F110: Nuclear | G110: 1986-09-19 | H110: 1550 | I110: 1413 | P110: No | Q110: No
C111: 3 | E111: 0.0966 | F111: Nuclear | G111: 1988-01-19 | H111: 1550 | I111: 1413 | P111: No | Q111: No
B112: EXTERNAL HYDRO
B113: Hoover Power Plant [1] | C113: 17 units | E113: 0 | F113: Hydro | G113: 1936 | I113: 2080 | J113: 491 | K113: 390 | M113: X | N113: X | O113: X | P113: Yes | Q113: No
B114: WIND
B115: Pine Tree Wind Power Plant | C115: 1- 90 | D115: 230 | E115: 100.00% | F115: Wind | G115: 2009-06-01 | H115: 150.03 | I115: 135 | J115: 135 | K115: 135 | P115: No | Q115: No
B116: Milford Wind Power Plant I | C116: 1- 97 | D116: 500DC | E116: 0.909 | F116: Wind | G116: 2009-11-06 | H116: 198.993 | I116: 203.5 | J116: 203.5 | K116: 203.5 | P116: No | Q116: No
B117: Milford Wind Power Plant II | C117: 1- 67 | D117: 500DC | E117: 1 | F117: Wind | G117: 2011-05-01 | H117: N/A | I117: N/A | J117: N/A | K117: N/A | P117: No | Q117: No
B118: Adelanto Solar Power Plant | D118: 500 | E118: 1 | F118: Solar | G118: 2012-06-30 | H118: 10 | I118: 10 | J118: 10 | K118: 10 | P118: No | Q118: No
B119: Pine Tree Solar Pow. Plant | E119: 1 | F119: Solar | G119: 2013-03-15 | H119: 8.5 | I119: 8.5 | J119: 8.5 | K119: 8.5 | P119: No | Q119: No
A121: S2: | B121: Reactive Supply and Voltage Control from Generation or Other Sources Service
A122: S3: | B122: Regulation and Frequency Response Service
A123: S5: | B123: Operating Reserve - Spinning Reserve Service
A124: S6: | B124: Operating Reserve - Supplemental Reserve Service
A125: AGC | B125: Plants with both Governor Response and Automatic Generation Control needed to provide Regulation and Frequency Response
A126: AVC | B126: Automatic Voltage Control needed to provide Reactive Power
A128: [1]: DWP does not own the power plant but rather,DWP entitlement out of (1951) MW generated annually is about 25.16% | B128: DWP does not own the power plant but rather,DWP entitlement out of (1951) MW generated annually is about 25.16%
B129: DWP entitlement out of (750x3) MW generated annually representing about 21.2%
B130: DWP entitlement out of (900x2) MW maximum generation is as follow: DWP direct entitlement of 44.617% + 4% purchase from Utah Power & Light Co. + 86.281% of up to 21.057% from other Municipals purchase power. The aggregated DWP share is about 66.79% However, DWP power purchase share is often reduced on a yearly basis due extended outages of the power plant and/or due to Milford wind resources competing for the existing available transmission capacity. For instance DWP share was reduced to 1,202 MW for fiscal year 2014/2015 due to excess recall.
B131: DWP direct entitlement of 5.70% of the sum of all 3 unit outputs totaling (1333+1336+1334) MW generated annually however, DWP also acquires 67% of SCPPA Members' 5.91% of the total power purchase. Thus DWP total share is approximately 9.66%
B132: Units on AGC but only provide Load Following no Regulation and Frequency Response provided
B133: LADWP entitlement is 25.18% of the plant capability of 1,951 MW. The reduced entitlement is due to lower lake levels resulting from drought.
B134: Units with Zero Operating Hours for Fiscal Year 2014/2015 (Non-Operating Units)
A136: Information on this Table is based on LADWP Generation Rating and Capabilities of Power Sources dated 2014/2015

Sheet AD
C1: =+'Control Sheet'!$A$1 -> Los Angeles Department of Water and Power
C2: =+'Control Sheet'!$A$2 -> Statement
C3: ='Control Sheet'!B34 -> AD Plant In Service
C4: =+'Control Sheet'!$A$3 -> Test Period: FY2014-15 (July 1, 2014 through June 30, 2015)
C5: ='Control Sheet'!A4 -> (in Thousands of Dollars)
D7: Error Check
D8: Calculated Totals | E8: =E62+E108+E133+E158+E173+E181+E241+E281+E318+E393+E431+E445+E467+E493+E510+E527+E562+E351+E356+G544+E294+E302+F390 -> 49064998.57
D9: Check Totals | E9: =E63+E109+E134+E159+E174+E182+E242+E282+E319+E394+E432+E446+E468+E494+E511+E528+E563+E352+E357+G545+E295+E303+F391 -> 49064998.57
D10: Difference | E10: =E8-E9 -> 0
D11: Error Check | E11: =IF(ABS(E10)>0.01,"Error","") -> 
C17: Item | D17: Print Button
C18: =B34 -> A. TANK FARMS AND OTHER PLANT
C19: =B66 -> B. STEAM PLANT
C20: =B112 -> C. HYDRO PRODUCTION PLANT
C21: =B187 -> D. NUCLEAR PLANT
C22: =B213 -> E. OTHER PRODUCTION PLANT
C23: =B249 -> F. TRANSMISSION PLANT
C24: =B324 -> G. DISTRIBUTION PLANT
C25: =B414 -> H. INTANGIBLE PLANT
C26: =B471 -> I. GENERAL PLANT ALLOCATION
C27: =B496 -> J. RECLASSIFICATION OF ECC TO GENERAL PLANT AND ALLOCATION TO PRODUCTION AND TRANSMISSION PLANT
C28: =$B$514 -> K. DERIVATION OF GROSS PLANT ALLOCATORS
B34: A. TANK FARMS AND OTHER PLANT
C35: The general ledger includes Tank Farms and Miscellaneous plant categories. The Marine and Olympic tank farms are leased to third parties and do not contribute to the LA Basin steam generating stations. The Tank Farms are therefore not included in revenue requirement. Miscellaneous plant includes plant related to the Sawtelle hydro station, which is used and useful. Miscellaneous plant also includes landfills that are not used in cost of service and therefore they have been removed.
I36: Other Accounts in General Ledger
C37: A.1 Tank Farm and Other GL Plant | E37: Total | F37: General Ledger - Tank Farms | J37: Hydro | N37: Hydro
C38: ='Control Sheet'!G7 -> Months | D38: Reference | E38: Tank Farms and Other Accounts | F38: Total Tank Farm | G38: Olympic Tank Farm | H38: Marine Tank Farm | I38: Total Other Accounts | J38: White Pine Land | K38: Landfill 1 | L38: Land Fill 2 | M38: Landfill 3 | N38: Sawtelle Hydro Station | O38: Malibu Land
C39: ='Control Sheet'!$G$8&TEXT('Control Sheet'!$H$8," ##") -> June 2014 | D39: LADWP GL | E39: =F39+I39 -> 50445.12565 | F39: =SUM(G39:H39) -> 43578.32269 | G39: 8797.7641 | H39: 34780.55859 | I39: =SUM(J39:O39) -> 6866.80296 | J39: 1424.69265 | K39: 812.44704 | L39: 1655.89113 | M39: 2336.78444 | N39: 22.09351 | O39: 614.89419
C40: ='Control Sheet'!$G$9&TEXT('Control Sheet'!$H$9," ##") -> July 2014 | D40: LADWP GL | E40: =F40+I40 -> 50445.12565 | F40: =SUM(G40:H40) -> 43578.32269 | G40: 8797.7641 | H40: 34780.55859 | I40: =SUM(J40:O40) -> 6866.80296 | J40: 1424.69265 | K40: 812.44704 | L40: 1655.89113 | M40: 2336.78444 | N40: 22.09351 | O40: 614.89419
C41: ='Control Sheet'!$G$10&TEXT('Control Sheet'!$H$10," ##") -> August 2014 | D41: LADWP GL | E41: 50445.12565 | F41: 43578.32269 | G41: 8797.7641 | H41: 34780.55859 | I41: 6866.80296 | J41: 1424.69265 | K41: 812.44704 | L41: 1655.89113 | M41: 2336.78444 | N41: 22.09351 | O41: 614.89419
C42: ='Control Sheet'!$G$11&TEXT('Control Sheet'!$H$11," ##") -> September 2014 | D42: LADWP GL | E42: 50445.12565 | F42: 43578.32269 | G42: 8797.7641 | H42: 34780.55859 | I42: 6866.80296 | J42: 1424.69265 | K42: 812.44704 | L42: 1655.89113 | M42: 2336.78444 | N42: 22.09351 | O42: 614.89419
C43: ='Control Sheet'!$G$12&TEXT('Control Sheet'!$H$12," ##") -> October 2014 | D43: LADWP GL | E43: 50445.12565 | F43: 43578.32269 | G43: 8797.7641 | H43: 34780.55859 | I43: 6866.80296 | J43: 1424.69265 | K43: 812.44704 | L43: 1655.89113 | M43: 2336.78444 | N43: 22.09351 | O43: 614.89419
C44: ='Control Sheet'!$G$13&TEXT('Control Sheet'!$H$13," ##") -> November 2014 | D44: LADWP GL | E44: 50445.18214 | F44: 43578.32269 | G44: 8797.7641 | H44: 34780.55859 | I44: 6866.85945 | J44: 1424.69265 | K44: 812.44704 | L44: 1655.89113 | M44: 2336.78444 | N44: 22.15 | O44: 614.89419
C45: ='Control Sheet'!$G$14&TEXT('Control Sheet'!$H$14," ##") -> December 2014 | D45: LADWP GL | E45: 50448.29953 | F45: 43578.32269 | G45: 8797.7641 | H45: 34780.55859 | I45: 6869.97684 | J45: 1424.69265 | K45: 812.44704 | L45: 1655.89113 | M45: 2336.78444 | N45: 25.26739 | O45: 614.89419
C46: ='Control Sheet'!$G$15&TEXT('Control Sheet'!$H$15," ##") -> January 2015 | D46: LADWP GL | E46: 50448.33549 | F46: 43578.32269 | G46: 8797.7641 | H46: 34780.55859 | I46: 6870.0128 | J46: 1424.69265 | K46: 812.44704 | L46: 1655.89113 | M46: 2336.78444 | N46: 25.30335 | O46: 614.89419
C47: ='Control Sheet'!$G$16&TEXT('Control Sheet'!$H$16," ##") -> February 2015 | D47: LADWP GL | E47: 50448.37346 | F47: 43578.32269 | G47: 8797.7641 | H47: 34780.55859 | I47: 6870.05077 | J47: 1424.69265 | K47: 812.44704 | L47: 1655.89113 | M47: 2336.78444 | N47: 25.34132 | O47: 614.89419
C48: ='Control Sheet'!$G$17&TEXT('Control Sheet'!$H$17," ##") -> March 2015 | D48: LADWP GL | E48: 50448.40432 | F48: 43578.32269 | G48: 8797.7641 | H48: 34780.55859 | I48: 6870.08163 | J48: 1424.69265 | K48: 812.44704 | L48: 1655.89113 | M48: 2336.78444 | N48: 25.37218 | O48: 614.89419
C49: ='Control Sheet'!$G$18&TEXT('Control Sheet'!$H$18," ##") -> April 2015 | D49: LADWP GL | E49: 50448.43843 | F49: 43578.32269 | G49: 8797.7641 | H49: 34780.55859 | I49: 6870.11574 | J49: 1424.69265 | K49: 812.44704 | L49: 1655.89113 | M49: 2336.78444 | N49: 25.40629 | O49: 614.89419
C50: ='Control Sheet'!$G$19&TEXT('Control Sheet'!$H$19," ##") -> May 2015 | D50: LADWP GL | E50: 50448.46261 | F50: 43578.32269 | G50: 8797.7641 | H50: 34780.55859 | I50: 6870.13992 | J50: 1424.69265 | K50: 812.44704 | L50: 1655.89113 | M50: 2336.78444 | N50: 25.43047 | O50: 614.89419
C51: ='Control Sheet'!$G$20&TEXT('Control Sheet'!$H$20," ##") -> June 2015 | D51: LADWP GL | E51: 50448.44444 | F51: 43578.32269 | G51: 8797.7641 | H51: 34780.55859 | I51: 6870.12175 | J51: 1424.69265 | K51: 812.44704 | L51: 1655.89113 | M51: 2336.78444 | N51: 25.4123 | O51: 614.89419
C53: Total 13 Months | D53: =CELL("Address",E53)&_xlfn.FORMULATEXT(E53) -> $E$53=SUM(E39:E51) | E53: =SUM(E39:E51) -> 655809.5687 | F53: 566518.195 | G53: 114370.9333 | H53: 452147.2617 | I53: 89291.3737 | J53: 18521.00445 | K53: 10561.81152 | L53: 21526.58469 | M53: 30378.19772 | N53: 310.15085 | O53: 7993.62447
C55: 13 Month Average | D55: =CELL("Address",E55)&_xlfn.FORMULATEXT(E55) -> $E$55=+E53/13 | E55: =+E53/13 -> 50446.8899 | F55: 43578.32269 | G55: 8797.7641 | H55: 34780.55859 | I55: 6868.567208 | J55: 1424.69265 | K55: 812.44704 | L55: 1655.89113 | M55: 2336.78444 | N55: 23.85775769 | O55: 614.89419
C57: A.2 Reclassifications From Miscellaneous to Production Stations
C59: Remove Sawtelle For Allocation to Hydro | D59: =CELL("Address",N59)&_xlfn.FORMULATEXT(N59) -> $N$59=-N55 | E59: =F59+I59 -> -23.85775769 | I59: =SUM(J59:O59) -> -23.85775769 | N59: =-N55 -> -23.85775769
C60: Total Reclassifications | D60: =CELL("Address",N60)&_xlfn.FORMULATEXT(N60) -> $N$60=SUM(N59:N59) | E60: =SUM(E59:E59) -> -23.85775769 | F60: 0 | G60: 0 | H60: 0 | I60: -23.85775769 | J60: 0 | K60: 0 | L60: 0 | M60: 0 | N60: -23.85775769 | O60: 0
C62: Total Adjusted Miscellaneous Plant | D62: =CELL("Address",N62)&_xlfn.FORMULATEXT(N62) -> $N$62=N60+N55 | E62: =E60+E55 -> 50423.03214 | F62: 43578.32269 | G62: 8797.7641 | H62: 34780.55859 | I62: 6844.70945 | J62: 1424.69265 | K62: 812.44704 | L62: 1655.89113 | M62: 2336.78444 | N62: 0 | O62: 614.89419
C63: Check | E63: =G62+H62+J62+K62+L62+M62+N62+O62 -> 50423.03214
B66: B. STEAM PLANT
C67: The facilities that make up the Harbor, Valley and Haynes stations are booked in the GL under Steam Plant and Other Production Plant. For ease of rate making calculations, the facilities for Harbor, Valley and Haynes booked in Other Production are reclassified to ratemaking steam plant is indicated below.
B68: B.1 General Ledger Steam Plant
E70: STEAM PLANT
F71: General Ledger - Common Steam Costs | G71: 4 LA Basin Thermal Stations (Steam + Other Production) | L71: General Ledger -Navajo
C73: =+'Control Sheet'!G7 -> Months | D73: Reference | E73: Total Steam | G73: Total LA Basin Stations | H73: Harbor | I73: Valley | J73: Scattergood | K73: Haynes | M73: Mohave
C74: ='Control Sheet'!$G$8&TEXT('Control Sheet'!$H$8," ##") -> June 2014 | D74: LADWP GL | E74: =+F74+G74+L74 -> 3279834.676 | F74: 4905.63243 | G74: =SUM(H74:K74) -> 2930843.169 | H74: 532183.3888 | I74: 542157.5817 | J74: 295074.5301 | K74: 1561427.669 | L74: 344085.8741 | M74: Mohave plant is included on LADWP's books but the plant is shut down and therefore not providing ancillary services.
C75: ='Control Sheet'!$G$9&TEXT('Control Sheet'!$H$9," ##") -> July 2014 | D75: LADWP GL | E75: 3280965.926 | F75: 4846.90599 | G75: =SUM(H75:K75) -> 2931923.15 | H75: 532367.0787 | I75: 542371.6358 | J75: 295257.7405 | K75: 1561926.695 | L75: 344195.8704
C76: ='Control Sheet'!$G$10&TEXT('Control Sheet'!$H$10," ##") -> August 2014 | D76: LADWP GL | E76: 3283626.86 | F76: 4868.9784 | G76: 2934373.903 | H76: 532592.9955 | I76: 542500.3883 | J76: 295220.0269 | K76: 1564060.492 | L76: 344383.979
C77: ='Control Sheet'!$G$11&TEXT('Control Sheet'!$H$11," ##") -> September 2014 | D77: LADWP GL | E77: 3285409.667 | F77: 4890.94089 | G77: 2936003.331 | H77: 532802.489 | I77: 543011.5786 | J77: 294797.4724 | K77: 1565391.791 | L77: 344515.3958
C78: ='Control Sheet'!$G$12&TEXT('Control Sheet'!$H$12," ##") -> October 2014 | D78: LADWP GL | E78: 3287536 | F78: 4925.81984 | G78: 2937801.773 | H78: 532999.5297 | I78: 543270.389 | J78: 294883.7499 | K78: 1566648.104 | L78: 344808.4076
C79: ='Control Sheet'!$G$13&TEXT('Control Sheet'!$H$13," ##") -> November 2014 | D79: LADWP GL | E79: 3305351.352 | F79: 5012.64155 | G79: 2955218.729 | H79: 533495.3972 | I79: 543413.7323 | J79: 310870.3555 | K79: 1567439.244 | L79: 345119.9809
C80: ='Control Sheet'!$G$14&TEXT('Control Sheet'!$H$14," ##") -> December 2014 | D80: LADWP GL | E80: 3307168.259 | F80: 5048.82594 | G80: 2956981.849 | H80: 534016.8799 | I80: 543576.4347 | J80: 311182.9068 | K80: 1568205.628 | L80: 345137.5837
C81: ='Control Sheet'!$G$15&TEXT('Control Sheet'!$H$15," ##") -> January 2015 | D81: LADWP GL | E81: 3308719.145 | F81: 5086.21727 | G81: 2958495.344 | H81: 534312.2763 | I81: 543666.2242 | J81: 311277.7241 | K81: 1569239.119 | L81: 345137.5837
C82: ='Control Sheet'!$G$16&TEXT('Control Sheet'!$H$16," ##") -> February 2015 | D82: LADWP GL | E82: 3315403.509 | F82: 5137.04382 | G82: 2964595.714 | H82: 534729.2585 | I82: 543702.6476 | J82: 315749.1738 | K82: 1570414.635 | L82: 345670.7506
C83: ='Control Sheet'!$G$17&TEXT('Control Sheet'!$H$17," ##") -> March 2015 | D83: LADWP GL | E83: 3321117.739 | F83: 5200.45861 | G83: 2970212.507 | H83: 535128.6576 | I83: 543135.8839 | J83: 315909.6926 | K83: 1576038.272 | L83: 345704.7734
C84: ='Control Sheet'!$G$18&TEXT('Control Sheet'!$H$18," ##") -> April 2015 | D84: LADWP GL | E84: 3325182.114 | F84: 5241.48528 | G84: 2974027.998 | H84: 536183.7838 | I84: 543236.0271 | J84: 318141.1845 | K84: 1576467.002 | L84: 345912.6307
C85: ='Control Sheet'!$G$19&TEXT('Control Sheet'!$H$19," ##") -> May 2015 | D85: LADWP GL | E85: 3328386.046 | F85: 5321.96259 | G85: 2976681.561 | H85: 536470.1712 | I85: 543351.4101 | J85: 318263.1687 | K85: 1578596.811 | L85: 346382.5216
C86: ='Control Sheet'!$G$20&TEXT('Control Sheet'!$H$20," ##") -> June 2015 | D86: LADWP GL | E86: 3358085.356 | F86: 5665.96402 | G86: 3005957.322 | H86: 536855.7625 | I86: 546225.072 | J86: 339718.2127 | K86: 1583158.275 | L86: 346462.0707
C88: GL Steam Total Plant | D88: =CELL("Address",E88)&_xlfn.FORMULATEXT(E88) -> $E$88=SUM(E74:E87) | E88: =SUM(E74:E87) -> 42986786.65 | F88: =SUM(F74:F86) -> 66152.87663 | G88: =SUM(G74:G86) -> 38433116.35 | H88: 6944137.669 | I88: 7063619.005 | J88: 4016345.939 | K88: 20409013.74 | L88: 4487517.422
C90: GL Steam Plant 13 Mo Avg | D90: =CELL("Address",E90)&_xlfn.FORMULATEXT(E90) -> $E$90=E88/13 | E90: =E88/13 -> 3306675.896 | F90: =F88/13 -> 5088.682818 | G90: 2956393.565 | H90: 534164.436 | I90: 543355.3081 | J90: 308949.6876 | K90: 1569924.134 | L90: 345193.6479
B92: B.2 Remove Retirements
C93: Remove Retired Plant - Haynes(U 3-6), Harbor(U 3,4,7), Valley(U 3,4) | D93: =CELL("Address",K93)&_xlfn.FORMULATEXT(K93) -> $K$93='Haynes Gross Plt & Accum Deprec'!H51 | E93: =F93+G93 -> -29565.1197 | G93: =SUM(H93:L93) -> -29565.1197 | H93: -2150.47032 | I93: -3500 | K93: ='Haynes Gross Plt & Accum Deprec'!H51 -> -23914.64938
C95: GL Steam Plant 13 Mo Avg (Excl. Retired Units) | D95: =CELL("Address",H95)&_xlfn.FORMULATEXT(H95) -> $H$95=H93+H90 | E95: =E93+E90 -> 3277110.776 | F95: 5088.682818 | G95: 2926828.446 | H95: 532013.9657 | I95: 539855.3081 | J95: 308949.6876 | K95: 1546009.484 | L95: 345193.6479
C96: GL LA BASIN GROSS PLANT ALLOCATOR | D96: =CELL("Address",H96)&_xlfn.FORMULATEXT(H96) -> $H$96=H95/$G$95 | G96: =SUM(H96:K96) -> 1 | H96: =H95/$G$95 -> 0.1817714894 | I96: =I95/$G$95 -> 0.1844506154 | J96: =J95/$G$95 -> 0.1055578396 | K96: =K95/$G$95 -> 0.5282200556
B98: B.3 Steam Plant Reclassifications
C100: B.3.1 Reclassify Common Steam to LA Basin
C101: Common Steam to La Basin Stations | D101: =CELL("Address",H101)&_xlfn.FORMULATEXT(H101) -> $H$101=-$F$101*H96 | E101: =+F101+G101+L101 -> 0 | F101: =-F95 -> -5088.682818 | G101: =SUM(H101:K101) -> 5088.682818 | H101: =-$F$101*H96 -> 924.9774548 | I101: =-$F$101*I96 -> 938.6106775 | J101: =-$F$101*J96 -> 537.1503646 | K101: =-$F$101*K96 -> 2687.944321
C103: B.3.2 Reclassify Receiving Stations to LA Basin
C104: Reclassify Receiving Stations to LA Basin | D104: =CELL("Address",H104)&_xlfn.FORMULATEXT(H104) -> $H$104=$E$104*H96 | E104: =G410 -> 28423.52929 | G104: =SUM(H104:K104) -> 28423.52929 | H104: =$E$104*H96 -> 5166.587252 | I104: =$E$104*I96 -> 5242.73747 | J104: =$E$104*J96 -> 3000.326345 | K104: =$E$104*K96 -> 15013.87822
C106: Total Reclassifications | D106: =CELL("Address",H106)&_xlfn.FORMULATEXT(H106) -> $H$106=+H101+H104 | E106: =+E101+E104 -> 28423.52929 | F106: -5088.682818 | G106: 33512.2121 | H106: 6091.564707 | I106: 6181.348147 | J106: 3537.47671 | K106: 17701.82254 | L106: 0
C108: Reclassified Steam Plant | D108: =CELL("Address",H108)&_xlfn.FORMULATEXT(H108) -> $H$108=H106+H95 | E108: =E106+E95 -> 3305534.306 | F108: 0 | G108: 2960340.658 | H108: 538105.5304 | I108: 546036.6562 | J108: 312487.1643 | K108: 1563711.307 | L108: 345193.6479
C109: Check | E109: =F108+G108+L108 -> 3305534.306
B112: C. HYDRO PRODUCTION PLANT
B114: C.1 General Ledger Hydro Plant
I116: Owens Valley Stations
J117: =+'Gen AS Matrix'!C11 -> Hydro | K117: =+'Gen AS Matrix'!D11 -> Hydro | L117: =+'Gen AS Matrix'!E11 -> Hydro | M117: =+'Gen AS Matrix'!F11 -> Hydro | N117: =+'Gen AS Matrix'!G11 -> Hydro | O117: =+'Gen AS Matrix'!H11 -> Hydro | P117: =+'Gen AS Matrix'!I11 -> Hydro | Q117: =+'Gen AS Matrix'!J11 -> Hydro | R117: =+'Gen AS Matrix'!K11 -> Hydro | S117: =+'Gen AS Matrix'!L11 -> Hydro | T117: =+'Gen AS Matrix'!M11 -> Hydro | U117: =+'Gen AS Matrix'!N11 -> Hydro | V117: =+'Gen AS Matrix'!O11 -> Hydro | W117: =+'Gen AS Matrix'!P11 -> Hydro | X117: =+'Gen AS Matrix'!Q11 -> Hydro | Y117: =+'Gen AS Matrix'!R11 -> Hydro
C118: =+'Control Sheet'!G7 -> Months | D118: Reference | E118: Total Hydro Plant Including OV and Common | F118: Common Hydro Costs Allocated to All Hydro Gens | G118: Total Hydro with Owens Valley Common Costs | H118: Owens Valley Common Costs Allocated to Owens Valley Stations | I118: Subtotal of Owens Valley Stations | J118: =+'Gen AS Matrix'!C12 -> Cottonwood | K118: =+'Gen AS Matrix'!D12 -> Division Creek | L118: =+'Gen AS Matrix'!E12 -> Big Pine | M118: =+'Gen AS Matrix'!F12 -> Pleasant Valley | N118: =+'Gen AS Matrix'!G12 -> Upper Gorge | O118: =+'Gen AS Matrix'!H12 -> Middle Gorge | P118: =+'Gen AS Matrix'!I12 -> Control Gorge | Q118: =+'Gen AS Matrix'!J12 -> S.F. 1 | R118: =+'Gen AS Matrix'!K12 -> S.F. 2 | S118: =+'Gen AS Matrix'!L12 -> San Fernando | T118: =+'Gen AS Matrix'!M12 -> Foothill | U118: =+'Gen AS Matrix'!N12 -> Franklin | V118: =+'Gen AS Matrix'!O12 -> Sawtelle | W118: =+'Gen AS Matrix'!P12 -> Haiwee | X118: =+'Gen AS Matrix'!Q12 -> Pump Storage Castaic | Y118: Hoover Production Plant
C119: ='Control Sheet'!$G$8&TEXT('Control Sheet'!$H$8," ##") -> June 2014 | D119: LADWP GL | E119: =F119+G119 -> 687792.1571 | F119: 1649.9024 | G119: =H119+I119+Q119+R119+S119+T119+U119+V119+W119+X119+Y119 -> 686142.2547 | H119: 8837.13065 | I119: =SUM(J119:P119) -> 88413.69905 | J119: 8277.73727 | K119: 218.56723 | L119: 3512.67587 | M119: 6755.65865 | N119: 30734.53633 | O119: 13417.49915 | P119: 25497.02455 | Q119: 53523.45967 | R119: 15429.94962 | S119: 2138.08713 | T119: 5734.74208 | U119: 3206.95275 | V119: 0 | W119: 4229.8272 | X119: 504102.6225 | Y119: 525.78402
C120: ='Control Sheet'!$G$9&TEXT('Control Sheet'!$H$9," ##") -> July 2014 | D120: LADWP GL | E120: =F120+G120 -> 688872.9246 | F120: 1652.27136 | G120: =H120+I120+Q120+R120+S120+T120+U120+V120+W120+X120+Y120 -> 687220.6533 | H120: 8855.2955 | I120: =SUM(J120:P120) -> 88425.20508 | J120: 8289.18849 | K120: 218.56723 | L120: 3512.67587 | M120: 6755.65865 | N120: 30734.55458 | O120: 13417.5174 | P120: 25497.04286 | Q120: 53548.94706 | R120: 15454.29705 | S120: 2138.08713 | T120: 5734.74208 | U120: 3206.95275 | V120: 0 | W120: 4229.8272 | X120: 505101.5154 | Y120: 525.78402
C121: ='Control Sheet'!$G$10&TEXT('Control Sheet'!$H$10," ##") -> August 2014 | D121: LADWP GL | E121: 689987.9901 | F121: 1657.16882 | G121: 688330.8212 | H121: 8859.14291 | I121: 88425.2635 | J121: 8289.20145 | K121: 218.56723 | L121: 3512.67587 | M121: 6755.65865 | N121: 30734.55458 | O121: 13417.5174 | P121: 25497.08832 | Q121: 53585.79515 | R121: 15486.67159 | S121: 2138.08713 | T121: 5734.74208 | U121: 3206.95275 | V121: 0 | W121: 4229.8272 | X121: 506138.5549 | Y121: 525.78402
C122: ='Control Sheet'!$G$11&TEXT('Control Sheet'!$H$11," ##") -> September 2014 | D122: LADWP GL | E122: 691322.5417 | F122: 1671.63271 | G122: 689650.909 | H122: 8859.14291 | I122: 88425.29438 | J122: 8289.23233 | K122: 218.56723 | L122: 3512.67587 | M122: 6755.65865 | N122: 30734.55458 | O122: 13417.5174 | P122: 25497.08832 | Q122: 53600.9281 | R122: 15504.98618 | S122: 2138.08713 | T122: 5734.74208 | U122: 3206.95275 | V122: 0 | W122: 4229.8272 | X122: 507425.1643 | Y122: 525.78402
C123: ='Control Sheet'!$G$12&TEXT('Control Sheet'!$H$12," ##") -> October 2014 | D123: LADWP GL | E123: 692383.9854 | F123: 1677.74621 | G123: 690706.2392 | H123: 8862.81885 | I123: 88425.24985 | J123: 8289.1878 | K123: 218.56723 | L123: 3512.67587 | M123: 6755.65865 | N123: 30734.55458 | O123: 13417.5174 | P123: 25497.08832 | Q123: 53615.68269 | R123: 15524.10236 | S123: 2138.08713 | T123: 5736.94967 | U123: 3206.95275 | V123: 0 | W123: 4229.8272 | X123: 508440.7846 | Y123: 525.78402
C124: ='Control Sheet'!$G$13&TEXT('Control Sheet'!$H$13," ##") -> November 2014 | D124: LADWP GL | E124: 714797.6886 | F124: 2017.13205 | G124: 712780.5565 | H124: 8865.43466 | I124: 109030.1659 | J124: 8289.15501 | K124: 218.56723 | L124: 3512.67587 | M124: 6755.65865 | N124: 30744.37241 | O124: 13427.33523 | P124: 46082.40146 | Q124: 53630.50058 | R124: 15532.05395 | S124: 2138.08713 | T124: 5737.77129 | U124: 3207.00909 | V124: 0 | W124: 4229.8272 | X124: 509883.9228 | Y124: 525.78402
C125: ='Control Sheet'!$G$14&TEXT('Control Sheet'!$H$14," ##") -> December 2014 | D125: LADWP GL | E125: 716228.493 | F125: 2022.98682 | G125: 714205.5062 | H125: 8868.36387 | I125: 109393.9488 | J125: 8289.20725 | K125: 218.56723 | L125: 3512.67587 | M125: 6755.65865 | N125: 30747.52657 | O125: 13430.48936 | P125: 46439.82384 | Q125: 53639.64015 | R125: 15535.40936 | S125: 2138.08713 | T125: 5743.56529 | U125: 3210.11716 | V125: 0 | W125: 4229.8272 | X125: 510920.7632 | Y125: 525.78402
C126: ='Control Sheet'!$G$15&TEXT('Control Sheet'!$H$15," ##") -> January 2015 | D126: LADWP GL | E126: 718142.8812 | F126: 2027.8936 | G126: 716114.9876 | H126: 8871.03299 | I126: 110362.5832 | J126: 8289.31607 | K126: 218.56723 | L126: 3512.67587 | M126: 6755.65865 | N126: 30747.89499 | O126: 13430.85778 | P126: 47407.61257 | Q126: 53660.48588 | R126: 15545.12619 | S126: 2138.08713 | T126: 5743.96635 | U126: 3210.15302 | V126: 0 | W126: 4229.8272 | X126: 511827.9417 | Y126: 525.78402
C127: ='Control Sheet'!$G$16&TEXT('Control Sheet'!$H$16," ##") -> February 2015 | D127: LADWP GL | E127: 725868.2352 | F127: 2037.05916 | G127: 723831.1761 | H127: 8871.67579 | I127: 116504.0189 | J127: 8324.61917 | K127: 1329.49028 | L127: 3512.67587 | M127: 6755.65865 | N127: 35530.79624 | O127: 13431.01517 | P127: 47619.76356 | Q127: 53697.23979 | R127: 15570.76703 | S127: 2138.08713 | T127: 5744.11126 | U127: 3210.19088 | V127: 0 | W127: 4229.8272 | X127: 513339.474 | Y127: 525.78402
C128: ='Control Sheet'!$G$17&TEXT('Control Sheet'!$H$17," ##") -> March 2015 | D128: LADWP GL | E128: 728298.2295 | F128: 2048.33836 | G128: 726249.8912 | H128: 8872.17111 | I128: =SUM(J128:P128) -> 118157.5013 | J128: 8464.1204 | K128: 1329.58796 | L128: 3512.67587 | M128: 6755.65865 | N128: 36831.14785 | O128: 13431.14258 | P128: 47833.16798 | Q128: 53700.47832 | R128: 15590.47367 | S128: 2138.08713 | T128: 5745.25132 | U128: 3210.22167 | V128: 0 | W128: 4229.8272 | X128: 514080.0955 | Y128: 525.78402
C129: ='Control Sheet'!$G$18&TEXT('Control Sheet'!$H$18," ##") -> April 2015 | D129: LADWP GL | E129: 732882.0503 | F129: 2061.77172 | G129: 730820.2786 | H129: 8877.64878 | I129: 118705.6798 | J129: 8467.61636 | K129: 1330.29614 | L129: 3512.67587 | M129: 6755.65865 | N129: 37232.19174 | O129: 13431.28162 | P129: 47975.95942 | Q129: 53712.91456 | R129: 15893.75565 | S129: 2138.08713 | T129: 5748.53985 | U129: 3210.25566 | V129: 0 | W129: 4229.8272 | X129: 517777.7859 | Y129: 525.78402
C130: ='Control Sheet'!$G$19&TEXT('Control Sheet'!$H$19," ##") -> May 2015 | D130: LADWP GL | E130: 735055.8466 | F130: 2076.54186 | G130: 732979.3048 | H130: 8878.72072 | I130: 119059.9407 | J130: 8467.64789 | K130: 1330.67393 | L130: 3512.67587 | M130: 6755.65865 | N130: 37554.03908 | O130: 13431.38048 | P130: 48007.86482 | Q130: 53717.75877 | R130: 16145.56488 | S130: 2138.08713 | T130: 5750.47361 | U130: 3210.27977 | V130: 0 | W130: 4229.8272 | X130: 519322.868 | Y130: 525.78402
C131: ='Control Sheet'!$G$20&TEXT('Control Sheet'!$H$20," ##") -> June 2015 | D131: LADWP GL | E131: 764529.3457 | F131: 2201.16977 | G131: 762328.1759 | H131: 8878.41299 | I131: 144652.1884 | J131: 8474.37013 | K131: 1331.08995 | L131: 3512.67587 | M131: 6755.65865 | N131: 39620.09643 | O131: 36317.18777 | P131: 48641.10962 | Q131: 53719.95404 | R131: 16251.95377 | S131: 2138.08713 | T131: 5750.69576 | U131: 3210.26164 | V131: 0 | W131: 4229.8272 | X131: 522971.011 | Y131: 525.78402
C132: General Ledger 13 Month Total | D132: =CELL("Address",J132)&_xlfn.FORMULATEXT(J132) -> $J$132=SUM(J119:J131) | E132: =SUM(E119:E131) -> 9286162.369 | F132: =SUM(F119:F131) -> 24801.61484 | G132: =SUM(G119:G131) -> 9261360.754 | H132: =SUM(H119:H131) -> 115256.9917 | I132: =SUM(I119:I131) -> 1387980.739 | J132: =SUM(J119:J131) -> 108500.5996 | K132: 8399.6761 | L132: 45664.78631 | M132: 87823.56245 | N132: 432680.82 | O132: 197418.2587 | P132: 507493.0356 | Q132: 697353.7848 | R132: 203465.1113 | S132: 27795.13269 | T132: 74640.29272 | U132: 41713.25264 | V132: =SUM(V119:V131) -> 0 | W132: 54987.7536 | X132: 6651332.504 | Y132: 6835.19226
C133: General Ledger 13 Month Average | D133: =CELL("Address",J133)&_xlfn.FORMULATEXT(J133) -> $J$133=J132/13 | E133: =E132/13 -> 714320.1822 | F133: =F132/13 -> 1907.816526 | G133: 712412.3657 | H133: 8865.922441 | I133: 106767.7491 | J133: 8346.199971 | K133: 646.1289308 | L133: 3512.67587 | M133: 6755.65865 | N133: 33283.14 | O133: 15186.0199 | P133: 39037.92582 | Q133: 53642.59883 | R133: 15651.16241 | S133: 2138.08713 | T133: 5741.560978 | U133: 3208.711742 | V133: 0 | W133: 4229.8272 | X133: 511640.9618 | Y133: 525.78402
C134: Check | E134: =SUM(J133:Y133)+F133+H133 -> 714320.1822
B136: C.2 Remove Hoover
C137: LADWP's books include Hoover gross plant but the cost of power from Hoover is provided via an entitlement agreement through purchased power.
C139: Remove Hoover | D139: =CELL("Address",Y139)&_xlfn.FORMULATEXT(Y139) -> $Y$139=-Y133 | E139: =F139+G139 -> -525.78402 | G139: =H139+I139+Q139+R139+S139+T139+U139+V139+W139+X139+Y139 -> -525.78402 | I139: =SUM(J139:P139) -> 0 | Y139: =-Y133 -> -525.78402
C141: General Ledger 13 Month Average Excl. Hoover | D141: =CELL("Address",J141)&_xlfn.FORMULATEXT(J141) -> $J$141=J139+J133 | E141: =E139+E133 -> 713794.3982 | F141: 1907.816526 | G141: 711886.5817 | H141: 8865.922441 | I141: 106767.7491 | J141: 8346.199971 | K141: 646.1289308 | L141: 3512.67587 | M141: 6755.65865 | N141: 33283.14 | O141: 15186.0199 | P141: 39037.92582 | Q141: 53642.59883 | R141: 15651.16241 | S141: 2138.08713 | T141: 5741.560978 | U141: 3208.711742 | V141: 0 | W141: 4229.8272 | X141: 511640.9618 | Y141: 0
C142: Owens Valley (OV) GROSS PLANT ALLOCATOR | D142: =CELL("Address",J142)&_xlfn.FORMULATEXT(J142) -> $J$142=+J141/I141 | E142: =+H142+F142+J142+K142+L142+M142+N142+O142+P142+Q142+R142+S142+T142+U142+V142+W142+X142+Y142 -> 1 | I142: =SUM(J142:P142) -> 1 | J142: =+J141/I141 -> 0.0781715456 | K142: =+K141/I141 -> 0.006051723821 | L142: =+L141/I141 -> 0.03290015851 | M142: =+M141/I141 -> 0.06327433803 | N142: =+N141/I141 -> 0.3117340233 | O142: =+O141/I141 -> 0.1422341487 | P142: =+P141/I141 -> 0.3656340621
B144: C.3 Hydro Plant Reclassifications
C146: C.3.1 Reclassify OV Common Costs to Owens Valley Stations
C147: Reclassify OV Common Costs to OV Stations | D147: =CELL("Address",J147)&_xlfn.FORMULATEXT(J147) -> $J$147=-J142*$H$147 | E147: =F147+G147 -> 0 | G147: =H147+I147+Q147+R147+S147+T147+U147+V147+W147+X147+Y147 -> 0 | H147: =-H141 -> -8865.922441 | I147: =SUM(J147:P147) -> 8865.922441 | J147: =-J142*$H$147 -> 693.0628604 | K147: 53.65411403 | L147: 291.6902536 | M147: 560.9853735 | N147: 2763.809673 | O147: 1261.03693 | P147: 3241.683236
C148: Reclassified OV Stations with OV Common Costs | D148: =CELL("Address",J148)&_xlfn.FORMULATEXT(J148) -> $J$148=J147+J141 | E148: =E147+E141 -> 713794.3982 | F148: 1907.816526 | G148: 711886.5817 | H148: 0 | I148: 115633.6716 | J148: 9039.262831 | K148: 699.7830448 | L148: 3804.366124 | M148: 7316.644023 | N148: 36046.94967 | O148: 16447.05683 | P148: 42279.60905 | Q148: 53642.59883 | R148: 15651.16241 | S148: 2138.08713 | T148: 5741.560978 | U148: 3208.711742 | V148: 0 | W148: 4229.8272 | X148: 511640.9618 | Y148: 0
C150: C.3.2 Reclassify Miscellaneous Plant to Hydro
C151: Miscellaneous Plant-Sawtelle | D151: =CELL("Address",V151)&_xlfn.FORMULATEXT(V151) -> $V$151=-N59 | E151: =F151+G151 -> 23.85775769 | G151: =H151+I151+Q151+R151+S151+T151+U151+V151+W151+X151+Y151 -> 23.85775769 | I151: =SUM(J151:P151) -> 0 | V151: =-N59 -> 23.85775769
C153: Reclassified OV Stations with OV Common Costs and Sawtelle | D153: =CELL("Address",J153)&_xlfn.FORMULATEXT(J153) -> $J$153=J151+J148 | E153: =E151+E148 -> 713818.256 | F153: 1907.816526 | G153: 711910.4395 | H153: 0 | I153: 115633.6716 | J153: 9039.262831 | K153: 699.7830448 | L153: 3804.366124 | M153: 7316.644023 | N153: 36046.94967 | O153: 16447.05683 | P153: 42279.60905 | Q153: 53642.59883 | R153: 15651.16241 | S153: 2138.08713 | T153: 5741.560978 | U153: 3208.711742 | V153: 23.85775769 | W153: 4229.8272 | X153: 511640.9618 | Y153: 0
C154: HYDRO COMMON COST GROSS PLANT ALLOCATOR | D154: =CELL("Address",J154)&_xlfn.FORMULATEXT(J154) -> $J$154=J153/$G$153 | G154: =H154+I154+Q154+R154+S154+T154+U154+V154+W154+X154+Y154 -> 1 | I154: =SUM(J154:P154) -> 0.1624272734 | J154: =J153/$G$153 -> 0.01269719101 | K154: =K153/$G$153 -> 0.0009829649996 | L154: 0.00534388304 | M154: 0.0102774782 | N154: 0.05063410743 | O154: 0.02310270495 | P154: 0.05938894377 | Q154: 0.07535020679 | R154: 0.02198473507 | S154: 0.00300330914 | T154: 0.008065004613 | U154: 0.004507184561 | V154: 3.351230207e-05 | W154: 0.005941515906 | X154: 0.7186872582 | Y154: 0
C156: C.3.3 Reclassify Common Costs applicable to All Hydro Stations
C157: Reclassify Hydro Common Costs to all Hydro Stations | D157: =CELL("Address",J157)&_xlfn.FORMULATEXT(J157) -> $J$157=-J154*$F$157 | E157: =F157+G157 -> 0 | F157: =-F148 -> -1907.816526 | G157: =H157+I157+Q157+R157+S157+T157+U157+V157+W157+X157+Y157 -> 1907.816526 | I157: =SUM(J157:P157) -> 309.8814365 | J157: =-J154*$F$157 -> 24.22391084 | K157: 1.875316871 | L157: 10.19514838 | M157: 19.60754276 | N157: 96.60058694 | O157: 44.0757223 | P157: 113.3032084 | Q157: 143.7543698 | R157: 41.9428409 | S157: 5.729762811 | T157: 15.38654908 | U157: 8.598881192 | V157: 0.06393532371 | W157: 11.33532224 | X157: 1371.123428 | Y157: 0
C158: Reclassified Hydro Gross Plant Subtotal | D158: =CELL("Address",J158)&_xlfn.FORMULATEXT(J158) -> $J$158=J157+J153 | E158: =E157+E153 -> 713818.256 | F158: =F157+F153 -> 0 | G158: 713818.256 | H158: 0 | I158: 115943.553 | J158: 9063.486742 | K158: 701.6583617 | L158: 3814.561272 | M158: 7336.251566 | N158: 36143.55026 | O158: 16491.13256 | P158: 42392.91226 | Q158: 53786.3532 | R158: 15693.10525 | S158: 2143.816893 | T158: 5756.947528 | U158: 3217.310623 | V158: 23.92169302 | W158: 4241.162522 | X158: 513012.0853 | Y158: 0
C159: Check | E159: =SUM(J158:Y158) -> 713818.256
C162: C.3.4: 7 Factor Reclassifications From Transmission
C163: 7 Factor reclassification of transmission gen-tie lines to production facilities.
C164: =C299 -> 230 kV OH - UPPER GORGE-MIDDLE GORGE | D164: =CELL("Address",N164)&_xlfn.FORMULATEXT(N164) -> $N$164=-J299 | E164: =F164+G164 -> 349.0158394 | F164: =-F154 -> 0 | G164: =H164+I164+Q164+R164+S164+T164+U164+V164+W164+X164+Y164 -> 349.0158394 | I164: =SUM(J164:P164) -> 349.0158394 | N164: =-J299 -> 349.0158394
C165: =C300 -> 230 kV OH - MIDDLE GORGE-CONTROL GORGE | D165: =CELL("Address",O165)&_xlfn.FORMULATEXT(O165) -> $O$165=-J300 | E165: =F165+G165 -> 641.5732342 | F165: =-F155 -> 0 | G165: =H165+I165+Q165+R165+S165+T165+U165+V165+W165+X165+Y165 -> 641.5732342 | I165: =SUM(J165:P165) -> 641.5732342 | O165: =-J300 -> 641.5732342
C166: =C301 -> 230 kV OH - CONTROL GORGE-INYO LINE to Production | D166: =CELL("Address",P166)&_xlfn.FORMULATEXT(P166) -> $P$166=-J301 | E166: =F166+G166 -> 609.4945725 | F166: =-F156 -> 0 | G166: =H166+I166+Q166+R166+S166+T166+U166+V166+W166+X166+Y166 -> 609.4945725 | I166: =SUM(J166:P166) -> 609.4945725 | P166: =-J301 -> 609.4945725
C167: Total Gen-tie lines | D167: =CELL("Address",N167)&_xlfn.FORMULATEXT(N167) -> $N$167=SUM(N164:N166) | E167: =SUM(E164:E166) -> 1600.083646 | F167: =SUM(F164:F166) -> 0 | G167: 1600.083646 | H167: 0 | I167: 1600.083646 | J167: 0 | K167: 0 | L167: 0 | M167: 0 | N167: 349.0158394 | O167: 641.5732342 | P167: 609.4945725 | Q167: 0 | R167: 0 | S167: 0 | T167: 0 | U167: 0 | V167: 0 | W167: 0 | X167: 0 | Y167: 0
C169: 7 Factor Olive Switchyard Reclassification
C170: 115kW LINE ALLOCATOR | D170: =CELL("Address",Q170)&_xlfn.FORMULATEXT(Q170) -> $Q$170=Q178 | Q170: =Q178 -> 0.6229802513 | R170: =R178 -> 0.3770197487
C171: 7 Factor Olive Switchyard Reclassification to SF1 and SF2 | D171: =CELL("Address",Q171)&_xlfn.FORMULATEXT(Q171) -> $Q$171=-Q170*$J$306 | E171: =F171+G171 -> 9803.66823 | F171: =-F161 -> 0 | G171: =H171+I171+Q171+R171+S171+T171+U171+V171+W171+X171+Y171 -> 9803.66823 | I171: =SUM(J171:P171) -> 0 | Q171: =-Q170*$J$306 -> 6107.491698 | R171: =-R170*$J$306 -> 3696.176532
C173: Total 7 Factor Reclassification | D173: =CELL("Address",N173)&_xlfn.FORMULATEXT(N173) -> $N$173=N171+N167 | E173: =E171+E167 -> 11403.75188 | F173: =F171+F167 -> 0 | G173: 11403.75188 | H173: 0 | I173: 1600.083646 | J173: 0 | K173: 0 | L173: 0 | M173: 0 | N173: 349.0158394 | O173: 641.5732342 | P173: 609.4945725 | Q173: 6107.491698 | R173: 3696.176532 | S173: 0 | T173: 0 | U173: 0 | V173: 0 | W173: 0 | X173: 0 | Y173: 0
C174: Check | E174: =SUM(J173:Y173) -> 11403.75188
C176: C.3.5 Reclassify 115 kV Transmission Line to SF1 and SF2
C177: SF 1 and SF2 Capacity MW nameplate | D177: =CELL("Address",Q177)&_xlfn.FORMULATEXT(Q177) -> $Q$177='Gen AS Matrix'!$J$21 | E177: =SUM(J177:Y177) -> 111.4 | Q177: ='Gen AS Matrix'!$J$21 -> 69.4 | R177: ='Gen AS Matrix'!$K$21 -> 42
C178: 115kV LINE ALLOCATOR (3 lines) | D178: =CELL("Address",Q178)&_xlfn.FORMULATEXT(Q178) -> $Q$178=Q177/$E$177 | Q178: =Q177/$E$177 -> 0.6229802513 | R178: =R177/$E$177 -> 0.3770197487
C179: 115kV Transmission Line Allocate to SF 1 and SF 2 | D179: =CELL("Address",Q179)&_xlfn.FORMULATEXT(Q179) -> $Q$179=-$E$312*Q178 | E179: =F179+G179 -> 13910.83863 | G179: =H179+I179+Q179+R179+S179+T179+U179+V179+W179+X179+Y179 -> 13910.83863 | I179: =SUM(J179:P179) -> 0 | Q179: =-$E$312*Q178 -> 8666.177749 | R179: =-$E$312*R178 -> 5244.660885
C181: Total Reclassified Hydro Gross Plant | D181: =CELL("Address",Q181)&_xlfn.FORMULATEXT(Q181) -> $Q$181=Q179+Q158+Q173 | E181: =E179+E158+E173 -> 739132.8465 | F181: 0 | G181: 739132.8465 | H181: 0 | I181: 117543.6367 | J181: 9063.486742 | K181: 701.6583617 | L181: 3814.561272 | M181: 7336.251566 | N181: 36492.5661 | O181: 17132.70579 | P181: 43002.40684 | Q181: 68560.02264 | R181: 24633.94267 | S181: 2143.816893 | T181: 5756.947528 | U181: 3217.310623 | V181: 23.92169302 | W181: 4241.162522 | X181: 513012.0853 | Y181: 0
C182: Check | E182: =SUM(J181:Y181) -> 739132.8465
B187: D. NUCLEAR PLANT
C188: Note: Palo Verde does not provide Ancillary Services
C190: =+'Control Sheet'!G7 -> Months | D190: Reference | E190: General Ledger Nuclear
C191: ='Control Sheet'!$G$8&TEXT('Control Sheet'!$H$8," ##") -> June 2014 | D191: LADWP GL | E191: 621277.0569
C192: ='Control Sheet'!$G$9&TEXT('Control Sheet'!$H$9," ##") -> July 2014 | D192: LADWP GL | E192: 621277.0569
C193: ='Control Sheet'!$G$10&TEXT('Control Sheet'!$H$10," ##") -> August 2014 | D193: LADWP GL | E193: 621040.4589
C194: ='Control Sheet'!$G$11&TEXT('Control Sheet'!$H$11," ##") -> September 2014 | D194: LADWP GL | E194: 621072.2602
C195: ='Control Sheet'!$G$12&TEXT('Control Sheet'!$H$12," ##") -> October 2014 | D195: LADWP GL | E195: 621519.3897
C196: ='Control Sheet'!$G$13&TEXT('Control Sheet'!$H$13," ##") -> November 2014 | D196: LADWP GL | E196: 623416.363
C197: ='Control Sheet'!$G$14&TEXT('Control Sheet'!$H$14," ##") -> December 2014 | D197: LADWP GL | E197: 623450.2981
C198: ='Control Sheet'!$G$15&TEXT('Control Sheet'!$H$15," ##") -> January 2015 | D198: LADWP GL | E198: 623781.1591
C199: ='Control Sheet'!$G$16&TEXT('Control Sheet'!$H$16," ##") -> February 2015 | D199: LADWP GL | E199: 629638.0321
C200: ='Control Sheet'!$G$17&TEXT('Control Sheet'!$H$17," ##") -> March 2015 | D200: LADWP GL | E200: 629982.1408
C201: ='Control Sheet'!$G$18&TEXT('Control Sheet'!$H$18," ##") -> April 2015 | D201: LADWP GL | E201: 630309.0277
C202: ='Control Sheet'!$G$19&TEXT('Control Sheet'!$H$19," ##") -> May 2015 | D202: LADWP GL | E202: 632771.6588
C203: ='Control Sheet'!$G$20&TEXT('Control Sheet'!$H$20," ##") -> June 2015 | D203: LADWP GL | E203: 633035.716
C204: Total 13 Months | D204: =CELL("Address",E204)&_xlfn.FORMULATEXT(E204) -> $E$204=SUM(E191:E203) | E204: =SUM(E191:E203) -> 8132570.618
C206: 13 Month Average Nuclear Plant | D206: =CELL("Address",E206)&_xlfn.FORMULATEXT(E206) -> $E$206=E204/13 | E206: =E204/13 -> 625582.3552
B213: E. OTHER PRODUCTION PLANT
C214: For simplicity, Harbor, Haynes and Valley values included in Other Production GL plant accounts have been included in steam accounts. This reclassification for modeling purposes does NOT impact the ultimate rates.
C215: E.1 General Ledger Other Production Plant
F216: General Ledger | G216: General Ledger
C217: =+'Control Sheet'!$G$7 -> Months | D217: Reference | E217: Total Other Production | F217: =+'Gen AS Matrix'!Y12 -> Wind | G217: =+'Gen AS Matrix'!Z12 -> Solar
C218: ='Control Sheet'!$G$8&TEXT('Control Sheet'!$H$8," ##") -> June 2014 | D218: LADWP GL | E218: =SUM(F218:G218) -> 630846.4429 | F218: 473034.4103 | G218: 157812.0326
C219: ='Control Sheet'!$G$9&TEXT('Control Sheet'!$H$9," ##") -> July 2014 | D219: LADWP GL | E219: 631356.5347 | F219: 473082.1448 | G219: 158274.3898
C220: ='Control Sheet'!$G$10&TEXT('Control Sheet'!$H$10," ##") -> August 2014 | D220: LADWP GL | E220: 631220.1267 | F220: 473156.406 | G220: 158063.7207
C221: ='Control Sheet'!$G$11&TEXT('Control Sheet'!$H$11," ##") -> September 2014 | D221: LADWP GL | E221: 631330.6311 | F221: 473219.2505 | G221: 158111.3806
C222: ='Control Sheet'!$G$12&TEXT('Control Sheet'!$H$12," ##") -> October 2014 | D222: LADWP GL | E222: 631516.8056 | F222: 473360.55 | G222: 158156.2556
C223: ='Control Sheet'!$G$13&TEXT('Control Sheet'!$H$13," ##") -> November 2014 | D223: LADWP GL | E223: 631747.5531 | F223: 473533.4111 | G223: 158214.1419
C224: ='Control Sheet'!$G$14&TEXT('Control Sheet'!$H$14," ##") -> December 2014 | D224: LADWP GL | E224: 631899.8004 | F224: 473615.3611 | G224: 158284.4393
C225: ='Control Sheet'!$G$15&TEXT('Control Sheet'!$H$15," ##") -> January 2015 | D225: LADWP GL | E225: 631963.5208 | F225: 473664.852 | G225: 158298.6688
C226: ='Control Sheet'!$G$16&TEXT('Control Sheet'!$H$16," ##") -> February 2015 | D226: LADWP GL | E226: 635568.4738 | F226: 477367.3462 | G226: 158201.1276
C227: ='Control Sheet'!$G$17&TEXT('Control Sheet'!$H$17," ##") -> March 2015 | D227: LADWP GL | E227: 635659.2638 | F227: 477420.5462 | G227: 158238.7176
C228: ='Control Sheet'!$G$18&TEXT('Control Sheet'!$H$18," ##") -> April 2015 | D228: LADWP GL | E228: 641693.7924 | F228: 477522.8887 | G228: 164170.9037
C229: ='Control Sheet'!$G$19&TEXT('Control Sheet'!$H$19," ##") -> May 2015 | D229: LADWP GL | E229: 642024.0414 | F229: 477766.2757 | G229: 164257.7657
C230: ='Control Sheet'!$G$20&TEXT('Control Sheet'!$H$20," ##") -> June 2015 | D230: LADWP GL | E230: 643121.4262 | F230: 477859.9888 | G230: 165261.4373
C231: Total 13 Months | D231: =CELL("Address",E231)&_xlfn.FORMULATEXT(E231) -> $E$231=SUM(E218:E230) | E231: =SUM(E218:E230) -> 8249948.413 | F231: =SUM(F218:F230) -> 6174603.431 | G231: =SUM(G218:G230) -> 2075344.981
C233: 13 Month Average Other Production Plant | D233: =CELL("Address",E233)&_xlfn.FORMULATEXT(E233) -> $E$233=SUM(F233:G233) | E233: =SUM(F233:G233) -> 634611.4164 | F233: =F231/13 -> 474969.4947 | G233: =G231/13 -> 159641.9216
C235: E.2 7 Factor Reclassifications from Transmission to Production Gen-tie
C236: =C298 -> 230 kV OH - PINETREE BARREN-RIDGE LINE (Wind + Solar) | D236: =CELL("Address",E236)&_xlfn.FORMULATEXT(E236) -> $E$236=-E298 | E236: =-E298 -> 1063.086849
C237: Pinetree Solar and Wind Capacity | D237: =CELL("Address",F237)&_xlfn.FORMULATEXT(F237) -> $F$237='Gen AS Matrix'!I115 | E237: =SUM(F237:G237) -> 143.5 | F237: ='Gen AS Matrix'!I115 -> 135 | G237: ='Gen AS Matrix'!I119 -> 8.5
C238: ='Allocation Factors'!C111 -> 230 kV OH - PINETREE BARREN-RIDGE LINE (Wind + Solar) ALLOCATOR | D238: =CELL("Address",F238)&_xlfn.FORMULATEXT(F238) -> $F$238=F237/E237 | E238: =SUM(F238:G238) -> 1 | F238: =F237/E237 -> 0.9407665505 | G238: =G237/E237 -> 0.05923344948
C239: =C236&" Allocation" -> 230 kV OH - PINETREE BARREN-RIDGE LINE (Wind + Solar) Allocation | D239: =CELL("Address",F239)&_xlfn.FORMULATEXT(F239) -> $F$239=F238*E236 | E239: =SUM(F239:G239) -> 1063.086849 | F239: =F238*E236 -> 1000.116548 | G239: =G238*E236 -> 62.97030117
C241: 13 Month Average Other Production Plant | D241: =CELL("Address",F241)&_xlfn.FORMULATEXT(F241) -> $F$241=F239+F233 | E241: =E239+E233 -> 635674.5032 | F241: =F239+F233 -> 475969.6113 | G241: =G239+G233 -> 159704.892
C242: Check | E242: =SUM(F241:G241) -> 635674.5032
B249: F. TRANSMISSION PLANT
B251: F.1 General Ledger Transmission Plant
C252: Line categories are not broken out by voltage as the transmission system is an integrated system. All voltage levels are aggregated together into a single total.
F253: General Ledger - Transmission
C254: =+'Control Sheet'!$G$7 -> Months | D254: Reference | E254: Total Transmission Plant | F254: Station (Substation) | G254: San Francisquito (115kV) | H254: Other Operating Expense: (Boulder Security HQ Transmission Construction and Maintenance HQ) | I254: Energy Management (ECC) | J254: Total of 138,230,287,500kv Lines | K254: Jointly Owned Lines | L254: Line | M254: Other Transmission Station
C255: ='Control Sheet'!$G$8&TEXT('Control Sheet'!$H$8," ##") -> June 2014 | D255: LADWP GL | E255: =SUM(F255:M255) -> 1093475.086 | F255: 402779.2771 | G255: 12333.72594 | H255: 22157.89633 | I255: 15.23162 | J255: 501429.1566 | K255: 73408.23321 | L255: 73185.08993 | M255: 8166.4757
C256: ='Control Sheet'!$G$9&TEXT('Control Sheet'!$H$9," ##") -> July 2014 | D256: LADWP GL | E256: =SUM(F256:M256) -> 1096617.585 | F256: 402936.3714 | G256: 12505.32469 | H256: 22166.93321 | I256: 15.23162 | J256: 501821.5879 | K256: 73413.27388 | L256: 73245.38614 | M256: 10513.4757
C257: ='Control Sheet'!$G$10&TEXT('Control Sheet'!$H$10," ##") -> August 2014 | D257: LADWP GL | E257: =SUM(F257:M257) -> 1096788.541 | F257: 402957.7959 | G257: 12559.45321 | H257: 22167.36318 | I257: 15.23162 | J257: 501866.4119 | K257: 73438.69015 | L257: 73270.11919 | M257: 10513.4757
C258: ='Control Sheet'!$G$11&TEXT('Control Sheet'!$H$11," ##") -> September 2014 | D258: LADWP GL | E258: =SUM(F258:M258) -> 1097028.501 | F258: 402866.5434 | G258: 13842.36735 | H258: 22173.51461 | I258: 15.23162 | J258: 500881.1332 | K258: 73439.22296 | L258: 73297.01236 | M258: 10513.4757
C259: ='Control Sheet'!$G$12&TEXT('Control Sheet'!$H$12," ##") -> October 2014 | D259: LADWP GL | E259: 1097495.504 | F259: 403086.8977 | G259: 14146.28545 | H259: 22174.07428 | I259: 15.23162 | J259: 500680.0591 | K259: 73441.54023 | L259: 73437.93945 | M259: 10513.4757
C260: ='Control Sheet'!$G$13&TEXT('Control Sheet'!$H$13," ##") -> November 2014 | D260: LADWP GL | E260: 1101442.156 | F260: 403252.91 | G260: 14231.58351 | H260: 22174.56708 | I260: 15.23162 | J260: 502847.7287 | K260: 74965.37117 | L260: 73441.28788 | M260: 10513.4757
C261: ='Control Sheet'!$G$14&TEXT('Control Sheet'!$H$14," ##") -> December 2014 | D261: LADWP GL | E261: 1102599.839 | F261: 403320.2202 | G261: 14281.85144 | H261: 22199.84451 | I261: 15.23162 | J261: 503644.762 | K261: 75037.91824 | L261: 73586.53537 | M261: 10513.4757
C262: ='Control Sheet'!$G$15&TEXT('Control Sheet'!$H$15," ##") -> January 2015 | D262: LADWP GL | E262: 1103945.777 | F262: 403399.0822 | G262: 14353.08699 | H262: 22236.31211 | I262: 15.23162 | J262: 504600.3151 | K262: 75072.2359 | L262: 73691.23159 | M262: 10578.2817
C263: ='Control Sheet'!$G$16&TEXT('Control Sheet'!$H$16," ##") -> February 2015 | D263: LADWP GL | E263: 1113771.303 | F263: 412002.5223 | G263: 14424.94362 | H263: 22267.55701 | I263: 17.28093 | J263: 505609.9901 | K263: 75093.58135 | L263: 73777.14563 | M263: 10578.2817
C264: ='Control Sheet'!$G$17&TEXT('Control Sheet'!$H$17," ##") -> March 2015 | D264: LADWP GL | E264: 1115095.308 | F264: 412336.9352 | G264: 14482.22395 | H264: 22272.58443 | I264: 17.28093 | J264: 506433.0025 | K264: 75096.58198 | L264: 73878.41684 | M264: 10578.2817
C265: ='Control Sheet'!$G$18&TEXT('Control Sheet'!$H$18," ##") -> April 2015 | D265: LADWP GL | E265: 1115234.329 | F265: 412485.4396 | G265: 14540.10735 | H265: 22286.89516 | I265: 17.28093 | J265: 506838.533 | K265: 75099.14182 | L265: 73388.64903 | M265: 10578.2817
C266: ='Control Sheet'!$G$19&TEXT('Control Sheet'!$H$19," ##") -> May 2015 | D266: LADWP GL | E266: 1116660.761 | F266: 413233.8663 | G266: 14548.15183 | H266: 22303.66982 | I266: 17.28093 | J266: 507440.5247 | K266: 75100.03323 | L266: 73438.95296 | M266: 10578.2817
C267: ='Control Sheet'!$G$20&TEXT('Control Sheet'!$H$20," ##") -> June 2015 | D267: LADWP GL | E267: 1133316.257 | F267: 417092.3622 | G267: 14591.79691 | H267: 22305.56305 | I267: 17.28093 | J267: 516157.0829 | K267: 78066.49693 | L267: 74507.3921 | M267: 10578.2817
C268: Total 13 Months | D268: =CELL("Address",F268)&_xlfn.FORMULATEXT(F268) -> $F$268=SUM(F255:F267) | E268: =SUM(E255:E267) -> 14383470.95 | F268: =SUM(F255:F267) -> 5291750.223 | G268: 180840.9022 | H268: 288886.7748 | I268: 208.25761 | J268: 6560250.288 | K268: 970672.321 | L268: 956145.1585 | M268: 134717.0201
B273: F.2 Transmission Total Before Reclassifications
... 199 more rows

Sheet AE
D1: =+'Control Sheet'!$A$1 -> Los Angeles Department of Water and Power
D2: =+'Control Sheet'!$A$2 -> Statement
D3: ='Control Sheet'!B35 -> AE Accumulated Depreciation and Amortization (Accum Deprec)
D4: =+'Control Sheet'!$A$3 -> Test Period: FY2014-15 (July 1, 2014 through June 30, 2015)
D5: ='Control Sheet'!A4 -> (in Thousands of Dollars)
E7: Error Check
E8: Calculated Totals | F8: =F46+F84+F102+F116+F122+F159+F186+F253+F328+F387+F406+F430+F437+F264+F150+G244+G325 -> -31810682.47
E9: Check Totals | F9: =F47+F85+F103+F117+F123+F160+F187+F254+F329+F388+F407+F431+F438+F265+F151+G245+G326 -> -31810682.47
E10: Difference | F10: =F8-F9 -> -0.002289999276
E11: Error Check | F11: =IF(ABS(F10)>0.01,"Error","") -> 
D18: Table of Contents
D19: Item
D20: A. PRODUCTION PLANT ACCUMULATED DEPRECIATION AND AMORTIZATION
D21: =C162 -> B. TRANSMISSION PLANT ACCUMULATED DEPRECIATION
D22: =C258 -> C. DISTRIBUTION PLANT ACCUMULATED DEPRECIATION
D23: =C339 -> D. INTANGIBLE PLANT ACCUM DEPREC
D24: =C390 -> E. ALLOCATION OF GENERAL PLANT ACCUM DEPREC TO PRODUCTION AND TRANSMISSION
D25: =C413 -> F. RECLASSIFICATION OF ENERGY CONTROL CENTER (ECC) TO GENERAL ACCUMULATED DEPRECIATION
C27: =+D20 -> A. PRODUCTION PLANT ACCUMULATED DEPRECIATION AND AMORTIZATION
C28: LADWP's systems for tracking/recording accumulated depreciation consists of the general ledger (GL) and Power Plant system. The GL only includes monthly detail at a functional level and does have a breakdown by production station. In order to allocate the GL accumulated depreciation 13 month average to the various generation stations, ratios are developed below using generating station values from Power Plant and other manual entries that are made to the GL. The ratios are developed in Section A.1 below. As can be seen in A.1.2 below, the ending balances from Power Plant and the manual entries to the GL do tie/reconcile to the June 2015 ending production balance shown in the GL in Section A.2.1. The allocation of the GL accumulated depreciation is shown in Section A.2 below.
C30: A.1 Reclassification of Power Plant Accumulated Depreciation
H32: Hydro Common Costs | K32: Owens Valley Stations (Non-Common) | AG32: LA BASIN
D33: A.1.1 Power Plant/GL Accumulated Depreciation | G33: HYDRO | H33: HYDRO | I33: HYDRO | J33: HYDRO | K33: HYDRO | L33: HYDRO | M33: HYDRO | N33: HYDRO | O33: HYDRO | P33: HYDRO | Q33: HYDRO | R33: HYDRO | S33: HYDRO | T33: HYDRO | U33: HYDRO | V33: HYDRO | W33: HYDRO | X33: HYDRO | Y33: HYDRO | Z33: HYDRO | AA33: HYDRO | AE33: STEAM | AF33: STEAM | AH33: STEAM/OTHER PROD | AI33: STEAM/OTHER PROD | AJ33: STEAM | AK33: STEAM/OTHER PROD | AL33: STEAM | AM33: NUCLEAR | AN33: OTHER PRODUCTION | AO33: OTHER PRODUCTION | AP33: VARIOUS
D34: Item | E34: Reference | F34: Power Plant Total Production | G34: Total Hydro | H34: Common Hydro | I34: Total Hydro With OV Common | J34: Owens Valley Common Hydro | K34: Total Owens Valley Hydro Without OV Common Hydro | L34: Cottonwood | M34: Division Creek | N34: Big Pine | O34: Pleasant Valley | P34: Upper Gorge | Q34: Middle Gorge | R34: Control Gorge | S34: San Francisquito 1 | T34: San Francisquito 2 | U34: San Fernando | V34: Foothill | W34: Franklin | X34: Sawtelle | Y34: Haiwee | Z34: Castaic | AA34: Hoover Accum. Deprec | AB34: Total Steam | AC34: Marine Tank Farm | AD34: Olympic Tank Farm | AE34: Mohave | AF34: Steam | AG34: Total LA Basin | AH34: Harbor | AI34: Valley | AJ34: Scattergood | AK34: Haynes | AL34: Navajo | AM34: Palo Verde | AN34: Wind Farm | AO34: Solar | AP34: Miscellaneous Landfills-Bradley Landfills-Sheldon-Arleta Others
D35: Accumulated Depreciation - Production - Ending Balance | E35: LADWP Power Plant/GL | F35: =G35+AB35+AM35+AN35+AO35+AP35 -> -2850023.936 | G35: =H35+J35+L35+M35+N35+O35+P35+Q35+R35+S35+T35+U35+V35+W35+X35+Y35+Z35+AA35 -> -408214.8675 | H35: -120.0730292 | I35: =J35+L35+M35+N35+O35+P35+Q35+R35+S35+T35+U35+V35+W35+X35+Y35+Z35+AA35 -> -408094.7945 | J35: -3421.080564 | K35: =SUM(L35:R35) -> -59316.42058 | L35: -1813.099823 | M35: -190.7103183 | N35: -1362.053157 | O35: -5033.451011 | P35: -23546.52307 | Q35: -10414.07687 | R35: -16956.50633 | S35: -46443.86514 | T35: -10277.75777 | U35: -1216.977624 | V35: -4375.760171 | W35: -2316.40794 | X35: -1.078270072 | Y35: -2580.298899 | Z35: -276382.2925 | AA35: =-390.961-((468937+902957)/1000) -> -1762.855 | AB35: =AC35+AD35+AE35+AF35+AL35+AG35 -> -1941900.152 | AC35: -16370.08696 | AD35: -7739.8124 | AE35: -57851.877 | AF35: =-5443.43808263158+((468937+902957)/1000) -> -4071.544083 | AG35: =SUM(AH35:AK35) -> -1537516.408 | AH35: -410117.6108 | AI35: -270598.2676 | AJ35: -262429.0032 | AK35: -594371.5261 | AL35: -318350.424 | AM35: -381440.9276 | AN35: -100988.4468 | AO35: -12674.42011 | AP35: -4805.122
D37: A.1.2 Remove Mohave to Reconcile to GL
D38: Remove Mohave (no longer used and useful) | E38: GL Detail | F38: =G38+AB38+AM38+AN38+AO38 -> 56833.971 | G38: =H38+J38+L38+M38+N38+O38+P38+Q38+R38+S38+T38+U38+V38+W38+X38+Y38+Z38+AA38 -> 0 | I38: =J38+L38+M38+N38+O38+P38+Q38+R38+S38+T38+U38+V38+W38+X38+Y38+Z38+AA38 -> 0 | K38: =SUM(L38:R38) -> 0 | AB38: =AC38+AD38+AE38+AF38+AL38+AG38 -> 56833.971 | AE38: 56833.971 | AG38: =SUM(AH38:AK38) -> 0
D40: Accumulated Depreciation - Production - Subtotal | E40: =CELL("Address",AE40)&_xlfn.FORMULATEXT(AE40) -> $AE$40=AE38+AE35 | F40: =F38+F35 -> -2793189.965 | G40: -408214.8675 | H40: -120.0730292 | I40: -408094.7945 | J40: -3421.080564 | K40: -59316.42058 | L40: -1813.099823 | M40: -190.7103183 | N40: -1362.053157 | O40: -5033.451011 | P40: -23546.52307 | Q40: -10414.07687 | R40: -16956.50633 | S40: -46443.86514 | T40: -10277.75777 | U40: -1216.977624 | V40: -4375.760171 | W40: -2316.40794 | X40: -1.078270072 | Y40: -2580.298899 | Z40: -276382.2925 | AA40: -1762.855 | AB40: -1885066.181 | AC40: -16370.08696 | AD40: -7739.8124 | AE40: -1017.906 | AF40: -4071.544083 | AG40: -1537516.408 | AH40: -410117.6108 | AI40: -270598.2676 | AJ40: -262429.0032 | AK40: -594371.5261 | AL40: -318350.424 | AM40: -381440.9276 | AN40: -100988.4468 | AO40: -12674.42011 | AP40: =AP38+AP35 -> -4805.122
D41: Check | F41: =+G40+AC40+AD40+AJ40+AF40+AL40+AE40+AH40+AK40+AI40+AM40+AO40+AN40+AP40 -> -2793189.965
D42: GL Check | F42: =F69 -> -2793189.969
D44: Remove Remaining Mohave | E44: =CELL("Address",AE44)&_xlfn.FORMULATEXT(AE44) -> $AE$44=-AE40 | F44: =G44+AB44+AM44+AN44+AO44 -> 1017.906 | G44: =H44+J44+L44+M44+N44+O44+P44+Q44+R44+S44+T44+U44+V44+W44+X44+Y44+Z44+AA44 -> 0 | I44: =J44+L44+M44+N44+O44+P44+Q44+R44+S44+T44+U44+V44+W44+X44+Y44+Z44+AA44 -> 0 | K44: =SUM(L44:R44) -> 0 | AB44: =AC44+AD44+AE44+AF44+AL44+AG44 -> 1017.906 | AE44: =-AE40 -> 1017.906 | AG44: =SUM(AH44:AK44) -> 0
D46: Power Plant/GL Accumulated Depreciation - Production | E46: =CELL("Address",AE46)&_xlfn.FORMULATEXT(AE46) -> $AE$46=AE44+AE40 | F46: =F44+F40 -> -2792172.059 | G46: -408214.8675 | H46: -120.0730292 | I46: -408094.7945 | J46: -3421.080564 | K46: -59316.42058 | L46: -1813.099823 | M46: -190.7103183 | N46: -1362.053157 | O46: -5033.451011 | P46: -23546.52307 | Q46: -10414.07687 | R46: -16956.50633 | S46: -46443.86514 | T46: -10277.75777 | U46: -1216.977624 | V46: -4375.760171 | W46: -2316.40794 | X46: -1.078270072 | Y46: -2580.298899 | Z46: -276382.2925 | AA46: -1762.855 | AB46: -1884048.275 | AC46: -16370.08696 | AD46: -7739.8124 | AE46: 0 | AF46: -4071.544083 | AG46: -1537516.408 | AH46: -410117.6108 | AI46: -270598.2676 | AJ46: -262429.0032 | AK46: -594371.5261 | AL46: -318350.424 | AM46: -381440.9276 | AN46: -100988.4468 | AO46: -12674.42011 | AP46: -4805.122
D47: Check | F47: =+G46+AC46+AD46+AJ46+AF46+AL46+AE46+AH46+AK46+AI46+AM46+AO46+AN46+AP46 -> -2792172.059
D48: PRODUCTION POWER PLANT ACCUM DEPREC ALLOCATOR | E48: =CELL("Address",L48)&_xlfn.FORMULATEXT(L48) -> $L$48=L46/$F$46 | F48: =G48+AB48+AM48+AO48+AN48+AP48 -> 1 | G48: =H48+J48+L48+M48+N48+O48+P48+Q48+R48+S48+T48+U48+V48+W48+X48+Y48+Z48+AA48 -> 0.1461997538 | H48: =H46/$F$46 -> 4.300344917e-05 | I48: =J48+L48+M48+N48+O48+P48+Q48+R48+S48+T48+U48+V48+W48+X48+Y48+Z48+AA48 -> 0.1461567503 | J48: =J46/$F$46 -> 0.001225239882 | K48: =SUM(L48:R48) -> 0.02124382714 | L48: =L46/$F$46 -> 0.0006493510374 | M48: 6.830177878e-05 | N48: 0.0004878113268 | O48: 0.001802700874 | P48: 0.008433048741 | Q48: 0.003729740376 | R48: 0.006072873008 | S48: 0.01663359713 | T48: 0.003680918495 | U48: 0.0004358533781 | V48: 0.001567152768 | W48: 0.0008296078792 | X48: 3.861760842e-07 | Y48: 0.000924118874 | Z48: 0.09898469243 | AA48: 0.0006313561495 | AB48: =AC48+AD48+AE48+AF48+AL48+AG48 -> 0.6747608082 | AC48: =AC46/$F$46 -> 0.005862850359 | AD48: =AD46/$F$46 -> 0.002771968287 | AE48: =AE46/$F$46 -> 0 | AF48: =AF46/$F$46 -> 0.001458199565 | AG48: =SUM(AH48:AK48) -> 0.5506524581 | AH48: =AH46/$F$46 -> 0.1468812101 | AI48: 0.09691317795 | AJ48: 0.09398740394 | AK48: 0.2128706661 | AL48: 0.1140153319 | AM48: 0.1366108247 | AN48: 0.03616841821 | AO48: 0.004539269014 | AP48: 0.001720926182
C51: A.2 Allocation of Total GL Accumulated Depreciation to Production Stations
D53: A.2.1 GL Accumulated Depreciation
H54: Hydro Common Costs | K54: Owens Valley Stations (Non-Common) | AG54: LA BASIN
G55: =G33 -> HYDRO | H55: HYDRO | I55: HYDRO | J55: HYDRO | K55: HYDRO | L55: HYDRO | M55: HYDRO | N55: HYDRO | O55: HYDRO | P55: HYDRO | Q55: HYDRO | R55: HYDRO | S55: HYDRO | T55: HYDRO | U55: HYDRO | V55: HYDRO | W55: HYDRO | X55: HYDRO | Y55: HYDRO | Z55: HYDRO | AA55: HYDRO | AE55: =AE33 -> STEAM | AF55: STEAM | AH55: =AH33 -> STEAM/OTHER PROD | AI55: STEAM/OTHER PROD | AJ55: STEAM | AK55: STEAM/OTHER PROD | AL55: STEAM | AM55: NUCLEAR | AN55: OTHER PRODUCTION | AO55: OTHER PRODUCTION | AP55: VARIOUS
D56: ='Control Sheet'!G7 -> Months | E56: Reference | F56: General Ledger Production Accumulated Depreciation | G56: =G34 -> Total Hydro | H56: Common Hydro | I56: Total Hydro With OV Common | J56: Owens Valley Common Hydro | K56: Total Owens Valley Hydro Without OV Common Hydro | L56: Cottonwood | M56: Division Creek | N56: Big Pine | O56: Pleasant Valley | P56: Upper Gorge | Q56: Middle Gorge | R56: Control Gorge | S56: San Francisquito 1 | T56: San Francisquito 2 | U56: San Fernando | V56: Foothill | W56: Franklin | X56: Sawtelle | Y56: Haiwee | Z56: Castaic | AA56: Hoover Accum. Deprec | AB56: =AB34 -> Total Steam | AC56: Marine Tank Farm | AD56: Olympic Tank Farm | AE56: Mohave | AF56: Steam | AG56: =AG34 -> Total LA Basin | AH56: =AH34 -> Harbor | AI56: Valley | AJ56: Scattergood | AK56: Haynes | AL56: Navajo | AM56: Palo Verde | AN56: Wind Farm | AO56: Solar | AP56: Miscellaneous Landfills-Bradley Landfills-Sheldon-Arleta Others
D57: ='Control Sheet'!$G$8&TEXT('Control Sheet'!$H$8," ##") -> June 2014 | E57: LADWP GL | F57: -2650601.376
D58: ='Control Sheet'!$G$9&TEXT('Control Sheet'!$H$9," ##") -> July 2014 | E58: LADWP GL | F58: -2662485.779
D59: ='Control Sheet'!$G$10&TEXT('Control Sheet'!$H$10," ##") -> August 2014 | E59: LADWP GL | F59: -2674115.014
D60: ='Control Sheet'!$G$11&TEXT('Control Sheet'!$H$11," ##") -> September 2014 | E60: LADWP GL | F60: -2685968.02
D61: ='Control Sheet'!$G$12&TEXT('Control Sheet'!$H$12," ##") -> October 2014 | E61: LADWP GL | F61: -2697724.294
D62: ='Control Sheet'!$G$13&TEXT('Control Sheet'!$H$13," ##") -> November 2014 | E62: LADWP GL | F62: -2709504.111
D63: ='Control Sheet'!$G$14&TEXT('Control Sheet'!$H$14," ##") -> December 2014 | E63: LADWP GL | F63: -2722550.165
D64: ='Control Sheet'!$G$15&TEXT('Control Sheet'!$H$15," ##") -> January 2015 | E64: LADWP GL | F64: -2734613.49
D65: ='Control Sheet'!$G$16&TEXT('Control Sheet'!$H$16," ##") -> February 2015 | E65: LADWP GL | F65: -2746316.827
D66: ='Control Sheet'!$G$17&TEXT('Control Sheet'!$H$17," ##") -> March 2015 | E66: LADWP GL | F66: -2758111.738
D67: ='Control Sheet'!$G$18&TEXT('Control Sheet'!$H$18," ##") -> April 2015 | E67: LADWP GL | F67: -2769925.379
D68: ='Control Sheet'!$G$19&TEXT('Control Sheet'!$H$19," ##") -> May 2015 | E68: LADWP GL | F68: -2781381.29
D69: ='Control Sheet'!$G$20&TEXT('Control Sheet'!$H$20," ##") -> June 2015 | E69: LADWP GL | F69: -2793189.969
D70: Total General Ledger 13 Months Accum Deprec | E70: =CELL("Address",F70)&_xlfn.FORMULATEXT(F70) -> $F$70=SUM(F57:F69) | F70: =SUM(F57:F69) -> -35386487.45
D71: General Ledger 13 Mo Avg | E71: =CELL("Address",F71)&_xlfn.FORMULATEXT(F71) -> $F$71=F70/13 | F71: =F70/13 -> -2722037.496
D73: Remove Remaining Mohave
D74: The general ledger amounts shown above exclude almost the entire amount of the Mohave accumulated depreciation. This adjustment removes the remaining Mohave balance. Given that Mohave was shutdown at the end of 2005, it is assumed that the remaining Mohave ending balance is the same as the 13 month average balance.
D76: Remove Remaining Mohave Accumulated Depreciation | E76: =CELL("Address",F76)&_xlfn.FORMULATEXT(F76) -> $F$76=AE44 | F76: =AE44 -> 1017.906
D78: Adjusted GL 13 Mo Average | E78: =CELL("Address",F78)&_xlfn.FORMULATEXT(F78) -> $F$78=F71-F76 | F78: =F71-F76 -> -2723055.402
D81: A.2.2 Allocation of GL Accumulated Depreciation
D83: PRODUCTION ACCUMULATED DEPRECIATION ALLOCATOR | E83: =CELL("Address",L83)&_xlfn.FORMULATEXT(L83) -> $L$83=L48 | F83: =G83+AB83+AM83+AN83+AO83+AP83 -> 1 | G83: =G48 -> 0.1461997538 | H83: 4.300344917e-05 | I83: 0.1461567503 | J83: 0.001225239882 | K83: 0.02124382714 | L83: 0.0006493510374 | M83: 6.830177878e-05 | N83: 0.0004878113268 | O83: 0.001802700874 | P83: 0.008433048741 | Q83: 0.003729740376 | R83: 0.006072873008 | S83: 0.01663359713 | T83: 0.003680918495 | U83: 0.0004358533781 | V83: 0.001567152768 | W83: 0.0008296078792 | X83: 3.861760842e-07 | Y83: 0.000924118874 | Z83: 0.09898469243 | AA83: 0.0006313561495 | AB83: 0.6747608082 | AC83: 0.005862850359 | AD83: 0.002771968287 | AE83: 0 | AF83: 0.001458199565 | AG83: 0.5506524581 | AH83: 0.1468812101 | AI83: 0.09691317795 | AJ83: 0.09398740394 | AK83: 0.2128706661 | AL83: 0.1140153319 | AM83: 0.1366108247 | AN83: 0.03616841821 | AO83: 0.004539269014 | AP83: 0.001720926182
D84: GL Accum. Deprec Allocated to Production | E84: =CELL("Address",L84)&_xlfn.FORMULATEXT(L84) -> $L$84=$F$78*L83 | F84: =G84+AB84+AM84+AO84+AN84+AP84 -> -2723055.402 | G84: =H84+J84+L84+M84+N84+O84+P84+Q84+R84+S84+T84+U84+V84+W84+X84+Y84+Z84+AA84 -> -398110.0293 | H84: =$F$78*H83 -> -117.1007746 | I84: =J84+L84+M84+N84+O84+P84+Q84+R84+S84+T84+U84+V84+W84+X84+Y84+Z84+AA84 -> -397992.9285 | J84: =$F$78*J83 -> -3336.396079 | K84: =SUM(L84:R84) -> -57848.11826 | L84: =$F$78*L83 -> -1768.21885 | M84: -185.9895277 | N84: -1328.337269 | O84: -4908.854353 | P84: -22963.65893 | Q84: -10156.28968 | R84: -16536.76965 | S84: -45294.20652 | T84: -10023.34499 | U84: -1186.852896 | V84: -4267.44381 | W84: -2259.068217 | X84: -1.051578872 | Y84: -2516.426892 | Z84: -269540.8015 | AA84: -1719.217774 | AB84: =AC84+AD84+AE84+AF84+AL84+AG84 -> -1837411.064 | AC84: =$F$78*AC83 -> -15964.86634 | AD84: =$F$78*AD83 -> -7548.223219 | AE84: =$F$78*AE83 -> 0 | AF84: =$F$78*AF83 -> -3970.758203 | AG84: =SUM(AH84:AK84) -> -1499457.151 | AH84: =$F$78*AH83 -> -399965.6726 | AI84: -263899.9528 | AJ84: -255932.908 | AK84: -579658.6173 | AL84: -310470.0654 | AM84: -371998.8441 | AN84: -98488.6066 | AO84: -12360.68101 | AP84: =$F$78*AP83 -> -4686.177335
D85: Check | F85: =L84+M84+N84+O84+P84+Q84+R84+S84+T84+U84+V84+W84+X84+Y84+Z84+AA84+AC84+AD84+AE84+AF84+AH84+AI84+AJ84+AK84+AL84+AM84+AO84+AN84+AP84+J84+H84 -> -2723055.402
D87: A.2.3 Remove Hoover, Miscel, Tank Farms, Retired Units
D89: Remove Hoover
D90: Remove Hoover (Hoover is under an entitlement arrangement) | E90: =CELL("Address",AA90)&_xlfn.FORMULATEXT(AA90) -> $AA$90=-AA84 | F90: =G90+AB90+AM90+AN90+AO90+AP90 -> 1719.217774 | G90: =H90+J90+L90+M90+N90+O90+P90+Q90+R90+S90+T90+U90+V90+W90+X90+Y90+Z90+AA90 -> 1719.217774 | I90: =J90+L90+M90+N90+O90+P90+Q90+R90+S90+T90+U90+V90+W90+X90+Y90+Z90+AA90 -> 1719.217774 | K90: =SUM(L90:R90) -> 0 | AA90: =-AA84 -> 1719.217774 | AB90: =AC90+AD90+AE90+AF90+AL90+AG90 -> 0 | AG90: =SUM(AH90:AK90) -> 0
D92: Remove Miscellaneous
D93: Miscellaneous - landfills which do not contribute to ancillary services | E93: =CELL("Address",AP93)&_xlfn.FORMULATEXT(AP93) -> $AP$93=-AP84 | F93: =G93+AB93+AM93+AN93+AO93+AP93 -> 4686.177335 | G93: =H93+J93+L93+M93+N93+O93+P93+Q93+R93+S93+T93+U93+V93+W93+X93+Y93+Z93+AA93 -> 0 | I93: =J93+L93+M93+N93+O93+P93+Q93+R93+S93+T93+U93+V93+W93+X93+Y93+Z93+AA93 -> 0 | K93: =SUM(L93:R93) -> 0 | AB93: =AC93+AD93+AE93+AF93+AL93+AG93 -> 0 | AG93: =SUM(AH93:AK93) -> 0 | AP93: =-AP84 -> 4686.177335
D95: Remove Tank Farms
D96: Remove Tank Farms - do not contribute to LA Basin stations | E96: =CELL("Address",AC96)&_xlfn.FORMULATEXT(AC96) -> $AC$96=-AC84 | F96: =G96+AB96+AM96+AN96+AO96+AP96 -> 23513.08956 | G96: =H96+J96+L96+M96+N96+O96+P96+Q96+R96+S96+T96+U96+V96+W96+X96+Y96+Z96+AA96 -> 0 | I96: =J96+L96+M96+N96+O96+P96+Q96+R96+S96+T96+U96+V96+W96+X96+Y96+Z96+AA96 -> 0 | K96: =SUM(L96:R96) -> 0 | AB96: =AC96+AD96+AE96+AF96+AL96+AG96 -> 23513.08956 | AC96: =-AC84 -> 15964.86634 | AD96: =-AD84 -> 7548.223219 | AG96: =SUM(AH96:AK96) -> 0
D98: Remove Retired Units
D99: Remove Retired Plant - Haynes(U 3-6), Harbor(U 3,4,7), Valley(U 3,4) | E99: =CELL("Address",AK99)&_xlfn.FORMULATEXT(AK99) -> $AK$99='Haynes Gross Plt & Accum Deprec'!H87 | F99: =G99+AB99+AM99+AN99+AO99+AP99 -> 23010.98732 | G99: =H99+J99+L99+M99+N99+O99+P99+Q99+R99+S99+T99+U99+V99+W99+X99+Y99+Z99+AA99 -> 0 | I99: =J99+L99+M99+N99+O99+P99+Q99+R99+S99+T99+U99+V99+W99+X99+Y99+Z99+AA99 -> 0 | K99: =SUM(L99:R99) -> 0 | AB99: =AC99+AD99+AE99+AF99+AL99+AG99 -> 23010.98732 | AG99: =SUM(AH99:AK99) -> 23010.98732 | AH99: 83.32532 | AI99: 3326.094 | AK99: ='Haynes Gross Plt & Accum Deprec'!H87 -> 19601.568
D102: Adjusted GL Accum Deprec Allocated to Production | E102: =CELL("Address",AH102)&_xlfn.FORMULATEXT(AH102) -> $AH$102=AH99+AH93+AH90+AH84+AH96 | F102: =F99+F93+F90+F84+F96 -> -2670125.93 | G102: -396390.8115 | H102: -117.1007746 | I102: -396273.7107 | J102: -3336.396079 | K102: -57848.11826 | L102: -1768.21885 | M102: -185.9895277 | N102: -1328.337269 | O102: -4908.854353 | P102: -22963.65893 | Q102: -10156.28968 | R102: -16536.76965 | S102: -45294.20652 | T102: -10023.34499 | U102: -1186.852896 | V102: -4267.44381 | W102: -2259.068217 | X102: -1.051578872 | Y102: -2516.426892 | Z102: -269540.8015 | AA102: 0 | AB102: -1790886.987 | AC102: 0 | AD102: 0 | AE102: 0 | AF102: -3970.758203 | AG102: -1476446.163 | AH102: -399882.3473 | AI102: -260573.8588 | AJ102: -255932.908 | AK102: -560057.0493 | AL102: -310470.0654 | AM102: -371998.8441 | AN102: -98488.6066 | AO102: -12360.68101 | AP102: 0
F103: =L102+M102+N102+O102+P102+Q102+R102+S102+T102+U102+V102+W102+X102+Y102+Z102+AA102+AC102+AD102+AE102+AF102+AH102+AI102+AJ102+AK102+AL102+AM102+AO102+AN102+AP102+J102+H102 -> -2670125.93
H105: Hydro Common Costs | K105: Owens Valley Stations (Non-Common) | AG105: LA BASIN
G106: HYDRO | H106: HYDRO | I106: HYDRO | J106: HYDRO | K106: HYDRO | L106: HYDRO | M106: HYDRO | N106: HYDRO | O106: HYDRO | P106: HYDRO | Q106: HYDRO | R106: HYDRO | S106: HYDRO | T106: HYDRO | U106: HYDRO | V106: HYDRO | W106: HYDRO | X106: HYDRO | Y106: HYDRO | Z106: HYDRO | AA106: HYDRO | AE106: STEAM | AF106: STEAM | AH106: STEAM/OTHER PROD | AI106: STEAM/OTHER PROD | AJ106: STEAM | AK106: STEAM/OTHER PROD | AL106: STEAM | AM106: NUCLEAR | AN106: OTHER PRODUCTION | AO106: OTHER PRODUCTION | AP106: VARIOUS
G107: Total Hydro | H107: Common Hydro | I107: Total Hydro With OV Common | J107: Owens Valley Common Hydro | K107: Total Owens Valley Hydro Without OV Common Hydro | L107: Cottonwood | M107: Division Creek | N107: Big Pine | O107: Pleasant Valley | P107: Upper Gorge | Q107: Middle Gorge | R107: Control Gorge | S107: San Francisquito 1 | T107: San Francisquito 2 | U107: San Fernando | V107: Foothill | W107: Franklin | X107: Sawtelle | Y107: Haiwee | Z107: Castaic | AA107: Hoover Accum. Deprec | AB107: Total Steam | AC107: Marine Tank Farm | AD107: Olympic Tank Farm | AE107: Mohave | AF107: Steam | AG107: Total LA Basin | AH107: Harbor | AI107: Valley | AJ107: Scattergood | AK107: Haynes | AL107: Navajo | AM107: Palo Verde | AN107: Wind Farm | AO107: Solar | AP107: Miscellaneous Landfills-Bradley Landfills-Sheldon-Arleta Others
D109: A.2.4 Production Reclassifications
D111: A.2.4.1 HYDRO RECLASSIFICATIONS
D113: A.2.4.1.1 Allocate OV Common Costs to OV Stations
D114: OWENS VALLEY(OV) ACCUM DEPREC ALLOCATOR | E114: =CELL("Address",L114)&_xlfn.FORMULATEXT(L114) -> $L$114=L102/$K$102 | G114: =H114+J114+L114+M114+N114+O114+P114+Q114+R114+S114+T114+U114+V114+W114+X114+Y114+Z114+AA114 -> 1 | I114: =J114+L114+M114+N114+O114+P114+Q114+R114+S114+T114+U114+V114+W114+X114+Y114+Z114+AA114 -> 1 | K114: =SUM(L114:R114) -> 1 | L114: =L102/$K$102 -> 0.03056657508 | M114: =M102/$K$102 -> 0.003215135311 | N114: 0.02296249746 | O114: 0.08485763236 | P114: 0.3969646658 | Q114: 0.1755681945 | R114: 0.2858652995
D115: Allocate OV Common Costs to OV Stations | E115: =CELL("Address",L115)&_xlfn.FORMULATEXT(L115) -> $L$115=L114*-$J115 | F115: =G115+AB115+AM115+AN115+AO115+AP115 -> 0 | G115: =H115+J115+L115+M115+N115+O115+P115+Q115+R115+S115+T115+U115+V115+W115+X115+Y115+Z115+AA115 -> 0 | I115: =J115+L115+M115+N115+O115+P115+Q115+R115+S115+T115+U115+V115+W115+X115+Y115+Z115+AA115 -> 0 | J115: =-J102 -> 3336.396079 | L115: =L114*-$J115 -> -101.9822013 | M115: -10.72696484 | N115: -76.61198649 | O115: -283.1186719 | P115: -1324.431354 | Q115: -585.7650358 | R115: -953.7598644
D116: Reclassified GL Accumulated Depreciation Subtotal #1 | E116: =CELL("Address",L116)&_xlfn.FORMULATEXT(L116) -> $L$116=L115+L102 | F116: =F115+F102 -> -2670125.93 | G116: =G115+G102 -> -396390.8115 | H116: -117.1007746 | I116: -396273.7107 | J116: 0 | K116: -57848.11826 | L116: -1870.201052 | M116: -196.7164925 | N116: -1404.949255 | O116: -5191.973025 | P116: -24288.09029 | Q116: -10742.05472 | R116: -17490.52952 | S116: -45294.20652 | T116: -10023.34499 | U116: -1186.852896 | V116: -4267.44381 | W116: -2259.068217 | X116: -1.051578872 | Y116: -2516.426892 | Z116: -269540.8015 | AA116: 0 | AB116: -1790886.987 | AC116: 0 | AD116: 0 | AE116: 0 | AF116: -3970.758203 | AG116: -1476446.163 | AH116: -399882.3473 | AI116: -260573.8588 | AJ116: -255932.908 | AK116: -560057.0493 | AL116: -310470.0654 | AM116: -371998.8441 | AN116: -98488.6066 | AO116: -12360.68101 | AP116: =AP115+AP102 -> 0
D117: Check | F117: =+G116+AC116+AD116+AJ116+AF116+AL116+AE116+AH116+AK116+AI116+AM116+AO116+AN116+AP116 -> -2670125.93 | G117: =H116+J116+L116+M116+N116+O116+P116+Q116+R116+S116+T116+U116+V116+W116+X116+Y116+Z116+AA116 -> -396390.8115 | I117: =J116+L116+M116+N116+O116+P116+Q116+R116+S116+T116+U116+V116+W116+X116+Y116+Z116+AA116 -> -396273.7107
D119: A.2.4.1.2 Allocate Common Hydro Costs to all Hydro Stations
D120: HYDRO COMMON ACCUM DEPREC ALLOCATOR | E120: =CELL("Address",L120)&_xlfn.FORMULATEXT(L120) -> $L$120=L116/$I$116 | G120: =H120+J120+L120+M120+N120+O120+P120+Q120+R120+S120+T120+U120+V120+W120+X120+Y120+Z120+AA120 -> 1 | I120: =J120+L120+M120+N120+O120+P120+Q120+R120+S120+T120+U120+V120+W120+X120+Y120+Z120+AA120 -> 1 | K120: =SUM(L120:R120) -> 0.1543996301 | L120: =L116/$I$116 -> 0.004719467885 | M120: =M116/$I$116 -> 0.0004964157026 | N120: 0.003545401113 | O120: 0.01310198705 | P120: 0.06129119755 | Q120: 0.02710766429 | R120: 0.04413749649 | S120: 0.1143003063 | T120: 0.02529399433 | U120: 0.002995033139 | V120: 0.0107689299 | W120: 0.005700777407 | X120: 2.653668017e-06 | Y120: 0.006350224161 | Z120: 0.680188451 | AA120: 0
D121: Reclassify Hydro Common Costs to all Hydro Stations | E121: =CELL("Address",L121)&_xlfn.FORMULATEXT(L121) -> $L$121=-L120*$H$121 | F121: =G121+AB121+AM121+AN121+AO121+AP121 -> -1.421085472e-14 | G121: =H121+J121+L121+M121+N121+O121+P121+Q121+R121+S121+T121+U121+V121+W121+X121+Y121+Z121+AA121 -> -1.421085472e-14 | H121: =-H116 -> 117.1007746 | L121: =-L120*$H$121 -> -0.5526533449 | M121: -0.05813066328 | N121: -0.4151692165 | O121: -1.534252832 | P121: -7.177246707 | Q121: -3.174328485 | R121: -5.168535027 | S121: -13.3846544 | T121: -2.961946328 | U121: -0.3507207005 | V121: -1.261050032 | W121: -0.66756545 | X121: -0.0003107465803 | Y121: -0.743616168 | Z121: -79.65059447 | AA121: 0
D122: Reclassified GL Accumulated Depreciation Subtotal #2 | E122: =CELL("Address",L122)&_xlfn.FORMULATEXT(L122) -> $L$122=L121+L116 | F122: =F121+F116 -> -2670125.93 | G122: =G121+G116 -> -396390.8115 | H122: 0 | I122: -396273.7107 | J122: 0 | K122: -57848.11826 | L122: -1870.753705 | M122: -196.7746232 | N122: -1405.364424 | O122: -5193.507277 | P122: -24295.26753 | Q122: -10745.22904 | R122: -17495.69805 | S122: -45307.59117 | T122: -10026.30694 | U122: -1187.203617 | V122: -4268.70486 | W122: -2259.735783 | X122: -1.051889619 | Y122: -2517.170508 | Z122: -269620.4521 | AA122: 0 | AB122: -1790886.987 | AC122: 0 | AD122: 0 | AE122: 0 | AF122: -3970.758203 | AG122: -1476446.163 | AH122: -399882.3473 | AI122: -260573.8588 | AJ122: -255932.908 | AK122: -560057.0493 | AL122: -310470.0654 | AM122: -371998.8441 | AN122: -98488.6066 | AO122: -12360.68101 | AP122: =AP121+AP116 -> 0
D123: Check | F123: =+G122+AC122+AD122+AJ122+AF122+AL122+AE122+AH122+AK122+AI122+AM122+AO122+AN122+AP122 -> -2670125.93 | G123: =SUM(L122:AA122) -> -396390.8115
D125: A.2.4.1.3 Reclassify 115kv Lines (San Francisquito) to Production
D126: Reclassify 115kv Lines (San Francisquito) to Production | E126: =CELL("Address",S126)&_xlfn.FORMULATEXT(S126) -> $S$126=-L221 | F126: =G126+AB126+AM126+AO126+AN126 -> -3533.967627 | G126: =H126+J126+L126+M126+N126+O126+P126+Q126+R126+S126+T126+U126+V126+W126+X126+Y126+Z126+AA126 -> -3533.967627 | I126: =J126+L126+M126+N126+O126+P126+Q126+R126+S126+T126+U126+V126+W126+X126+Y126+Z126+AA126 -> -3533.967627 | K126: =SUM(L126:R126) -> 0 | S126: =-L221 -> -3114.658117 | T126: =-M221 -> -419.3095101 | AB126: =AC126+AD126+AE126+AF126+AL126+AG126 -> 0
D128: A.2.4.2 STEAM RECLASSIFICATIONS
D130: A.2.4.2.1 Allocate Common Steam to LA Basin
D131: GL LA BASIN ACCUM DEPREC PLANT ALLOCATOR | E131: =CELL("Address",AH131)&_xlfn.FORMULATEXT(AH131) -> $AH$131=AH122/$AG$122 | AB131: =AC131+AD131+AE131+AF131+AL131+AG131 -> 1 | AG131: =SUM(AH131:AK131) -> 1 | AH131: =AH122/$AG$122 -> 0.27084113 | AI131: =AI122/$AG$122 -> 0.1764872064 | AJ131: =AJ122/$AG$122 -> 0.173343881 | AK131: =AK122/$AG$122 -> 0.3793277826
D132: Reclassify Common Steam to LA Basin | E132: =_xlfn.FORMULATEXT(AH132) -> =-AH131*$AF$132 | F132: =G132+AB132+AM132+AN132+AO132+AQ132 -> 0 | G132: =H132+J132+L132+M132+N132+O132+P132+Q132+R132+S132+T132+U132+V132+W132+X132+Y132+Z132+AA132 -> 0 | I132: =J132+L132+M132+N132+O132+P132+Q132+R132+S132+T132+U132+V132+W132+X132+Y132+Z132+AA132 -> 0 | K132: =SUM(L132:R132) -> 0 | AB132: =AC132+AD132+AE132+AF132+AL132+AG132 -> 0 | AF132: =-AF122 -> 3970.758203 | AG132: =SUM(AH132:AK132) -> -3970.758203 | AH132: =-AH131*$AF$132 -> -1075.444639 | AI132: =-AI131*$AF$132 -> -700.7880226 | AJ132: =-AJ131*$AF$132 -> -688.3066374 | AK132: =-AK131*$AF$132 -> -1506.218905
D134: A.2.4.2.2 Distribution - Receiving Station Allocation to Production
D135: GL LA BASIN ACCUM DEPREC PLANT ALLOCATOR | E135: =CELL("Address",AH135)&_xlfn.FORMULATEXT(AH135) -> $AH$135=AH122/$AG$122 | AG135: =SUM(AH135:AK135) -> 1 | AH135: =AH122/$AG$122 -> 0.27084113 | AI135: =AI122/$AG$122 -> 0.1764872064 | AJ135: =AJ122/$AG$122 -> 0.173343881 | AK135: =AK122/$AG$122 -> 0.3793277826
D136: Distribution - Receiving Station Allocation to Production | E136: =CELL("Address",AH136)&_xlfn.FORMULATEXT(AH136) -> $AH$136=-AH135*$H$332 | F136: =G136+AB136+AM136+AO136+AN136 -> -13654.90214 | G136: =H136+J136+L136+M136+N136+O136+P136+Q136+R136+S136+T136+U136+V136+W136+X136+Y136+Z136+AA136 -> 0 | I136: =J136+L136+M136+N136+O136+P136+Q136+R136+S136+T136+U136+V136+W136+X136+Y136+Z136+AA136 -> 0 | K136: =SUM(L136:R136) -> 0 | AB136: =AC136+AD136+AE136+AF136+AL136+AG136 -> -13654.90214 | AG136: =SUM(AH136:AK136) -> -13654.90214 | AH136: =-AH135*$H$332 -> -3698.309125 | AI136: =-AI135*$H$332 -> -2409.915532 | AJ136: =-AJ135*$H$332 -> -2366.993731 | AK136: =-AK135*$H$332 -> -5179.683749
D138: A.2.4.3 OTHER RECLASSIFICATIONS
D140: A.2.4.3.1 7 Factor Reclassifications from Transmission to Production
D142: 7 Factor Reclassifications from Transmission to Production Gen-tie
D143: =D240 -> 230 kV OH - PINETREE BARREN-RIDGE LINE (Wind + Solar)
D144: =D240&" ALLOCATOR" -> 230 kV OH - PINETREE BARREN-RIDGE LINE (Wind + Solar) ALLOCATOR | E144: =CELL("Address",AN144)&_xlfn.FORMULATEXT(AN144) -> $AN$144='Allocation Factors'!AD111 | AN144: ='Allocation Factors'!AD111 -> 0.9407665505 | AO144: ='Allocation Factors'!AE111 -> 0.05923344948
D145: =D240 -> 230 kV OH - PINETREE BARREN-RIDGE LINE (Wind + Solar) | E145: =CELL("Address",AN145)&_xlfn.FORMULATEXT(AN145) -> $AN$145=-AN144*$F$240 | F145: =G145+AB145+AM145+AO145+AN145 -> -963.7925185 | G145: =H145+J145+L145+M145+N145+O145+P145+Q145+R145+S145+T145+U145+V145+W145+X145+Y145+Z145+AA145 -> 0 | I145: =J145+L145+M145+N145+O145+P145+Q145+R145+S145+T145+U145+V145+W145+X145+Y145+Z145+AA145 -> 0 | K145: =SUM(L145:R145) -> 0 | AN145: =-AN144*$F$240 -> -906.703763 | AO145: =-AO144*$F$240 -> -57.08875545
D147: =D241 -> 230 kV OH - UPPER GORGE-MIDDLE GORGE | E147: =CELL("Address",P147)&_xlfn.FORMULATEXT(P147) -> $P$147=-F241 | F147: =G147+AB147+AM147+AO147+AN147 -> -316.4170972 | G147: =H147+J147+L147+M147+N147+O147+P147+Q147+R147+S147+T147+U147+V147+W147+X147+Y147+Z147+AA147 -> -316.4170972 | I147: =J147+L147+M147+N147+O147+P147+Q147+R147+S147+T147+U147+V147+W147+X147+Y147+Z147+AA147 -> -316.4170972 | K147: =SUM(L147:R147) -> -316.4170972 | P147: =-F241 -> -316.4170972
D148: =D242 -> 230 kV OH - MIDDLE GORGE-CONTROL GORGE | E148: =CELL("Address",Q148)&_xlfn.FORMULATEXT(Q148) -> $Q$148=-F242 | F148: =G148+AB148+AM148+AO148+AN148 -> -581.6490757 | G148: =H148+J148+L148+M148+N148+O148+P148+Q148+R148+S148+T148+U148+V148+W148+X148+Y148+Z148+AA148 -> -581.6490757 | I148: =J148+L148+M148+N148+O148+P148+Q148+R148+S148+T148+U148+V148+W148+X148+Y148+Z148+AA148 -> -581.6490757 | K148: =SUM(L148:R148) -> -581.6490757 | Q148: =-F242 -> -581.6490757
D149: =D243 -> 230 kV OH - CONTROL GORGE-INYO LINE to Production | E149: =CELL("Address",R149)&_xlfn.FORMULATEXT(R149) -> $R$149=-F243 | F149: =G149+AB149+AM149+AO149+AN149 -> -552.5666219 | G149: =H149+J149+L149+M149+N149+O149+P149+Q149+R149+S149+T149+U149+V149+W149+X149+Y149+Z149+AA149 -> -552.5666219 | I149: =J149+L149+M149+N149+O149+P149+Q149+R149+S149+T149+U149+V149+W149+X149+Y149+Z149+AA149 -> -552.5666219 | K149: =SUM(L149:R149) -> -552.5666219 | R149: =-F243 -> -552.5666219
D150: Total 7 Factor Reclassification | E150: =CELL("Address",P150)&_xlfn.FORMULATEXT(P150) -> $P$150=SUM(P147:P149)+P145 | F150: =SUM(F147:F149)+F145 -> -2414.425313 | G150: =SUM(G147:G149)+G145 -> -1450.632795 | H150: 0 | I150: -1450.632795 | J150: 0 | K150: -1450.632795 | L150: 0 | M150: 0 | N150: 0 | O150: 0 | P150: -316.4170972 | Q150: -581.6490757 | R150: -552.5666219 | S150: 0 | T150: 0 | U150: 0 | V150: 0 | W150: 0 | X150: 0 | Y150: 0 | Z150: 0 | AA150: 0 | AB150: 0 | AC150: 0 | AD150: 0 | AE150: 0 | AF150: 0 | AG150: 0 | AH150: 0 | AI150: 0 | AJ150: 0 | AK150: 0 | AL150: 0 | AM150: 0 | AN150: -906.703763 | AO150: -57.08875545 | AP150: =SUM(AQ147:AQ149)+AQ145 -> 0
D151: 7 Factor Summary Check | F151: ='7 Factor Summary'!I48+'7 Factor Summary'!I49+'7 Factor Summary'!I55+'7 Factor Summary'!I47 -> -2414.425313
D153: 7 Factor Olive Switchyard Reclassification
D154: 115kW LINE ALLOCATOR | E154: =CELL("Address",S154)&_xlfn.FORMULATEXT(S154) -> $S$154='Allocation Factors'!O23 | S154: ='Allocation Factors'!O23 -> 0.6229802513 | T154: ='Allocation Factors'!P23 -> 0.3770197487
D155: 7 Factor Olive Switchyard Reclassification | E155: =CELL("Address",S155)&_xlfn.FORMULATEXT(S155) -> $S$155=-S154*$N$248 | F155: =G155+AB155+AM155+AO155+AN155 -> -3310.277858 | G155: =H155+J155+L155+M155+N155+O155+P155+Q155+R155+S155+T155+U155+V155+W155+X155+Y155+Z155+AA155 -> -3310.277858 | I155: =J155+L155+M155+N155+O155+P155+Q155+R155+S155+T155+U155+V155+W155+X155+Y155+Z155+AA155 -> -3310.277858 | K155: =SUM(L155:R155) -> 0 | S155: =-S154*$N$248 -> -2062.237732 | T155: =-T154*$N$248 -> -1248.040126
D157: Total 7 Factor Reclassifications | E157: =CELL("Address",S157)&_xlfn.FORMULATEXT(S157) -> $S$157=S155+S150 | F157: =F155+F150 -> -5724.703171 | G157: -4760.910653 | H157: 0 | I157: -4760.910653 | J157: 0 | K157: -1450.632795 | L157: 0 | M157: 0 | N157: 0 | O157: 0 | P157: -316.4170972 | Q157: -581.6490757 | R157: -552.5666219 | S157: -2062.237732 | T157: -1248.040126 | U157: 0 | V157: 0 | W157: 0 | X157: 0 | Y157: 0 | Z157: 0 | AA157: 0 | AB157: 0 | AC157: 0 | AD157: 0 | AE157: 0 | AF157: 0 | AG157: 0 | AH157: 0 | AI157: 0 | AJ157: 0 | AK157: 0 | AL157: 0 | AM157: 0 | AN157: -906.703763 | AO157: -57.08875545 | AP157: 0
D159: Total Reclassified Production Accumulated Depreciation | E159: =CELL("Address",P159)&_xlfn.FORMULATEXT(P159) -> $P$159=P136+P122+P126+P157++P132 | F159: =F136+F122+F126+F157++F132 -> -2693039.503 | G159: -404685.6898 | H159: 0 | I159: -404568.589 | J159: 0 | K159: -59298.75106 | L159: -1870.753705 | M159: -196.7746232 | N159: -1405.364424 | O159: -5193.507277 | P159: -24611.68463 | Q159: -11326.87812 | R159: -18048.26467 | S159: -50484.48702 | T159: -11693.65657 | U159: -1187.203617 | V159: -4268.70486 | W159: -2259.735783 | X159: -1.051889619 | Y159: -2517.170508 | Z159: -269620.4521 | AA159: 0 | AB159: -1804541.889 | AC159: 0 | AD159: 0 | AE159: 0 | AF159: 0 | AG159: -1494071.824 | AH159: -404656.101 | AI159: -263684.5623 | AJ159: -258988.2084 | AK159: -566742.952 | AL159: -310470.0654 | AM159: -371998.8441 | AN159: -99395.31037 | AO159: -12417.76977 | AP159: 0
D160: Check | F160: =L159+M159+N159+O159+P159+Q159+R159+S159+T159+U159+V159+W159+X159+Y159+Z159+AA159+AC159+AD159+AE159+AF159+AH159+AI159+AJ159+AK159+AL159+AM159+AO159+AN159 -> -2693039.503
C162: B. TRANSMISSION PLANT ACCUMULATED DEPRECIATION
C163: LADWP's systems for tracking/recording accumulated depreciation consists of the general ledger (GL) and Power Plant system. The GL only includes monthly detail at a functional level and does have a breakdown by certain categories. In order to allocate the GL accumulated depreciation 13 month average to the various Transmission categories, ratios are developed below using transmission values from Power Plant and other manual entries that are made to the GL. The ratios are developed in Section B.1 below. As can be seen in B.1.1 below, the ending balances from Power Plant and the manual entries to the GL do tie/reconcile to the June 2015 ending transmission balance shown in the GL in Section B.2.1. The allocation of the GL accumulated depreciation is shown in Section B.2 below.
D168: B.1.1 Power Plant Accumulated Depreciation
D169: Item | E169: Reference | F169: Total Transmission | G169: Voltage Lines | H169: Energy Management | I169: Jointly Owned Lines | J169: Lines | K169: Other Operating | L169: San Francisquito 1 | M169: San Francisquito 2 | N169: Station (Substation)
D170: Power Plant/GL Transmission Accumulated Depreciation - End Balance | E170: LADWP GL/Power Plant | F170: =SUM(G170:N170) -> -472476.321 | G170: -264802.9069 | H170: 0 | I170: -151294.8523 | J170: -29941.20201 | K170: 0 | L170: -1582.69497 | M170: -213.06963 | N170: -24641.59521
D171: GL Check | F171: =F207 -> -472476.3212
D173: B.1.2 Reclassifications to Transmission Accumulated Depreciation
D175: B.1.2.1 Reallocate a Portion of Lines Directly to 230kv, 500kv, SF1, SF 2
D176: Reallocate a Portion of Lines Directly to 230kv, 500kv, SF1, SF 2 | E176: LADWP Detail of Lines | F176: =SUM(G176:N176) -> -8.782308214e-12 | G176: -3846.827807 | J176: 5695.570259 | L176: -1629.386936 | M176: -219.3555159
D178: Power Plant Transmission Accumulated Depreciation Subtotal | E178: =CELL("Address",G178)&_xlfn.FORMULATEXT(G178) -> $G$178=G176+G170 | F178: =SUM(G178:N178) -> -472476.321 | G178: =G176+G170 -> -268649.7347 | H178: 0 | I178: -151294.8523 | J178: -24245.63175 | K178: 0 | L178: -3212.081906 | M178: -432.4251459 | N178: -24641.59521
D180: B.1.2.2 Reallocate a Remaining Lines Directly to Voltage Lines
D181: Reallocate a Remaining Lines Directly to Voltage Lines | E181: =CELL("Address",J181)&_xlfn.FORMULATEXT(J181) -> $J$181=-J178 | F181: =SUM(G181:N181) -> 0 | G181: =-J181 -> -24245.63175 | J181: =-J178 -> 24245.63175
D183: B.1.2.3 Reclassify Boulder City to Other Operating
D184: Reclassify Boulder City Related Accumulated Depreciation | E184: LADWP Power Plant | F184: =SUM(G184:N184) -> -5.6033303e-14 | G184: 31.5115116 | I184: 815.7104805 | K184: =-(G184+I184+N184) -> -847.2353914 | N184: 0.013399297
D186: Reclassified Transmission Accumulated Depreciation -End Bal | E186: =CELL("Address",G186)&_xlfn.FORMULATEXT(G186) -> $G$186=G184+G181+G178 | F186: =F184+F181+F178 -> -472476.321 | G186: -292863.855 | H186: 0 | I186: -150479.1418 | J186: 0 | K186: -847.2353914 | L186: -3212.081906 | M186: -432.4251459 | N186: -24641.58181
D187: Check | F187: =SUM(G186:N186) -> -472476.321
D188: TRANSMISSION ACCUM. DEPREC.ALLOCATOR | E188: =CELL("Address",G188)&_xlfn.FORMULATEXT(G188) -> $G$188=G186/$F$186 | F188: =SUM(G188:N188) -> 1 | G188: =G186/$F$186 -> 0.6198487457 | H188: =H186/$F$186 -> 0 | I188: 0.3184903351 | J188: 0 | K188: 0.001793180639 | L188: 0.006798397641 | M188: 0.0009152313601 | N188: 0.05215410956
C191: B.2 Allocation of General Ledger Transmission Accum Deprec to Transmission Categories
D193: B.2.1 GL Transmission Accum Deprec
D194: ='Control Sheet'!G7 -> Months | E194: Reference | F194: Total Transmission | G194: Transmission Accum Deprec (251) | H194: Transmission Accum Deprec (255)
D195: ='Control Sheet'!$G$8&TEXT('Control Sheet'!$H$8," ##") -> June 2014 | E195: LADWP GL | F195: =G195+H195 -> -443993.4065 | G195: -108790.4491 | H195: -335202.9574
D196: ='Control Sheet'!$G$9&TEXT('Control Sheet'!$H$9," ##") -> July 2014 | E196: LADWP GL | F196: =G196+H196 -> -446326.3887 | G196: -109339.329 | H196: -336987.0597
D197: ='Control Sheet'!$G$10&TEXT('Control Sheet'!$H$10," ##") -> August 2014 | E197: LADWP GL | F197: -448659.3709 | G197: -109888.2089 | H197: -338771.162
D198: ='Control Sheet'!$G$11&TEXT('Control Sheet'!$H$11," ##") -> September 2014 | E198: LADWP GL | F198: -450992.353 | G198: -110437.0887 | H198: -340555.2643
D199: ='Control Sheet'!$G$12&TEXT('Control Sheet'!$H$12," ##") -> October 2014 | E199: LADWP GL | F199: -453325.3352 | G199: -110985.9686 | H199: -342339.3666
D200: ='Control Sheet'!$G$13&TEXT('Control Sheet'!$H$13," ##") -> November 2014 | E200: LADWP GL | F200: -455658.3174 | G200: -111534.8485 | H200: -344123.4689
D201: ='Control Sheet'!$G$14&TEXT('Control Sheet'!$H$14," ##") -> December 2014 | E201: LADWP GL | F201: -458068.226 | G201: -112105.7402 | H201: -345962.4858
D202: ='Control Sheet'!$G$15&TEXT('Control Sheet'!$H$15," ##") -> January 2015 | E202: LADWP GL | F202: -460465.8522 | G202: -112674.786 | H202: -347791.0662
D203: ='Control Sheet'!$G$16&TEXT('Control Sheet'!$H$16," ##") -> February 2015 | E203: LADWP GL | F203: -462867.8383 | G203: -113244.2043 | H203: -349623.634
D204: ='Control Sheet'!$G$17&TEXT('Control Sheet'!$H$17," ##") -> March 2015 | E204: LADWP GL | F204: -465295.5461 | G204: -113815.4646 | H204: -351480.0815
D205: ='Control Sheet'!$G$18&TEXT('Control Sheet'!$H$18," ##") -> April 2015 | E205: LADWP GL | F205: -467726.4018 | G205: -114387.07 | H205: -353339.3318
D206: ='Control Sheet'!$G$19&TEXT('Control Sheet'!$H$19," ##") -> May 2015 | E206: LADWP GL | F206: -470041.5551 | G206: -114958.7844 | H206: -355082.7708
D207: ='Control Sheet'!$G$20&TEXT('Control Sheet'!$H$20," ##") -> June 2015 | E207: LADWP GL | F207: -472476.3212 | G207: -115530.872 | H207: -356945.4492
D208: Total | E208: =CELL("Address",G208)&_xlfn.FORMULATEXT(G208) -> $G$208=SUM(G195:G207) | F208: =SUM(F195:F207) -> -5955896.912 | G208: =SUM(G195:G207) -> -1457692.814 | H208: =SUM(H195:H207) -> -4498204.098
D209: 13 Month Average | E209: =CELL("Address",G209)&_xlfn.FORMULATEXT(G209) -> $G$209=G208/13 | F209: =F208/13 -> -458145.9163 | G209: =G208/13 -> -112130.2165 | H209: =H208/13 -> -346015.6999
D211: B.2.2 Allocation of GL Transmission
D213: Item | E213: Reference | F213: Total | G213: Voltage Lines | H213: Energy Management | I213: Jointly Owned Lines | J213: Lines | K213: Other Operating | L213: San Francisquito 1 | M213: San Francisquito 2 | N213: Substation
D214: GL Transmission Accumulated Depreciation Before Reclassifications | E214: =CELL("Address",G214)&_xlfn.FORMULATEXT(G214) -> $G$214=$F$209*G188 | F214: =SUM(G214:N214) -> -458145.9163 | G214: =$F$209*G188 -> -283981.1716 | H214: 0 | I214: -145915.0464 | J214: 0 | K214: -821.5383872 | L214: -3114.658117 | M214: -419.3095101 | N214: -23894.19231
D219: B.2.3 Transmission Reclassifications
D221: B.2.3.1 Allocate San Francisquito to Production | E221: =CELL("Address",L221)&_xlfn.FORMULATEXT(L221) -> $L$221=-L214 | F221: =SUM(G221:N221) -> 3533.967627 | G221: 0 | H221: 0 | I221: 0 | J221: 0 | K221: 0 | L221: =-L214 -> 3114.658117 | M221: =-M214 -> 419.3095101 | N221: 0
D223: B.2.3.2 Reclassification of Dist. Receiving Stations to Transmission | E223: =CELL("Address",N223)&_xlfn.FORMULATEXT(N223) -> $N$223=-H333 | F223: =SUM(G223:N223) -> -172608.9497 | N223: =-H333 -> -172608.9497
D226: Item | E226: Reference | F226: Total | G226: Voltage Lines | H226: Energy Management | I226: Jointly Owned Lines | J226: Lines | K226: Other Operating | L226: San Francisquito 1 | M226: San Francisquito 2 | N226: Substation
D228: B.2.3.3 7 Factor Test Reclassifications
D230: 7 Factor Test Transmission Line Reclassifications - 13 Mo Avg
D231: Reclassify portion of 138kV OH Lines as Dist | E231: =CELL("Address",G231)&_xlfn.FORMULATEXT(G231) -> $G$231=-'7 Factor Summary'!I41 | F231: =SUM(G231:N231) -> 2089.149811 | G231: =-'7 Factor Summary'!I41 -> 2089.149811
D232: Reclassify portion of 138kV UG Lines as Dist | E232: $G$232=-'7 Factor Summary'!I42 | F232: =SUM(G232:N232) -> 1052.288382 | G232: =-'7 Factor Summary'!I42 -> 1052.288382
D233: ='7 Factor Summary'!C59 -> 230 kV OH - LAGUNA BELL-VELASCO LINE 1 to Distribution | E233: $G$233=-'7 Factor Summary'!I59 | F233: =SUM(G233:N233) -> 1861.277042 | G233: =-'7 Factor Summary'!I59 -> 1861.277042
D234: ='7 Factor Summary'!C56 -> 230 kV OH - CONTROL GORGE-INYO LINE to Distribution | E234: $G$234=-'7 Factor Summary'!I56 | F234: =SUM(G234:N234) -> 552.5666219 | G234: =-'7 Factor Summary'!I56 -> 552.5666219
D235: Reclassify portion of 230kV UG Lines as Dist. | E235: $G$235=-'7 Factor Summary'!I63 | F235: =SUM(G235:N235) -> 32073.066 | G235: =-'7 Factor Summary'!I63 -> 32073.066
D236: Total Reclassifications to Distribution | E236: $G$236=SUM(G231:G235) | F236: =SUM(F231:F235) -> 37628.34786 | G236: =SUM(G231:G235) -> 37628.34786 | H236: =SUM(H231:H235) -> 0 | I236: 0 | J236: 0 | K236: 0 | L236: 0 | M236: 0 | N236: 0
D237: 7 Factor Summary Check | G237: =-('7 Factor Summary'!I41+'7 Factor Summary'!I42+'7 Factor Summary'!I56+'7 Factor Summary'!I59+'7 Factor Summary'!I63) -> 37628.34786
D239: Reclassify portion of 230kV OH Lines to Production Gen-tie -13 Mo Avg
D240: ='7 Factor Summary'!C47 -> 230 kV OH - PINETREE BARREN-RIDGE LINE (Wind + Solar) | E240: =CELL("Address",G240)&_xlfn.FORMULATEXT(G240) -> $G$240=-'7 Factor Summary'!I47 | F240: =SUM(G240:N240) -> 963.7925185 | G240: =-'7 Factor Summary'!I47 -> 963.7925185
D241: ='7 Factor Summary'!C48 -> 230 kV OH - UPPER GORGE-MIDDLE GORGE | E241: =CELL("Address",G241)&_xlfn.FORMULATEXT(G241) -> $G$241=-'7 Factor Summary'!I48 | F241: =SUM(G241:N241) -> 316.4170972 | G241: =-'7 Factor Summary'!I48 -> 316.4170972
D242: ='7 Factor Summary'!C49 -> 230 kV OH - MIDDLE GORGE-CONTROL GORGE | E242: =CELL("Address",G242)&_xlfn.FORMULATEXT(G242) -> $G$242=-'7 Factor Summary'!I49 | F242: =SUM(G242:N242) -> 581.6490757 | G242: =-'7 Factor Summary'!I49 -> 581.6490757
D243: ='7 Factor Summary'!C55 -> 230 kV OH - CONTROL GORGE-INYO LINE to Production | E243: =CELL("Address",G243)&_xlfn.FORMULATEXT(G243) -> $G$243=-'7 Factor Summary'!I55 | F243: =SUM(G243:N243) -> 552.5666219 | G243: =-'7 Factor Summary'!I55 -> 552.5666219
D244: Total Reclassifications to Production | E244: =CELL("Address",G244)&_xlfn.FORMULATEXT(G244) -> $G$244=SUM(G240:G243) | F244: =SUM(F240:F243) -> 2414.425313 | G244: =SUM(G240:G243) -> 2414.425313 | H244: =SUM(H240:H243) -> 0 | I244: 0 | J244: 0 | K244: 0 | L244: 0 | M244: 0 | N244: 0
D245: 7 Factor Summary Check | G245: =-('7 Factor Summary'!I47+'7 Factor Summary'!I48+'7 Factor Summary'!I49+'7 Factor Summary'!I55) -> 2414.425313
D247: 7 Factor Test Transmission Olive Station Reclassifications
D248: Switchyard Direct Assignment to Production | E248: =CELL("Address",N248)&_xlfn.FORMULATEXT(N248) -> $N$248='7 Factor Summary'!F117 | F248: =SUM(G248:N248) -> 3310.277858 | N248: ='7 Factor Summary'!F117 -> 3310.277858
D250: Total 7 Factor Reclassification | E250: =CELL("Address",G250)&_xlfn.FORMULATEXT(G250) -> $G$250=G244+G236+G248 | F250: =F244+F236+F248 -> 43353.05103 | G250: 40042.77317 | H250: 0 | I250: 0 | J250: 0 | K250: 0 | L250: 0 | M250: 0 | N250: 3310.277858
D253: Total Reclassified Transmission Accumulated Depreciation | E253: =CELL("Address",G253)&_xlfn.FORMULATEXT(G253) -> $G$253=G221+G250+G223+G214 | F253: =F221+F250+F223+F214 -> -583867.8474 | G253: =G221+G250+G223+G214 -> -243938.3984 | H253: 0 | I253: -145915.0464 | J253: 0 | K253: -821.5383872 | L253: 0 | M253: 0 | N253: -193192.8642
D254: Check | F254: =SUM(G253:N253) -> -583867.8474
C258: C. DISTRIBUTION PLANT ACCUMULATED DEPRECIATION
C259: LADWP's systems for tracking/recording accumulated depreciation consists of the general ledger (GL) and Power Plant system. The GL only includes monthly detail at a functional level and does have a breakdown by certain categories. In order to allocate the GL accumulated depreciation 13 month average and beginning ending balance to the various Distribution categories, ratios are developed below using Distribution values from Power Plant, manual entries to the GL, and a Receiving Station Study performed by LADWP. The ratios are developed in Section C.1 below. As can be seen in C.1 below, the total ending balance for Distribution does tie/reconcile to the June 2015 ending Distribution balance shown in the GL in Section C.2. The allocation of the GL accumulated depreciation is shown in Section C.2 below.
C261: C.1 Power Plant Distribution Accumulated Depreciation
F263: Total | G263: Other Distribution | H263: Receiving Station | I263: ECC
D264: Distribution Accum Deprec - End Balance | E264: Total: Depreciation Study Schedules RS: LADWP RS Study ECC : Power Plant | F264: =-3378801948/1000 -> -3378801.948 | G264: =F264-I264-H264 -> -2863266.331 | H264: =-407042990/1000 -> -407042.99 | I264: -108492.6273
D265: GL Check | F265: =F284 -> -3378801.946
D266: DISTRIBUTION ACCUM. DEPREC. ALLOCATOR | E266: =CELL("Address",G266)&_xlfn.FORMULATEXT(G266) -> $G$266=G264/F264 | F266: =SUM(G266:I266) -> 1 | G266: =G264/F264 -> 0.8474205872 | H266: =H264/F264 -> 0.120469621 | I266: =I264/F264 -> 0.03210979187
C268: C.2 Allocation of GL Distribution Accumulated Depreciation
D269: C.2.1 GL Distribution accumulated Depreciation Allocation
F270: General Ledger
D271: ='Control Sheet'!G7 -> Months | E271: Reference | F271: Total Dist. Accum Deprec | G271: Other Distribution | H271: Receiving Station | I271: ECC
D272: ='Control Sheet'!$G$8&TEXT('Control Sheet'!$H$8," ##") -> June 2014 | E272: LADWP GL | F272: -3139162.985
D273: ='Control Sheet'!$G$9&TEXT('Control Sheet'!$H$9," ##") -> July 2014 | E273: LADWP GL | F273: -3158486.909
D274: ='Control Sheet'!$G$10&TEXT('Control Sheet'!$H$10," ##") -> August 2014 | E274: LADWP GL | F274: -3177700.017
D275: ='Control Sheet'!$G$11&TEXT('Control Sheet'!$H$11," ##") -> September 2014 | E275: LADWP GL | F275: -3196908.157
D276: ='Control Sheet'!$G$12&TEXT('Control Sheet'!$H$12," ##") -> October 2014 | E276: LADWP GL | F276: -3216063.764
D277: ='Control Sheet'!$G$13&TEXT('Control Sheet'!$H$13," ##") -> November 2014 | E277: LADWP GL | F277: -3235148.025
D278: ='Control Sheet'!$G$14&TEXT('Control Sheet'!$H$14," ##") -> December 2014 | E278: LADWP GL | F278: -3256109.953
D279: ='Control Sheet'!$G$15&TEXT('Control Sheet'!$H$15," ##") -> January 2015 | E279: LADWP GL | F279: -3276094.038
D280: ='Control Sheet'!$G$16&TEXT('Control Sheet'!$H$16," ##") -> February 2015 | E280: LADWP GL | F280: -3296249.324
D281: ='Control Sheet'!$G$17&TEXT('Control Sheet'!$H$17," ##") -> March 2015 | E281: LADWP GL | F281: -3316609.732
D282: ='Control Sheet'!$G$18&TEXT('Control Sheet'!$H$18," ##") -> April 2015 | E282: LADWP GL | F282: -3337119.058
D283: ='Control Sheet'!$G$19&TEXT('Control Sheet'!$H$19," ##") -> May 2015 | E283: LADWP GL | F283: -3357915.461
... 97 more rows

Sheet AF
B1: =+'Control Sheet'!$A$1 -> Los Angeles Department of Water and Power
B2: =+'Control Sheet'!$A$2 -> Statement
B3: ='Control Sheet'!B36 -> AF Specified Deferred Credits [CIAC]
B4: ='Control Sheet'!$A$3 -> Test Period: FY2014-15 (July 1, 2014 through June 30, 2015)
B19: TRANSMISSION CIAC
C20: Transmission Contributions in Aid of Construction (CIAC) are booked by LADWP as credits to Retained Earnings and debits to transmission plant in service. Therefore, transmission plant in service and accumulated depreciation associated with CIAC needs to be backed out of rate base. Also, transmission depreciation expense on plant related to CIAC needs to be backed out of test year depreciation expense. The Transmission depreciation expense inputs in statement AJ exclude Transmission depreciation related to CIAC. Tab "AJ-New Rates" does include an adjustment to reduce Transmission depreciation for CIAC related depreciation since the new rates and accruals from the depreciation study are based on total transmission assets including CIAC related assets.
C21: CIAC Transmission From Retained Earnings
C23: Month | D23: Ref | E23: CIAC (Transmission)
C24: ='Control Sheet'!$G$8&TEXT('Control Sheet'!$H$8," ##") -> June 2014 | D24: LADWP GL | E24: -147767.8965
C25: ='Control Sheet'!$G$9&TEXT('Control Sheet'!$H$9," ##") -> July 2014 | D25: LADWP GL | E25: -147767.8965
C26: ='Control Sheet'!$G$10&TEXT('Control Sheet'!$H$10," ##") -> August 2014 | D26: LADWP GL | E26: -147767.8965
C27: ='Control Sheet'!$G$11&TEXT('Control Sheet'!$H$11," ##") -> September 2014 | D27: LADWP GL | E27: -147767.8965
C28: ='Control Sheet'!$G$12&TEXT('Control Sheet'!$H$12," ##") -> October 2014 | D28: LADWP GL | E28: -147767.8965
C29: ='Control Sheet'!$G$13&TEXT('Control Sheet'!$H$13," ##") -> November 2014 | D29: LADWP GL | E29: -150016.7895
C30: ='Control Sheet'!$G$14&TEXT('Control Sheet'!$H$14," ##") -> December 2014 | D30: LADWP GL | E30: -150016.7895
C31: ='Control Sheet'!$G$15&TEXT('Control Sheet'!$H$15," ##") -> January 2015 | D31: LADWP GL | E31: -150016.7895
C32: ='Control Sheet'!$G$16&TEXT('Control Sheet'!$H$16," ##") -> February 2015 | D32: LADWP GL | E32: -150016.7895
C33: ='Control Sheet'!$G$17&TEXT('Control Sheet'!$H$17," ##") -> March 2015 | D33: LADWP GL | E33: -150016.7895
C34: ='Control Sheet'!$G$18&TEXT('Control Sheet'!$H$18," ##") -> April 2015 | D34: LADWP GL | E34: -153061.2715
C35: ='Control Sheet'!$G$19&TEXT('Control Sheet'!$H$19," ##") -> May 2015 | D35: LADWP GL | E35: -153061.2715
C36: ='Control Sheet'!$G$20&TEXT('Control Sheet'!$H$20," ##") -> June 2015 | D36: LADWP GL | E36: -153062.0065
C38: Total 13 Months | D38: =CELL("Address",E38)&_xlfn.FORMULATEXT(E38) -> $E$38=SUM(E24:E36) | E38: =SUM(E24:E36) -> -1948107.98
C40: 13 Month Avg | D40: =CELL("Address",E40)&_xlfn.FORMULATEXT(E40) -> $E$40=E38/13 | E40: =E38/13 -> -149854.46
C42: Rate Base Reduction for Transmission CIAC
C44: Item | D44: Ref | E44: ='Control Sheet'!G6 -> FY 2014-15
C45: GL Transmission Gross Plant | D45: =CELL("Address",E45)&_xlfn.FORMULATEXT(E45) -> $E$45=AD!E277 | E45: =AD!E277 -> 1106324.421
C46: GL Transmission Accumulated Depreciation | D46: =CELL("Address",E46)&_xlfn.FORMULATEXT(E46) -> $E$46=AE!F209 | E46: =AE!F209 -> -458145.9163
C47: GL Net Transmission Plant | D47: =CELL("Address",E47)&_xlfn.FORMULATEXT(E47) -> $E$47=SUM(E45:E46) | E47: =SUM(E45:E46) -> 648178.505
C48: GL Net Transmission Plant as % of Gross Plant | D48: =CELL("Address",E48)&_xlfn.FORMULATEXT(E48) -> $E$48=E47/E45 | E48: =E47/E45 -> 0.5858846578
C50: GL CIAC Related to Transmission | D50: =CELL("Address",E50)&_xlfn.FORMULATEXT(E50) -> $E$50=-E40 | E50: =-E40 -> 149854.46
C51: GL Net Transmission Plant as % of Gross Plant | D51: =CELL("Address",E51)&_xlfn.FORMULATEXT(E51) -> $E$51=E48 | E51: =E48 -> 0.5858846578
C52: Estimated Net Transmission Plant Related to CIAC | D52: =CELL("Address",E52)&_xlfn.FORMULATEXT(E52) -> $E$52=E50*E51 | E52: =E50*E51 -> 87797.429
C54: Reduction to Rate Base for Transmission CIAC | D54: =CELL("Address",E54)&_xlfn.FORMULATEXT(E54) -> $E$54=E52 | E54: =E52 -> 87797.429

Sheet AG
B1: =+'Control Sheet'!$A$1 -> Los Angeles Department of Water and Power
B2: =+'Control Sheet'!$A$2 -> Statement
B3: ='Control Sheet'!B37 -> AG Specified Plant Accounts and Deferred Debits
C4: ='Control Sheet'!C38 -> Land Held For Future Use (Production)
C5: ='Control Sheet'!C39 -> Acquisition Adjustment for Palo Verde
C6: ='Control Sheet'!C40 -> Construction Work in Progress included in rate base
B7: =+'Control Sheet'!A3 -> Test Period: FY2014-15 (July 1, 2014 through June 30, 2015)
B8: =+'Control Sheet'!A4 -> (in Thousands of Dollars)
B14: A. ACQUISITION ADJUSTMENT AND LAND HELD FOR FUTUER USE
C15: Description | E15: Ref | F15: 13 Mo Average Balance
C17: Acquisition Adjustment for
D18: Palo Verde (a) | E18: LADWP GL | F18: -42621.51271
C20: Land Held for Future Use
D21: Imperial Valley Geo-Thermal ( b) | E21: LADWP GL | F21: 5512.71538
C23: Other - For Future LADWP Use | F23: TBD
A25: (a) | C25: This acquisition adjustment recognizes the difference between the net book value of Palo Verde and Coronado from a 1986 transaction. This adjustment is deducted from Production Rate Base associated with Palo Verde, but has no OATT Revenue Requirement impact on Schedules 2, 3,5,6 and 10 because Palo Verde does not provide Ancillary Services.
A26: ( b) | C26: This Geo-Thermal Project is being developed to meet California Renewable Portfolio Standards. This is NOT included in rate base because it does not provide ancillary services during the test year.
B30: B. CWIP COMPONENTS
E32: End of Year June 30, 2015 | U32: 13 Month Average
D33: Job ID | E33: Production CWIP Amount | F33: AFUDC incl in CWIP | G33: Job ID Description | H33: 2015-06-30 | I33: 2015-05-31 | J33: 2015-04-30 | K33: 2015-03-31 | L33: 2015-02-28 | M33: 2015-01-31 | N33: 2014-12-31 | O33: 2014-11-30 | P33: 2014-10-31 | Q33: 2014-09-30 | R33: 2014-08-31 | S33: 2014-07-31 | T33: 2014-06-30
D34: B2171 | E34: 99.74552 | G34: SGS SCR SYSTEM REPLACEMT, UNITS 1-3.ASSESS THE PHYSICAL, CHEMICAL, & OPERATING CONDITIONS OF THE SCR, INCLUDING ON-SITE INSPECTION, CATALYST CORE SAMPLE ANALYSIS, ETC. TERM PERF PROJTN & REPL CATALYSTS. *RESCHED PER PLNT ENGR,10/20/11 BAM29 | H34: 99.74552 | I34: 99.74552 | J34: 99.74552 | K34: 99.74552 | L34: 99.74552 | M34: 99.74552 | N34: 99.74552 | O34: 99.74552 | P34: 99.74552 | Q34: 99.74552 | R34: 99.74552 | S34: 99.74552 | T34: 99.74552 | U34: =SUM(H34:T34)/13 -> 99.74552
D35: B2176 | E35: 198.34597 | G35: SGS SCR SYSTEM REPLACEMT, UNITS 1-3.ASSESS THE PHYSICAL, CHEMICAL, & OPERATING CONDITIONS OF THE SCR, INCLUDING ON-SITE INSPECTION, CATALYST CORE SAMPLE ANALYSIS, ETC. TERM PERF PROJTN & REPL CATALYSTS. *RESCHED PER PLNT ENGR,10/20/11 BAM29 | H35: 198.34597 | I35: 197.061 | J35: 194.48286 | K35: 156.3763 | L35: 131.96265 | M35: 111.32558 | N35: 95.30031 | O35: 78.64457 | P35: 54.82041 | Q35: 44.89845 | R35: 37.99154 | S35: 37.19574 | T35: 36.32504 | U35: =SUM(H35:T35)/13 -> 105.7484938
D36: B2229 | E36: 317.51478 | G36: UPGRADE OBSOLETE NOX & CO ANALYZERS HGS, HNGS, SGS, AND VGS. INSTALL INLET NOX & CO ANALYZERS & UPGRADE CEMS AMMONIA SLIP MEASUREMENT METHOD FOR VGS. UPGRADE OBSOLETE CEMS DAHS MAIN SERVER HARDWARE & SOFTWARE FOR HGS, HNGS, SGS, & VGS. | H36: 317.51478 | I36: 157.2696 | J36: 134.14222 | K36: 107.78253 | L36: 86.43863 | M36: 82.36026 | N36: 79.55267 | O36: 75.9172 | P36: 73.97681 | Q36: 65.12202 | R36: 59.73695 | S36: 50.82581 | T36: 34.68173 | U36: 101.9477854
D37: O1195 | E37: 760525.3641 | F37: 29404.113 | G37: REPOWER SCATTERGOOD GS UNIT 3 WITH ONE 1 X 1 COMBINED CYCLE AND TWO SIMPLE CYCLE UNITS. TOTAL OUTPUT 510 MW, IN SERVICE BY 12/2015. COMBINED CYCLE WILL INCLUDE AN AIR COOLED CONDENSER. | H37: 760530.1446 | I37: 724484.6358 | J37: 719932.3546 | K37: 679707.8863 | L37: 675248.7302 | M37: 622251.6046 | N37: 600554.767 | O37: 590430.3665 | P37: 529965.9308 | Q37: 519084.661 | R37: 491081.0356 | S37: 466206.09 | T37: 461442.8853 | U37: 603147.7763
D38: O1272 | E38: 5837.15957 | G38: RULE 316B COMPLIANCE - ENVIRONMENTALSTUDIES FOR HYNS, HRBR, & SCATTERGD GEN STATIONS TO RETROFIT INTAKE STRUCTURES &/OR COOLING WTR SYSTMS @COASTAL GENERATING STATIONS. REQSTD BY J. SCHUMANN, 4/7/2004 | H38: 5837.15957 | I38: 5836.71255 | J38: 5836.40547 | K38: 5835.40876 | L38: 5833.99154 | M38: 5833.63943 | N38: 5832.98069 | O38: 5832.7482 | P38: 5832.26836 | Q38: 5832.39829 | R38: 5831.0137 | S38: 5821.51948 | T38: 5813.89982 | U38: 5831.549682
D39: O1333 | E39: 606.02868 | G39: STORM WTR CAPTURE SYSTEM FOR HNGS; DESIGN & CONSTR A STORM WATER COLLECTION & RELEASE SYSTEM SO THE THE HNGS TANK FARM'S SURFACE RUNOFF MEETS THE NEW NPDES REQUIREMENTS. * LEAD XFRD FROM 78550 10-29-12 JOB MANAGER IS EDUARDO MALACON. | H39: 606.02868 | I39: 604.64715 | J39: 603.58835 | K39: 602.77037 | L39: 592.65724 | M39: 567.29091 | N39: 563.9218 | O39: 556.68731 | P39: 549.03759 | Q39: 543.88859 | R39: 522.81899 | S39: 516.95037 | T39: 505.98844 | U39: 564.3289069
D40: O1399 | E40: 1015.36049 | G40: RECLAIMED WATER UTILIZATION STUDIES.ENGINEERING STUDIES FOR COOLING TOWERS, EVAPORATIVE COOLER, & GEN EQUIPMENT AT HAYNES, HARBOR SCATTERGOOD, & VALLEY GENERATING STATIONS. REQ < 1-28-10. | H40: 1015.36059 | I40: 1010.53834 | J40: 1000.16633 | K40: 980.27703 | L40: 969.69315 | M40: 949.88134 | N40: 927.53499 | O40: 913.33322 | P40: 903.14583 | Q40: 878.73138 | R40: 870.31487 | S40: 865.18457 | T40: 858.90996 | U40: 934.0824308
D41: O9778 | E41: 402.72983 | G41: REPOWER SCATTERGOOD UNITS 1 & 2WITH ONE 1X1 GAS TURBINE GENERATOR & STEAM TURBINE GENERATOR COMBINED CYCLE PROJECT. PROJECT WILL INCLUDE USE OF AIR COOLED CONDENSER TO ELIMINATE THE NEED FOR OCEAN COOLING. | H41: 402.72983 | I41: 380.28303 | J41: 354.00224 | K41: 329.56101 | L41: 33.70942 | M41: 20.82301 | N41: 15.24766 | O41: 4.23048 | P41: 2.56707 | Q41: 0 | R41: 0 | S41: 0 | T41: 0 | U41: 118.7041346
D42: O9790 | E42: 1181.26675 | G42: REPOWER SCATTERGOOD GS UNIT 3 WITH ONE 1 X 1 COMBINED CYCLE AND TWO SIMPLE CYCLE UNITS. TOTAL OUTPUT 510 MW, IN SERVICE BY 12/2015. COMBINED CYCLE WILL INCLUDE AN AIR COOLED CONDENSER. | H42: 1181.26675 | I42: 1116.25566 | J42: 1069.15524 | K42: 1031.34532 | L42: 974.68506 | M42: 934.70718 | N42: 881.9276 | O42: 852.19793 | P42: 802.95096 | Q42: 763.74 | R42: 648.13127 | S42: 623.3039 | T42: 580.28808 | U42: 881.5349962
D43: TOTAL | E43: =SUM(E34:E42) -> 770183.5157 | F43: =SUM(F34:F42) -> 29404.113 | H43: =SUM(H34:H42) -> 770188.2963 | I43: =SUM(I34:I42) -> 733887.1487 | J43: 729224.0428 | K43: 688851.1531 | L43: 683971.6134 | M43: 630851.3778 | N43: 609050.9783 | O43: 598843.8709 | P43: 538284.4434 | Q43: 527313.1853 | R43: 499150.7884 | S43: 474220.8154 | T43: 469372.7239 | U43: =SUM(U34:U42) -> 611785.4183

Sheet AH
C1: =+'Control Sheet'!$A$1 -> Los Angeles Department of Water and Power
C2: =+'Control Sheet'!$A$2 -> Statement
C3: ='Control Sheet'!B41 -> AH O&M Expenses by FERC Primary Account
C4: =+'Control Sheet'!$A$3 -> Test Period: FY2014-15 (July 1, 2014 through June 30, 2015)
C5: ='Control Sheet'!A4 -> (in Thousands of Dollars)
D6: Error Check
D7: Calculated Totals | E7: =H41+H44+H67+H95+H127+H144+H165+H197+H219+H230+H250+H253+H273+H313+H326+H354+H405+H418+H427+H446+H487+H188+H299+H307+H484+I446+J446 -> 3930519.243
D8: Check Totals | E8: =H42+H45+H68+H96+H128+H145+H166+H198+H220+H231+H251+H254+H274+H314+H327+H355+H406+H419+H428+H447+H488+H189+H300+H308+H485+I447+J447 -> 3930519.243
D9: Difference | E9: =E7-E8 -> 0
D10: Error Check | E10: =IF(ABS(E9)>0.01,"Error","") -> 
C17: Table of Contents
C18: Item
C19: =C37 -> A. FUEL EXPENSE
C20: =C48 -> B. PURCHASE POWER EXPENSES - FERC 555
C21: =C70 -> C. PRODUCTION EXPENSES - STEAM
C22: =C131 -> D. PRODUCTION EXPENSES - HYDRAULIC
C23: =C200 -> E. PRODUCTION EXPENSES - NUCLEAR
C24: =C222 -> F. OTHER PRODUCTION EXPENSES
C25: =C257 -> G. TRANSMISSION EXPENSES
C26: =C329 -> H. ECC O&M
C27: =C358 -> I. A&G EXPENSES
C28: =C432 -> J. TOTAL O&M SUMMARY EXCLUDING DISTRIBUTION - FOR CASH WORKING CAPITAL
C29: =C451 -> K. DISTRIBUTION O&M
Q34: Owens Valley Stations | AL34: LA Basin Stations
Q35: =+'Gen AS Matrix'!C11 -> Hydro | R35: =+'Gen AS Matrix'!D11 -> Hydro | S35: =+'Gen AS Matrix'!E11 -> Hydro | T35: =+'Gen AS Matrix'!F11 -> Hydro | U35: =+'Gen AS Matrix'!G11 -> Hydro | V35: =+'Gen AS Matrix'!H11 -> Hydro | W35: =+'Gen AS Matrix'!I11 -> Hydro | X35: =+'Gen AS Matrix'!J11 -> Hydro | Y35: =+'Gen AS Matrix'!K11 -> Hydro | Z35: =+'Gen AS Matrix'!L11 -> Hydro | AA35: =+'Gen AS Matrix'!M11 -> Hydro | AB35: =+'Gen AS Matrix'!N11 -> Hydro | AC35: =+'Gen AS Matrix'!O11 -> Hydro | AD35: =+'Gen AS Matrix'!P11 -> Hydro | AE35: =+'Gen AS Matrix'!Q11 -> Hydro | AF35: =+'Gen AS Matrix'!R11 -> Hydro | AL35: =+'Gen AS Matrix'!S11 -> Steam | AM35: =+'Gen AS Matrix'!T11 -> Steam | AN35: =+'Gen AS Matrix'!U11 -> Steam | AO35: =+'Gen AS Matrix'!V11 -> Steam | AP35: =+'Gen AS Matrix'!W11 -> Steam | AQ35: =+'Gen AS Matrix'!X11 -> Nuclear | AS35: Other Production | AV35: Transmission | BD35: Purchased Power | BF35: Distribution
D36: Reference | H36: Total Production, Transmission, Distribution | I36: Total Production and Transmission | J36: Total Production (Hyd+Steam+Nuc+Oth Prod+Purch Power) | K36: Total Hydro | L36: Common Hydro | M36: Total Hydro With OV Common and Miscel | N36: Owens Valley Common Hydro | O36: Miscel (FERC 543) | P36: Total Owens Valley Hydro Without OV Common Hydro | Q36: =+'Gen AS Matrix'!C12 -> Cottonwood | R36: =+'Gen AS Matrix'!D12 -> Division Creek | S36: =+'Gen AS Matrix'!E12 -> Big Pine | T36: =+'Gen AS Matrix'!F12 -> Pleasant Valley | U36: =+'Gen AS Matrix'!G12 -> Upper Gorge | V36: =+'Gen AS Matrix'!H12 -> Middle Gorge | W36: =+'Gen AS Matrix'!I12 -> Control Gorge | X36: =+'Gen AS Matrix'!J12 -> S.F. 1 | Y36: =+'Gen AS Matrix'!K12 -> S.F. 2 | Z36: =+'Gen AS Matrix'!L12 -> San Fernando | AA36: =+'Gen AS Matrix'!M12 -> Foothill | AB36: =+'Gen AS Matrix'!N12 -> Franklin | AC36: =+'Gen AS Matrix'!O12 -> Sawtelle | AD36: =+'Gen AS Matrix'!P12 -> Haiwee | AE36: =+'Gen AS Matrix'!Q12 -> Pump Storage Castaic | AF36: =+'Gen AS Matrix'!R12 -> Hoover Purchased Power | AG36: Total Steam | AH36: Misc Amortization | AI36: Tank Farms | AJ36: Steam Common | AK36: Total LA Basin | AL36: =+'Gen AS Matrix'!S12 -> Harbor | AM36: =+'Gen AS Matrix'!T12 -> Valley | AN36: =+'Gen AS Matrix'!U12 -> Scattergood | AO36: =+'Gen AS Matrix'!V12 -> Haynes | AP36: =+'Gen AS Matrix'!W12 -> Navajo | AQ36: =+'Gen AS Matrix'!X12 -> Palo Verde | AR36: Total Other Production | AS36: =+'Gen AS Matrix'!Y12 -> Wind | AT36: =+'Gen AS Matrix'!Z12 -> Solar | AU36: Safety | AV36: =+'Gen AS Matrix'!AB12 -> Transmission | AW36: Transmission GL ECC (Energy Management) | AX36: Transmission (Sch 7&8) | AY36: Transmission "All Entries" | AZ36: Transmission SanFrancisquito | BA36: Transmission Station | BB36: Transmission Other Operating Facilities | BC36: Transmission Lines | BD36: Purchased Transmission | BE36: Production | BF36: Total Distribution | BG36: Distribution - ECC | BH36: Distribution - RS | BI36: Distribution - OTHER | BJ36: Total AG (Excl. Property Insurance) From GL
C37: A. FUEL EXPENSE
C38: GL Fuel Expense-705 (FERC-501) | D38: LADWP GL | H38: =I38+BF38 -> 355473.8876 | I38: =J38+AV38 -> 355473.8876 | J38: =K38+AG38+AQ38+AS38+AT38+BE38+AF38 -> 355473.8876 | AG38: =AK38+AP38+AJ38+AI38+AH38 -> 341461.8418 | AI38: 53.18698 | AJ38: 73583.5206 | AK38: =(SUM(AL38:AO38)) -> 195105.8732 | AL38: 4189.52223 | AM38: 31098.2086 | AN38: 49939.85871 | AO38: 109878.2837 | AP38: 72719.26097 | AQ38: 14012.04585 | AV38: =AW38+AX38 -> 0
C39: GL Miscel. Nat Gas Amortization-506 (FERC-425) | D39: LADWP GL | H39: =I39+BF39 -> 20035.43799 | I39: =J39+AV39 -> 20035.43799 | J39: =K39+AG39+AQ39+AS39+AT39+BE39+AF39 -> 20035.43799 | AG39: =AK39+AP39+AJ39+AI39+AH39 -> 20035.43799 | AH39: 20035.43799
C40: GL Common Hydro Fuel -734 (FERC-536) | D40: LADWP GL | H40: =I40+BF40 -> 1834.07937 | I40: =J40+AV40 -> 1834.07937 | J40: =K40+AG40+AQ40+AS40+AT40+BE40+AF40 -> 1834.07937 | K40: =L40+M40 -> 1834.07937 | L40: 1834.07937 | M40: =N40+O40+P40+X40+Y40++Z40+AA40+AB40+AC40+AD40+AE40 -> 0 | P40: =SUM(Q40:W40) -> 0 | AG40: =AK40+AP40+AJ40+AI40+AH40 -> 0
C41: Total GL Fuel | D41: =CELL("Address",AL41)&_xlfn.FORMULATEXT(AL41) -> $AL$41=SUM(AL38:AL40) | H41: =SUM(H38:H40) -> 377343.405 | I41: 377343.405 | J41: 377343.405 | K41: 1834.07937 | L41: =SUM(L38:L40) -> 1834.07937 | M41: 0 | N41: 0 | O41: 0 | P41: 0 | Q41: 0 | R41: 0 | S41: 0 | T41: 0 | U41: 0 | V41: 0 | W41: 0 | X41: 0 | Y41: 0 | Z41: 0 | AA41: 0 | AB41: 0 | AC41: 0 | AD41: 0 | AE41: 0 | AF41: 0 | AG41: 361497.2797 | AH41: =SUM(AH38:AH40) -> 20035.43799 | AI41: =SUM(AI38:AI40) -> 53.18698 | AJ41: =SUM(AJ38:AJ40) -> 73583.5206 | AK41: 195105.8732 | AL41: 4189.52223 | AM41: 31098.2086 | AN41: 49939.85871 | AO41: 109878.2837 | AP41: 72719.26097 | AQ41: 14012.04585 | AR41: 0 | AS41: 0 | AT41: 0 | AU41: =SUM(AU38:AU40) -> 0 | AV41: 0 | AW41: 0 | AX41: 0 | AY41: 0 | AZ41: 0 | BA41: 0 | BB41: 0 | BC41: 0 | BD41: 0 | BE41: 0 | BF41: 0 | BG41: 0 | BH41: 0 | BI41: 0
C42: Check | H42: =L41++N41+O41+Q41+R41+S41+T41+U41+V41+W41+X41+Y41+Z41+AA41+AB41+AC41+AD41+AE41+AF41+AH41+AI41+AJ41+AL41+AM41+AN41+AO41+AP41+AQ41+AS41+AT41+AW41+AY41+AZ41+BA41+BB41+BC41+BD41+BE41+BG41+BH41+BI41 -> 377343.405
C44: Total Fuel Expense | D44: =CELL("Address",Q44)&_xlfn.FORMULATEXT(Q44) -> $Q$44=Q41 | H44: =H41 -> 377343.405 | I44: =I41 -> 377343.405 | J44: =J41 -> 377343.405 | K44: 1834.07937 | L44: 1834.07937 | M44: 0 | N44: 0 | O44: 0 | P44: 0 | Q44: 0 | R44: 0 | S44: 0 | T44: 0 | U44: 0 | V44: 0 | W44: 0 | X44: 0 | Y44: 0 | Z44: 0 | AA44: 0 | AB44: 0 | AC44: 0 | AD44: 0 | AE44: 0 | AF44: 0 | AG44: 361497.2797 | AH44: 20035.43799 | AI44: 53.18698 | AJ44: 73583.5206 | AK44: 195105.8732 | AL44: 4189.52223 | AM44: 31098.2086 | AN44: 49939.85871 | AO44: 109878.2837 | AP44: 72719.26097 | AQ44: 14012.04585 | AR44: 0 | AS44: 0 | AT44: 0 | AU44: 0 | AV44: 0 | AW44: 0 | AX44: 0 | AY44: 0 | AZ44: 0 | BA44: 0 | BB44: 0 | BC44: 0 | BD44: 0 | BE44: 0 | BF44: 0 | BG44: 0 | BH44: 0 | BI44: 0 | BJ44: 0
C45: Check | H45: =L44++N44+O44+Q44+R44+S44+T44+U44+V44+W44+X44+Y44+Z44+AA44+AB44+AC44+AD44+AE44+AF44+AH44+AI44+AJ44+AL44+AM44+AN44+AO44+AP44+AQ44+AS44+AT44+AW44+AY44+AZ44+BA44+BB44+BC44+BD44+BE44+BG44+BH44+BI44 -> 377343.405
C48: B. PURCHASE POWER EXPENSES - FERC 555
Q49: Owens Valley Stations | AL49: LA Basin Stations
Q50: Hydro | R50: Hydro | S50: Hydro | T50: Hydro | U50: Hydro | V50: Hydro | W50: Hydro | X50: Hydro | Y50: Hydro | Z50: Hydro | AA50: Hydro | AB50: Hydro | AC50: Hydro | AD50: Hydro | AE50: Hydro | AF50: Hydro | AL50: Steam | AM50: Steam | AN50: Steam | AO50: Steam | AP50: Steam | AQ50: Nuclear | AS50: Other Production | AV50: Transmission | BD50: Purchased Power | BF50: Distribution
C51: The Purchased Power expenses shown below only include Hoover purchased power and the fixed portion of the IPP purchased power expenses. LADWP's general ledger includes Purchased Transmission expenses in Purchased Power. These Purchased Transmission expenses are not shown here in Purchased Power but are included in this statement (AH) under Transmission O&M (Section G).
C52: Item | D52: Reference | H52: Total Production, Transmission, Distribution | I52: Total Production and Transmission | J52: Total Production (Hyd+Steam+Nuc+Oth Prod+Purch Power) | K52: Total Hydro | L52: Common Hydro | M52: Total Hydro With OV Common and Miscel | N52: Owens Valley Common Hydro | O52: Miscel (FERC 543) | P52: Total Owens Valley Hydro Without OV Common Hydro | Q52: Cottonwood | R52: Division Creek | S52: Big Pine | T52: Pleasant Valley | U52: Upper Gorge | V52: Middle Gorge | W52: Control Gorge | X52: S.F. 1 | Y52: S.F. 2 | Z52: San Fernando | AA52: Foothill | AB52: Franklin | AC52: Sawtelle | AD52: Haiwee | AE52: Pump Storage Castaic | AF52: Hoover Purchased Power | AG52: Total Steam | AH52: Misc Amortization | AI52: Tank Farms | AJ52: Steam Common | AK52: Total LA Basin | AL52: Harbor | AM52: Valley | AN52: Scattergood | AO52: Haynes | AP52: Navajo | AQ52: Palo Verde | AR52: Total Other Production | AS52: Wind | AT52: Solar | AU52: Safety | AV52: Transmission | AW52: Transmission GL ECC (Energy Management) | AX52: Transmission (Sch 7&8) | AY52: Transmission "All Entries" | AZ52: Transmission SanFrancisquito | BA52: Transmission Station | BB52: Transmission Other Operating Facilities | BC52: Transmission Lines | BD52: Purchased Transmission | BE52: Production | BF52: Total Distribution | BG52: Distribution - ECC | BH52: Distribution - RS | BI52: Distribution - OTHER | BJ52: Total AG (Excl. Property Insurance) From GL
C54: IPP Minimum Costs (IPP Share)
C55: Debt Service | D55: LADWP GL | H55: =I55+BF55 -> 179947.7131 | I55: =J55+AV55 -> 179947.7131 | J55: =K55+AG55+AQ55+AS55+AT55+BE55+AF55 -> 179947.7131 | BE55: 179947.7131
C56: Operation | D56: LADWP GL | H56: 20381.01339 | I56: 20381.01339 | J56: 20381.01339 | BE56: 20381.01339
C57: Maintenance | D57: LADWP GL | H57: 29579.93451 | I57: 29579.93451 | J57: 29579.93451 | BE57: 29579.93451
C58: Renewals & Replacements | D58: LADWP GL | H58: 16864.04659 | I58: 16864.04659 | J58: 16864.04659 | BE58: 16864.04659
C59: Indirect Labor (IPSC) | D59: LADWP GL | H59: 20865.74266 | I59: 20865.74266 | J59: 20865.74266 | BE59: 20865.74266
C60: Taxes - AD Valorem | D60: LADWP GL | H60: 6095.594638 | I60: 6095.594638 | J60: 6095.594638 | BE60: 6095.594638
C61: Taxes - Others | D61: LADWP GL | H61: 3070.865257 | I61: 3070.865257 | J61: 3070.865257 | BE61: 3070.865257
C62: Risk Management | D62: LADWP GL | H62: 2020.655924 | I62: 2020.655924 | J62: 2020.655924 | BE62: 2020.655924
C63: Admin & General | D63: LADWP GL | H63: 3032.822687 | I63: 3032.822687 | J63: 3032.822687 | BE63: 3032.822687
C64: IPP Subtotal | D64: =CELL("Address",BE64)&_xlfn.FORMULATEXT(BE64) -> $BE$64=SUM(BE55:BE63) | H64: =SUM(H55:H63) -> 281858.3888 | I64: =SUM(I55:I63) -> 281858.3888 | J64: =SUM(J55:J63) -> 281858.3888 | BE64: =SUM(BE55:BE63) -> 281858.3888
C65: Purchase Power Hoover | H65: =I65+BF65 -> 14537.699 | I65: =J65+AV65 -> 14537.699 | J65: =K65+AG65+AQ65+AS65+AT65+BE65+AF65 -> 14537.699 | AF65: 14537.699
C67: Total Purchased Power | D67: =CELL("Address",BE67)&_xlfn.FORMULATEXT(BE67) -> $BE$67=BE64 | H67: =H64+H65 -> 296396.0878 | I67: =I64+I65 -> 296396.0878 | J67: =J64+J65 -> 296396.0878 | AF67: =AF65 -> 14537.699 | AG67: =AG64 -> 0 | AH67: 0 | AI67: 0 | AJ67: 0 | AK67: 0 | AL67: 0 | AM67: 0 | AN67: 0 | AO67: 0 | AP67: 0 | AQ67: 0 | AR67: 0 | AS67: 0 | AT67: 0 | AU67: 0 | AV67: 0 | AW67: 0 | AY67: 0 | AZ67: 0 | BA67: 0 | BB67: 0 | BC67: 0 | BD67: =BD64 -> 0 | BE67: 281858.3888 | BF67: 0 | BG67: 0 | BH67: 0 | BI67: 0
C68: Check | H68: =L67++N67+O67+Q67+R67+S67+T67+U67+V67+W67+X67+Y67+Z67+AA67+AB67+AC67+AD67+AE67+AF67+AH67+AI67+AJ67+AL67+AM67+AN67+AO67+AP67+AQ67+AS67+AT67+AW67+AY67+AZ67+BA67+BB67+BC67+BD67+BE67+BG67+BH67+BI67 -> 296396.0878
C70: C. PRODUCTION EXPENSES - STEAM
Q71: Owens Valley Stations | AL71: LA Basin Stations
C72: C.1 GL PRODUCTION EXPENSES - STEAM | Q72: =Q35 -> Hydro | R72: Hydro | S72: Hydro | T72: Hydro | U72: Hydro | V72: Hydro | W72: Hydro | X72: Hydro | Y72: Hydro | Z72: Hydro | AA72: Hydro | AB72: Hydro | AC72: Hydro | AD72: Hydro | AE72: Hydro | AF72: Hydro | AL72: =AL35 -> Steam | AM72: Steam | AN72: Steam | AO72: Steam | AP72: Steam | AQ72: Nuclear | AS72: Other Production | AV72: Transmission | BD72: Purchased Power | BF72: Distribution
C73: For simplicity, Harbor, Haynes and Valley values included in Other Production GL plant accounts have been included in steam accounts. This reclassification for modeling purposes does NOT impact the ultimate rates. | D73: Reference | H73: Total Production, Transmission, Distribution | I73: =I36 -> Total Production and Transmission | J73: Total Production (Hyd+Steam+Nuc+Oth Prod+Purch Power) | K73: Total Hydro | L73: Common Hydro | M73: Total Hydro With OV Common and Miscel | N73: Owens Valley Common Hydro | O73: Miscel (FERC 543) | P73: Total Owens Valley Hydro Without OV Common Hydro | Q73: =Q36 -> Cottonwood | R73: Division Creek | S73: Big Pine | T73: Pleasant Valley | U73: Upper Gorge | V73: Middle Gorge | W73: Control Gorge | X73: S.F. 1 | Y73: S.F. 2 | Z73: San Fernando | AA73: Foothill | AB73: Franklin | AC73: Sawtelle | AD73: Haiwee | AE73: Pump Storage Castaic | AF73: Hoover Purchased Power | AG73: =AG36 -> Total Steam | AH73: =AH36 -> Misc Amortization | AI73: =AI36 -> Tank Farms | AJ73: =AJ36 -> Steam Common | AK73: =AK36 -> Total LA Basin | AL73: Harbor | AM73: Valley | AN73: Scattergood | AO73: Haynes | AP73: Navajo | AQ73: Palo Verde | AR73: =AR36 -> Total Other Production | AS73: Wind | AT73: Solar | AU73: Safety | AV73: Transmission | AW73: Transmission GL ECC (Energy Management) | AX73: Transmission (Sch 7&8) | AY73: Transmission "All Entries" | AZ73: Transmission SanFrancisquito | BA73: Transmission Station | BB73: Transmission Other Operating Facilities | BC73: Transmission Lines | BD73: Purchased Transmission | BE73: Production | BF73: Total Distribution | BG73: Distribution - ECC | BH73: Distribution - RS | BI73: Distribution - OTHER | BJ73: Total AG (Excl. Property Insurance) From GL
C75: GL Operation Supervision and Engineering -700 (FERC-500) | D75: LADWP GL | H75: =I75+BF75 -> 16061.30428 | I75: =J75+AV75 -> 16061.30428 | J75: =K75+AG75+AQ75+AS75+AT75+BE75+AF75 -> 16061.30428 | AG75: =AK75+AP75+AJ75+AI75+AH75 -> 16061.30428 | AJ75: 1771.34211 | AK75: =SUM(AL75:AO75) -> 7952.93308 | AL75: 522.35618 | AM75: 2702.15145 | AN75: 2491.68417 | AO75: 2236.74128 | AP75: 6337.02909 | AV75: =AW75+AX75 -> 0
C76: GL Steam Expenses (Major Only) -27- (FERC-502) | D76: LADWP GL | H76: 15059.19002 | I76: 15059.19002 | J76: 15059.19002 | AG76: 15059.19002 | AK76: 12253.44857 | AL76: 398.12229 | AM76: 1242.46428 | AN76: 3671.00963 | AO76: 6941.85237 | AP76: 2805.74145 | AV76: 0
C77: GL Electric Expenses (Major Only) -702 (FERC-505) | D77: LADWP GL | H77: 3277.61184 | I77: 3277.61184 | J77: 3277.61184 | AG77: 3277.61184 | AJ77: 25.64295 | AK77: 1507.46325 | AL77: 0 | AM77: 0 | AN77: 0 | AO77: 1507.46325 | AP77: 1744.50564 | AV77: 0
C78: GL Misc. Steam Power Expenses (Major Only) 701 and 702 (FERC-506) | D78: LADWP GL | H78: 40201.18506 | I78: 40201.18506 | J78: 40201.18506 | AG78: 40201.18506 | AJ78: =1571.36852+2088.402 -> 3659.77052 | AK78: 32760.45568 | AL78: 2281.86087 | AM78: 5711.85546 | AN78: 8653.27979 | AO78: 16113.45956 | AP78: 3780.95886 | AV78: 0
C79: GL Rents -720 (FERC-507) | D79: LADWP GL | H79: 449.51832 | I79: 449.51832 | J79: 449.51832 | AG79: 449.51832 | AK79: 320.53752 | AL79: 0 | AM79: 169.63045 | AN79: 150.90707 | AO79: 0 | AP79: 128.9808 | AV79: 0
C80: GL Maint. Supervision and Engineering (Major Only) -710 (FERC-510) | D80: LADWP GL | H80: 10628.84421 | I80: 10628.84421 | J80: 10628.84421 | AG80: 10628.84421 | AJ80: 721.74694 | AK80: 7975.42248 | AL80: 954.43581 | AM80: 1694.21123 | AN80: 2870.76839 | AO80: 2456.00705 | AP80: 1931.67479 | AV80: 0
C81: GL Maint. of Structures (Major Only) -711 (FERC-511) | D81: LADWP GL | H81: 22324.99158 | I81: 22324.99158 | J81: 22324.99158 | AG81: 22324.99158 | AI81: 1.13571 | AJ81: 341.2698 | AK81: 21580.56963 | AL81: 4452.15393 | AM81: 4136.84398 | AN81: 5795.45523 | AO81: 7196.11649 | AP81: 402.01644 | AV81: 0
C82: GL Maint. of Boiler Plant (Major Only) -712 (FERC-512) | D82: LADWP GL | H82: 25985.06924 | I82: 25985.06924 | J82: 25985.06924 | AG82: 25985.06924 | AK82: 15779.50588 | AL82: 178.55626 | AM82: 2048.3524 | AN82: 9848.46076 | AO82: 3704.13646 | AP82: 10205.56336 | AV82: 0
C83: GL Maint. of Electric Plant (Major Only) -713 (FERC-513) | D83: LADWP GL | H83: 15744.82011 | I83: 15744.82011 | J83: 15744.82011 | AG83: 15744.82011 | AI83: 1.13569 | AK83: 8535.63338 | AL83: 0.25657 | AM83: 18.02849 | AN83: 5898.36933 | AO83: 2618.97899 | AP83: 7208.05104 | AV83: 0
C84: GL Maint. of Stream Production Plant (Major Only) -713 (FERC-514) | D84: LADWP GL | H84: 4347.98171 | I84: 4347.98171 | J84: 4347.98171 | AG84: 4347.98171 | AJ84: 121.55174 | AK84: 2932.49614 | AL84: 105.99606 | AM84: 961.03419 | AN84: 115.97118 | AO84: 1749.49471 | AP84: 1293.93383 | AV84: 0
C85: GL Other Power Generation - Generation Expense-785 (FERC-548) | D85: LADWP GL | H85: 11775.53001 | I85: 11775.53001 | J85: 11775.53001 | AG85: 11775.53001 | AK85: 11775.53001 | AL85: 11125.62988 | AM85: 0 | AN85: 0 | AO85: 649.90013 | AP85: 0 | AU85: 18531.86871 | AV85: 0
C86: GL Other Power Generation - Maint. Supervision and engineering-786 (FERC-551) | D86: LADWP GL | H86: 8257.06152 | I86: 8257.06152 | J86: 8257.06152 | AG86: 8257.06152 | AK86: 8257.06152 | AL86: 5257.73861 | AM86: 0 | AN86: 0 | AO86: 2999.32291 | AP86: 0 | AV86: 0
C87: Total GL Steam | D87: =CELL("Address",AL87)&_xlfn.FORMULATEXT(AL87) -> $AL$87=SUM(AL75:AL86) | H87: =SUM(H75:H86) -> 174113.1079 | I87: 174113.1079 | J87: 174113.1079 | AG87: 174113.1079 | AH87: 0 | AI87: 2.2714 | AJ87: 6641.32406 | AK87: 131631.0571 | AL87: 25277.10646 | AM87: 18684.57193 | AN87: 39495.90555 | AO87: 48173.4732 | AP87: 35838.4553 | AQ87: 0 | AS87: 0 | AT87: 0 | AU87: =SUM(AU75:AU86) -> 18531.86871 | AV87: 0 | AW87: 0 | AX87: 0 | AY87: 0 | AZ87: 0 | BA87: 0 | BB87: 0 | BC87: 0 | BD87: =SUM(BD75:BD86) -> 0 | BE87: =SUM(BE75:BE86) -> 0 | BF87: 0 | BG87: 0 | BH87: 0 | BI87: 0
C89: C.2 Remove Tank Farms
C90: Remove Tank Farms - do not contribute to ancillary services | H90: =I90+BF90 -> -2.2714 | I90: =J90+AV90 -> -2.2714 | J90: =K90+AG90+AQ90+AS90+AT90+BE90+AF90 -> -2.2714 | AG90: =AK90+AP90+AJ90+AI90+AH90 -> -2.2714 | AI90: =-AI87 -> -2.2714
C92: C.3 Remove O&M Associated with Retirements
C93: Remove Retired Plant - Haynes(U 3-6), Harbor(U 3,4,7), Valley(U 3,4) | D93: =CELL("Address",AO93)&_xlfn.FORMULATEXT(AO93) -> $AO$93='Haynes Dep Exp and O&M'!H30 | H93: =I93+BF93 -> -178.55241 | I93: =J93+AV93 -> -178.55241 | J93: =K93+AG93+AQ93+AS93+AT93+BE93+AF93 -> -178.55241 | AG93: =AK93+AP93+AJ93+AI93+AH93 -> -178.55241 | AK93: =SUM(AL93:AO93) -> -178.55241 | AL93: 0 | AM93: 0 | AO93: ='Haynes Dep Exp and O&M'!H30 -> -178.55241
C95: Adjusted GL Steam | D95: =CELL("Address",AO95)&_xlfn.FORMULATEXT(AO95) -> $AO$95=AO93+AO87+AO90 | H95: =H93+H87+H90 -> 173932.2841 | I95: =I93+I87+I90 -> 173932.2841 | J95: =J93+J87+J90 -> 173932.2841 | AG95: =AG93+AG87+AG90 -> 173932.2841 | AH95: =AH93+AH87+AH90 -> 0 | AI95: =AI93+AI87+AI90 -> 0 | AJ95: =AJ93+AJ87+AJ90 -> 6641.32406 | AK95: =AK93+AK87+AK90 -> 131452.5047 | AL95: =AL93+AL87+AL90 -> 25277.10646 | AM95: 18684.57193 | AN95: 39495.90555 | AO95: 47994.92079 | AP95: 35838.4553 | AQ95: 0 | AR95: =AR93+AR87+AR90 -> 0 | AS95: 0 | AT95: 0 | AU95: 18531.86871 | AV95: =AV93+AV87+AV90 -> 0 | AW95: 0 | AX95: =AX93+AX87+AX90 -> 0
C96: Check | H96: =L95++N95+O95+Q95+R95+S95+T95+U95+V95+W95+X95+Y95+Z95+AA95+AB95+AC95+AD95+AE95+AF95+AH95+AI95+AJ95+AL95+AM95+AN95+AO95+AP95+AQ95+AS95+AT95+AW95+AY95+AZ95+BA95+BB95+BC95+BD95+BE95+BG95+BH95+BI95 -> 173932.2841
Q99: Owens Valley Stations | AL99: LA Basin Stations
C100: C.4 Steam O&M Reclassifications | Q100: =Q72 -> Hydro | R100: Hydro | S100: Hydro | T100: Hydro | U100: Hydro | V100: Hydro | W100: Hydro | X100: Hydro | Y100: Hydro | Z100: Hydro | AA100: Hydro | AB100: Hydro | AC100: Hydro | AD100: Hydro | AE100: Hydro | AF100: Hydro | AG100: 0 | AH100: 0 | AI100: 0 | AJ100: 0 | AK100: 0 | AL100: Steam | AM100: Steam | AN100: Steam | AO100: Steam | AP100: Steam | AQ100: Nuclear | AS100: Other Production | AV100: Transmission | BD100: Purchased Power | BF100: Distribution
D101: Reference | H101: Total Production, Transmission, Distribution | I101: =I73 -> Total Production and Transmission | J101: Total Production (Hyd+Steam+Nuc+Oth Prod+Purch Power) | K101: Total Hydro | L101: Common Hydro | M101: Total Hydro With OV Common and Miscel | N101: Owens Valley Common Hydro | O101: Miscel (FERC 543) | P101: Total Owens Valley Hydro Without OV Common Hydro | Q101: =Q73 -> Cottonwood | R101: Division Creek | S101: Big Pine | T101: Pleasant Valley | U101: Upper Gorge | V101: Middle Gorge | W101: Control Gorge | X101: S.F. 1 | Y101: S.F. 2 | Z101: San Fernando | AA101: Foothill | AB101: Franklin | AC101: Sawtelle | AD101: Haiwee | AE101: Pump Storage Castaic | AF101: Hoover Purchased Power | AG101: Total Steam | AH101: Misc Amortization | AI101: Tank Farms | AJ101: Steam Common | AK101: Total LA Basin | AL101: Harbor | AM101: Valley | AN101: Scattergood | AO101: Haynes | AP101: Navajo | AQ101: Palo Verde | AR101: =AR73 -> Total Other Production | AS101: Wind | AT101: Solar | AU101: Safety | AV101: Transmission | AW101: Transmission GL ECC (Energy Management) | AX101: Transmission (Sch 7&8) | AY101: Transmission "All Entries" | AZ101: Transmission SanFrancisquito | BA101: Transmission Station | BB101: Transmission Other Operating Facilities | BC101: Transmission Lines | BD101: Purchased Transmission | BE101: Production | BF101: Total Distribution | BG101: Distribution - ECC | BH101: Distribution - RS | BI101: Distribution - OTHER | BJ101: Total AG (Excl. Property Insurance) From GL
C102: C.4.1 Reclassification of Common Steam O&M to LA Basin
C103: GL LA BASIN GROSS PLANT ALLOCATOR | D103: =CELL("Address",AL103)&_xlfn.FORMULATEXT(AL103) -> $AL$103='Allocation Factors'!$X$17 | AG103: =AK103+AP103 -> 1 | AK103: =SUM(AL103:AO103) -> 1 | AL103: ='Allocation Factors'!$X$17 -> 0.1817714894 | AM103: ='Allocation Factors'!$Y$17 -> 0.1844506154 | AN103: ='Allocation Factors'!$Z$17 -> 0.1055578396 | AO103: ='Allocation Factors'!$AA$17 -> 0.5282200556
C104: Reclassification of Common Steam O&M to LA Basin | D104: =CELL("Address",AL104)&_xlfn.FORMULATEXT(AL104) -> $AL$104=AL103*-$AJ$104 | H104: =I104+BF104 -> 9.094947018e-13 | I104: =J104+AV104 -> 9.094947018e-13 | J104: =K104+AG104+AQ104+AS104+AT104+BE104+AF104 -> 9.094947018e-13 | AG104: =AK104+AP104+AJ104+AI104+AH104 -> 9.094947018e-13 | AJ104: =-AJ87 -> -6641.32406 | AK104: =SUM(AL104:AO104) -> 6641.32406 | AL104: =AL103*-$AJ$104 -> 1207.203366 | AM104: =AM103*-$AJ$104 -> 1224.99631 | AN104: =AN103*-$AJ$104 -> 701.0438198 | AO104: =AO103*-$AJ$104 -> 3508.080564 | AV104: =AW104+AX104 -> 0
C106: C.4.2 Reclassification of Distribution Receiving Stations to LA Basin | E106: Amount
C107: GL LA BASIN GROSS PLANT ALLOCATOR | D107: =CELL("Address",AL107)&_xlfn.FORMULATEXT(AL107) -> $AL$107='Allocation Factors'!$X$17 | AG107: =AK107+AP107 -> 1 | AK107: =SUM(AL107:AO107) -> 1 | AL107: ='Allocation Factors'!$X$17 -> 0.1817714894 | AM107: ='Allocation Factors'!$Y$17 -> 0.1844506154 | AN107: ='Allocation Factors'!$Z$17 -> 0.1055578396 | AO107: ='Allocation Factors'!$AA$17 -> 0.5282200556
C108: Reclassification of Distribution Receiving Stations to LA Basin | D108: =CELL("Address",AL108)&_xlfn.FORMULATEXT(AL108) -> $AL$108=AL107*$E$108 | E108: =E472 -> 508.8551516 | H108: =I108+BF108 -> 508.8551516 | I108: =J108+AV108 -> 508.8551516 | J108: =K108+AG108+AQ108+AS108+AT108+BE108+AF108 -> 508.8551516 | AG108: =AK108+AP108+AJ108+AI108+AH108 -> 508.8551516 | AK108: =SUM(AL108:AO108) -> 508.8551516 | AL108: =AL107*$E$108 -> 92.49535878 | AM108: =AM107*$E$108 -> 93.85864588 | AN108: =AN107*$E$108 -> 53.71365047 | AO108: =AO107*$E$108 -> 268.7874964 | AV108: =AW108+AX108 -> 0
C110: Total Reclassified Steam Before Safety Allocation | D110: =CELL("Address",AL110)&_xlfn.FORMULATEXT(AL110) -> $AL$110=+AL104+AL108+AL95 | H110: =+H104+H108+H95 -> 174441.1392 | I110: 174441.1392 | J110: 174441.1392 | K110: 0 | L110: 0 | M110: 0 | N110: 0 | O110: 0 | P110: 0 | Q110: 0 | R110: 0 | S110: 0 | T110: 0 | U110: 0 | V110: 0 | W110: 0 | X110: 0 | Y110: 0 | Z110: 0 | AA110: 0 | AB110: 0 | AC110: 0 | AD110: 0 | AE110: 0 | AF110: 0 | AG110: 174441.1392 | AH110: 0 | AI110: 0 | AJ110: 0 | AK110: 138602.6839 | AL110: 26576.80518 | AM110: 20003.42689 | AN110: 40250.66302 | AO110: 51771.78885 | AP110: 35838.4553 | AQ110: 0 | AR110: 0 | AS110: 0 | AT110: 0 | AU110: 18531.86871 | AV110: 0 | AW110: 0 | AY110: =+AY104+AY108+AY95 -> 0 | AZ110: 0 | BA110: 0 | BB110: 0 | BC110: 0 | BD110: 0 | BE110: 0 | BF110: 0 | BG110: 0 | BH110: 0 | BI110: 0
Q113: Owens Valley Stations | AL113: LA Basin Stations
F114: Safety Functionalization | Q114: Hydro | R114: Hydro | S114: Hydro | T114: Hydro | U114: Hydro | V114: Hydro | W114: Hydro | X114: Hydro | Y114: Hydro | Z114: Hydro | AA114: Hydro | AB114: Hydro | AC114: Hydro | AD114: Hydro | AE114: Hydro | AF114: Hydro | AL114: Steam | AM114: Steam | AN114: Steam | AO114: Steam | AP114: Steam | AQ114: Nuclear | AS114: Other Production | AV114: Transmission | BD114: Purchased Power | BF114: Distribution
C115: C.4.3 Reclassification of Safety to Steam | E115: Reclassified O&M | F115: % | G115: Source | H115: Total Production, Transmission, Distribution | I115: Total Production and Transmission | J115: Total Production (Hyd+Steam+Nuc+Oth Prod+Purch Power) | K115: Total Hydro | L115: Common Hydro | M115: Total Hydro With OV Common and Miscel | N115: Owens Valley Common Hydro | O115: Miscel (FERC 543) | P115: Total Owens Valley Hydro Without OV Common Hydro | Q115: Cottonwood | R115: Division Creek | S115: Big Pine | T115: Pleasant Valley | U115: Upper Gorge | V115: Middle Gorge | W115: Control Gorge | X115: S.F. 1 | Y115: S.F. 2 | Z115: San Fernando | AA115: Foothill | AB115: Franklin | AC115: Sawtelle | AD115: Haiwee | AE115: Pump Storage Castaic | AF115: Hoover Purchased Power | AG115: Total Steam | AH115: Misc Amortization | AI115: Tank Farms | AJ115: Steam Common | AK115: Total LA Basin | AL115: Harbor | AM115: Valley | AN115: Scattergood | AO115: Haynes | AP115: Navajo | AQ115: Palo Verde | AR115: Total Other Production | AS115: Wind | AT115: Solar | AU115: Safety | AV115: Transmission | AW115: Transmission GL ECC (Energy Management) | AX115: Transmission (Sch 7&8) | AY115: Transmission "All Entries" | AZ115: Transmission SanFrancisquito | BA115: Transmission Station | BB115: Transmission Other Operating Facilities | BC115: Transmission Lines | BD115: Purchased Transmission | BE115: Production | BF115: Total Distribution | BG115: Distribution - ECC | BH115: Distribution - RS | BI115: Distribution - OTHER | BJ115: Total AG (Excl. Property Insurance) From GL
C116: Total Reclassified Steam Before Safety Allocation | D116: =CELL("Address",E116)&_xlfn.FORMULATEXT(E116) -> $E$116=$J$110 | E116: =$J$110 -> 174441.1392 | F116: =E116/$E$119 -> 0.7732841282 | G116: =CELL("Address",E116)&_xlfn.FORMULATEXT(E116) -> $E$116=$J$110
C117: Total Reclassified Hydro Before Safety Allocation | D117: =CELL("Address",E117)&_xlfn.FORMULATEXT(E117) -> $E$117=$J$165 | E117: =$J$165 -> 40775.85911 | F117: =E117/$E$119 -> 0.1807562413 | G117: =CELL("Address",E117)&_xlfn.FORMULATEXT(E117) -> $E$117=$J$165
C118: Total Other Production Expense Before Safety Allocation | D118: $E$118=$J$230 | E118: =$J$230 -> 10367.79369 | F118: =E118/$E$119 -> 0.04595963051 | G118: =CELL("Address",E118)&_xlfn.FORMULATEXT(E118) -> $E$118=$J$230
C119: Total Production O&M Before Safety Allocation | D119: $E$119=SUM(E116:E118) | E119: =SUM(E116:E118) -> 225584.792 | F119: =SUM(F116:F118) -> 1 | G119: =CELL("Address",E119)&_xlfn.FORMULATEXT(E119) -> $E$119=SUM(E116:E118)
C120: Note: Safety O&M does not apply to Palo Verde because LADWP is not the operator.
C122: Safety O&M Expense | D122: $E$122=$AU$85 | E122: =$AU$85 -> 18531.86871
C123: Safety Reclassified to Steam | D123: $E$123=E122*F116 | E123: =E122*F116 -> 14330.39994
C124: SAFETY O&M ALLOCATOR - STEAM | D124: =CELL("Address",AL124)&_xlfn.FORMULATEXT(AL124) -> $AL$124=AL110/$AG$110 | AG124: =AK124+AP124 -> 1 | AK124: =SUM(AL124:AO124) -> 0.7945527331 | AL124: =AL110/$AG$110 -> 0.1523539992 | AM124: =AM110/$AG$110 -> 0.1146714988 | AN124: =AN110/$AG$110 -> 0.2307406567 | AO124: =AO110/$AG$110 -> 0.2967865784 | AP124: =AP110/$AG$110 -> 0.2054472669
C125: Reclassified Safety O&M - STEAM | D125: =CELL("Address",AL125)&_xlfn.FORMULATEXT(AL125) -> $AL$125=AL124*$E$123 | H125: =I125+BF125 -> 14330.39994 | I125: =J125+AV125 -> 14330.39994 | J125: =K125+AG125+AQ125+AS125+AT125+BE125+AF125 -> 14330.39994 | AG125: =AK125+AP125 -> 14330.39994 | AK125: =SUM(AL125:AO125) -> 11386.25844 | AL125: =AL124*$E$123 -> 2183.29374 | AM125: =AM124*$E$123 -> 1643.288439 | AN125: =AN124*$E$123 -> 3306.605892 | AO125: =AO124*$E$123 -> 4253.070365 | AP125: =AP124*$E$123 -> 2944.141502 | AU125: =-E123 -> -14330.39994 | AV125: =AW125+AX125 -> 0
C127: Total Reclassified Production Expenses -Steam | D127: =CELL("Address",AL127)&_xlfn.FORMULATEXT(AL127) -> $AL$127=AL125+AL110 | H127: =H125+H110 -> 188771.5392 | I127: =I125+I110 -> 188771.5392 | J127: =J125+J110 -> 188771.5392 | AG127: =AG125+AG110 -> 188771.5392 | AH127: 0 | AI127: 0 | AJ127: 0 | AK127: 149988.9424 | AL127: 28760.09893 | AM127: 21646.71533 | AN127: 43557.26891 | AO127: 56024.85922 | AP127: 38782.5968 | AQ127: 0 | AS127: =AS125+AS110 -> 0 | AT127: 0 | AU127: 4201.468771 | AV127: 0 | AW127: 0 | AY127: 0 | AZ127: 0 | BA127: 0 | BB127: 0 | BC127: 0 | BD127: 0 | BE127: 0 | BF127: 0 | BG127: 0 | BH127: 0 | BI127: 0
C128: Check | H128: =L127++N127+O127+Q127+R127+S127+T127+U127+V127+W127+X127+Y127+Z127+AA127+AB127+AC127+AD127+AE127+AF127+AH127+AI127+AJ127+AL127+AM127+AN127+AO127+AP127+AQ127+AS127+AT127+AW127+AY127+AZ127+BA127+BB127+BC127+BD127+BE127+BG127+BH127+BI127 -> 188771.5392
C131: D. PRODUCTION EXPENSES - HYDRAULIC
Q132: Owens Valley Stations | AL132: LA Basin Stations
C133: D.1 GL HYDRO O&M | Q133: =Q35 -> Hydro | R133: Hydro | S133: Hydro | T133: Hydro | U133: Hydro | V133: Hydro | W133: Hydro | X133: Hydro | Y133: Hydro | Z133: Hydro | AA133: Hydro | AB133: Hydro | AC133: Hydro | AD133: Hydro | AE133: Hydro | AF133: Hydro | AL133: =AL35 -> Steam | AM133: Steam | AN133: Steam | AO133: Steam | AP133: Steam | AQ133: Nuclear | AS133: Other Production | AV133: Transmission | BD133: Purchased Power | BF133: Distribution
C134: Item | D134: Reference | H134: Total Production, Transmission, Distribution | I134: =I36 -> Total Production and Transmission | J134: Total Production (Hyd+Steam+Nuc+Oth Prod+Purch Power) | K134: Total Hydro | L134: Common Hydro | M134: Total Hydro With OV Common and Miscel | N134: Owens Valley Common Hydro | O134: Miscel (FERC 543) | P134: Total Owens Valley Hydro Without OV Common Hydro | Q134: =Q36 -> Cottonwood | R134: Division Creek | S134: Big Pine | T134: Pleasant Valley | U134: Upper Gorge | V134: Middle Gorge | W134: Control Gorge | X134: S.F. 1 | Y134: S.F. 2 | Z134: San Fernando | AA134: Foothill | AB134: Franklin | AC134: Sawtelle | AD134: Haiwee | AE134: Pump Storage Castaic | AF134: Hoover Purchased Power | AG134: =AG36 -> Total Steam | AH134: =AH36 -> Misc Amortization | AI134: =AI36 -> Tank Farms | AJ134: =AJ36 -> Steam Common | AK134: =AK36 -> Total LA Basin | AL134: Harbor | AM134: Valley | AN134: Scattergood | AO134: Haynes | AP134: Navajo | AQ134: Palo Verde | AR134: =AR36 -> Total Other Production | AS134: Wind | AT134: Solar | AU134: Safety | AV134: Transmission | AW134: Transmission GL ECC (Energy Management) | AX134: Transmission (Sch 7&8) | AY134: =AY36 -> Transmission "All Entries" | AZ134: Transmission SanFrancisquito | BA134: Transmission Station | BB134: Transmission Other Operating Facilities | BC134: Transmission Lines | BD134: Purchased Transmission | BE134: Production | BF134: Total Distribution | BG134: Distribution - ECC | BH134: Distribution - RS | BI134: Distribution - OTHER | BJ134: Total AG (Excl. Property Insurance) From GL
C135: GL Hydraulic Expenses (Major Only) -732 (FERC-537) | D135: LADWP GL | H135: =I135+BF135 -> 4970.15506 | I135: =J135+AV135 -> 4970.15506 | J135: =K135+AG135+AQ135+AS135+AT135+BE135+AF135 -> 4970.15506 | K135: =L135+M135 -> 4970.15506 | L135: 0 | M135: =N135+O135+P135+X135+Y135++Z135+AA135+AB135+AC135+AD135+AE135 -> 4970.15506 | N135: 0 | O135: 0 | P135: =SUM(Q135:W135) -> 3.62701 | Q135: 0 | R135: 0 | S135: 0 | T135: 3.62701 | U135: 0 | V135: 0 | W135: 0 | X135: 237.03331 | Y135: 169.55769 | Z135: 0 | AA135: 0 | AB135: 3.00216 | AC135: 0 | AD135: 0 | AE135: 4556.93489 | AF135: 0
C136: GL Electric Expenses (Major Only) -732 (FERC-538) | D136: LADWP GL | H136: 5664.29047 | I136: 5664.29047 | J136: 5664.29047 | K136: =L136+M136 -> 5664.29047 | L136: 0 | M136: 5664.29047 | N136: 179.97145 | O136: 0 | P136: 1212.12272 | Q136: 339.53828 | R136: 32.34573 | S136: 243.23954 | T136: 160.45937 | U136: 0 | V136: 200.21459 | W136: 236.32521 | X136: 1921.78826 | Y136: 531.37666 | Z136: 222.49589 | AA136: 123.13725 | AB136: 123.43468 | AC136: 0 | AD136: 322.86963 | AE136: 1027.09393 | AF136: 0
C137: GL Misc. Hydraulic Power Expenses (Major only) -42- (FERC-539) | D137: LADWP GL | H137: 8278.44287 | I137: 8278.44287 | J137: 8278.44287 | K137: 8278.44287 | L137: 349.52085 | M137: 7928.92202 | N137: 803.8329 | O137: 0 | P137: 52.17835 | Q137: 0 | R137: 0 | S137: 0 | T137: 0 | U137: 0 | V137: 0 | W137: 52.17835 | X137: 443.74785 | Y137: 74.64305 | Z137: 5.04942 | AA137: 2.72942 | AB137: 0 | AC137: 0 | AD137: 0 | AE137: 6546.74103 | AF137: 0
C138: GL Rents-756 (FERC-540) | D138: LADWP GL | H138: 5.14875 | I138: 5.14875 | J138: 5.14875 | K138: 5.14875 | L138: 0 | M138: 5.14875 | N138: 5.14875 | O138: 0 | Q138: 0 | R138: 0 | S138: 0 | T138: 0 | U138: 0 | V138: 0 | W138: 0 | X138: 0 | Y138: 0 | Z138: 0 | AA138: 0 | AB138: 0 | AC138: 0 | AD138: 0 | AE138: 0 | AF138: 0
C139: GL Maint. Supervision and Engineering (Major Only) -740 (FERC-541) | D139: LADWP GL | H139: 6482.02396 | I139: 6482.02396 | J139: 6482.02396 | K139: 6482.02396 | L139: 0 | M139: 6482.02396 | N139: 1664.75704 | O139: 0 | P139: 0 | Q139: 0 | R139: 0 | S139: 0 | T139: 0 | U139: 0 | V139: 0 | W139: 0 | X139: 0 | Y139: 0 | Z139: 0 | AA139: 0 | AB139: 0 | AC139: 0 | AD139: 0 | AE139: 4817.26692 | AF139: 0
C140: GL Maint. of Structures (Major Only) -741 (FERC-542) | D140: LADWP GL | H140: 5143.17876 | I140: 5143.17876 | J140: 5143.17876 | K140: 5143.17876 | L140: 98.69709 | M140: 5044.48167 | N140: 538.11526 | O140: 0 | P140: 272.95318 | Q140: 0 | R140: 145.21664 | S140: 7.93264 | T140: 0 | U140: 101.24736 | V140: 0 | W140: 18.55654 | X140: 2535.68865 | Y140: 418.89199 | Z140: 44.95206 | AA140: 112.5299 | AB140: 55.72686 | AC140: 0 | AD140: 0.24626 | AE140: 1065.37751 | AF140: 0
C141: GL Maint. of Reservoirs, Dams, and Wtrways -742 (FERC-543) | D141: LADWP GL | H141: 2131.23527 | I141: 2131.23527 | J141: 2131.23527 | K141: 2131.23527 | L141: 41.00943 | M141: 2090.22584 | N141: 0 | O141: 175.461 | P141: 308.74338 | Q141: 0 | R141: 145.21664 | S141: 0 | T141: 159.82854 | U141: 3.6982 | V141: 0 | W141: 0 | X141: 20.00236 | Y141: 12.89083 | Z141: 592.50224 | AA141: 6.03053 | AB141: 11.08519 | AC141: 0 | AD141: 0 | AE141: 963.51031 | AF141: 0
C142: GL Maint. of Electric Plant (Major Only) -747 (FERC-544) | D142: LADWP GL | H142: 7811.53232 | I142: 7811.53232 | J142: 7811.53232 | K142: 7811.53232 | L142: 0 | M142: 7811.53232 | N142: 0 | O142: 0 | P142: 1224.15187 | Q142: 287.53687 | R142: 0 | S142: 0 | T142: 306.12456 | U142: 133.95571 | V142: 102.76811 | W142: 393.76662 | X142: 0.44547 | Y142: 0 | Z142: 0 | AA142: 0 | AB142: 0 | AC142: 0 | AD142: 267.90129 | AE142: 6319.03369 | AF142: 0
C143: GL Maint. of Misc. Hydraulic Plant (Major only) -28- (FERC-545) | D143: LADWP GL | H143: 226.72156 | I143: 226.72156 | J143: 226.72156 | K143: 226.72156 | L143: 0 | M143: 226.72156 | N143: 1.30054 | O143: 0 | P143: 140.36348 | Q143: 0 | R143: 140.36348 | S143: 0 | T143: 0 | U143: 0 | V143: 0 | W143: 0 | X143: 6.56882 | Y143: 1.56743 | Z143: 1.3343 | AA143: 0 | AB143: 0 | AC143: 0 | AD143: 0 | AE143: 75.58699 | AF143: 0
C144: Total GL Hydro O&M | D144: =CELL("Address",Q144)&_xlfn.FORMULATEXT(Q144) -> $Q$144=SUM(Q135:Q143) | H144: =SUM(H135:H143) -> 40712.72902 | I144: 40712.72902 | J144: 40712.72902 | K144: 40712.72902 | L144: 489.22737 | M144: 40223.50165 | N144: 3193.12594 | O144: 175.461 | P144: 3214.13999 | Q144: 627.07515 | R144: 463.14249 | S144: 251.17218 | T144: 630.03948 | U144: 238.90127 | V144: 302.9827 | W144: 700.82672 | X144: 5165.27472 | Y144: 1208.92765 | Z144: 866.33391 | AA144: 244.4271 | AB144: 193.24889 | AC144: 0 | AD144: 591.01718 | AE144: 25371.54527 | AF144: 0
C145: Check | H145: =L144++N144+O144+Q144+R144+S144+T144+U144+V144+W144+X144+Y144+Z144+AA144+AB144+AC144+AD144+AE144+AF144+AH144+AI144+AJ144+AL144+AM144+AN144+AO144+AP144+AQ144+AS144+AT144+AW144+AY144+AZ144+BA144+BB144+BC144+BD144+BE144+BG144+BH144+BI144 -> 40712.72902 | K145: =L144+N144+O144+Q144+R144+S144+T144+U144+V144+W144+X144+Y144+Z144+AA144+AB144+AC144+AD144+AE144+AF144 -> 40712.72902
C147: D.2 HYDRO O&M RECLASSIFICATIONS
C149: D.2.1 Reclassification of Common Costs for Owen Valley Stations
C150: GL Owens Valley Hydro Station Gross Plant Allocator (W/O common costs) | D150: =CELL("Address",Q150)&_xlfn.FORMULATEXT(Q150) -> $Q$150='Allocation Factors'!$H$19 | P150: =SUM(Q150:W150) -> 1 | Q150: ='Allocation Factors'!$H$19 -> 0.0781715456 | R150: ='Allocation Factors'!$I$19 -> 0.006051723821 | S150: ='Allocation Factors'!$J$19 -> 0.03290015851 | T150: ='Allocation Factors'!$K$19 -> 0.06327433803 | U150: ='Allocation Factors'!$L$19 -> 0.3117340233 | V150: ='Allocation Factors'!$M$19 -> 0.1422341487 | W150: ='Allocation Factors'!$N$19 -> 0.3656340621
C151: Reclassification of Common Costs for Owen Valley Stations | D151: =CELL("Address",Q151)&_xlfn.FORMULATEXT(Q151) -> $Q$151=-Q150*$N$151 | H151: =I151+BF151 -> 0 | I151: =J151+AV151 -> 0 | J151: =K151+AG151+AQ151+AS151+AT151+BE151+AF151 -> 0 | K151: =L151+M151 -> 0 | M151: =N151+O151+P151+X151+Y151++Z151+AA151+AB151+AC151+AD151+AE151 -> 0 | N151: =-N144 -> -3193.12594 | P151: =SUM(Q151:W151) -> 3193.12594 | Q151: =-Q150*$N$151 -> 249.61159 | R151: 19.32391631 | S151: 105.0543496 | T151: 202.0429301 | U151: 995.4059961 | V151: 454.1715496 | W151: 1167.515608
C153: D.2.2 Reclassification of Miscellaneous (FERC 543) to Owens Valley
C154: GL Owens Valley Hydro Station Gross Plant Allocator (W/O common costs) | D154: =CELL("Address",Q154)&_xlfn.FORMULATEXT(Q154) -> $Q$154='Allocation Factors'!$H$19 | P154: =SUM(Q154:W154) -> 1 | Q154: ='Allocation Factors'!$H$19 -> 0.0781715456 | R154: ='Allocation Factors'!$I$19 -> 0.006051723821 | S154: ='Allocation Factors'!$J$19 -> 0.03290015851 | T154: ='Allocation Factors'!$K$19 -> 0.06327433803 | U154: ='Allocation Factors'!$L$19 -> 0.3117340233 | V154: ='Allocation Factors'!$M$19 -> 0.1422341487 | W154: ='Allocation Factors'!$N$19 -> 0.3656340621
C155: Reclassification of Miscellaneous (FERC 543) to Owens Valley | D155: =CELL("Address",Q155)&_xlfn.FORMULATEXT(Q155) -> $Q$155=-Q154*$O$155 | H155: =I155+BF155 -> 0 | I155: =J155+AV155 -> 0 | J155: =K155+AG155+AQ155+AS155+AT155+BE155+AF155 -> 0 | K155: =L155+M155 -> 0 | M155: =N155+O155+P155+X155+Y155++Z155+AA155+AB155+AC155+AD155+AE155 -> 0 | O155: =-O144 -> -175.461 | P155: =SUM(Q155:W155) -> 175.461 | Q155: =-Q154*$O$155 -> 13.71605756 | R155: 1.061841513 | S155: 5.772694712 | T155: 11.10217863 | U155: 54.69716346 | V155: 24.95654596 | W155: 64.15451817
C157: D.2.3 Reclassification of Common Costs for all Hydro Stations
C158: ='Allocation Factors'!C21 -> HYDRO COMMON COST GROSS PLANT ALLOCATOR | D158: =CELL("Address",Q158)&_xlfn.FORMULATEXT(Q158) -> $Q$158='Allocation Factors'!H21 | K158: =L158+M158 -> 1 | M158: =N158+O158+P158+SUM(X158:AF158) -> 1 | P158: =SUM(Q158:W158) -> 0.1624272734 | Q158: ='Allocation Factors'!H21 -> 0.01269719101 | R158: ='Allocation Factors'!I21 -> 0.0009829649996 | S158: ='Allocation Factors'!J21 -> 0.00534388304 | T158: ='Allocation Factors'!K21 -> 0.0102774782 | U158: ='Allocation Factors'!L21 -> 0.05063410743 | V158: ='Allocation Factors'!M21 -> 0.02310270495 | W158: ='Allocation Factors'!N21 -> 0.05938894377 | X158: ='Allocation Factors'!O21 -> 0.07535020679 | Y158: ='Allocation Factors'!P21 -> 0.02198473507 | Z158: ='Allocation Factors'!Q21 -> 0.00300330914 | AA158: ='Allocation Factors'!R21 -> 0.008065004613 | AB158: ='Allocation Factors'!S21 -> 0.004507184561 | AC158: ='Allocation Factors'!T21 -> 3.351230207e-05 | AD158: ='Allocation Factors'!U21 -> 0.005941515906 | AE158: ='Allocation Factors'!V21 -> 0.7186872582 | AF158: ='Allocation Factors'!W21 -> 0
C159: Reclassification of Common Costs for all Hydro Stations | D159: =CELL("Address",Q159)&_xlfn.FORMULATEXT(Q159) -> $Q$159=-Q158*$L$159 | H159: =I159+BF159 -> 0 | I159: =J159+AV159 -> 0 | J159: =K159+AG159+AQ159+AS159+AT159+BE159+AF159 -> 0 | K159: =L159+M159 -> 0 | L159: =-L144 -> -489.22737 | M159: =N159+O159+P159+X159+Y159++Z159+AA159+AB159+AC159+AD159+AE159 -> 489.22737 | P159: =SUM(Q159:W159) -> 79.46386778 | Q159: =-Q158*$L$159 -> 6.211813364 | R159: 0.4808933815 | S159: 2.614373845 | T159: 5.028023631 | U159: 24.77159121 | V159: 11.30247558 | W159: 29.05469677 | X159: 36.8633835 | Y159: 10.75553412 | Z159: 1.469301032 | AA159: 3.945620996 | AB159: 2.205038049 | AC159: 0.0163951354 | AD159: 2.906752201 | AE159: 351.6014772 | AF159: 0
C161: D.2.4 Reclassification of 115 kV line to Hydro SF1/SF2 Gen Stations
C162: ='Allocation Factors'!C23 -> 115kV LINE ALLOCATOR (3 lines) | D162: =CELL("Address",X162)&_xlfn.FORMULATEXT(X162) -> $X$162='Allocation Factors'!O23 | K162: =L162+M162 -> 1 | M162: =N162+O162+P162+SUM(X162:AF162) -> 1 | P162: =SUM(Q162:W162) -> 0 | X162: ='Allocation Factors'!O23 -> 0.6229802513 | Y162: ='Allocation Factors'!P23 -> 0.3770197487
C163: Reclassification of 115 kV line to Hydro SF1/SF2 Gen Stations | D163: =CELL("Address",X163)&_xlfn.FORMULATEXT(X163) -> $X$163=-X162*$AZ$278 | H163: =I163+BF163 -> 63.13009 | I163: =J163+AV163 -> 63.13009 | J163: =K163+AG163+AQ163+AS163+AT163+BE163+AF163 -> 63.13009 | K163: =L163+M163 -> 63.13009 | M163: =N163+O163+P163+X163+Y163++Z163+AA163+AB163+AC163+AD163+AE163 -> 63.13009 | P163: =SUM(Q163:W163) -> 0 | X163: =-X162*$AZ$278 -> 39.32879934 | Y163: =-Y162*$AZ$278 -> 23.80129066
C165: Total Reclassified Hydro Expense Before Safety Allocation | D165: =CELL("Address",X165)&_xlfn.FORMULATEXT(X165) -> $X$165=X163+X159+X151+X144+X155 | H165: =H163+H159+H151+H144+H155 -> 40775.85911 | I165: 40775.85911 | J165: 40775.85911 | K165: 40775.85911 | L165: 0 | M165: 40775.85911 | N165: 0 | O165: 0 | P165: 6662.190798 | Q165: 896.614611 | R165: 484.0091412 | S165: 364.6135981 | T165: 848.2126124 | U165: 1313.776021 | V165: 793.4132712 | W165: 1961.551543 | X165: 5241.466903 | Y165: 1243.484475 | Z165: 867.803211 | AA165: 248.372721 | AB165: 195.453928 | AC165: 0.0163951354 | AD165: 593.9239322 | AE165: 25723.14675 | AF165: 0
C166: Check | H166: =L165++N165+O165+Q165+R165+S165+T165+U165+V165+W165+X165+Y165+Z165+AA165+AB165+AC165+AD165+AE165+AF165+AH165+AI165+AJ165+AL165+AM165+AN165+AO165+AP165+AQ165+AS165+AT165+AW165+AY165+AZ165+BA165+BB165+BC165+BD165+BE165+BG165+BH165+BI165 -> 40775.85911 | K166: =L165+N165+O165+Q165+R165+S165+T165+U165+V165+W165+X165+Y165+Z165+AA165+AB165+AC165+AD165+AE165+AF165 -> 40775.85911
Q168: Owens Valley Stations | AL168: LA Basin Stations
F169: Safety Functionalization | Q169: Hydro | R169: Hydro | S169: Hydro | T169: Hydro | U169: Hydro | V169: Hydro | W169: Hydro | X169: Hydro | Y169: Hydro | Z169: Hydro | AA169: Hydro | AB169: Hydro | AC169: Hydro | AD169: Hydro | AE169: Hydro | AF169: Hydro | AL169: Steam | AM169: Steam | AN169: Steam | AO169: Steam | AP169: Steam | AQ169: Nuclear | AS169: Other Production | AV169: Transmission | BD169: Purchased Power | BF169: Distribution
C170: D.2.5 Reclassification of Safety to Hydro | E170: Reclassified O&M | F170: % | G170: Source | H170: Total Production, Transmission, Distribution | I170: Total Production and Transmission | J170: Total Production (Hyd+Steam+Nuc+Oth Prod+Purch Power) | K170: Total Hydro | L170: Common Hydro | M170: Total Hydro With OV Common and Miscel | N170: Owens Valley Common Hydro | O170: Miscel (FERC 543) | P170: Total Owens Valley Hydro Without OV Common Hydro | Q170: Cottonwood | R170: Division Creek | S170: Big Pine | T170: Pleasant Valley | U170: Upper Gorge | V170: Middle Gorge | W170: Control Gorge | X170: S.F. 1 | Y170: S.F. 2 | Z170: San Fernando | AA170: Foothill | AB170: Franklin | AC170: Sawtelle | AD170: Haiwee | AE170: Pump Storage Castaic | AF170: Hoover Purchased Power | AG170: Total Steam | AH170: Misc Amortization | AI170: Tank Farms | AJ170: Steam Common | AK170: Total LA Basin | AL170: Harbor | AM170: Valley | AN170: Scattergood | AO170: Haynes | AP170: Navajo | AQ170: Palo Verde | AR170: Total Other Production | AS170: Wind | AT170: Solar | AU170: Safety | AV170: Transmission | AW170: Transmission GL ECC (Energy Management) | AX170: Transmission (Sch 7&8) | AY170: Transmission "All Entries" | AZ170: Transmission SanFrancisquito | BA170: Transmission Station | BB170: Transmission Other Operating Facilities | BC170: Transmission Lines | BD170: Purchased Transmission | BE170: Production | BF170: Total Distribution | BG170: Distribution - ECC | BH170: Distribution - RS | BI170: Distribution - OTHER | BJ170: Total AG (Excl. Property Insurance) From GL
C171: Total Reclassified Steam Before Safety Allocation | D171: =CELL("Address",E171)&_xlfn.FORMULATEXT(E171) -> $E$171=$J$110 | E171: =$J$110 -> 174441.1392 | F171: =E171/$E$119 -> 0.7732841282 | G171: =CELL("Address",E171)&_xlfn.FORMULATEXT(E171) -> $E$171=$J$110
C172: Total Reclassified Hydro Before Safety Allocation | D172: =CELL("Address",E172)&_xlfn.FORMULATEXT(E172) -> $E$172=$J$165 | E172: =$J$165 -> 40775.85911 | F172: =E172/$E$119 -> 0.1807562413 | G172: =CELL("Address",E172)&_xlfn.FORMULATEXT(E172) -> $E$172=$J$165
C173: Total Other Production Expense Before Safety Allocation | D173: $E$173=$J$230 | E173: =$J$230 -> 10367.79369 | F173: =E173/$E$119 -> 0.04595963051 | G173: =CELL("Address",E173)&_xlfn.FORMULATEXT(E173) -> $E$173=$J$230
C174: Total Production O&M Before Safety Allocation | D174: $E$174=SUM(E171:E173) | E174: =SUM(E171:E173) -> 225584.792 | F174: =SUM(F171:F173) -> 1 | G174: =CELL("Address",E174)&_xlfn.FORMULATEXT(E174) -> $E$174=SUM(E171:E173)
C175: Note: Safety O&M does not apply to Palo Verde because LADWP is not the operator.
C177: Safety O&M Expense | D177: $E$177=$AU$85 | E177: =$AU$85 -> 18531.86871
C178: Safety Reclassified to Hydro | D178: $E$178=E177*F172 | E178: =E177*F172 -> 3349.750933
C179: SAFETY O&M ALLOCATOR - HYDRO | D179: =CELL("Address",Q179)&_xlfn.FORMULATEXT(Q179) -> $Q$179=Q165/$K$165 | K179: =L179+M179 -> 1 | M179: =N179+O179+P179+SUM(X179:AF179) -> 1 | P179: =SUM(Q179:W179) -> 0.1633856636 | Q179: =Q165/$K$165 -> 0.02198885886 | R179: 0.01186999249 | S179: 0.008941898615 | T179: 0.02080183302 | U179: 0.03221945655 | V179: 0.01945791673 | W179: 0.0481057073 | X179: 0.1285433837 | Y179: 0.03049560455 | Z179: 0.02128227902 | AA179: 0.006091170767 | AB179: 0.004793373636 | AC179: 4.020794598e-07 | AD179: 0.01456557741 | AE179: 0.6308425453 | AF179: 0
C180: Reclassified Safety O&M - HYDRO | D180: =CELL("Address",Q180)&_xlfn.FORMULATEXT(Q180) -> $Q$180=Q179*$E$178 | H180: =I180+BF180 -> 3349.750933 | I180: =J180+AV180 -> 3349.750933 | J180: =K180+AG180+AQ180+AS180+AT180+BE180+AF180 -> 3349.750933 | K180: =L180+M180 -> 3349.750933 | M180: =N180+O180+P180+X180+Y180++Z180+AA180+AB180+AC180+AD180+AE180 -> 3349.750933 | P180: =SUM(Q180:W180) -> 547.3012789 | Q180: =Q179*$E$178 -> 73.65720049 | R180: 39.7615184 | S180: 29.95313323 | T180: 69.68095956 | U180: 107.9271546 | V180: 65.17917472 | W180: 161.1421379 | X180: 430.5883194 | Y180: 102.1526798 | Z180: 71.29033401 | AA180: 20.40390496 | AB180: 16.05660781 | AC180: 0.001346866045 | AD180: 48.79105651 | AE180: 2113.165405 | AF180: 0 | AG180: =AK180+AP180 -> 0 | AK180: =SUM(AL180:AO180) -> 0 | AU180: =-E178 -> -3349.750933
C182: D.2.6 7 Factor Reclassifications
C184: 7 Factor Reclassification of Transmission to Gen-tie | M184: =N184+O184+P184+X184+Y184++Z184+AA184+AB184+AC184+AD184+AE184 -> 0
C185: =C304 -> 230 kV OH - UPPER GORGE-MIDDLE GORGE | D185: =CELL("Address",U185)&_xlfn.FORMULATEXT(U185) -> $U$185=-AV304 | H185: =I185+BF185 -> 19.90246056 | I185: =J185+AV185 -> 19.90246056 | J185: =K185+AG185+AQ185+AS185+AT185+BE185+AF185 -> 19.90246056 | K185: =L185+M185 -> 19.90246056 | M185: =N185+O185+P185+X185+Y185++Z185+AA185+AB185+AC185+AD185+AE185 -> 19.90246056 | P185: =SUM(Q185:W185) -> 19.90246056 | U185: =-AV304 -> 19.90246056
C186: =C305 -> 230 kV OH - MIDDLE GORGE-CONTROL GORGE | D186: =CELL("Address",V186)&_xlfn.FORMULATEXT(V186) -> $V$186=-AV305 | H186: =I186+BF186 -> 36.58540545 | I186: =J186+AV186 -> 36.58540545 | J186: =K186+AG186+AQ186+AS186+AT186+BE186+AF186 -> 36.58540545 | K186: =L186+M186 -> 36.58540545 | M186: =N186+O186+P186+X186+Y186++Z186+AA186+AB186+AC186+AD186+AE186 -> 36.58540545 | P186: =SUM(Q186:W186) -> 36.58540545 | V186: =-AV305 -> 36.58540545
C187: =C306 -> 230 kV OH - CONTROL GORGE-INYO LINE to Production | D187: =CELL("Address",W187)&_xlfn.FORMULATEXT(W187) -> $W$187=-AV306 | H187: =I187+BF187 -> 34.75613518 | I187: =J187+AV187 -> 34.75613518 | J187: =K187+AG187+AQ187+AS187+AT187+BE187+AF187 -> 34.75613518 | K187: =L187+M187 -> 34.75613518 | M187: =N187+O187+P187+X187+Y187++Z187+AA187+AB187+AC187+AD187+AE187 -> 34.75613518 | P187: =SUM(Q187:W187) -> 34.75613518 | W187: =-AV306 -> 34.75613518
C188: Total 7 Factor Reclassification | D188: =CELL("Address",W188)&_xlfn.FORMULATEXT(W188) -> $W$188=SUM(W185:W187) | H188: =SUM(H185:H187) -> 91.24400119 | I188: =SUM(I185:I187) -> 91.24400119 | J188: =SUM(J185:J187) -> 91.24400119 | K188: =SUM(K185:K187) -> 91.24400119 | M188: =SUM(M185:M187) -> 91.24400119 | P188: =SUM(P185:P187) -> 91.24400119 | Q188: =SUM(Q185:Q187) -> 0 | R188: =SUM(R185:R187) -> 0 | S188: 0 | T188: 0 | U188: 19.90246056 | V188: 36.58540545 | W188: 34.75613518 | X188: 0 | Y188: 0 | Z188: 0 | AA188: 0 | AB188: 0 | AC188: 0 | AD188: 0 | AE188: 0 | AF188: 0 | AG188: 0 | AH188: 0 | AI188: 0 | AJ188: 0 | AK188: 0 | AL188: 0 | AM188: 0 | AN188: 0 | AO188: 0 | AP188: 0 | AQ188: 0 | AR188: 0 | AS188: 0 | AT188: 0 | AU188: 0 | AV188: 0 | AW188: 0 | AX188: =SUM(AX185:AX187) -> 0 | AY188: 0 | AZ188: 0 | BA188: 0 | BB188: 0 | BC188: 0 | BD188: 0 | BE188: 0 | BF188: 0
C189: 7 Factor Summary Check | H189: ='7 Factor Summary'!K48+'7 Factor Summary'!K49+'7 Factor Summary'!K55 -> 91.24400119
C191: 7 Factor Olive Switchyard Reclassification
C192: 115kW LINE ALLOCATOR | D192: =CELL("Address",X192)&_xlfn.FORMULATEXT(X192) -> $X$192='Allocation Factors'!O23 | K192: =L192+M192 -> 1 | M192: =N192+O192+P192+SUM(X192:AF192) -> 1 | P192: =SUM(Q192:W192) -> 0 | X192: ='Allocation Factors'!O23 -> 0.6229802513 | Y192: ='Allocation Factors'!P23 -> 0.3770197487
C193: 7 Factor Olive Switchyard Reclassification | D193: =CELL("Address",X193)&_xlfn.FORMULATEXT(X193) -> $X$193=-X192*$AV$311 | H193: =I193+BF193 -> 503.06475 | I193: =J193+AV193 -> 503.06475 | J193: =K193+AG193+AQ193+AS193+AT193+BE193+AF193 -> 503.06475 | K193: =L193+M193 -> 503.06475 | M193: =N193+O193+P193+X193+Y193++Z193+AA193+AB193+AC193+AD193+AE193 -> 503.06475 | P193: =SUM(Q193:W193) -> 0 | X193: =-X192*$AV$311 -> 313.3994044 | Y193: =-Y192*$AV$311 -> 189.6653456
C195: Total 7 Factor Reclassifications | D195: =CELL("Address",X195)&_xlfn.FORMULATEXT(X195) -> $X$195=X188+X193 | H195: =H188+H193 -> 594.3087512 | I195: 594.3087512 | J195: 594.3087512 | K195: 594.3087512 | L195: 0 | M195: 594.3087512 | N195: 0 | O195: 0 | P195: 91.24400119 | Q195: 0 | R195: 0 | S195: 0 | T195: 0 | U195: 19.90246056 | V195: 36.58540545 | W195: 34.75613518 | X195: 313.3994044 | Y195: 189.6653456 | Z195: 0 | AA195: 0 | AB195: 0 | AC195: 0 | AD195: 0 | AE195: 0 | AF195: 0 | AG195: 0 | AH195: 0 | AI195: 0 | AJ195: 0 | AK195: 0 | AL195: 0 | AM195: 0 | AN195: =AN188+AN193 -> 0 | AO195: 0 | AP195: 0 | AQ195: 0 | AR195: 0 | AS195: 0 | AT195: 0 | AU195: 0 | AV195: 0 | AW195: 0 | AX195: 0 | AY195: 0 | AZ195: 0 | BA195: 0 | BB195: 0 | BC195: 0 | BD195: 0 | BE195: 0 | BF195: 0 | BG195: 0 | BH195: 0 | BI195: 0 | BJ195: 0
C197: Total Production Expenses -Hydraulic | D197: =CELL("Address",W197)&_xlfn.FORMULATEXT(W197) -> $W$197=W180+W165+W195 | H197: =H180+H165+H195 -> 44719.91879 | I197: 44719.91879 | J197: 44719.91879 | K197: 44719.91879 | L197: 0 | M197: 44719.91879 | N197: 0 | O197: 0 | P197: 7300.736078 | Q197: 970.2718114 | R197: 523.7706596 | S197: 394.5667313 | T197: 917.8935719 | U197: 1441.605636 | V197: 895.1778513 | W197: 2157.449816 | X197: 5985.454627 | Y197: 1535.3025 | Z197: 939.093545 | AA197: 268.776626 | AB197: 211.5105359 | AC197: 0.01774200145 | AD197: 642.7149887 | AE197: 27836.31215 | AF197: 0 | AG197: 0 | AH197: 0 | AI197: 0 | AJ197: 0 | AK197: 0 | AL197: 0 | AM197: 0 | AN197: =AN180+AN165+AN195 -> 0 | AO197: 0 | AP197: 0 | AQ197: 0 | AR197: 0 | AS197: 0 | AT197: 0 | AU197: -3349.750933 | AV197: 0 | AW197: 0 | AX197: 0 | AY197: 0 | AZ197: 0 | BA197: 0 | BB197: 0 | BC197: 0 | BD197: 0 | BE197: 0 | BF197: 0 | BG197: 0 | BH197: 0 | BI197: 0 | BJ197: 0
C198: Check | H198: =L197++N197+O197+Q197+R197+S197+T197+U197+V197+W197+X197+Y197+Z197+AA197+AB197+AC197+AD197+AE197+AF197+AH197+AI197+AJ197+AL197+AM197+AN197+AO197+AP197+AQ197+AS197+AT197+AW197+AY197+AZ197+BA197+BB197+BC197+BD197+BE197+BG197+BH197+BI197 -> 44719.91879 | K198: =L197+N197+O197+Q197+R197+S197+T197+U197+V197+W197+X197+Y197+Z197+AA197+AB197+AC197+AD197+AE197+AF197 -> 44719.91879
C200: E. PRODUCTION EXPENSES - NUCLEAR
Q201: Owens Valley Stations | AL201: LA Basin Stations
C202: E.1 GL Nuclear O&M | Q202: =Q133 -> Hydro | R202: Hydro | S202: Hydro | T202: Hydro | U202: Hydro | V202: Hydro | W202: Hydro | X202: Hydro | Y202: Hydro | Z202: Hydro | AA202: Hydro | AB202: Hydro | AC202: Hydro | AD202: Hydro | AE202: Hydro | AF202: Hydro | AL202: =AL133 -> Steam | AM202: Steam | AN202: Steam | AO202: Steam | AP202: Steam | AQ202: Nuclear | AS202: Other Production | AV202: Transmission | BD202: Purchased Power | BF202: Distribution
D203: Reference | H203: Total Production, Transmission, Distribution | I203: =I134 -> Total Production and Transmission | J203: Total Production (Hyd+Steam+Nuc+Oth Prod+Purch Power) | K203: Total Hydro | L203: Common Hydro | M203: Total Hydro With OV Common and Miscel | N203: Owens Valley Common Hydro | O203: Miscel (FERC 543) | P203: Total Owens Valley Hydro Without OV Common Hydro | Q203: Cottonwood | R203: Division Creek | S203: Big Pine | T203: Pleasant Valley | U203: Upper Gorge | V203: Middle Gorge | W203: Control Gorge | X203: S.F. 1 | Y203: S.F. 2 | Z203: San Fernando | AA203: Foothill | AB203: Franklin | AC203: Sawtelle | AD203: Haiwee | AE203: Pump Storage Castaic | AF203: Hoover Purchased Power | AG203: Total Steam | AH203: Misc Amortization | AI203: Tank Farms | AJ203: Steam Common | AK203: Total LA Basin | AL203: Harbor | AM203: Valley | AN203: Scattergood | AO203: =AO134 -> Haynes | AP203: Navajo | AQ203: Palo Verde | AR203: Total Other Production | AS203: Wind | AT203: Solar | AU203: Safety | AV203: Transmission | AW203: Transmission GL ECC (Energy Management) | AX203: Transmission (Sch 7&8) | AY203: Transmission "All Entries" | AZ203: Transmission SanFrancisquito | BA203: Transmission Station | BB203: Transmission Other Operating Facilities | BC203: Transmission Lines | BD203: Purchased Transmission | BE203: Production | BF203: Total Distribution | BG203: Distribution - ECC | BH203: Distribution - RS | BI203: Distribution - OTHER | BJ203: Total AG (Excl. Property Insurance) From GL
C204: GL Operation Supervision and Engnrg. (Major Only) -770 (FERC-517)-770 (FERC-517) | D204: GL LADWP | H204: =I204+BF204 -> 6284.80897 | I204: =J204+AV204 -> 6284.80897 | J204: =K204+AG204+AQ204+AS204+AT204+BE204+AF204 -> 6284.80897 | AQ204: 6284.80897
C205: GL Coolants and Water (Major Only) -772 (FERC-519)-772 (FERC-519) | D205: GL LADWP | H205: 2452.92609 | I205: 2452.92609 | J205: 2452.92609 | AQ205: 2452.92609
C206: GL Steam Expenses (Major Only) -773 (FERC-520)-773 (FERC-520) | D206: GL LADWP | H206: 2331.20405 | I206: 2331.20405 | J206: 2331.20405 | AQ206: 2331.20405
C207: GL Electric Expenses (Major Only) -774 (FERC-523)-774 (FERC-523) | D207: GL LADWP | H207: 1656.48772 | I207: 1656.48772 | J207: 1656.48772 | AQ207: 1656.48772
C208: GL Misc. Nuclear Power Expenses (Major Only) -775 (FERC-524)-775 (FERC-524) | D208: GL LADWP | H208: 14197.98505 | I208: 14197.98505 | J208: 14197.98505 | AQ208: 14197.98505
C209: GL Maint. Supervision and Engineering (Major Only) -790 (FERC-528)-790 (FERC-528) | D209: GL LADWP | H209: 1435.34225 | I209: 1435.34225 | J209: 1435.34225 | AQ209: 1435.34225
C210: GL Maint. of Structures (Major Only) -791 (FERC-529)-791 (FERC-529) | D210: GL LADWP | H210: 448.29682 | I210: 448.29682 | J210: 448.29682 | AQ210: 448.29682
C211: GL Maint. of Reactor Plant Equipment (Major Only) -792 (FERC-530)-792 (FERC-530) | D211: GL LADWP | H211: 2696.92262 | I211: 2696.92262 | J211: 2696.92262 | AQ211: 2696.92262
C212: GL Maint. of Electric Plant (Major Only) -793 (FERC-531)-793 (FERC-531) | D212: GL LADWP | H212: 3178.75741 | I212: 3178.75741 | J212: 3178.75741 | AQ212: 3178.75741
C213: GL Maint. of Misc. Nuclear Plant (Major Only) -794 (FERC-532)-794 (FERC-532) | D213: GL LADWP | H213: 705.50729 | I213: 705.50729 | J213: 705.50729 | AQ213: 705.50729
C214: Total GL Nuclear | D214: =CELL("Address",AQ214)&_xlfn.FORMULATEXT(AQ214) -> $AQ$214=SUM(AQ204:AQ213) | H214: =SUM(H204:H213) -> 35388.23827 | I214: 35388.23827 | J214: 35388.23827 | K214: =SUM(K204:K213) -> 0 | M214: =N214+O214+P214+X214+Y214++Z214+AA214+AB214+AC214+AD214+AE214 -> 0 | N214: =SUM(N204:N213) -> 0 | P214: 0 | Q214: 0 | R214: 0 | S214: 0 | T214: 0 | U214: 0 | V214: 0 | W214: 0 | X214: 0 | Y214: 0 | Z214: 0 | AA214: 0 | AB214: 0 | AC214: 0 | AD214: 0 | AE214: 0 | AF214: 0 | AG214: 0 | AH214: =SUM(AH204:AH213) -> 0 | AI214: =SUM(AI204:AI213) -> 0 | AJ214: =SUM(AJ204:AJ213) -> 0 | AK214: 0 | AL214: 0 | AM214: 0 | AN214: 0 | AO214: 0 | AP214: =SUM(AP204:AP213) -> 0 | AQ214: 35388.23827 | AS214: 0 | AT214: 0 | AU214: =SUM(AU204:AU213) -> 0 | AV214: 0 | AW214: 0 | AX214: =SUM(AX204:AX213) -> 0 | AY214: 0 | AZ214: 0 | BA214: 0 | BB214: 0 | BC214: 0 | BD214: =SUM(BD204:BD213) -> 0 | BE214: =SUM(BE204:BE213) -> 0 | BF214: 0 | BG214: 0 | BH214: 0 | BI214: 0
C216: Total Nuclear O&M | D216: =CELL("Address",AQ216)&_xlfn.FORMULATEXT(AQ216) -> $AQ$216=AQ214 | H216: =H214 -> 35388.23827 | I216: 35388.23827 | J216: 35388.23827 | K216: =K214 -> 0 | M216: =N216+O216+P216+X216+Y216++Z216+AA216+AB216+AC216+AD216+AE216 -> 0 | N216: =N214 -> 0 | P216: 0 | Q216: 0 | R216: 0 | S216: 0 | T216: 0 | U216: 0 | V216: 0 | W216: 0 | X216: 0 | Y216: 0 | Z216: 0 | AA216: 0 | AB216: 0 | AC216: 0 | AD216: 0 | AE216: 0 | AF216: 0 | AG216: 0 | AH216: =AH214 -> 0 | AI216: =AI214 -> 0 | AJ216: =AJ214 -> 0 | AK216: 0 | AL216: 0 | AM216: 0 | AN216: 0 | AO216: 0 | AP216: 0 | AQ216: 35388.23827 | AS216: 0 | AT216: 0 | AU216: =AU214 -> 0 | AV216: 0 | AW216: 0 | AX216: =AX214 -> 0 | AY216: 0 | AZ216: 0 | BA216: 0 | BB216: 0 | BC216: 0 | BD216: =BD214 -> 0 | BE216: =BE214 -> 0 | BF216: 0 | BG216: 0 | BH216: 0 | BI216: 0
C219: Total Production Expenses -Nuclear | D219: =CELL("Address",J219)&_xlfn.FORMULATEXT(J219) -> $J$219=J216 | H219: =H216 -> 35388.23827 | I219: =I216 -> 35388.23827 | J219: 35388.23827 | K219: 0 | L219: 0 | M219: 0 | N219: 0 | O219: 0 | P219: 0 | Q219: 0 | R219: 0 | S219: 0 | T219: 0 | U219: 0 | V219: 0 | W219: 0 | X219: 0 | Y219: 0 | Z219: 0 | AA219: 0 | AB219: 0 | AC219: 0 | AD219: 0 | AE219: 0 | AF219: 0 | AG219: 0 | AH219: 0 | AI219: 0 | AJ219: 0 | AK219: 0 | AL219: 0 | AM219: 0 | AN219: 0 | AO219: 0 | AP219: 0 | AQ219: 35388.23827 | AR219: 0 | AS219: 0 | AT219: 0 | AU219: 0 | AV219: 0 | AW219: 0 | AX219: =AX216 -> 0 | AY219: 0 | AZ219: 0 | BA219: 0 | BB219: 0 | BC219: 0 | BD219: 0 | BE219: 0 | BF219: 0 | BG219: 0 | BH219: 0 | BI219: 0 | BJ219: 0
C220: Check | H220: =L219++N219+O219+Q219+R219+S219+T219+U219+V219+W219+X219+Y219+Z219+AA219+AB219+AC219+AD219+AE219+AF219+AH219+AI219+AJ219+AL219+AM219+AN219+AO219+AP219+AQ219+AS219+AT219+AW219+AY219+AZ219+BA219+BB219+BC219+BD219+BE219+BG219+BH219+BI219 -> 35388.23827
C222: F. OTHER PRODUCTION EXPENSES
Q223: Owens Valley Stations | AL223: LA Basin Stations
C224: F.1 GL Other Production O&M | Q224: =Q35 -> Hydro | R224: Hydro | S224: Hydro | T224: Hydro | U224: Hydro | V224: Hydro | W224: Hydro | X224: Hydro | Y224: Hydro | Z224: Hydro | AA224: Hydro | AB224: Hydro | AC224: Hydro | AD224: Hydro | AE224: Hydro | AF224: Hydro | AL224: =AL35 -> Steam | AM224: Steam | AN224: Steam | AO224: Steam | AP224: Steam | AQ224: Nuclear | AS224: Other Production | AV224: Transmission | BD224: Purchased Power | BF224: Distribution
C225: Item | D225: Reference | H225: =H36 -> Total Production, Transmission, Distribution | I225: Total Production and Transmission | J225: Total Production (Hyd+Steam+Nuc+Oth Prod+Purch Power) | K225: Total Hydro | L225: Common Hydro | M225: Total Hydro With OV Common and Miscel | N225: Owens Valley Common Hydro | O225: Miscel (FERC 543) | P225: Total Owens Valley Hydro Without OV Common Hydro | Q225: =Q36 -> Cottonwood | R225: Division Creek | S225: Big Pine | T225: Pleasant Valley | U225: Upper Gorge | V225: Middle Gorge | W225: Control Gorge | X225: S.F. 1 | Y225: S.F. 2 | Z225: San Fernando | AA225: Foothill | AB225: Franklin | AC225: Sawtelle | AD225: Haiwee | AE225: Pump Storage Castaic | AF225: Hoover Purchased Power | AG225: =AG36 -> Total Steam | AH225: =AH36 -> Misc Amortization | AI225: =AI36 -> Tank Farms | AJ225: =AJ36 -> Steam Common | AK225: =AK36 -> Total LA Basin | AL225: Harbor | AM225: Valley | AN225: Scattergood | AO225: Haynes | AP225: Navajo | AQ225: Palo Verde | AR225: =AR36 -> Total Other Production | AS225: Wind | AT225: Solar | AU225: Safety | AV225: Transmission | AW225: Transmission GL ECC (Energy Management) | AX225: Transmission (Sch 7&8) | AY225: =AY36 -> Transmission "All Entries" | AZ225: Transmission SanFrancisquito | BA225: Transmission Station | BB225: Transmission Other Operating Facilities | BC225: Transmission Lines | BD225: Purchased Transmission | BE225: Production | BF225: Total Distribution | BG225: Distribution - ECC | BH225: Distribution - RS | BI225: Distribution - OTHER | BJ225: Total AG (Excl. Property Insurance) From GL
C226: GL Operations-785 (FERC 546-550) | D226: LADWP GL | H226: =I226+BF226 -> 10114.69645 | I226: =J226+AV226 -> 10114.69645 | J226: =K226+AG226+AQ226+AS226+AT226+BE226+AF226 -> 10114.69645 | AR226: =SUM(AS226:AT226) -> 10114.69645 | AS226: 10114.69645 | AT226: 0
C227: GL Maintenance- (FERC 551-554) | D227: LADWP GL | H227: =I227+BF227 -> 253.09724 | I227: =J227+AV227 -> 253.09724 | J227: =K227+AG227+AQ227+AS227+AT227+BE227+AF227 -> 253.09724 | AR227: =SUM(AS227:AT227) -> 253.09724 | AS227: 40.52393 | AT227: 212.57331
C228: Total GL Other Production O&M | D228: =CELL("Address",AS228)&_xlfn.FORMULATEXT(AS228) -> $AS$228=SUM(AS226:AS227) | H228: =SUM(H226:H227) -> 10367.79369 | I228: 10367.79369 | J228: 10367.79369 | K228: =SUM(K226:K227) -> 0 | M228: =N228+O228+P228+X228+Y228++Z228+AA228+AB228+AC228+AD228+AE228 -> 0 | N228: =SUM(N226:N227) -> 0 | P228: 0 | Q228: 0 | R228: 0 | S228: 0 | T228: 0 | U228: 0 | V228: 0 | W228: 0 | X228: 0 | Y228: 0 | Z228: 0 | AA228: 0 | AB228: 0 | AC228: 0 | AD228: 0 | AE228: 0 | AF228: 0 | AG228: 0 | AK228: 0 | AL228: 0 | AM228: 0 | AN228: 0 | AO228: 0 | AP228: 0 | AQ228: 0 | AR228: 10367.79369 | AS228: 10155.22038 | AT228: 212.57331 | AU228: =SUM(AU226:AU227) -> 0 | AV228: 0 | AW228: 0 | AX228: 0 | AY228: 0 | AZ228: 0 | BA228: 0 | BB228: 0 | BC228: 0 | BD228: =SUM(BD226:BD227) -> 0 | BE228: =SUM(BE226:BE227) -> 0 | BF228: 0 | BG228: 0 | BH228: 0 | BI228: 0
C230: Total Other Production Expense Before Safety Allocation | D230: =CELL("Address",AS230)&_xlfn.FORMULATEXT(AS230) -> $AS$230=AS228 | H230: =H228 -> 10367.79369 | I230: 10367.79369 | J230: 10367.79369 | K230: =K228 -> 0 | M230: =N230+O230+P230+X230+Y230++Z230+AA230+AB230+AC230+AD230+AE230 -> 0 | N230: =N228 -> 0 | P230: 0 | Q230: 0 | R230: 0 | S230: 0 | T230: 0 | U230: 0 | V230: 0 | W230: 0 | X230: 0 | Y230: 0 | Z230: 0 | AA230: 0 | AB230: 0 | AC230: 0 | AD230: 0 | AE230: 0 | AF230: 0 | AG230: 0 | AH230: 0 | AI230: 0 | AJ230: 0 | AK230: 0 | AL230: 0 | AM230: 0 | AN230: 0 | AO230: 0 | AP230: 0 | AQ230: 0 | AR230: 10367.79369 | AS230: 10155.22038 | AT230: 212.57331 | AU230: =AU228 -> 0 | AV230: 0 | AW230: 0 | AY230: 0 | AZ230: 0 | BA230: 0 | BB230: 0 | BC230: 0 | BD230: =BD228 -> 0 | BE230: =BE228 -> 0 | BF230: 0 | BG230: 0 | BH230: 0 | BI230: 0
H231: =L230++N230+O230+Q230+R230+S230+T230+U230+V230+W230+X230+Y230+Z230+AA230+AB230+AC230+AD230+AE230+AF230+AH230+AI230+AJ230+AL230+AM230+AN230+AO230+AP230+AQ230+AS230+AT230+AW230+AY230+AZ230+BA230+BB230+BC230+BD230+BE230+BG230+BH230+BI230 -> 10367.79369
C232: F.2 Other Production O&M Reclassifications
F233: Safety Functionalization
C234: F.2.1 Reclassification of Safety to Other Production | E234: Reclassified O&M | F234: % | G234: Source
C235: Total Reclassified Steam Before Safety Allocation | D235: =CELL("Address",E235)&_xlfn.FORMULATEXT(E235) -> $E$235=$J$110 | E235: =$J$110 -> 174441.1392 | F235: =E235/$E$119 -> 0.7732841282 | G235: =CELL("Address",E235)&_xlfn.FORMULATEXT(E235) -> $E$235=$J$110
C236: Total Reclassified Hydro Before Safety Allocation | D236: =CELL("Address",E236)&_xlfn.FORMULATEXT(E236) -> $E$236=$J$165 | E236: =$J$165 -> 40775.85911 | F236: =E236/$E$119 -> 0.1807562413 | G236: =CELL("Address",E236)&_xlfn.FORMULATEXT(E236) -> $E$236=$J$165
C237: Total Other Production Expense Before Safety Allocation | D237: =CELL("Address",E237)&_xlfn.FORMULATEXT(E237) -> $E$237=$J$230 | E237: =$J$230 -> 10367.79369 | F237: =E237/$E$119 -> 0.04595963051 | G237: =CELL("Address",E237)&_xlfn.FORMULATEXT(E237) -> $E$237=$J$230
C238: Total Production O&M Before Safety Allocation | D238: =CELL("Address",E238)&_xlfn.FORMULATEXT(E238) -> $E$238=SUM(E235:E237) | E238: =SUM(E235:E237) -> 225584.792 | F238: =SUM(F235:F237) -> 1 | G238: =CELL("Address",E238)&_xlfn.FORMULATEXT(E238) -> $E$238=SUM(E235:E237)
C239: Note: Safety O&M does not apply to Palo Verde because LADWP is not the operator.
C241: Safety O&M Expense | D241: =CELL("Address",E241)&_xlfn.FORMULATEXT(E241) -> $E$241=$AU$85 | E241: =$AU$85 -> 18531.86871
C242: Safety Reclassified to Other Production | D242: =CELL("Address",E242)&_xlfn.FORMULATEXT(E242) -> $E$242=E241*F237 | E242: =E241*F237 -> 851.7178385
C243: SAFETY O&M ALLOCATOR - OTHER PRODUCTION | D243: =CELL("Address",AS243)&_xlfn.FORMULATEXT(AS243) -> $AS$243=AS230/AR230 | AR243: =SUM(AS243:AT243) -> 1 | AS243: =AS230/AR230 -> 0.979496765 | AT243: =AT230/AR230 -> 0.02050323496
C244: Reclassified Safety O&M - Other Production | D244: =CELL("Address",AS244)&_xlfn.FORMULATEXT(AS244) -> $AS$244=-AS243*AU244 | H244: =I244+BF244 -> 851.7178385 | I244: =J244+AV244 -> 851.7178385 | J244: =K244+AG244+AQ244+AS244+AT244+BE244+AF244 -> 851.7178385 | AR244: =SUM(AS244:AT244) -> 851.7178385 | AS244: =-AS243*AU244 -> 834.2548675 | AT244: =-AT243*AU244 -> 17.46297096 | AU244: =-E242 -> -851.7178385 | AV244: =AW244+AX244 -> 0
C246: F.2.2 7 Factor Reclassification of Transmission to Gen-tie
C247: =C303& " Allocator" -> 230 kV OH - PINETREE BARREN-RIDGE LINE (Wind + Solar) Allocator | D247: =CELL("Address",AS247)&_xlfn.FORMULATEXT(AS247) -> $AS$247='Allocation Factors'!AD111 | AR247: =SUM(AS247:AT247) -> 1 | AS247: ='Allocation Factors'!AD111 -> 0.9407665505 | AT247: ='Allocation Factors'!AE111 -> 0.05923344948
C248: =C303 -> 230 kV OH - PINETREE BARREN-RIDGE LINE (Wind + Solar) | D248: =CELL("Address",AS248)&_xlfn.FORMULATEXT(AS248) -> $AS$248=-AS247*AV303 | H248: =I248+BF248 -> 60.62201683 | I248: =J248+AV248 -> 60.62201683 | J248: =K248+AG248+AQ248+AS248+AT248+BE248+AF248 -> 60.62201683 | AR248: =SUM(AS248:AT248) -> 60.62201683 | AS248: =-AS247*AV303 -> 57.03116566 | AT248: =-AT247*AV303 -> 3.590851171
C250: Total Other Production Expenses | D250: =CELL("Address",AS250)&_xlfn.FORMULATEXT(AS250) -> $AS$250=AS244+AS230+AS248 | H250: =H244+H230+H248 -> 11280.13355 | I250: 11280.13355 | J250: 11280.13355 | K250: 0 | L250: 0 | M250: 0 | N250: 0 | O250: 0 | P250: 0 | Q250: 0 | R250: 0 | S250: 0 | T250: 0 | U250: 0 | V250: 0 | W250: 0 | X250: 0 | Y250: 0 | Z250: 0 | AA250: 0 | AB250: 0 | AC250: 0 | AD250: 0 | AE250: 0 | AF250: 0 | AG250: 0 | AH250: 0 | AI250: 0 | AJ250: 0 | AK250: 0 | AL250: 0 | AM250: 0 | AN250: =AN244+AN230+AN248 -> 0 | AO250: 0 | AP250: 0 | AQ250: 0 | AR250: 11280.13355 | AS250: 11046.50641 | AT250: 233.6271321 | AU250: -851.7178385 | AV250: 0 | AW250: 0 | AY250: 0 | AZ250: 0 | BA250: 0 | BB250: 0 | BC250: 0 | BD250: 0 | BE250: 0 | BF250: 0 | BG250: 0 | BH250: 0 | BI250: 0
C251: Check | H251: =L250++N250+O250+Q250+R250+S250+T250+U250+V250+W250+X250+Y250+Z250+AA250+AB250+AC250+AD250+AE250+AF250+AH250+AI250+AJ250+AL250+AM250+AN250+AO250+AP250+AQ250+AS250+AT250+AW250+AY250+AZ250+BA250+BB250+BC250+BD250+BE250+BG250+BH250+BI250 -> 11280.13355
C253: Total Reclassified Production O&M | D253: =CELL("Address",AS253)&_xlfn.FORMULATEXT(AS253) -> $AS$253=AS250+AS219+AS197+AS127 | H253: =H250+H219+H197+H127 -> 280159.8298 | I253: 280159.8298 | J253: 280159.8298 | K253: 44719.91879 | L253: 0 | M253: 44719.91879 | N253: 0 | O253: 0 | P253: 7300.736078 | Q253: 970.2718114 | R253: 523.7706596 | S253: 394.5667313 | T253: 917.8935719 | U253: 1441.605636 | V253: 895.1778513 | W253: 2157.449816 | X253: 5985.454627 | Y253: 1535.3025 | Z253: 939.093545 | AA253: 268.776626 | AB253: 211.5105359 | AC253: 0.01774200145 | AD253: 642.7149887 | AE253: 27836.31215 | AF253: 0 | AG253: 188771.5392 | AH253: 0 | AI253: 0 | AJ253: 0 | AK253: 149988.9424 | AL253: 28760.09893 | AM253: 21646.71533 | AN253: 43557.26891 | AO253: 56024.85922 | AP253: 38782.5968 | AQ253: 35388.23827 | AR253: 11280.13355 | AS253: 11046.50641 | AT253: 233.6271321 | AU253: 0 | AV253: 0 | AW253: 0 | AY253: =AY250+AY219+AY197+AY127 -> 0 | AZ253: 0 | BA253: 0 | BB253: 0 | BC253: 0 | BD253: 0 | BE253: 0 | BF253: 0 | BG253: 0 | BH253: 0 | BI253: 0 | BJ253: 0
... 182 more rows

Sheet AI
B1: =+'Control Sheet'!$A$1 -> Los Angeles Department of Water and Power
B2: =+'Control Sheet'!$A$2 -> Statement
B3: =+'Control Sheet'!$B$42 -> AI O&M Labor Expense
B4: =+'Control Sheet'!$A$3 -> Test Period: FY2014-15 (July 1, 2014 through June 30, 2015)
B5: =+'Control Sheet'!$A$4 -> (in Thousands of Dollars)
E6: Error Check
E7: Calculated Totals | F7: =G49++G61+G68+G75+G82+G88+G94+G123+G147+G165 -> 3530882.778
E8: Check Totals | F8: =G50++G62+G69+G76+G83+G89+G95+G124+G148+G166 -> 3530882.778
E9: Difference | F9: =F7-F8 -> 0
E10: Error Check | F10: =IF(ABS(F9)>0.01,"Error","") -> 
C17: Table of Contents | D17: Print Button
C18: =C31 -> A. GENERAL LEDGER LABOR
C19: =C33 -> B. LABOR RECLASSIFICATIONS
C20: =C171 -> C. RECLASSIFIED LABOR ALLOCATOR - P,T,D
C21: =C179 -> D. LABOR RATIOS FOR A&G O&M
C22: =C190 -> E. RECLASSIFIED LABOR ALLOCATOR - P
C24: LADWP LABOR EXPENSE
L27: Owens Valley | AC27: LA BASIN
L28: =+BK!G125 -> Hydro | M28: =+BK!H125 -> Hydro | N28: =+BK!I125 -> Hydro | O28: =+BK!J125 -> Hydro | P28: =+BK!K125 -> Hydro | Q28: =+BK!L125 -> Hydro | R28: =+BK!M125 -> Hydro | S28: =+BK!N125 -> Hydro | T28: =+BK!O125 -> Hydro | U28: =+BK!P125 -> Hydro | V28: =+BK!Q125 -> Hydro | W28: =+BK!R125 -> Hydro | X28: =+BK!S125 -> Hydro | Y28: =+BK!T125 -> Hydro | Z28: =+BK!U125 -> Hydro | AA28: =+BK!V125 -> Hydro | AD28: =+BK!W125 -> Steam | AE28: =+BK!X125 -> Steam | AF28: =+BK!Y125 -> Steam | AG28: =+BK!Z125 -> Steam | AH28: =+BK!AA125 -> Steam | AI28: =+BK!AB125 -> Nuclear | AJ28: =+BK!AC125 -> Other Prod | AK28: =+BK!AD125 -> Other Prod | AL28: Transmission | AU28: Distribution O&M & Cust Accts/Cust Ser & Info | AV28: Other GL Labor Categories
C29: Item | F29: Reference | G29: Total Labor Including Other GL Labor Categories | H29: Total Production, Transmission and Distribution Less ECC | I29: Total Labor Production Stations | J29: Total Hydro | K29: Total Owens Valley | L29: =+BK!G126 -> Cottonwood | M29: =+BK!H126 -> Division Creek | N29: =+BK!I126 -> Big Pine | O29: =+BK!J126 -> Pleasant Valley | P29: =+BK!K126 -> Upper Gorge | Q29: =+BK!L126 -> Middle Gorge | R29: =+BK!M126 -> Control Gorge | S29: =+BK!N126 -> S.F. 1 | T29: =+BK!O126 -> S.F. 2 | U29: =+BK!P126 -> San Fernando | V29: =+BK!Q126 -> Foothill | W29: =+BK!R126 -> Franklin | X29: =+BK!S126 -> Sawtelle | Y29: =+BK!T126 -> Haiwee | Z29: =+BK!U126 -> Pump Storage Castaic | AA29: Hoover Purchased Power | AB29: Total Steam | AC29: Total LA BASIN | AD29: =+BK!W126 -> Harbor | AE29: =+BK!X126 -> Valley | AF29: =+BK!Y126 -> Scattergood | AG29: =+BK!Z126 -> Haynes | AH29: =+BK!AA126 -> Navajo | AI29: =+BK!AB126 -> Palo Verde | AJ29: =+BK!AC126 -> Wind | AK29: =+BK!AD126 -> Solar | AL29: Total Transmission | AM29: Transmission San Francisquito | AN29: Transmission "All Entries" GL Category | AO29: Transmission Energy Management and Transmission GRID | AP29: Transmission Energy Management (aka ECC) | AQ29: Transmission - GRID (Sch 7 and 8) | AR29: Transmission Lines | AS29: Transmission Other Operating Expense | AT29: Transmission Station (Substation) | AV29: Tank Farms | AW29: Miscellaneous | AX29: Owens Valley Common Hydro | AY29: Common Hydro Costs | AZ29: Safety | BA29: Steam Common Costs
C31: A. GENERAL LEDGER LABOR | F31: LADWP GL | G31: =I31++AL31+AU31+AV31+AW31+AX31+AY31+AZ31+BA31 -> 353097.2255 | H31: =I31+AL31-AP31+AU31 -> 326921.0095 | I31: =J31+AB31+AI31+AJ31+AK31 -> 71352.34382 | J31: =K31+S31+T31+U31+V31+W31+X31+Y31+Z31+AA31 -> 11816.29525 | K31: =SUM(L31:R31) -> 1047.24673 | L31: 227.28124 | M31: 23.39536 | N31: 155.15746 | O31: 221.95558 | P31: 78.51617 | Q31: 134.36496 | R31: 206.57596 | S31: 1955.7675 | T31: 500.94257 | U31: 157.68776 | V31: 113.74723 | W31: 96.14632 | X31: 0 | Y31: 224.34293 | Z31: 7720.41421 | AA31: 0 | AB31: =AC31+AH31 -> 55513.62124 | AC31: =SUM(AD31:AG31) -> 55319.20939 | AD31: 9530.30467 | AE31: 7779.96895 | AF31: 17648.88523 | AG31: 20360.05054 | AH31: 194.41185 | AI31: 0 | AJ31: 3929.86531 | AK31: 92.56202 | AL31: =AM31+AN31+AO31 -> 47493.12033 | AM31: 32.23873 | AN31: 22221.79334 | AO31: =AP31+AQ31 -> 25239.08826 | AP31: 11058.07545 | AQ31: =SUM(AR31:AT31) -> 14181.01281 | AR31: 6076.72539 | AS31: 87.48838 | AT31: 8016.79904 | AU31: 219133.6208 | AV31: 8.94764 | AW31: 6.85591 | AX31: 1286.98562 | AY31: 68.70687 | AZ31: 9574.30009 | BA31: 4172.34442
AB32: =AC32+AH32 -> 0
C33: B. LABOR RECLASSIFICATIONS
C35: B.1. Reclassify ECC-Dist to ECC-Trans | F35: LADWP GL | G35: =I35++AL35+AU35+AV35+AW35+AX35+AY35+AZ35+BA35 -> 0 | H35: =I35+AL35-AP35+AU35 -> -37.38826 | I35: =J35+AB35+AI35+AJ35+AK35 -> 0 | J35: =K35+S35+T35+U35+V35+W35+X35+Y35+Z35+AA35 -> 0 | K35: =SUM(L35:R35) -> 0 | AB35: 0 | AL35: =AM35+AN35+AO35 -> 37.38826 | AO35: =AP35+AQ35 -> 37.38826 | AP35: =-AU35 -> 37.38826 | AQ35: =SUM(AR35:AT35) -> 0 | AU35: -37.38826
AB36: 0
C37: B.2 "All Entries" Reclassification #1
C38: Accounts Comprising "All Entries" as defined in GL
C39: 802 -Station (Substation) | F39: LADWP POWER PLANT | G39: =I39++AL39+AU39+AV39+AW39+AX39+AY39+AZ39+BA39 -> 0 | H39: =I39+AL39-AP39+AU39 -> 0 | I39: =J39+AB39+AI39+AJ39+AK39 -> 0 | J39: =K39+S39+T39+U39+V39+W39+X39+Y39+Z39+AA39 -> 0 | K39: =SUM(L39:R39) -> 0 | AB39: 0 | AC39: =SUM(AD39:AG39) -> 0 | AL39: =AM39+AN39+AO39 -> 0 | AN39: -242.17028 | AO39: =AP39+AQ39 -> 242.17028 | AQ39: =SUM(AR39:AT39) -> 242.17028 | AT39: =-AN39 -> 242.17028
C40: 806 -Lines | F40: LADWP POWER PLANT | G40: =I40++AL40+AU40+AV40+AW40+AX40+AY40+AZ40+BA40 -> 0 | H40: =I40+AL40-AP40+AU40 -> 0 | I40: =J40+AB40+AI40+AJ40+AK40 -> 0 | J40: =K40+S40+T40+U40+V40+W40+X40+Y40+Z40+AA40 -> 0 | K40: =SUM(L40:R40) -> 0 | AB40: 0 | AC40: =SUM(AD40:AG40) -> 0 | AL40: 0 | AN40: -9656.08959 | AO40: =AP40+AQ40 -> 9656.08959 | AQ40: =SUM(AR40:AT40) -> 9656.08959 | AR40: =-AN40 -> 9656.08959
C41: 807- Other Operating Expense | F41: LADWP POWER PLANT | G41: =I41++AL41+AU41+AV41+AW41+AX41+AY41+AZ41+BA41 -> 0 | H41: =I41+AL41-AP41+AU41 -> 0 | I41: =J41+AB41+AI41+AJ41+AK41 -> 0 | J41: =K41+S41+T41+U41+V41+W41+X41+Y41+Z41+AA41 -> 0 | K41: =SUM(L41:R41) -> 0 | AB41: 0 | AC41: =SUM(AD41:AG41) -> 0 | AL41: 0 | AN41: -5492.26125 | AO41: =AP41+AQ41 -> 5492.26125 | AQ41: =SUM(AR41:AT41) -> 5492.26125 | AS41: =-AN41 -> 5492.26125
C42: 812-Station (Substation) | F42: LADWP POWER PLANT | G42: =I42++AL42+AU42+AV42+AW42+AX42+AY42+AZ42+BA42 -> 0 | H42: =I42+AL42-AP42+AU42 -> 0 | I42: =J42+AB42+AI42+AJ42+AK42 -> 0 | J42: =K42+S42+T42+U42+V42+W42+X42+Y42+Z42+AA42 -> 0 | K42: =SUM(L42:R42) -> 0 | AB42: 0 | AC42: =SUM(AD42:AG42) -> 0 | AL42: 0 | AN42: -140.71095 | AO42: =AP42+AQ42 -> 140.71095 | AQ42: =SUM(AR42:AT42) -> 140.71095 | AT42: =-AN42 -> 140.71095
C43: 812 Station-Basin | F43: LADWP POWER PLANT | G43: =I43++AL43+AU43+AV43+AW43+AX43+AY43+AZ43+BA43 -> 0 | H43: =I43+AL43-AP43+AU43 -> 0 | I43: =J43+AB43+AI43+AJ43+AK43 -> 0 | J43: =K43+S43+T43+U43+V43+W43+X43+Y43+Z43+AA43 -> 0 | K43: =SUM(L43:R43) -> 0 | AB43: 0 | AC43: =SUM(AD43:AG43) -> 0 | AL43: 0 | AN43: -0.30601 | AO43: =AP43+AQ43 -> 0.30601 | AQ43: =SUM(AR43:AT43) -> 0.30601 | AT43: =-AN43 -> 0.30601
C44: Total "All Entries" Reclassification #1 | F44: =CELL("Address",AN44)&_xlfn.FORMULATEXT(AN44) -> $AN$44=SUM(AN39:AN43) | G44: =SUM(G39:G43) -> 0 | H44: 0 | I44: 0 | J44: 0 | K44: 0 | L44: 0 | M44: 0 | N44: 0 | O44: 0 | P44: 0 | Q44: 0 | R44: 0 | S44: 0 | T44: 0 | U44: 0 | V44: 0 | W44: 0 | X44: 0 | Y44: 0 | Z44: 0 | AA44: 0 | AB44: 0 | AC44: 0 | AD44: 0 | AE44: 0 | AF44: 0 | AG44: 0 | AH44: 0 | AI44: 0 | AJ44: 0 | AK44: 0 | AL44: 0 | AM44: 0 | AN44: -15531.53808 | AO44: 15531.53808 | AP44: 0 | AQ44: 15531.53808 | AR44: 9656.08959 | AS44: 5492.26125 | AT44: 383.18724 | AU44: 0 | AV44: 0 | AW44: 0 | AX44: 0 | AY44: 0 | AZ44: 0 | BA44: 0
C46: B.3 Remove Tank Farms and Reallocate Remaining All Entries
C47: Remove Tank Farms - do not contribute to ancillary services | F47: =CELL("Address",AV47)&_xlfn.FORMULATEXT(AV47) -> $AV$47=-AV31 | G47: =I47++AL47+AU47+AV47+AW47+AX47+AY47+AZ47+BA47 -> -8.94764 | H47: =I47+AL47-AP47+AU47 -> 0 | I47: =J47+AB47+AI47+AJ47+AK47 -> 0 | J47: =K47+S47+T47+U47+V47+W47+X47+Y47+Z47+AA47 -> 0 | K47: =SUM(L47:R47) -> 0 | AB47: =AC47+AH47 -> 0 | AC47: =SUM(AD47:AG47) -> 0 | AL47: =AM47+AN47+AO47 -> 0 | AO47: =AP47+AQ47 -> 0 | AQ47: =SUM(AR47:AT47) -> 0 | AV47: =-AV31 -> -8.94764
C49: Reclassified Labor Subtotal #1 | F49: =CELL("Address",AN49)&_xlfn.FORMULATEXT(AN49) -> $AN$49=AN44+AN35+AN31+AN47 | G49: =G44+G35+G31+G47 -> 353088.2778 | H49: 326883.6212 | I49: 71352.34382 | J49: 11816.29525 | K49: 1047.24673 | L49: 227.28124 | M49: 23.39536 | N49: 155.15746 | O49: 221.95558 | P49: 78.51617 | Q49: 134.36496 | R49: 206.57596 | S49: 1955.7675 | T49: 500.94257 | U49: 157.68776 | V49: 113.74723 | W49: 96.14632 | X49: 0 | Y49: 224.34293 | Z49: 7720.41421 | AA49: 0 | AB49: 55513.62124 | AC49: 55319.20939 | AD49: 9530.30467 | AE49: 7779.96895 | AF49: 17648.88523 | AG49: 20360.05054 | AH49: 194.41185 | AI49: 0 | AJ49: 3929.86531 | AK49: 92.56202 | AL49: 47530.50859 | AM49: 32.23873 | AN49: 6690.25526 | AO49: 40808.0146 | AP49: 11095.46371 | AQ49: 29712.55089 | AR49: 15732.81498 | AS49: 5579.74963 | AT49: 8399.98628 | AU49: 219096.2325 | AV49: 0 | AW49: 6.85591 | AX49: 1286.98562 | AY49: 68.70687 | AZ49: 9574.30009 | BA49: 4172.34442
C50: Check | G50: =I49+AL49+AU49+AV49+AW49+AX49+AY49+AZ49+BA49 -> 353088.2778
L53: Owens Valley | AC53: LA BASIN
L54: =L28 -> Hydro | M54: Hydro | N54: Hydro | O54: Hydro | P54: Hydro | Q54: Hydro | R54: Hydro | S54: Hydro | T54: Hydro | U54: Hydro | V54: Hydro | W54: Hydro | X54: Hydro | Y54: Hydro | Z54: Hydro | AA54: Hydro | AD54: =AD28 -> Steam | AE54: Steam | AF54: Steam | AG54: Steam | AH54: Steam | AI54: Nuclear | AJ54: Other Prod | AK54: Other Prod | AL54: Transmission | AV54: Other GL Labor Categories
C55: Item | F55: Reference | G55: =G29 -> Total Labor Including Other GL Labor Categories | H55: =H29 -> Total Production, Transmission and Distribution Less ECC | I55: =I29 -> Total Labor Production Stations | J55: =J29 -> Total Hydro | K55: =K29 -> Total Owens Valley | L55: =L29 -> Cottonwood | M55: Division Creek | N55: Big Pine | O55: Pleasant Valley | P55: Upper Gorge | Q55: Middle Gorge | R55: Control Gorge | S55: S.F. 1 | T55: S.F. 2 | U55: San Fernando | V55: Foothill | W55: Franklin | X55: Sawtelle | Y55: Haiwee | Z55: Pump Storage Castaic | AA55: Hoover Purchased Power | AB55: =AB29 -> Total Steam | AC55: =AC29 -> Total LA BASIN | AD55: Harbor | AE55: Valley | AF55: Scattergood | AG55: Haynes | AH55: Navajo | AI55: Palo Verde | AJ55: Wind | AK55: Solar | AL55: =AL29 -> Total Transmission | AM55: =AM29 -> Transmission San Francisquito | AN55: =AN29 -> Transmission "All Entries" GL Category | AO55: =AO29 -> Transmission Energy Management and Transmission GRID | AP55: =AP29 -> Transmission Energy Management (aka ECC) | AQ55: Transmission - GRID (Sch 7 and 8) | AR55: =AR29 -> Transmission Lines | AS55: =AS29 -> Transmission Other Operating Expense | AT55: =AT29 -> Transmission Station (Substation) | AU55: =AU28 -> Distribution O&M & Cust Accts/Cust Ser & Info | AV55: =AV29 -> Tank Farms | AW55: Miscellaneous | AX55: Owens Valley Common Hydro | AY55: Common Hydro Costs | AZ55: Safety | BA55: Steam Common Costs
C57: Remaining GL "All Entries" Reclassification
C58: ALL ENTRIES LABOR ALLOCATOR | F58: =CELL("Address",AP58)&_xlfn.FORMULATEXT(AP58) -> $AP$58=AP49/$AO$49 | H58: =I58+AL58-AP58+AU58 -> 0.7281057699 | AB58: =AC58+AH58 -> 0 | AL58: =AM58+AN58+AO58 -> 1 | AO58: =AP58+AQ58 -> 1 | AP58: =AP49/$AO$49 -> 0.2718942301 | AQ58: =SUM(AR58:AT58) -> 0.7281057699 | AR58: =AR49/$AO$49 -> 0.3855324777 | AS58: =AS49/$AO$49 -> 0.1367317103 | AT58: =AT49/$AO$49 -> 0.2058415819
C59: Reclassify Remaining All Entries to Other Transmission Functions | F59: =CELL("Address",AP59)&_xlfn.FORMULATEXT(AP59) -> $AP$59=-AP58*$AN$59 | G59: =I59++AL59+AU59+AV59+AW59+AX59+AY59+AZ59+BA59 -> 0 | H59: =I59+AL59-AP59+AU59 -> -1819.041803 | I59: =J59+AB59+AI59+AJ59+AK59 -> 0 | J59: =K59+S59+T59+U59+V59+W59+X59+Y59+Z59+AA59 -> 0 | K59: =SUM(L59:R59) -> 0 | AB59: =AC59+AH59 -> 0 | AC59: =SUM(AD59:AG59) -> 0 | AL59: =AM59+AN59+AO59 -> 0 | AN59: =-AN49 -> -6690.25526 | AO59: =AP59+AQ59 -> 6690.25526 | AP59: =-AP58*$AN$59 -> 1819.041803 | AQ59: =SUM(AR59:AT59) -> 4871.213457 | AR59: =-AR58*$AN$59 -> 2579.310687 | AS59: =-AS58*$AN$59 -> 914.770044 | AT59: =-AT58*$AN$59 -> 1377.132726
C61: Reclassified Labor Subtotal #2 | F61: =CELL("Address",AD61)&_xlfn.FORMULATEXT(AD61) -> $AD$61=AD49+AD59 | G61: =G49+G59 -> 353088.2778 | H61: =H49+H59 -> 325064.5794 | I61: 71352.34382 | J61: 11816.29525 | K61: 1047.24673 | L61: 227.28124 | M61: 23.39536 | N61: 155.15746 | O61: 221.95558 | P61: 78.51617 | Q61: 134.36496 | R61: 206.57596 | S61: 1955.7675 | T61: 500.94257 | U61: 157.68776 | V61: 113.74723 | W61: 96.14632 | X61: 0 | Y61: 224.34293 | Z61: 7720.41421 | AA61: 0 | AB61: 55513.62124 | AC61: 55319.20939 | AD61: 9530.30467 | AE61: 7779.96895 | AF61: 17648.88523 | AG61: 20360.05054 | AH61: 194.41185 | AI61: 0 | AJ61: 3929.86531 | AK61: 92.56202 | AL61: 47530.50859 | AM61: 32.23873 | AN61: 0 | AO61: 47498.26986 | AP61: 12914.50551 | AQ61: 34583.76435 | AR61: 18312.12567 | AS61: 6494.519674 | AT61: 9777.119006 | AU61: 219096.2325 | AV61: 0 | AW61: 6.85591 | AX61: 1286.98562 | AY61: 68.70687 | AZ61: 9574.30009 | BA61: 4172.34442
C62: Check | G62: =I61+AL61+AU61+AV61+AW61+AX61+AY61+AZ61+BA61 -> 353088.2778
C64: B.4. Common Steam Reclassified to LA Basin Steam Stations
C65: LA BASIN LABOR ALLOCATOR | F65: =CELL("Address",AD65)&_xlfn.FORMULATEXT(AD65) -> $AD$65=AD61/$AC$61 | AB65: =AC65+AH65 -> 1 | AC65: =SUM(AD65:AG65) -> 1 | AD65: =AD61/$AC$61 -> 0.1722783962 | AE65: =AE61/$AC$61 -> 0.1406377466 | AF65: =AF61/$AC$61 -> 0.319037192 | AG65: =AG61/$AC$61 -> 0.3680466652
C66: Reclassify Common Steam to LA Basin | F66: =CELL("Address",AD66)&_xlfn.FORMULATEXT(AD66) -> $AD$66=-AD65*$BA$66 | G66: =I66++AL66+AU66+AV66+AW66+AX66+AY66+AZ66+BA66 -> 0 | H66: =I66+AL66-AP66+AU66 -> 4172.34442 | I66: =J66+AB66+AI66+AJ66+AK66 -> 4172.34442 | J66: =K66+S66+T66+U66+V66+W66+X66+Y66+Z66+AA66 -> 0 | K66: =SUM(L66:R66) -> 0 | AB66: =AC66+AH66 -> 4172.34442 | AC66: =SUM(AD66:AG66) -> 4172.34442 | AD66: =-AD65*$BA$66 -> 718.8048049 | AE66: =-AE65*$BA$66 -> 586.7891171 | AF66: =-AF65*$BA$66 -> 1331.133048 | AG66: =-AG65*$BA$66 -> 1535.61745 | AL66: =AM66+AN66+AO66 -> 0 | AO66: =AP66+AQ66 -> 0 | AQ66: =SUM(AR66:AT66) -> 0 | BA66: =-BA61 -> -4172.34442
C68: Reclassified Labor Subtotal #3 | F68: =CELL("Address",L68)&_xlfn.FORMULATEXT(L68) -> $L$68=L61+L66 | G68: =G61+G66 -> 353088.2778 | H68: =H61+H66 -> 329236.9238 | I68: =I61+I66 -> 75524.68824 | J68: 11816.29525 | K68: 1047.24673 | L68: 227.28124 | M68: 23.39536 | N68: 155.15746 | O68: 221.95558 | P68: 78.51617 | Q68: 134.36496 | R68: 206.57596 | S68: 1955.7675 | T68: 500.94257 | U68: 157.68776 | V68: 113.74723 | W68: 96.14632 | X68: 0 | Y68: 224.34293 | Z68: 7720.41421 | AA68: 0 | AB68: 59685.96566 | AC68: 59491.55381 | AD68: =AD61+AD66 -> 10249.10947 | AE68: 8366.758067 | AF68: 18980.01828 | AG68: 21895.66799 | AH68: 194.41185 | AI68: 0 | AJ68: 3929.86531 | AK68: 92.56202 | AL68: 47530.50859 | AM68: 32.23873 | AN68: 0 | AO68: 47498.26986 | AP68: 12914.50551 | AQ68: 34583.76435 | AR68: 18312.12567 | AS68: 6494.519674 | AT68: 9777.119006 | AU68: 219096.2325 | AV68: 0 | AW68: 6.85591 | AX68: 1286.98562 | AY68: 68.70687 | AZ68: 9574.30009 | BA68: 0
C69: Check | G69: =I68+AL68+AU68+AV68+AW68+AX68+AY68+AZ68+BA68 -> 353088.2778
C71: B.5. Owens Valley Hydro Station Reclassification
C72: OWENS VALLEY LABOR ALLOCATOR | F72: =CELL("Address",L72)&_xlfn.FORMULATEXT(L72) -> $L$72=L68/$K$68 | K72: =SUM(L72:R72) -> 1 | L72: =L68/$K$68 -> 0.2170274048 | M72: 0.022339874 | N72: 0.1481575025 | O72: 0.2119420129 | P72: 0.07497389846 | Q72: 0.12830306 | R72: 0.1972562473
C73: Reclassify OV Common to OV Stations | F73: =CELL("Address",L73)&_xlfn.FORMULATEXT(L73) -> $L$73=-L72*$AX$73 | G73: =I73++AL73+AU73+AV73+AW73+AX73+AY73+AZ73+BA73 -> 2.273736754e-13 | H73: =I73+AL73-AP73+AU73 -> 1286.98562 | I73: =J73+AB73+AI73+AJ73+AK73 -> 1286.98562 | J73: =K73+S73+T73+U73+V73+W73+X73+Y73+Z73+AA73 -> 1286.98562 | K73: =SUM(L73:R73) -> 1286.98562 | L73: =-L72*$AX$73 -> 279.3111491 | M73: 28.7510966 | N73: 190.6765752 | O73: 272.7663229 | P73: 96.4903292 | Q73: 165.1241932 | R73: 253.8659538 | AB73: =AC73+AH73 -> 0 | AC73: =SUM(AD73:AG73) -> 0 | AL73: =AM73+AN73+AO73 -> 0 | AO73: =AP73+AQ73 -> 0 | AQ73: =SUM(AR73:AT73) -> 0 | AX73: =-AX68 -> -1286.98562
C75: Reclassified Labor Subtotal #4 | F75: =CELL("Address",L75)&_xlfn.FORMULATEXT(L75) -> $L$75=L68+L73 | G75: =G68+G73 -> 353088.2778 | H75: =H68+H73 -> 330523.9095 | I75: =I68+I73 -> 76811.67386 | J75: 13103.28087 | K75: =K68+K73 -> 2334.23235 | L75: 506.5923891 | M75: 52.1464566 | N75: 345.8340352 | O75: 494.7219029 | P75: 175.0064992 | Q75: 299.4891532 | R75: 460.4419138 | S75: 1955.7675 | T75: 500.94257 | U75: 157.68776 | V75: 113.74723 | W75: 96.14632 | X75: 0 | Y75: 224.34293 | Z75: 7720.41421 | AA75: 0 | AB75: 59685.96566 | AC75: 59491.55381 | AD75: =AD68+AD73 -> 10249.10947 | AE75: =AE68+AE73 -> 8366.758067 | AF75: 18980.01828 | AG75: 21895.66799 | AH75: 194.41185 | AI75: 0 | AJ75: 3929.86531 | AK75: 92.56202 | AL75: 47530.50859 | AM75: 32.23873 | AN75: 0 | AO75: 47498.26986 | AP75: 12914.50551 | AQ75: 34583.76435 | AR75: 18312.12567 | AS75: 6494.519674 | AT75: 9777.119006 | AU75: 219096.2325 | AV75: 0 | AW75: 6.85591 | AX75: 0 | AY75: 68.70687 | AZ75: 9574.30009 | BA75: 0
C76: Check | G76: =I75+AL75+AU75+AV75+AW75+AX75+AY75+AZ75+BA75 -> 353088.2778
C78: B.6. Common Hydro Reclassification
C79: COMMON HYDRO O&M ALLOCATOR | F79: =CELL("Address",L79)&_xlfn.FORMULATEXT(L79) -> $L$79=L75/$J$75 | J79: =K79+S79+T79+U79+V79+W79+X79+Y79+Z79+AA79 -> 1 | K79: =SUM(L79:R79) -> 0.1781410605 | L79: =L75/$J$75 -> 0.03866149205 | M79: 0.003979648846 | N79: 0.02639293461 | O79: 0.03775557495 | P79: 0.01335592978 | Q79: 0.02285604317 | R79: 0.03513943709 | S79: 0.1492578477 | T79: 0.03823031613 | U79: 0.01203421964 | V79: 0.008680820562 | W79: 0.007337576059 | X79: 0 | Y79: 0.01712112655 | Z79: 0.5891970329 | AA79: 0 | AB79: =AC79+AH79 -> 0
C80: Reclassify Common Hydro to Hydro Stations | F80: =CELL("Address",L80)&_xlfn.FORMULATEXT(L80) -> $L$80=-L79*$AY$80 | G80: =I80++AL80+AU80+AV80+AW80+AX80+AY80+AZ80+BA80 -> 1.421085472e-14 | H80: =I80+AL80-AP80+AU80 -> 68.70687 | I80: =J80+AB80+AI80+AJ80+AK80 -> 68.70687 | J80: =K80+S80+T80+U80+V80+W80+X80+Y80+Z80+AA80 -> 68.70687 | K80: =SUM(L80:R80) -> 12.23951468 | L80: =-L79*$AY$80 -> 2.656310108 | M80: 0.2734292159 | N80: 1.813375927 | O80: 2.59406738 | P80: 0.9176441312 | Q80: 1.570367187 | R80: 2.414320736 | S80: 10.25503954 | T80: 2.62668536 | U80: 0.8268335644 | V80: 0.5964320098 | W80: 0.5041418844 | X80: 0 | Y80: 1.176339016 | Z80: 40.48188394 | AA80: 0 | AB80: =AC80+AH80 -> 0 | AC80: =SUM(AD80:AG80) -> 0 | AL80: =AM80+AN80+AO80 -> 0 | AO80: =AP80+AQ80 -> 0 | AQ80: =SUM(AR80:AT80) -> 0 | AY80: =-AY75 -> -68.70687
C82: Reclassified Labor Subtotal #5 | F82: =CELL("Address",L82)&_xlfn.FORMULATEXT(L82) -> $L$82=L75+L80 | G82: =G75+G80 -> 353088.2778 | H82: 330592.6163 | I82: 76880.38073 | J82: 13171.98774 | K82: 2346.471865 | L82: 509.2486992 | M82: 52.41988581 | N82: 347.6474111 | O82: 497.3159703 | P82: 175.9241433 | Q82: 301.0595204 | R82: 462.8562345 | S82: 1966.02254 | T82: 503.5692554 | U82: 158.5145936 | V82: 114.343662 | W82: 96.65046188 | X82: 0 | Y82: 225.519269 | Z82: 7760.896094 | AA82: 0 | AB82: 59685.96566 | AC82: 59491.55381 | AD82: 10249.10947 | AE82: 8366.758067 | AF82: 18980.01828 | AG82: 21895.66799 | AH82: 194.41185 | AI82: 0 | AJ82: 3929.86531 | AK82: 92.56202 | AL82: 47530.50859 | AM82: 32.23873 | AN82: 0 | AO82: 47498.26986 | AP82: 12914.50551 | AQ82: 34583.76435 | AR82: 18312.12567 | AS82: 6494.519674 | AT82: 9777.119006 | AU82: 219096.2325 | AV82: 0 | AW82: 6.85591 | AX82: 0 | AY82: 0 | AZ82: 9574.30009 | BA82: 0
G83: =I82+AL82+AU82+AV82+AW82+AX82+AY82+AZ82+BA82 -> 353088.2778
C84: B.7. Safety Reclassification
C85: SAFETY LABOR ALLOCATOR | F85: =CELL("Address",L85)&_xlfn.FORMULATEXT(L85) -> $L$85=L82/$I$82 | I85: =J85+AB85+AI85+AJ85+AK85 -> 1 | J85: =K85+S85+T85+U85+V85+W85+X85+Y85+Z85+AA85 -> 0.1713309379 | K85: =SUM(L85:R85) -> 0.03052107498 | L85: =L82/$I$82 -> 0.006623909695 | M85: 0.0006818369695 | N85: 0.004521926242 | O85: 0.006468698068 | P85: 0.002288283976 | Q85: 0.003915947313 | R85: 0.006020472715 | S85: 0.02557248704 | T85: 0.00655003592 | U85: 0.002061834138 | V85: 0.001487293129 | W85: 0.001257153788 | X85: 0 | Y85: 0.002933378671 | Z85: 0.1009476803 | AA85: 0 | AB85: =AC85+AH85 -> 0.7763484662 | AC85: =SUM(AD85:AG85) -> 0.7738197086 | AD85: =AD82/$I$82 -> 0.1333124183 | AE85: 0.1088282601 | AF85: 0.246877267 | AG85: 0.2848017632 | AH85: 0.002528757638 | AI85: 0 | AJ85: 0.05111662134 | AK85: 0.001203974527
C86: Reclassify Safety Labor to all Production Stations | F86: =CELL("Address",L86)&_xlfn.FORMULATEXT(L86) -> $L$86=L85*-$AZ$86 | G86: =I86++AL86+AU86+AV86+AW86+AX86+AY86+AZ86+BA86 -> 1.818989404e-12 | H86: =I86+AL86-AP86+AU86 -> 9574.30009 | I86: =J86+AB86+AI86+AJ86+AK86 -> 9574.30009 | J86: =K86+S86+T86+U86+V86+W86+X86+Y86+Z86+AA86 -> 1640.373815 | K86: =SUM(L86:R86) -> 292.2179309 | L86: =L85*-$AZ$86 -> 63.41929918 | M86: 6.528111759 | N86: 43.29427883 | O86: 61.9332565 | P86: 21.90871748 | Q86: 37.49245471 | R86: 57.64181246 | S86: 244.8386649 | T86: 62.7120095 | U86: 19.74061878 | V86: 14.23979074 | W86: 12.03636763 | X86: 0 | Y86: 28.08504767 | Z86: 966.5033844 | AA86: 0 | AB86: =AC86+AH86 -> 7432.99319 | AC86: =SUM(AD86:AG86) -> 7408.782105 | AD86: =AD85*-$AZ$86 -> 1276.373099 | AE86: 1041.95442 | AF86: 2363.677039 | AG86: 2726.777547 | AH86: 24.21108448 | AI86: 0 | AJ86: 489.4058723 | AK86: 11.52721342 | AL86: =AM86+AN86+AO86 -> 0 | AO86: =AP86+AQ86 -> 0 | AQ86: =SUM(AR86:AT86) -> 0 | AZ86: =-AZ82 -> -9574.30009
C88: Reclassified Labor Subtotal #6 | F88: =CELL("Address",L88)&_xlfn.FORMULATEXT(L88) -> $L$88=L82+L86 | G88: =G82+G86 -> 353088.2778 | H88: =H82+H86 -> 340166.9164 | I88: =I82+I86 -> 86454.68082 | J88: =J82+J86 -> 14812.36155 | K88: =K82+K86 -> 2638.689796 | L88: =L82+L86 -> 572.6679984 | M88: 58.94799757 | N88: 390.9416899 | O88: 559.2492268 | P88: 197.8328608 | Q88: 338.5519751 | R88: 520.498047 | S88: 2210.861204 | T88: 566.2812649 | U88: 178.2552123 | V88: 128.5834527 | W88: 108.6868295 | X88: 0 | Y88: 253.6043167 | Z88: 8727.399478 | AA88: 0 | AB88: 67118.95885 | AC88: 66900.33592 | AD88: =AD82+AD86 -> 11525.48257 | AE88: =AE82+AE86 -> 9408.712487 | AF88: 21343.69532 | AG88: 24622.44554 | AH88: 218.6229345 | AI88: 0 | AJ88: 4419.271182 | AK88: 104.0892334 | AL88: 47530.50859 | AM88: 32.23873 | AN88: 0 | AO88: 47498.26986 | AP88: 12914.50551 | AQ88: 34583.76435 | AR88: 18312.12567 | AS88: 6494.519674 | AT88: 9777.119006 | AU88: 219096.2325 | AV88: 0 | AW88: 6.85591 | AX88: 0 | AY88: 0 | AZ88: 0 | BA88: 0
G89: =I88+AL88+AU88+AV88+AW88+AX88+AY88+AZ88+BA88 -> 353088.2778
C90: B.8. Reclassify 115kv (Trans. San Francisquito) to Hydro SF 1 and SF 2
C91: LABOR 115kW LINE ALLOCATOR | F91: =CELL("Address",S91)&_xlfn.FORMULATEXT(S91) -> $S$91='Allocation Factors'!O23 | I91: =J91+AB91+AI91+AJ91+AK91 -> 1 | J91: =K91+S91+T91+U91+V91+W91+X91+Y91+Z91+AA91 -> 1 | K91: =SUM(L91:R91) -> 0 | S91: ='Allocation Factors'!O23 -> 0.6229802513 | T91: ='Allocation Factors'!P23 -> 0.3770197487
C92: Reclassify 115kv (Trans. San Francisquito) to Hydro SF 1 and SF 2 | F92: =CELL("Address",S92)&_xlfn.FORMULATEXT(S92) -> $S$92=-S91*AM92 | G92: =I92++AL92+AU92+AV92+AW92+AX92+AY92+AZ92+BA92 -> 0 | H92: =I92+AL92-AP92+AU92 -> 0 | I92: =J92+AB92+AI92+AJ92+AK92 -> 32.23873 | J92: =K92+S92+T92+U92+V92+W92+X92+Y92+Z92+AA92 -> 32.23873 | K92: =SUM(L92:R92) -> 0 | S92: =-S91*AM92 -> 20.08409212 | T92: =-T91*AM92 -> 12.15463788 | AB92: =AC92+AH92 -> 0 | AC92: =SUM(AD92:AG92) -> 0 | AL92: =AM92+AN92+AO92 -> -32.23873 | AM92: =-AM88 -> -32.23873 | AO92: =AP92+AQ92 -> 0 | AQ92: =SUM(AR92:AT92) -> 0
C94: Reclassified Labor Subtotal #7 | F94: =CELL("Address",S94)&_xlfn.FORMULATEXT(S94) -> $S$94=S92+S88 | G94: =G92+G88 -> 353088.2778 | H94: =H92+H88 -> 340166.9164 | I94: =I92+I88 -> 86486.91955 | J94: 14844.60028 | K94: 2638.689796 | L94: 572.6679984 | M94: 58.94799757 | N94: 390.9416899 | O94: 559.2492268 | P94: 197.8328608 | Q94: 338.5519751 | R94: 520.498047 | S94: 2230.945297 | T94: 578.4359027 | U94: 178.2552123 | V94: 128.5834527 | W94: 108.6868295 | X94: 0 | Y94: 253.6043167 | Z94: 8727.399478 | AA94: 0 | AB94: 67118.95885 | AC94: 66900.33592 | AD94: 11525.48257 | AE94: 9408.712487 | AF94: 21343.69532 | AG94: 24622.44554 | AH94: 218.6229345 | AI94: 0 | AJ94: 4419.271182 | AK94: 104.0892334 | AL94: 47498.26986 | AM94: 0 | AN94: 0 | AO94: 47498.26986 | AP94: 12914.50551 | AQ94: 34583.76435 | AR94: 18312.12567 | AS94: 6494.519674 | AT94: 9777.119006 | AU94: 219096.2325 | AV94: 0 | AW94: 6.85591 | AX94: 0 | AY94: 0 | AZ94: 0 | BA94: 0
G95: =I94+AL94+AU94+AV94+AW94+AX94+AY94+AZ94+BA94 -> 353088.2778 | H95: =L94+M94+N94+O94+P94+Q94+R94+S94+T94+U94+V94+W94+X94+Y94+Z94+AA94+AD94+AE94+AF94+AG94+AH94+AI94+AJ94+AK94+AM94+AN94+AP94+AR94+AS94+AT94+AU94-AP94 -> 340166.9164
L97: Owens Valley | AC97: LA BASIN
L98: Hydro | M98: Hydro | N98: Hydro | O98: Hydro | P98: Hydro | Q98: Hydro | R98: Hydro | S98: Hydro | T98: Hydro | U98: Hydro | V98: Hydro | W98: Hydro | X98: Hydro | Y98: Hydro | Z98: Hydro | AA98: Hydro | AD98: Steam | AE98: Steam | AF98: Steam | AG98: Steam | AH98: Steam | AI98: Nuclear | AJ98: Other Prod | AK98: Other Prod | AL98: Transmission | AV98: Other GL Labor Categories
F99: Reference | G99: Total Labor Including Other GL Labor Categories | H99: Total Production, Transmission and Distribution Less ECC | I99: Total Labor Production Stations | J99: Total Hydro | K99: Total Owens Valley | L99: Cottonwood | M99: Division Creek | N99: Big Pine | O99: Pleasant Valley | P99: Upper Gorge | Q99: Middle Gorge | R99: Control Gorge | S99: S.F. 1 | T99: S.F. 2 | U99: San Fernando | V99: Foothill | W99: Franklin | X99: Sawtelle | Y99: Haiwee | Z99: Pump Storage Castaic | AA99: Hoover Purchased Power | AB99: Total Steam | AC99: Total LA BASIN | AD99: Harbor | AE99: Valley | AF99: Scattergood | AG99: Haynes | AH99: Navajo | AI99: Palo Verde | AJ99: Wind | AK99: Solar | AL99: Total Transmission | AM99: Transmission San Francisquito | AN99: Transmission "All Entries" GL Category | AO99: Total Transmission Excluding San Francisquito and All Entries | AP99: =+AP29 -> Transmission Energy Management (aka ECC) | AQ99: Transmission - GRID (Sch 7 and 8) | AR99: Transmission Lines | AS99: Transmission Other Operating Expense | AT99: Transmission Station (Substation) | AU99: Distribution O&M & Cust Accts/Cust Ser & Info | AV99: Tank Farms | AW99: Miscellaneous | AX99: Owens Valley Common Hydro | AY99: Common Hydro Costs | AZ99: Safety | BA99: Steam Common Costs
C100: B.9. 7 Factor Test Transmission Line Reclassification
C102: B.9.1 Reclassify portion of 230kV OH Lines as Production Gen-tie
C103: PINETREE BARREN-RIDGE LINE (Wind + Solar) ALLOCATOR | F103: =CELL("Address",AJ103)&_xlfn.FORMULATEXT(AJ103) -> $AJ$103='Allocation Factors'!AD111 | G103: =I103++AL103+AU103+AV103+AW103+AX103+AY103+AZ103+BA103 -> 1 | H103: =I103+AL103-AP103+AU103 -> 1 | I103: =J103+AB103+AI103+AJ103+AK103 -> 1 | J103: =K103+S103+T103+U103+V103+W103+X103+Y103+Z103+AA103 -> 0 | K103: =SUM(L103:R103) -> 0 | AB103: =AC103+AH103 -> 0 | AC103: =SUM(AD103:AG103) -> 0 | AJ103: ='Allocation Factors'!AD111 -> 0.9407665505 | AK103: ='Allocation Factors'!AE111 -> 0.05923344948 | AL103: =AM103+AN103+AO103 -> 0
C104: ='7 Factor Summary'!C105 -> PINETREE BARREN-RIDGE LINE (Wind + Solar) | F104: =CELL("Address",AJ104)&_xlfn.FORMULATEXT(AJ104) -> $AJ$104=-AJ103*AR104 | G104: =I104++AL104+AU104+AV104+AW104+AX104+AY104+AZ104+BA104 -> 0 | H104: =I104+AL104-AP104+AU104 -> 0 | I104: =J104+AB104+AI104+AJ104+AK104 -> 172.9418652 | J104: =K104+S104+T104+U104+V104+W104+X104+Y104+Z104+AA104 -> 0 | K104: =SUM(L104:R104) -> 0 | AB104: =AC104+AH104 -> 0 | AC104: =SUM(AD104:AG104) -> 0 | AJ104: =-AJ103*AR104 -> 162.6979219 | AK104: =-AK103*AR104 -> 10.24394323 | AL104: =AM104+AN104+AO104 -> -172.9418652 | AO104: =AP104+AQ104 -> -172.9418652 | AQ104: =SUM(AR104:AT104) -> -172.9418652 | AR104: =-'7 Factor Summary'!G105 -> -172.9418652
C105: ='7 Factor Summary'!C106 -> UPPER GORGE-MIDDLE GORGE | F105: =CELL("Address",P105)&_xlfn.FORMULATEXT(P105) -> $P$105=-AR105 | G105: =I105++AL105+AU105+AV105+AW105+AX105+AY105+AZ105+BA105 -> 0 | H105: =I105+AL105-AP105+AU105 -> 0 | I105: =J105+AB105+AI105+AJ105+AK105 -> 56.77753449 | J105: =K105+S105+T105+U105+V105+W105+X105+Y105+Z105+AA105 -> 56.77753449 | K105: =SUM(L105:R105) -> 56.77753449 | P105: =-AR105 -> 56.77753449 | AB105: =AC105+AH105 -> 0 | AC105: =SUM(AD105:AG105) -> 0 | AL105: =AM105+AN105+AO105 -> -56.77753449 | AO105: =AP105+AQ105 -> -56.77753449 | AQ105: =SUM(AR105:AT105) -> -56.77753449 | AR105: =-'7 Factor Summary'!G106 -> -56.77753449
C106: ='7 Factor Summary'!C107 -> MIDDLE GORGE-CONTROL GORGE | F106: =CELL("Address",Q106)&_xlfn.FORMULATEXT(Q106) -> $Q$106=-AR106 | G106: =I106++AL106+AU106+AV106+AW106+AX106+AY106+AZ106+BA106 -> 0 | H106: =I106+AL106-AP106+AU106 -> 0 | I106: =J106+AB106+AI106+AJ106+AK106 -> 104.3704678 | J106: =K106+S106+T106+U106+V106+W106+X106+Y106+Z106+AA106 -> 104.3704678 | K106: =SUM(L106:R106) -> 104.3704678 | Q106: =-AR106 -> 104.3704678 | AB106: =AC106+AH106 -> 0 | AC106: =SUM(AD106:AG106) -> 0 | AL106: =AM106+AN106+AO106 -> -104.3704678 | AO106: =AP106+AQ106 -> -104.3704678 | AQ106: =SUM(AR106:AT106) -> -104.3704678 | AR106: =-'7 Factor Summary'!G107 -> -104.3704678
C107: ='7 Factor Summary'!C55 -> 230 kV OH - CONTROL GORGE-INYO LINE to Production | F107: =CELL("Address",R107)&_xlfn.FORMULATEXT(R107) -> $R$107=-AR107 | G107: =I107++AL107+AU107+AV107+AW107+AX107+AY107+AZ107+BA107 -> 0 | H107: =I107+AL107-AP107+AU107 -> 0 | I107: =J107+AB107+AI107+AJ107+AK107 -> 99.15194441 | J107: =K107+S107+T107+U107+V107+W107+X107+Y107+Z107+AA107 -> 99.15194441 | K107: =SUM(L107:R107) -> 99.15194441 | R107: =-AR107 -> 99.15194441 | AB107: =AC107+AH107 -> 0 | AC107: =SUM(AD107:AG107) -> 0 | AL107: =AM107+AN107+AO107 -> -99.15194441 | AO107: =AP107+AQ107 -> -99.15194441 | AQ107: =SUM(AR107:AT107) -> -99.15194441 | AR107: =-'7 Factor Summary'!G108 -> -99.15194441
C109: B.9.2 Reclassify 138 kV, 230kV UG and portion of 230kV OH Lines as Distribution
C110: Distribution | F110: =CELL("Address",AU110)&_xlfn.FORMULATEXT(AU110) -> $AU$110='7 Factor Summary'!G109 | G110: =I110++AL110+AU110+AV110+AW110+AX110+AY110+AZ110+BA110 -> 0 | H110: =I110+AL110-AP110+AU110 -> 0 | I110: =J110+AB110+AI110+AJ110+AK110 -> 0 | J110: =K110+S110+T110+U110+V110+W110+X110+Y110+Z110+AA110 -> 0 | K110: =SUM(L110:R110) -> 0 | AB110: =AC110+AH110 -> 0 | AC110: =SUM(AD110:AG110) -> 0 | AL110: =AM110+AN110+AO110 -> -1406.913906 | AO110: =AP110+AQ110 -> -1406.913906 | AQ110: =SUM(AR110:AT110) -> -1406.913906 | AR110: =-'7 Factor Summary'!G109 -> -1406.913906 | AU110: ='7 Factor Summary'!G109 -> 1406.913906
C112: B.9.3 Factor Olive Switchyard Reclassification
C115: Switchyard Direct Assignment to Production (SF1 and SF2) | AB115: =AC115+AH115 -> 0 | AC115: =SUM(AD115:AG115) -> 0
C116: 115kW LINE ALLOCATOR | F116: =CELL("Address",S116)&_xlfn.FORMULATEXT(S116) -> $S$116='Allocation Factors'!O23 | G116: =I116++AL116+AU116+AV116+AW116+AX116+AY116+AZ116+BA116 -> 1 | H116: =I116+AL116-AP116+AU116 -> 1 | I116: =J116+AB116+AI116+AJ116+AK116 -> 1 | J116: =K116+S116+T116+U116+V116+W116+X116+Y116+Z116+AA116 -> 1 | K116: =SUM(L116:R116) -> 0 | S116: ='Allocation Factors'!O23 -> 0.6229802513 | T116: ='Allocation Factors'!P23 -> 0.3770197487
C117: Switchyard Direct Assignment to Production (SF1 and SF2) | F117: =CELL("Address",S117)&_xlfn.FORMULATEXT(S117) -> $S$117=-S116*$AT$117 | G117: =I117++AL117+AU117+AV117+AW117+AX117+AY117+AZ117+BA117 -> 0 | H117: =I117+AL117-AP117+AU117 -> 0 | I117: =J117+AB117+AI117+AJ117+AK117 -> 229.9170549 | J117: =K117+S117+T117+U117+V117+W117+X117+Y117+Z117+AA117 -> 229.9170549 | K117: =SUM(L117:R117) -> 0 | S117: =-S116*$AT$117 -> 143.2337846 | T117: =-T116*$AT$117 -> 86.68327023 | AL117: =AM117+AN117+AO117 -> -229.9170549 | AO117: =AP117+AQ117 -> -229.9170549 | AQ117: =SUM(AR117:AT117) -> -229.9170549 | AT117: ='7 Factor Summary'!$J$117 -> -229.9170549
C120: Total 7 Factor Reclassifications | F120: =CELL("Address",AU120)&_xlfn.FORMULATEXT(AU120) -> $AU$120=AU117+AU110+AU107+AU106+AU105+AU104 | G120: =G117+G110+G107+G106+G105+G104 -> 0 | H120: 0 | I120: 663.1588667 | J120: 490.2170016 | K120: 260.2999467 | L120: 0 | M120: 0 | N120: 0 | O120: 0 | P120: 56.77753449 | Q120: 104.3704678 | R120: 99.15194441 | S120: 143.2337846 | T120: 86.68327023 | U120: 0 | V120: 0 | W120: 0 | X120: 0 | Y120: 0 | Z120: 0 | AA120: 0 | AB120: 0 | AC120: 0 | AD120: 0 | AE120: 0 | AF120: 0 | AG120: 0 | AH120: 0 | AI120: 0 | AJ120: 162.6979219 | AK120: 10.24394323 | AL120: -2070.072773 | AM120: 0 | AN120: 0 | AO120: -2070.072773 | AP120: 0 | AQ120: -2070.072773 | AR120: -1840.155718 | AS120: 0 | AT120: -229.9170549 | AU120: 1406.913906 | AV120: 0 | AW120: 0 | AX120: 0 | AY120: 0 | AZ120: 0 | BA120: 0
C123: Reclassified Labor Subtotal #8 | F123: =CELL("Address",AU123)&_xlfn.FORMULATEXT(AU123) -> $AU$123=AU120+AU94 | G123: =G120+G94 -> 353088.2778 | H123: 340166.9164 | I123: 87150.07842 | J123: 15334.81729 | K123: 2898.989742 | L123: 572.6679984 | M123: 58.94799757 | N123: 390.9416899 | O123: 559.2492268 | P123: 254.6103953 | Q123: 442.9224429 | R123: 619.6499914 | S123: 2374.179081 | T123: 665.119173 | U123: 178.2552123 | V123: 128.5834527 | W123: 108.6868295 | X123: 0 | Y123: 253.6043167 | Z123: 8727.399478 | AA123: 0 | AB123: 67118.95885 | AC123: 66900.33592 | AD123: 11525.48257 | AE123: 9408.712487 | AF123: 21343.69532 | AG123: 24622.44554 | AH123: 218.6229345 | AI123: 0 | AJ123: 4581.969104 | AK123: 114.3331767 | AL123: 45428.19709 | AM123: 0 | AN123: 0 | AO123: 45428.19709 | AP123: 12914.50551 | AQ123: 32513.69157 | AR123: 16471.96995 | AS123: 6494.519674 | AT123: 9547.201951 | AU123: 220503.1464 | AV123: 0 | AW123: 6.85591 | AX123: 0 | AY123: 0 | AZ123: 0 | BA123: 0
G124: =I123+AL123+AU123+AV123+AW123+AX123+AY123+AZ123+BA123 -> 353088.2778 | H124: =L123+M123+N123+O123+P123+Q123+R123+S123+T123+U123+V123+W123+X123+Y123+Z123+AA123+AD123+AE123+AF123+AG123+AH123+AI123+AJ123+AK123+AM123+AN123+AP123+AR123+AS123+AT123+AU123-AP123 -> 340166.9164
C125: B.10. Reclassify RS Labor to P,T,D
C126: B.10.1. Receiving Station Labor | D126: =6275420.14/1000 -> 6275.42014
C128: B.10.2. Remove RS From Distribution | D128: Reclassified RS | E128: Receiving Station Study Percentages
C129: ='Control Sheet'!G25 -> Distribution Allocation | D129: =E129*$D$126 -> 3296.4782 | E129: ='Control Sheet'!H25 -> 0.5253 | F129: =CELL("Address",AU129)&_xlfn.FORMULATEXT(AU129) -> $AU$129=-D129 | G129: =I129+AL129+AU129+AV129+AW129+AX129+AY129+AZ129+BA129 -> -3296.4782 | H129: =I129+AL129-AP129+AU129 -> -3296.4782 | I129: =J129+AB129+AI129+AJ129+AK129 -> 0 | J129: =K129+S129+T129+U129+V129+W129+X129+Y129+Z129+AA129 -> 0 | K129: =SUM(L129:R129) -> 0 | AB129: =AC129+AH129 -> 0 | AC129: =SUM(AD129:AG129) -> 0 | AL129: =AM129+AN129+AO129 -> 0 | AO129: =AP129+AQ129 -> 0 | AQ129: =SUM(AR129:AT129) -> 0 | AU129: =-D129 -> -3296.4782
C130: ='Control Sheet'!G26 -> Production Allocation | D130: =E130*$D$126 -> 218.3846209 | E130: ='Control Sheet'!H26 -> 0.0348 | F130: =CELL("Address",AU130)&_xlfn.FORMULATEXT(AU130) -> $AU$130=-D130 | G130: =I130+AL130+AU130+AV130+AW130+AX130+AY130+AZ130+BA130 -> -218.3846209 | H130: =I130+AL130-AP130+AU130 -> -218.3846209 | I130: =J130+AB130+AI130+AJ130+AK130 -> 0 | J130: =K130+S130+T130+U130+V130+W130+X130+Y130+Z130+AA130 -> 0 | K130: =SUM(L130:R130) -> 0 | AB130: =AC130+AH130 -> 0 | AC130: =SUM(AD130:AG130) -> 0 | AL130: =AM130+AN130+AO130 -> 0 | AO130: =AP130+AQ130 -> 0 | AQ130: =SUM(AR130:AT130) -> 0 | AU130: =-D130 -> -218.3846209
C131: ='Control Sheet'!G27 -> Transmission Allocation | D131: =E131*$D$126 -> 2760.55732 | E131: ='Control Sheet'!H27 -> 0.4399 | F131: =CELL("Address",AU131)&_xlfn.FORMULATEXT(AU131) -> $AU$131=-D131 | G131: =I131+AL131+AU131+AV131+AW131+AX131+AY131+AZ131+BA131 -> -2760.55732 | H131: =I131+AL131-AP131+AU131 -> -2760.55732 | I131: =J131+AB131+AI131+AJ131+AK131 -> 0 | J131: =K131+S131+T131+U131+V131+W131+X131+Y131+Z131+AA131 -> 0 | K131: =SUM(L131:R131) -> 0 | AB131: =AC131+AH131 -> 0 | AC131: =SUM(AD131:AG131) -> 0 | AL131: =AM131+AN131+AO131 -> 0 | AO131: =AP131+AQ131 -> 0 | AQ131: =SUM(AR131:AT131) -> 0 | AU131: =-D131 -> -2760.55732
C132: Total RS Reclassifications From Dist. | D132: =SUM(D129:D131) -> 6275.42014 | E132: =SUM(E129:E131) -> 1 | F132: =CELL("Address",AU132)&_xlfn.FORMULATEXT(AU132) -> $AU$132=SUM(AU129:AU131) | G132: =SUM(G129:G131) -> -6275.42014 | H132: =SUM(H129:H131) -> -6275.42014 | I132: 0 | J132: 0 | K132: 0 | L132: 0 | M132: 0 | N132: 0 | O132: 0 | P132: 0 | Q132: 0 | R132: 0 | S132: 0 | T132: 0 | U132: 0 | V132: 0 | W132: 0 | X132: 0 | Y132: 0 | Z132: 0 | AA132: 0 | AB132: 0 | AC132: 0 | AD132: 0 | AE132: 0 | AF132: 0 | AG132: 0 | AH132: 0 | AI132: 0 | AJ132: 0 | AK132: 0 | AL132: 0 | AM132: 0 | AN132: 0 | AO132: 0 | AP132: 0 | AQ132: 0 | AR132: 0 | AS132: 0 | AT132: 0 | AU132: -6275.42014 | AV132: 0 | AW132: 0 | AX132: 0 | AY132: 0 | AZ132: 0 | BA132: 0
C134: B.10.3 .Reclassify RS To P,T,D
C135: LA BASIN LABOR ALLOCATOR AFTER SAFETY | F135: =CELL("Address",AD135)&_xlfn.FORMULATEXT(AD135) -> $AD$135=AD123/$AC$123 | AB135: =AC135+AH135 -> 1 | AC135: =SUM(AD135:AG135) -> 1 | AD135: =AD123/$AC$123 -> 0.1722783962 | AE135: =AE123/$AC$123 -> 0.1406377466 | AF135: =AF123/$AC$123 -> 0.319037192 | AG135: =AG123/$AC$123 -> 0.3680466652
C136: RS Reclassified to Production | F136: =CELL("Address",AD136)&_xlfn.FORMULATEXT(AD136) -> $AD$136=-AD135*$AU$130 | G136: =I136+AL136+AU136+AV136+AW136+AX136+AY136+AZ136+BA136 -> 218.3846209 | H136: =I136+AL136-AP136+AU136 -> 218.3846209 | I136: =J136+AB136+AI136+AJ136+AK136 -> 218.3846209 | J136: =K136+S136+T136+U136+V136+W136+X136+Y136+Z136+AA136 -> 0 | K136: =SUM(L136:R136) -> 0 | AB136: =AC136+AH136 -> 218.3846209 | AC136: =SUM(AD136:AG136) -> 218.3846209 | AD136: =-AD135*$AU$130 -> 37.62295223 | AE136: =-AE135*$AU$130 -> 30.71312096 | AF136: =-AF135*$AU$130 -> 69.67281623 | AG136: =-AG135*$AU$130 -> 80.37573145 | AL136: =AM136+AN136+AO136 -> 0 | AO136: =AP136+AQ136 -> 0 | AQ136: =SUM(AR136:AT136) -> 0
C137: RS Reclassified to Transmission | F137: =CELL("Address",A21)&_xlfn.FORMULATEXT(AT137) -> $A$21=-AU131 | G137: =I137+AL137+AU137+AV137+AW137+AX137+AY137+AZ137+BA137 -> 2760.55732 | H137: =I137+AL137-AP137+AU137 -> 2760.55732 | I137: =J137+AB137+AI137+AJ137+AK137 -> 0 | J137: =K137+S137+T137+U137+V137+W137+X137+Y137+Z137+AA137 -> 0 | K137: =SUM(L137:R137) -> 0 | AB137: =AC137+AH137 -> 0 | AC137: =SUM(AD137:AG137) -> 0 | AL137: =AM137+AN137+AO137 -> 2760.55732 | AO137: =AP137+AQ137 -> 2760.55732 | AQ137: =SUM(AR137:AT137) -> 2760.55732 | AT137: =-AU131 -> 2760.55732
C138: RS Reclassified to Distribution | F138: =CELL("Address",A21)&_xlfn.FORMULATEXT(AU138) -> $A$21=-AU129 | G138: =I138+AL138+AU138+AV138+AW138+AX138+AY138+AZ138+BA138 -> 3296.4782 | H138: =I138+AL138-AP138+AU138 -> 3296.4782 | I138: =J138+AB138+AI138+AJ138+AK138 -> 0 | J138: =K138+S138+T138+U138+V138+W138+X138+Y138+Z138+AA138 -> 0 | K138: =SUM(L138:R138) -> 0 | AB138: =AC138+AH138 -> 0 | AC138: =SUM(AD138:AG138) -> 0 | AL138: =AM138+AN138+AO138 -> 0 | AO138: =AP138+AQ138 -> 0 | AQ138: =SUM(AR138:AT138) -> 0 | AU138: =-AU129 -> 3296.4782
C139: Total RS Reclassifications To P,T,D | F139: =CELL("Address",AU139)&_xlfn.FORMULATEXT(AU139) -> $AU$139=SUM(AU136:AU138) | G139: =SUM(G136:G138) -> 6275.42014 | H139: 6275.42014 | I139: 218.3846209 | J139: 0 | K139: 0 | L139: 0 | M139: 0 | N139: 0 | O139: 0 | P139: 0 | Q139: 0 | R139: 0 | S139: 0 | T139: 0 | U139: 0 | V139: 0 | W139: 0 | X139: 0 | Y139: 0 | Z139: 0 | AA139: 0 | AB139: 218.3846209 | AC139: 218.3846209 | AD139: 37.62295223 | AE139: 30.71312096 | AF139: 69.67281623 | AG139: 80.37573145 | AH139: 0 | AI139: 0 | AJ139: 0 | AK139: 0 | AL139: 2760.55732 | AM139: 0 | AN139: 0 | AO139: =AP139+AQ139 -> 2760.55732 | AP139: 0 | AQ139: =SUM(AR139:AT139) -> 2760.55732 | AR139: 0 | AS139: 0 | AT139: 2760.55732 | AU139: 3296.4782 | AV139: 0 | AW139: 0 | AX139: 0 | AY139: 0 | AZ139: 0 | BA139: 0
C141: Reclassified Labor Subtotal #9 | F141: =CELL("Address",AU141)&_xlfn.FORMULATEXT(AU141) -> $AU$141=AU139+AU132+AU123 | G141: =G139+G132+G123 -> 353088.2778 | H141: 340166.9164 | I141: 87368.46304 | J141: 15334.81729 | K141: 2898.989742 | L141: 572.6679984 | M141: 58.94799757 | N141: 390.9416899 | O141: 559.2492268 | P141: 254.6103953 | Q141: 442.9224429 | R141: 619.6499914 | S141: 2374.179081 | T141: 665.119173 | U141: 178.2552123 | V141: 128.5834527 | W141: 108.6868295 | X141: 0 | Y141: 253.6043167 | Z141: 8727.399478 | AA141: 0 | AB141: 67337.34347 | AC141: 67118.72054 | AD141: 11563.10553 | AE141: 9439.425608 | AF141: 21413.36813 | AG141: 24702.82127 | AH141: 218.6229345 | AI141: 0 | AJ141: 4581.969104 | AK141: 114.3331767 | AL141: 48188.75441 | AM141: 0 | AN141: 0 | AO141: 48188.75441 | AP141: 12914.50551 | AQ141: 35274.24889 | AR141: 16471.96995 | AS141: 6494.519674 | AT141: 12307.75927 | AU141: 217524.2045 | AV141: 0 | AW141: 6.85591 | AX141: 0 | AY141: 0 | AZ141: 0 | BA141: 0
H142: =L141+M141+N141+O141+P141+Q141+R141+S141+T141+U141+V141+W141+X141+Y141+Z141+AA141+AD141+AE141+AF141+AG141+AH141+AI141+AJ141+AK141+AM141+AN141+AP141+AR141+AS141+AT141+AU141-AP141 -> 340166.9164
C144: B.11. Reclassify All Miscellaneous Labor to Sawtelle
C145: B.12. Reclassify All Miscellaneous Labor to Sawtelle | F145: =CELL("Address",AW145)&_xlfn.FORMULATEXT(AW145) -> $AW$145=-AW94 | G145: =I145+AL145+AU145+AV145+AW145+AX145+AY145+AZ145+BA145 -> 0 | H145: =I145+AL145-AP145+AU145 -> 6.85591 | I145: =J145+AB145+AI145+AJ145+AK145 -> 6.85591 | J145: =K145+S145+T145+U145+V145+W145+X145+Y145+Z145+AA145 -> 6.85591 | K145: =SUM(L145:R145) -> 0 | X145: =-AW145 -> 6.85591 | AB145: =AC145+AH145 -> 0 | AC145: =SUM(AD145:AG145) -> 0 | AL145: =AM145+AN145+AO145 -> 0 | AO145: =AP145+AQ145 -> 0 | AW145: =-AW94 -> -6.85591
C147: Reclassified Labor Subtotal #10 | F147: =CELL("Address",I147)&_xlfn.FORMULATEXT(I147) -> $I$147=I145+I141 | G147: =G145+G141 -> 353088.2778 | H147: =H145+H141 -> 340173.7723 | I147: =I145+I141 -> 87375.31895 | J147: 15341.6732 | K147: 2898.989742 | L147: 572.6679984 | M147: 58.94799757 | N147: 390.9416899 | O147: 559.2492268 | P147: 254.6103953 | Q147: 442.9224429 | R147: 619.6499914 | S147: 2374.179081 | T147: 665.119173 | U147: 178.2552123 | V147: 128.5834527 | W147: 108.6868295 | X147: 6.85591 | Y147: 253.6043167 | Z147: 8727.399478 | AA147: 0 | AB147: 67337.34347 | AC147: 67118.72054 | AD147: 11563.10553 | AE147: 9439.425608 | AF147: 21413.36813 | AG147: 24702.82127 | AH147: 218.6229345 | AI147: 0 | AJ147: 4581.969104 | AK147: 114.3331767 | AL147: 48188.75441 | AM147: 0 | AN147: 0 | AO147: =AP147+AQ147 -> 48188.75441 | AP147: 12914.50551 | AQ147: =SUM(AR147:AT147) -> 35274.24889 | AR147: 16471.96995 | AS147: 6494.519674 | AT147: 12307.75927 | AU147: 217524.2045 | AV147: 0 | AW147: 0 | AX147: 0 | AY147: 0 | AZ147: 0 | BA147: 0
G148: =I147+AL147+AU147+AV147+AW147+AX147+AY147+AZ147+BA147 -> 353088.2778 | H148: =L147+M147+N147+O147+P147+Q147+R147+S147+T147+U147++V147+W147+X147+Y147+Z147+AA147+AD147+AE147+AF147+AG147+AH147+AI147+AJ147+AK147+AM147+AN147+AP147+AR147+AS147+AT147+AU147-AP147 -> 340173.7723
L150: Owens Valley | AC150: LA BASIN | AL150: Transmission | AV150: Other GL Labor Categories
C151: B.12 .ECC Reclassified from Transmission to P,T,D | F151: Reference | G151: Total Labor Including Other GL Labor Categories | H151: Total Production, Transmission and Distribution Less ECC | I151: Total Labor Production Stations | J151: Total Hydro | K151: Total Owens Valley | L151: Cottonwood | M151: Division Creek | N151: Big Pine | O151: Pleasant Valley | P151: Upper Gorge | Q151: Middle Gorge | R151: Control Gorge | S151: S.F. 1 | T151: S.F. 2 | U151: San Fernando | V151: Foothill | W151: Franklin | X151: Sawtelle | Y151: Haiwee | Z151: Pump Storage Castaic | AA151: Hoover Labor | AB151: Total Steam | AC151: Total LA BASIN | AD151: Harbor | AE151: Valley | AF151: Scattergood | AG151: Haynes | AH151: Navajo | AI151: Palo Verde | AJ151: Wind | AK151: Solar | AL151: Total Transmission | AM151: Transmission San Francisquito | AN151: Transmission All Entries | AO151: Total Transmission Excluding San Francisquito and All Entries | AP151: =+AP29 -> Transmission Energy Management (aka ECC) | AQ151: Transmission - GRID (Sch 7 and 8) | AR151: Transmission Lines | AS151: Transmission Other Operating Expense | AT151: Transmission Station (Substation) | AU151: Distribution O&M & Cust Accts/Cust Ser & Info | AV151: Tank Farms | AW151: Miscellaneous | AX151: Owens Valley Common Hydro | AY151: Common Hydro Costs | AZ151: Safety | BA151: Steam Common Costs
C152: Remove ECC | F152: =CELL("Address",AP152)&_xlfn.FORMULATEXT(AP152) -> $AP$152=-AP147 | G152: =I152+AL152+AU152+AV152+AW152+AX152+AY152+AZ152+BA152 -> -12914.50551 | H152: =I152+AL152-AP152+AU152 -> 0 | I152: =J152+AB152+AI152+AJ152+AK152 -> 0 | J152: =K152+S152+T152+U152+V152+W152+X152+Y152+Z152+AA152 -> 0 | K152: =SUM(L152:R152) -> 0 | AB152: =AC152+AH152 -> 0 | AC152: =SUM(AD152:AG152) -> 0 | AL152: =AM152+AN152+AO152 -> -12914.50551 | AO152: =AP152+AQ152 -> -12914.50551 | AP152: =-AP147 -> -12914.50551 | AQ152: =SUM(AR152:AT152) -> 0
C153: Reclassified Labor - P | F153: =CELL("Address",L153)&_xlfn.FORMULATEXT(L153) -> $L$153=L147/$I$147 | G153: =I153+AL153+AU153+AV153+AW153+AX153+AY153+AZ153+BA153 -> 1 | H153: =I153+AL153-AP153+AU153 -> 1 | I153: =J153+AB153+AI153+AJ153+AK153 -> 1 | J153: =K153+S153+T153+U153+V153+W153+X153+Y153+Z153+AA153 -> 0.1755836017 | K153: =SUM(L153:R153) -> 0.03317858838 | L153: =L147/$I$147 -> 0.006554116258 | M153: 0.0006746527312 | N153: 0.004474280548 | O153: 0.006400540033 | P153: 0.002913985303 | Q153: 0.005069194004 | R153: 0.007091819508 | S153: 0.02717219359 | T153: 0.007612208814 | U153: 0.002040109432 | V153: 0.001471622127 | W153: 0.001243907671 | X153: 7.846506408e-05 | Y153: 0.002902470855 | Z153: 0.09988403571 | AA153: 0 | AB153: =AC153+AH153 -> 0.7706677845 | AC153: =SUM(AD153:AG153) -> 0.7681656713 | AD153: =AD147/$I$147 -> 0.1323383498 | AE153: 0.108033089 | AF153: 0.2450734188 | AG153: 0.2827208137 | AH153: 0.00250211315 | AI153: 0 | AJ153: 0.05244008445 | AK153: 0.001308529434
D156: ECC Labor Ratio | E156: ECC Labor $
C157: Total Reclassified ECC | E157: =-AP152 -> 12914.50551
C159: ECC Labor Ratio - P (From Control Sheet) | D159: ='Control Sheet'!I52 -> 0.2181367681 | E159: =$E$157*D159 -> 2817.128494 | F159: =CELL("Address",L159)&_xlfn.FORMULATEXT(I159) -> $L$159=J159+AB159+AI159+AJ159+AK159 | G159: =I159+AL159+AU159+AV159+AW159+AX159+AY159+AZ159+BA159 -> 2817.128494 | H159: =I159+AL159-AP159+AU159 -> 2817.128494 | I159: =J159+AB159+AI159+AJ159+AK159 -> 2817.128494 | J159: =K159+S159+T159+U159+V159+W159+X159+Y159+Z159+AA159 -> 494.6415672 | K159: =SUM(L159:R159) -> 93.46834672 | L159: =L153*$E$159 -> 18.46378766 | M159: =M153*$E$159 -> 1.900583433 | N159: 12.60462322 | O159: 18.0311437 | P159: 8.209071029 | Q159: 14.28057087 | R159: 19.97856681 | S159: 76.54756079 | T159: 21.44457035 | U159: 5.747250412 | V159: 4.145748627 | W159: 3.504247744 | X159: 0.2210461678 | Y159: 8.176633348 | Z159: 281.3861631 | AA159: 0 | AB159: =AC159+AH159 -> 2171.070175 | AC159: =SUM(AD159:AG159) -> 2164.021401 | AD159: =AD153*$E$159 -> 372.8141361 | AE159: 304.3430933 | AF159: 690.4033112 | AG159: 796.46086 | AH159: 7.048774248 | AI159: 0 | AJ159: 147.7304561 | AK159: 3.686295554 | AL159: =AM159+AN159+AO159 -> 0 | AO159: =AP159+AQ159 -> 0 | AQ159: =SUM(AR159:AT159) -> 0
C160: ECC Labor Ratio - T (From Control Sheet) | D160: ='Control Sheet'!J52 -> 0.4082746937 | E160: =$E$157*D160 -> 5272.665782 | F160: =CELL("Address",AP160)&_xlfn.FORMULATEXT(AP160) -> $AP$160=E160 | G160: =I160+AL160+AU160+AV160+AW160+AX160+AY160+AZ160+BA160 -> 5272.665782 | H160: =I160+AL160-AP160+AU160 -> 0 | I160: =J160+AB160+AI160+AJ160+AK160 -> 0 | J160: =K160+S160+T160+U160+V160+W160+X160+Y160+Z160+AA160 -> 0 | K160: =SUM(L160:R160) -> 0 | AB160: =AC160+AH160 -> 0 | AC160: =SUM(AD160:AG160) -> 0 | AL160: =AM160+AN160+AO160 -> 5272.665782 | AO160: =AP160+AQ160 -> 5272.665782 | AP160: =E160 -> 5272.665782 | AQ160: =SUM(AR160:AT160) -> 0
C161: ECC Labor Ratio - D (From Control Sheet) | D161: ='Control Sheet'!K52 -> 0.3735885383 | E161: =$E$157*D161 -> 4824.711237 | F161: =CELL("Address",AU161)&_xlfn.FORMULATEXT(AU161) -> $AU$161=E161 | G161: =I161+AL161+AU161+AV161+AW161+AX161+AY161+AZ161+BA161 -> 4824.711237 | H161: =I161+AL161-AP161+AU161 -> 4824.711237 | I161: =J161+AB161+AI161+AJ161+AK161 -> 0 | J161: =K161+S161+T161+U161+V161+W161+X161+Y161+Z161+AA161 -> 0 | K161: =SUM(L161:R161) -> 0 | AB161: =AC161+AH161 -> 0 | AC161: =SUM(AD161:AG161) -> 0 | AL161: =AM161+AN161+AO161 -> 0 | AO161: =AP161+AQ161 -> 0 | AQ161: =SUM(AR161:AT161) -> 0 | AU161: =E161 -> 4824.711237
C162: Total ECC | D162: =SUM(D159:D161) -> 1 | E162: =SUM(E159:E161) -> 12914.50551 | F162: =CELL("Address",L162)&_xlfn.FORMULATEXT(I162) -> $L$162=SUM(I159:I161) | G162: =SUM(G159:G161) -> 12914.50551 | H162: =SUM(H159:H161) -> 7641.839731 | I162: 2817.128494 | J162: 494.6415672 | K162: 93.46834672 | L162: 18.46378766 | M162: 1.900583433 | N162: 12.60462322 | O162: 18.0311437 | P162: 8.209071029 | Q162: 14.28057087 | R162: 19.97856681 | S162: 76.54756079 | T162: 21.44457035 | U162: 5.747250412 | V162: 4.145748627 | W162: 3.504247744 | X162: 0.2210461678 | Y162: 8.176633348 | Z162: 281.3861631 | AA162: 0 | AB162: 2171.070175 | AC162: 2164.021401 | AD162: 372.8141361 | AE162: 304.3430933 | AF162: 690.4033112 | AG162: 796.46086 | AH162: 7.048774248 | AI162: 0 | AJ162: 147.7304561 | AK162: 3.686295554 | AL162: 5272.665782 | AM162: 0 | AN162: 0 | AO162: 5272.665782 | AP162: 5272.665782 | AQ162: 0 | AR162: 0 | AS162: 0 | AT162: 0 | AU162: 4824.711237 | AV162: 0 | AW162: 0 | AX162: 0 | AY162: 0 | AZ162: 0 | BA162: 0
C165: Reclassified Labor Subtotal #11 | F165: =CELL("Address",L165)&_xlfn.FORMULATEXT(L165) -> $L$165=L162+L147+L152 | G165: =G162+G147+G152 -> 353088.2778 | H165: 347815.6121 | I165: 90192.44744 | J165: 15836.31476 | K165: 2992.458089 | L165: 591.1317861 | M165: 60.848581 | N165: 403.5463132 | O165: 577.2803705 | P165: 262.8194663 | Q165: 457.2030138 | R165: 639.6285582 | S165: 2450.726642 | T165: 686.5637433 | U165: 184.0024628 | V165: 132.7292014 | W165: 112.1910773 | X165: 7.076956168 | Y165: 261.78095 | Z165: 9008.785641 | AA165: 0 | AB165: 69508.41365 | AC165: 69282.74194 | AD165: 11935.91966 | AE165: 9743.768701 | AF165: 22103.77144 | AG165: 25499.28213 | AH165: 225.6717087 | AI165: 0 | AJ165: 4729.69956 | AK165: 118.0194722 | AL165: 40546.91468 | AM165: 0 | AN165: 0 | AO165: 40546.91468 | AP165: 5272.665782 | AQ165: 35274.24889 | AR165: 16471.96995 | AS165: 6494.519674 | AT165: 12307.75927 | AU165: 222348.9157 | AV165: 0 | AW165: 0 | AX165: 0 | AY165: 0 | AZ165: 0 | BA165: 0
C166: Check | G166: =I165+AL165+AU165+AW165+AX165+AY165+AZ165+BA165 -> 353088.2778 | I166: =J165+AB165+AI165+AJ165+AK165 -> 90192.44744 | J166: =L165+M165+N165+O165+P165+Q165+R165+S165+T165+U165+V165+W165+X165+Y165+Z165+AA165 -> 15836.31476 | K166: =SUM(L165:R165) -> 2992.458089
C168: Reclassified Labor Subtotal #12 (Excl Trans. Energy Management aka ECC) | F168: =CELL("Address",L168)&_xlfn.FORMULATEXT(L168) -> $L$168=L165 | G168: =I168+AL168+AU168+AV168+AW168+AX168+AY168+AZ168+BA168 -> 347815.6121 | H168: =I168+AL168-AP168+AU168 -> 347815.6121 | I168: =J168+AB168+AI168+AJ168+AK168 -> 90192.44744 | J168: =K168+S168+T168+U168+V168+W168+X168+Y168+Z168+AA168 -> 15836.31476 | K168: =SUM(L168:R168) -> 2992.458089 | L168: =L165 -> 591.1317861 | M168: =M165 -> 60.848581 | N168: 403.5463132 | O168: 577.2803705 | P168: 262.8194663 | Q168: 457.2030138 | R168: 639.6285582 | S168: 2450.726642 | T168: 686.5637433 | U168: 184.0024628 | V168: 132.7292014 | W168: 112.1910773 | X168: 7.076956168 | Y168: 261.78095 | Z168: 9008.785641 | AA168: 0 | AB168: =AC168+AH168 -> 69508.41365 | AC168: =SUM(AD168:AG168) -> 69282.74194 | AD168: =AD165 -> 11935.91966 | AE168: 9743.768701 | AF168: 22103.77144 | AG168: 25499.28213 | AH168: 225.6717087 | AI168: 0 | AJ168: 4729.69956 | AK168: 118.0194722 | AL168: =AM168+AN168+AO168 -> 35274.24889 | AM168: =AM165 -> 0 | AN168: =AN165 -> 0 | AO168: =AP168+AQ168 -> 35274.24889 | AQ168: =SUM(AR168:AT168) -> 35274.24889 | AR168: =AR165 -> 16471.96995 | AS168: 6494.519674 | AT168: 12307.75927 | AU168: 222348.9157 | AV168: 0 | AW168: 0 | AX168: 0 | AY168: 0 | AZ168: 0 | BA168: 0
L170: Owens Valley | AC170: LA BASIN | AL170: Transmission
C171: C. RECLASSIFIED LABOR ALLOCATOR - P,T,D | G171: =G29 -> Total Labor Including Other GL Labor Categories | H171: Total Production, Transmission and Distribution Less ECC Column | I171: Total Labor Production Stations | J171: =J29 -> Total Hydro | K171: Total Owens Valley | L171: Cottonwood | M171: Division Creek | N171: Big Pine | O171: Pleasant Valley | P171: Upper Gorge | Q171: Middle Gorge | R171: Control Gorge | S171: S.F. 1 | T171: S.F. 2 | U171: San Fernando | V171: Foothill | W171: Franklin | X171: Sawtelle | Y171: Haiwee | Z171: Pump Storage Castaic | AA171: Hoover Purchased Power | AB171: Total Steam | AC171: =AC29 -> Total LA BASIN | AD171: Harbor | AE171: Valley | AF171: Scattergood | AG171: Haynes | AH171: Navajo | AI171: Palo Verde | AJ171: Wind | AK171: Solar | AL171: Total Transmission | AM171: Transmission San Francisquito | AN171: Transmission "All Entries" GL Category | AO171: Transmission Energy Management and Transmission GRID | AP171: Transmission Energy Management (aka ECC) | AQ171: Transmission - GRID (Sch 7 and 8) | AR171: =AR29 -> Transmission Lines | AS171: =AS29 -> Transmission Other Operating Expense | AT171: =AT29 -> Transmission Station (Substation) | AU171: =AU28 -> Distribution O&M & Cust Accts/Cust Ser & Info
C173: RECLASSIFIED LABOR ALLOCATOR - P,T(Sched 1 and Sched 7&8),D | F173: =CELL("Address",L173)&_xlfn.FORMULATEXT(L173) -> $L$173=L165/$G$165 | G173: =I173++AL173+AU173+AV173+AW173+AX173+AY173+AZ173+BA173 -> 1 | H173: =I173+AL173-AP173+AU173 -> 0.9850670042 | I173: =J173+AB173+AI173+AJ173+AK173 -> 0.2554388041 | J173: =K173+S173+T173+U173+V173+W173+X173+Y173+Z173+AA173 -> 0.04485086523 | K173: =SUM(L173:R173) -> 0.008475098939 | L173: =L165/$G$165 -> 0.001674175619 | M173: 0.0001723324869 | N173: 0.001142904872 | O173: 0.001634946292 | P173: 0.0007443449211 | Q173: 0.001294868854 | R173: 0.001811525894 | S173: 0.006940832635 | T173: 0.001944453516 | U173: 0.0005211231137 | V173: 0.0003759093963 | W173: 0.000317742288 | X173: 2.004302213e-05 | Y173: 0.0007414036842 | Z173: 0.02551425863 | AA173: 0 | AB173: =AC173+AH173 -> 0.1968584572 | AC173: =SUM(AD173:AG173) -> 0.1962193204 | AD173: =AD165/$G$165 -> 0.03380434982 | AE173: 0.02759584306 | AF173: 0.06260126102 | AG173: 0.07221786655 | AH173: 0.0006391367907 | AI173: 0 | AJ173: 0.01339523246 | AK173: 0.0003342491938 | AL173: =SUM(AM173:AO173) -> 0.1148350631 | AM173: =AM165/$G$165 -> 0 | AN173: =AN165/$G$165 -> 0 | AO173: =AP173+AQ173 -> 0.1148350631 | AP173: =AP165/$G$165 -> 0.01493299583 | AQ173: =SUM(AR173:AT173) -> 0.09990206729 | AR173: =AR165/$G$165 -> 0.04665113792 | AS173: =AS165/$G$165 -> 0.01839347291 | AT173: =AT165/$G$165 -> 0.03485745646 | AU173: =AU165/$G$165 -> 0.6297261328
C174: RECLASSIFIED LABOR ALLOCATOR - T | F174: =CELL("Address",AP174)&_xlfn.FORMULATEXT(AP174) -> $AP$174=AP173/AO173 | G174: =I174++AL174+AU174+AV174+AW174+AX174+AY174+AZ174+BA174 -> 1 | H174: =I174+AL174-AP174+AU174 -> 0.8699613565 | I174: =J174+AB174+AI174+AJ174+AK174 -> 0 | J174: =K174+S174+T174+U174+V174+W174+X174+Y174+Z174+AA174 -> 0 | K174: =SUM(L174:R174) -> 0 | AL174: =SUM(AM174:AO174) -> 1 | AO174: =SUM(AP174:AQ174) -> 1 | AP174: =AP173/AO173 -> 0.1300386435 | AQ174: =AQ173/AO173 -> 0.8699613565
C175: RECLASSIFIED LABOR ALLOCATOR - P,T (Sched 7&8 Only), D | F175: =CELL("Address",L175)&_xlfn.FORMULATEXT(L175) -> $L$175=L168/$G$168 | G175: =G168/$G$168 -> 1 | H175: =H168/$G$168 -> 1 | I175: =J175+AB175+AI175+AJ175+AK175 -> 0.2593110956 | J175: =K175+S175+T175+U175+V175+W175+X175+Y175+Z175+AA175 -> 0.04553077612 | K175: =SUM(L175:R175) -> 0.008603576105 | L175: =L168/$G$168 -> 0.001699555068 | M175: 0.0001749449389 | N175: 0.001160230591 | O175: 0.001659731049 | P175: 0.0007556287217 | Q175: 0.001314498251 | R175: 0.001838987486 | S175: 0.00704605129 | T175: 0.001973930208 | U175: 0.0005290230121 | V175: 0.0003816079462 | W175: 0.0003225590611 | X175: 2.034686173e-05 | Y175: 0.0007526428974 | Z175: 0.02590103874 | AA175: 0 | AB175: =AC175+AH175 -> 0.1998427076 | AC175: =SUM(AD175:AG175) -> 0.1991938819 | AD175: =AD168/$G$168 -> 0.03431680249 | AE175: 0.02801417867 | AF175: 0.06355025674 | AG175: 0.07331264395 | AH175: 0.0006488257022 | AI175: 0 | AJ175: 0.01359829575 | AK175: 0.0003393162012 | AL175: =SUM(AM175:AO175) -> 0.1014165198 | AM175: =AM166/$G$165 -> 0 | AN175: =AN166/$G$165 -> 0 | AO175: =AP175+AQ175 -> 0.1014165198 | AQ175: =SUM(AR175:AT175) -> 0.1014165198 | AR175: =AR168/$G$168 -> 0.04735833981 | AS175: =AS168/$G$168 -> 0.01867230638 | AT175: =AT168/$G$168 -> 0.03538587356 | AU175: =AU168/$G$168 -> 0.6392723846
C176: RECLASSIFIED LABOR ALLOCATOR FOR ECC- P,T,D | F176: =CELL("Address",L176)&_xlfn.FORMULATEXT(L176) -> $L$176=L173 | G176: =I176++AL176+AU176+AV176+AW176+AX176+AY176+AZ176+BA176 -> 1 | H176: =I176+AL176-AP176+AU176 -> 0.8851649369 | I176: =J176+AB176+AI176+AJ176+AK176 -> 0.2554388041 | J176: =K176+S176+T176+U176+V176+W176+X176+Y176+Z176+AA176 -> 0.04485086523 | K176: =SUM(L176:R176) -> 0.008475098939 | L176: =L173 -> 0.001674175619 | M176: 0.0001723324869 | N176: 0.001142904872 | O176: 0.001634946292 | P176: 0.0007443449211 | Q176: 0.001294868854 | R176: 0.001811525894 | S176: 0.006940832635 | T176: 0.001944453516 | U176: 0.0005211231137 | V176: 0.0003759093963 | W176: 0.000317742288 | X176: 2.004302213e-05 | Y176: 0.0007414036842 | Z176: 0.02551425863 | AA176: 0 | AB176: 0.1968584572 | AC176: 0.1962193204 | AD176: 0.03380434982 | AE176: 0.02759584306 | AF176: 0.06260126102 | AG176: 0.07221786655 | AH176: 0.0006391367907 | AI176: 0 | AJ176: 0.01339523246 | AK176: =AK173 -> 0.0003342491938 | AL176: =SUM(AM176:AO176) -> 0.1148350631 | AO176: =SUM(AP176:AQ176) -> 0.1148350631 | AP176: =AO173 -> 0.1148350631 | AQ176: =SUM(AR176:AT176) -> 0 | AU176: =AU173 -> 0.6297261328
C179: D. LABOR RATIOS FOR A&G O&M
C180: Total Reclassified Labor Before ECC Reclassification | F180: =CELL("Address",H180)&_xlfn.FORMULATEXT(H180) -> $H$180=G147 | H180: =G147 -> 353088.2778
C181: Less Reclassified Labor - ECC | F181: =CELL("Address",H181)&_xlfn.FORMULATEXT(H181) -> $H$181=-AP147 | H181: =-AP147 -> -12914.50551
C182: Reclassified Labor - Non ECC | F182: =CELL("Address",H182)&_xlfn.FORMULATEXT(H182) -> $H$182=H180+H181 | H182: =H180+H181 -> 340173.7723
C184: Non ECC vs. ECC Labor Ratio
C185: Non ECC Labor % (Before ECC Reclassification) | F185: =CELL("Address",H185)&_xlfn.FORMULATEXT(H185) -> $H$185=H182/H180 | H185: =H182/H180 -> 0.9634241454
C186: ECC Labor % (Before ECC Reclassification) | F186: =CELL("Address",H186)&_xlfn.FORMULATEXT(H186) -> $H$186=-H181/H180 | H186: =-H181/H180 -> 0.0365758546
C187: Total Reclassified Labor | F187: =CELL("Address",H187)&_xlfn.FORMULATEXT(H187) -> $H$187=SUM(H185:H186) | H187: =SUM(H185:H186) -> 1
C190: E. RECLASSIFIED LABOR ALLOCATOR - P
C192: Reclassified Labor Production | F192: =CELL("Address",L192)&_xlfn.FORMULATEXT(L192) -> $L$192=L165 | I192: =I165 -> 90192.44744 | J192: 15836.31476 | K192: 2992.458089 | L192: 591.1317861 | M192: 60.848581 | N192: 403.5463132 | O192: 577.2803705 | P192: 262.8194663 | Q192: 457.2030138 | R192: 639.6285582 | S192: 2450.726642 | T192: 686.5637433 | U192: 184.0024628 | V192: 132.7292014 | W192: 112.1910773 | X192: 7.076956168 | Y192: 261.78095 | Z192: 9008.785641 | AA192: 0 | AB192: =AC192+AH192 -> 69508.41365 | AC192: =SUM(AD192:AG192) -> 69282.74194 | AD192: =AD165 -> 11935.91966 | AE192: 9743.768701 | AF192: 22103.77144 | AG192: 25499.28213 | AH192: 225.6717087 | AI192: 0 | AJ192: 4729.69956 | AK192: 118.0194722
C193: RECLASSIFIED LABOR ALLOCATOR - P | F193: =CELL("Address",L193)&_xlfn.FORMULATEXT(L193) -> $L$193=L192/$I$192 | I193: =J193+AC193+AH193+AI193+AJ193+AK193 -> 1 | J193: =J192/$I$192 -> 0.1755836017 | K193: 0.03317858838 | L193: 0.006554116258 | M193: 0.0006746527312 | N193: 0.004474280548 | O193: 0.006400540033 | P193: 0.002913985303 | Q193: 0.005069194004 | R193: 0.007091819508 | S193: 0.02717219359 | T193: 0.007612208814 | U193: 0.002040109432 | V193: 0.001471622127 | W193: 0.001243907671 | X193: 7.846506408e-05 | Y193: 0.002902470855 | Z193: 0.09988403571 | AA193: 0 | AB193: =AC193+AH193 -> 0.7706677845 | AC193: =SUM(AD193:AG193) -> 0.7681656713 | AD193: =AD192/$I$192 -> 0.1323383498 | AE193: 0.108033089 | AF193: 0.2450734188 | AG193: 0.2827208137 | AH193: 0.00250211315 | AI193: 0 | AJ193: 0.05244008445 | AK193: 0.001308529434

Sheet AJ
C1: =+'Control Sheet'!$A$1 -> Los Angeles Department of Water and Power
C2: =+'Control Sheet'!$A$2 -> Statement
C3: ='Control Sheet'!B43 -> AJ Depreciation and Amortization Expenses as booked for FY 14/15
C4: ='Control Sheet'!$A$3 -> Test Period: FY2014-15 (July 1, 2014 through June 30, 2015)
C5: ='Control Sheet'!$A$4 -> (in Thousands of Dollars)
D6: Error Check
D7: Calculated Totals | E7: =F45+F61+F76+F104+F107+F116+F135+F178+F182+F201+F228+F259+F293 -> 1313834.19
D8: Check Totals | E8: =F46+F62+F77+F105+F108+F117+F136+F179+F183+F202+F229+F294+F260 -> 1313834.19
D9: Difference | E9: =E7-E8 -> 0
D10: Error Check | E10: =IF(ABS(E9)>0.01,"Error","") -> 
C17: Table of Contents
C18: Item | D18: Print Button
C19: =B33 -> A. STEAM DEPRECIATION EXPENSE
C20: =B68 -> B. HYDRO DEPRECIATION EXPENSE
C21: =B112 -> C. NUCLEAR DEPRECIATION EXPENSE
C22: =B121 -> D. OTHER PRODUCTION DEPRECIATION EXPENSE
C23: =B142 -> E. TRANSMISSION DEPRECIATION EXPENSE
C24: =B188 -> F. DISTRIBUTION DEPRECIATION EXPENSE
C25: =B236 -> G. INTANGIBLE PLANT AMORTIZATION
C26: =B263 -> H. GENERAL PLANT DEPRECIATION
C27: =B285 -> I. ECC CLASSIFIED TO GENERAL PLANT
N30: Owens Valley | AG30: LA BASIN
N31: Hydro | O31: Hydro | P31: Hydro | Q31: Hydro | R31: Hydro | S31: Hydro | T31: Hydro | U31: Hydro | V31: Hydro | W31: Hydro | X31: Hydro | Y31: Hydro | Z31: Hydro | AA31: Hydro | AB31: Hydro | AC31: Hydro | AD31: Steam | AF31: Steam | AG31: Steam | AH31: Steam | AI31: Steam | AJ31: Steam | AK31: Steam | AL31: Steam | AM31: Steam | AN31: Steam | AO31: Nuclear | AP31: Other Prod | AQ31: Other Prod | AR31: Transmission
D32: Reference | F32: Total P,T,D | G32: Total Production Stations | H32: Total Hydro With Common Hydro | I32: Common Hydro | J32: Total Hydro With Owens Valley | K32: Total Owens Valley with OV Common Costs | L32: Owens Valley Common | M32: Total Owens Valley Before OV Common Costs | N32: Cottonwood | O32: Division Creek | P32: Big Pine | Q32: Pleasant Valley | R32: Upper Gorge | S32: Middle Gorge | T32: Control Gorge | U32: S.F. 1 | V32: S.F. 2 | W32: San Fernando | X32: Foothill | Y32: Franklin | Z32: Sawtelle | AA32: Haiwee | AB32: Pump Storage Castaic | AC32: Hoover | AD32: Total Steam with Tank Farms | AE32: Tank Farms | AF32: Total Steam | AG32: Total LA BASIN with LA Basin Common | AH32: LA Basin Common Steam | AI32: Total LA Basin | AJ32: Harbor | AK32: Valley | AL32: Scattergood | AM32: Haynes | AN32: Navajo | AO32: Palo Verde | AP32: Wind | AQ32: Solar | AR32: Total Transmission | AS32: Transmission ECC (Sch. 1) | AT32: Transmission GRID (Sch 7 and 8) | AU32: Distribution | AV32: General Plant
B33: A. STEAM DEPRECIATION EXPENSE
C36: A.1 POWER PLANT DEPRECIATION
C37: Power Plant Steam Depreciation Expense | D37: LADWP GL/Power Plant | F37: =G37+AR37+AU37 -> 87708.74362 | G37: =H37+AD37+AO37+AP37+AQ37 -> 87708.74362 | H37: =I37+J37 -> 0 | J37: =K37+U37+V37+W37+X37+Y37+Z37+AA37+AB37+AC37 -> 0 | K37: =L37+M37 -> 0 | M37: =SUM(N37:T37) -> 0 | AD37: =AE37+AF37 -> 87708.74362 | AE37: 1091.77092 | AF37: =+AG37+AN37 -> 86616.9727 | AG37: =AH37+AI37 -> 84374.17821 | AH37: 447.7186 | AI37: =SUM(AJ37:AM37) -> 83926.45961 | AJ37: 17771.88013 | AK37: 17596.16367 | AL37: 4884.52228 | AM37: 43673.89353 | AN37: 2242.79449
C39: A.2 Remove Tank Farms
C40: Remove Tank Farms - do not contribute to ancillary services | D40: =CELL("Address",AE40)&_xlfn.FORMULATEXT(AE40) -> $AE$40=-AE37 | F40: =G40+AR40+AU40 -> -1091.77092 | G40: =H40+AD40+AO40+AP40+AQ40 -> -1091.77092 | H40: =I40+J40 -> 0 | J40: =K40+U40+V40+W40+X40+Y40+Z40+AA40+AB40+AC40 -> 0 | K40: =L40+M40 -> 0 | M40: =SUM(N40:T40) -> 0 | AD40: =AE40+AF40 -> -1091.77092 | AE40: =-AE37 -> -1091.77092 | AF40: =+AG40+AN40 -> 0 | AG40: =AH40+AI40 -> 0 | AI40: =SUM(AJ40:AM40) -> 0
C42: A.3 Remove Depreciation Expense on Retired Assets
C43: Remove Retired Plant - Haynes(U 3-6), Harbor(U 3,4,7), Valley(U 3,4) | D43: =CELL("Address",F43)&_xlfn.FORMULATEXT(F43) -> $F$43=G43+AR43+AU43 | F43: =G43+AR43+AU43 -> -1002.71421 | G43: =H43+AD43+AO43+AP43+AQ43 -> -1002.71421 | H43: =I43+J43 -> 0 | J43: =K43+U43+V43+W43+X43+Y43+Z43+AA43+AB43+AC43 -> 0 | K43: =L43+M43 -> 0 | M43: =SUM(N43:T43) -> 0 | AD43: =AE43+AF43 -> -1002.71421 | AF43: =+AG43+AN43 -> -1002.71421 | AG43: =AH43+AI43 -> -1002.71421 | AI43: =SUM(AJ43:AM43) -> -1002.71421 | AJ43: -49.61915 | AK43: 0 | AM43: ='Haynes Dep Exp and O&M'!E69 -> -953.09506
C45: Total Adjusted Power Plant Depreciation Expense | D45: =CELL("Address",F45)&_xlfn.FORMULATEXT(F45) -> $F$45=F43+F37+F40 | F45: =F43+F37+F40 -> 85614.25849 | G45: 85614.25849 | H45: 0 | I45: 0 | J45: 0 | K45: 0 | L45: 0 | M45: 0 | N45: 0 | O45: 0 | P45: 0 | Q45: 0 | R45: 0 | S45: 0 | T45: 0 | U45: 0 | V45: 0 | W45: 0 | X45: 0 | Y45: 0 | Z45: 0 | AA45: 0 | AB45: 0 | AC45: 0 | AD45: 85614.25849 | AE45: 0 | AF45: 85614.25849 | AG45: 83371.464 | AH45: 447.7186 | AI45: 82923.7454 | AJ45: 17722.26098 | AK45: 17596.16367 | AL45: 4884.52228 | AM45: 42720.79847 | AN45: 2242.79449 | AO45: 0 | AP45: 0 | AQ45: 0 | AR45: 0 | AS45: 0 | AT45: 0 | AU45: 0 | AV45: 0
C46: Check | F46: =I45+L45+N45+O45+P45+Q45+R45+S45+T45+U45+V45+W45+X45+Y45+Z45+AA45+AB45+AC45+AE45++AH45+AJ45+AK45+AL45+AM45+AN45+AO45+AP45+AQ45+AR45+AU45 -> 85614.25849
C48: A.4 Steam Depreciation Reclassifications
C50: A.4.1 Reclassify LA Basin Common Steam to LA Basin Stations
C51: LA BASIN DEPRECIATION EXPENSE ALLOCATOR | D51: =CELL("Address",AJ51)&_xlfn.FORMULATEXT(AJ51) -> $AJ$51=AJ$45/$AI$45 | F51: =G51+AR51+AU51 -> 1 | G51: =H51+AD51+AO51+AP51+AQ51 -> 1 | H51: =I51+J51 -> 0 | J51: =K51+U51+V51+W51+X51+Y51+Z51+AA51+AB51+AC51 -> 0 | K51: =L51+M51 -> 0 | AD51: =AE51+AF51 -> 1 | AF51: =+AG51+AN51 -> 1 | AG51: =AH51+AI51 -> 1 | AI51: =SUM(AJ51:AM51) -> 1 | AJ51: =AJ$45/$AI$45 -> 0.2137175654 | AK51: =AK$45/$AI$45 -> 0.2121969236 | AL51: =AL$45/$AI$45 -> 0.0589037827 | AM51: =AM$45/$AI$45 -> 0.5151817283
C52: Reclassify LA Basin Common Steam to LA Basin Stations | D52: =CELL("Address",AJ52)&_xlfn.FORMULATEXT(AJ52) -> $AJ$52=-AJ51*$AH52 | F52: =G52+AR52+AU52 -> 0 | G52: =H52+AD52+AO52+AP52+AQ52 -> 0 | H52: =I52+J52 -> 0 | J52: =K52+U52+V52+W52+X52+Y52+Z52+AA52+AB52+AC52 -> 0 | K52: =L52+M52 -> 0 | M52: =SUM(N52:T52) -> 0 | AD52: =AE52+AF52 -> 0 | AF52: =+AG52+AN52 -> 0 | AG52: =AH52+AI52 -> 0 | AH52: =-AH45 -> -447.7186 | AI52: =SUM(AJ52:AM52) -> 447.7186 | AJ52: =-AJ51*$AH52 -> 95.68532917 | AK52: =-AK51*$AH52 -> 95.00450957 | AL52: =-AL51*$AH52 -> 26.37231913 | AM52: =-AM51*$AH52 -> 230.6564421
C54: A.4.3 Reclassify Distribution Receiving Stations to LA Basin
C55: LA BASIN DEPRECIATION EXPENSE ALLOCATOR | D55: =CELL("Address",AJ55)&_xlfn.FORMULATEXT(AJ55) -> $AJ$55=AJ$45/$AI$45 | F55: =G55+AR55+AU55 -> 1 | G55: =H55+AD55+AO55+AP55+AQ55 -> 1 | H55: =I55+J55 -> 0 | J55: =K55+U55+V55+W55+X55+Y55+Z55+AA55+AB55+AC55 -> 0 | K55: =L55+M55 -> 0 | AD55: =AE55+AF55 -> 1 | AF55: =+AG55+AN55 -> 1 | AG55: =AH55+AI55 -> 1 | AI55: =SUM(AJ55:AM55) -> 1 | AJ55: =AJ$45/$AI$45 -> 0.2137175654 | AK55: =AK$45/$AI$45 -> 0.2121969236 | AL55: =AL$45/$AI$45 -> 0.0589037827 | AM55: =AM$45/$AI$45 -> 0.5151817283
C56: Receiving Station Study Allocation
C57: Total Dist. Receiving Station Reclassified from Distribution to Production | D57: =CELL("Address",E57)&_xlfn.FORMULATEXT(E57) -> $E$57=-$AU$212 | E57: =-$AU$212 -> 24306.387
C58: Production Allocation | D58: =CELL("Address",E58)&_xlfn.FORMULATEXT(E58) -> $E$58='Control Sheet'!H26 | E58: ='Control Sheet'!H26 -> 0.0348
C59: Receiving Station Allocated to Production | D59: =CELL("Address",E59)&_xlfn.FORMULATEXT(E59) -> $E$59=E57*E58 | E59: =E57*E58 -> 845.8622676 | F59: =G59+AR59+AU59 -> 845.8622676 | G59: =H59+AD59+AO59+AP59+AQ59 -> 845.8622676 | H59: =I59+J59 -> 0 | J59: =K59+U59+V59+W59+X59+Y59+Z59+AA59+AB59+AC59 -> 0 | K59: =L59+M59 -> 0 | M59: =SUM(N59:T59) -> 0 | AD59: =AE59+AF59 -> 845.8622676 | AF59: =+AG59+AN59 -> 845.8622676 | AG59: =AH59+AI59 -> 845.8622676 | AI59: =SUM(AJ59:AM59) -> 845.8622676 | AJ59: =$E$59*AJ55 -> 180.7756245 | AK59: =$E$59*AK55 -> 179.489371 | AL59: =$E$59*AL55 -> 49.82448721 | AM59: =$E$59*AM55 -> 435.7727849
C61: Total Reclassified Steam Depreciation Expense | D61: =CELL("Address",F61)&_xlfn.FORMULATEXT(F61) -> $F$61=F59++F45+F52 | F61: =F59++F45+F52 -> 86460.12076 | G61: 86460.12076 | H61: 0 | I61: 0 | J61: 0 | K61: 0 | L61: 0 | M61: 0 | N61: 0 | O61: 0 | P61: 0 | Q61: 0 | R61: 0 | S61: 0 | T61: 0 | U61: 0 | V61: 0 | W61: 0 | X61: 0 | Y61: 0 | Z61: 0 | AA61: 0 | AB61: 0 | AC61: 0 | AD61: 86460.12076 | AE61: 0 | AF61: 86460.12076 | AG61: 84217.32627 | AH61: 0 | AI61: 84217.32627 | AJ61: 17998.72193 | AK61: 17870.65755 | AL61: 4960.719086 | AM61: 43387.2277 | AN61: 2242.79449 | AO61: 0 | AP61: 0 | AQ61: 0 | AR61: 0 | AU61: =AU59++AU45+AU52 -> 0 | AV61: =AV59++AV45+AV52 -> 0
C62: Check | F62: =I61+L61+N61+O61+P61+Q61+R61+S61+T61+U61+V61+W61+X61+Y61+Z61+AA61+AB61+AC61+AE61++AH61+AJ61+AK61+AL61+AM61+AN61+AO61+AP61+AQ61+AR61+AU61 -> 86460.12076
N66: Owens Valley | AG66: LA BASIN
N67: Hydro | O67: Hydro | P67: Hydro | Q67: Hydro | R67: Hydro | S67: Hydro | T67: Hydro | U67: Hydro | V67: Hydro | W67: Hydro | X67: Hydro | Y67: Hydro | Z67: Hydro | AA67: Hydro | AB67: Hydro | AC67: Hydro | AD67: Steam | AF67: Steam | AG67: Steam | AH67: Steam | AI67: Steam | AJ67: Steam | AK67: Steam | AL67: Steam | AM67: Steam | AN67: Steam | AO67: Nuclear | AP67: Other Prod | AQ67: Other Prod | AR67: Transmission
B68: B. HYDRO DEPRECIATION EXPENSE | D68: Reference | F68: Total P,T,D | G68: Total Production Stations | H68: Total Hydro With Common Hydro | I68: Common Hydro | J68: Total Hydro With Owens Valley | K68: Total Owens Valley with OV Common Costs | L68: Owens Valley Common | M68: Total Owens Valley Before OV Common Costs | N68: Cottonwood | O68: Division Creek | P68: Big Pine | Q68: Pleasant Valley | R68: Upper Gorge | S68: Middle Gorge | T68: Control Gorge | U68: S.F. 1 | V68: S.F. 2 | W68: San Fernando | X68: Foothill | Y68: Franklin | Z68: Sawtelle | AA68: Haiwee | AB68: Pump Storage Castaic | AC68: Hoover | AD68: Total Steam with Tank Farms | AE68: Tank Farms | AF68: Total Steam | AG68: Total LA BASIN with LA Basin Common | AH68: LA Basin Common Steam | AI68: Total LA Basin | AJ68: Harbor | AK68: Valley | AL68: Scattergood | AM68: Haynes | AN68: Navajo | AO68: Palo Verde | AP68: Wind | AQ68: Solar | AR68: Total Transmission | AS68: Transmission ECC (Sch. 1) | AT68: Transmission GRID (Sch 7 and 8) | AU68: Distribution | AV68: General Plant
C70: B.1 Power Plant Hydro Depreciation
C72: Total Power Plant Hydro Depreciation Expense | D72: LADWP Power Plant | F72: =G72+AR72+AU72 -> 17779.66627 | G72: =H72+AD72+AO72+AP72+AQ72 -> 17779.66627 | H72: =I72+J72 -> 17779.66627 | I72: 132.61731 | J72: =K72+U72+V72+W72+X72+Y72+Z72+AA72+AB72+AC72 -> 17647.04896 | K72: =L72+M72 -> 2184.34097 | L72: 288.62363 | M72: =SUM(N72:T72) -> 1895.71734 | N72: 250.99586 | O72: 12.24427 | P72: 97.0011 | Q72: 64.97886 | R72: 359.11109 | S72: 233.63335 | T72: 877.75281 | U72: 782.9547042 | V72: 543.1763258 | W72: 33.63732 | X72: 99.12334 | Y72: 78.34719 | Z72: 0.67794 | AA72: 134.54526 | AB72: 13790.18267 | AC72: 0.06324
C74: Remove Hoover Depreciation Expense | D74: =CELL("Address",AC74)&_xlfn.FORMULATEXT(AC74) -> $AC$74=-AC72 | F74: =G74+AR74+AU74 -> -0.06324 | G74: =H74+AD74+AO74+AP74+AQ74 -> -0.06324 | H74: =I74+J74 -> -0.06324 | J74: =K74+U74+V74+W74+X74+Y74+Z74+AA74+AB74+AC74 -> -0.06324 | K74: =L74+M74 -> 0 | M74: =SUM(N74:T74) -> 0 | AC74: =-AC72 -> -0.06324
C76: Total Power Plant Hydro Depreciation Expense Excl. Hoover | D76: =CELL("Address",F76)&_xlfn.FORMULATEXT(F76) -> $F$76=F74+F72 | F76: =F74+F72 -> 17779.60303 | G76: 17779.60303 | H76: 17779.60303 | I76: 132.61731 | J76: 17646.98572 | K76: 2184.34097 | L76: 288.62363 | M76: 1895.71734 | N76: 250.99586 | O76: 12.24427 | P76: 97.0011 | Q76: 64.97886 | R76: 359.11109 | S76: 233.63335 | T76: 877.75281 | U76: 782.9547042 | V76: 543.1763258 | W76: 33.63732 | X76: 99.12334 | Y76: 78.34719 | Z76: 0.67794 | AA76: 134.54526 | AB76: 13790.18267 | AC76: 0
C77: Check | F77: =I76+L76+N76+O76+P76+Q76+R76+S76+T76+U76+V76+W76+X76+Y76+Z76+AA76+AB76+AC76+AE76++AH76+AJ76+AK76+AL76+AM76+AN76+AO76+AP76+AQ76+AR76+AU76 -> 17779.60303
C80: B.2 Hydro Depreciation Reclassifications
C82: B.2.1 Reclassify OV Common to OV Facilities
C83: OWENS VALLEY COMMON COST DEPRECIATION ALLOCATOR | D83: =CELL("Address",N83)&_xlfn.FORMULATEXT(N83) -> $N$83=N76/$M$76 | F83: =G83+AR83+AU83 -> 1 | G83: =H83+AD83+AO83+AP83+AQ83 -> 1 | H83: =I83+J83 -> 1 | J83: =K83+U83+V83+W83+X83+Y83+Z83+AA83+AB83+AC83 -> 1 | K83: =L83+M83 -> 1 | M83: =SUM(N83:T83) -> 1 | N83: =N76/$M$76 -> 0.1324015214 | O83: 0.006458911221 | P83: 0.05116854604 | Q83: 0.03427666068 | R83: 0.1894328244 | S83: 0.123242714 | T83: 0.4630188222
C84: Reclassify OV Common to OV Facilities | D84: =CELL("Address",N84)&_xlfn.FORMULATEXT(N84) -> $N$84=-N83*$L$84 | F84: =G84+AR84+AU84 -> 0 | G84: =H84+AD84+AO84+AP84+AQ84 -> 0 | H84: =I84+J84 -> 0 | J84: =K84+U84+V84+W84+X84+Y84+Z84+AA84+AB84+AC84 -> 0 | K84: =L84+M84 -> 0 | L84: =-L72 -> -288.62363 | M84: =SUM(N84:T84) -> 288.62363 | N84: =-N83*$L$84 -> 38.21420773 | O84: 1.864194403 | P84: 14.7684515 | Q84: 9.893054228 | R84: 54.67478942 | S84: 35.57075949 | T84: 133.6381732 | AD84: =AE84+AF84 -> 0 | AF84: =+AG84+AN84 -> 0 | AG84: =AH84+AI84 -> 0 | AI84: =SUM(AJ84:AM84) -> 0
C86: Hydro Depreciation Subtotal | D86: =CELL("Address",F86)&_xlfn.FORMULATEXT(F86) -> $F$86=F84+F76 | F86: =F84+F76 -> 17779.60303 | G86: 17779.60303 | H86: 17779.60303 | I86: 132.61731 | J86: 17646.98572 | K86: 2184.34097 | L86: 0 | M86: 2184.34097 | N86: 289.2100677 | O86: 14.1084644 | P86: 111.7695515 | Q86: 74.87191423 | R86: 413.7858794 | S86: 269.2041095 | T86: 1011.390983 | U86: 782.9547042 | V86: 543.1763258 | W86: 33.63732 | X86: 99.12334 | Y86: 78.34719 | Z86: 0.67794 | AA86: 134.54526 | AB86: 13790.18267 | AC86: 0
C88: B.2.2 Reclassify Common Hydro to All Hydro Stations
C89: COMMON HYDRO DEPRECIATION ALLOCATOR | D89: =CELL("Address",N89)&_xlfn.FORMULATEXT(N89) -> $N$89=N86/$J$86 | F89: =G89+AR89+AU89 -> 1 | G89: =H89+AD89+AO89+AP89+AQ89 -> 1 | H89: =I89+J89 -> 1 | J89: =K89+U89+V89+W89+X89+Y89+Z89+AA89+AB89+AC89 -> 1 | K89: =L89+M89 -> 0.1237798344 | M89: =SUM(N89:T89) -> 0.1237798344 | N89: =N86/$J$86 -> 0.0163886384 | O89: 0.0007994829614 | P89: 0.006333634156 | Q89: 0.004242759382 | R89: 0.02344796363 | S89: 0.01525496273 | T89: 0.05731239313 | U89: 0.04436761703 | V89: 0.0307801193 | W89: 0.001906122696 | X89: 0.005617012535 | Y89: 0.004439692492 | Z89: 3.841675914e-05 | AA89: 0.007624262984 | AB89: 0.7814469218 | AC89: 0
C90: Reclassify Common Hydro to Hydro Stations | D90: =CELL("Address",N90)&_xlfn.FORMULATEXT(N90) -> $N$90=-N89*$I$90 | F90: =G90+AR90+AU90 -> 0 | G90: =H90+AD90+AO90+AP90+AQ90 -> 0 | H90: =I90+J90 -> 0 | I90: =-I86 -> -132.61731 | J90: =K90+U90+V90+W90+X90+Y90+Z90+AA90+AB90+AC90 -> 132.61731 | K90: =L90+M90 -> 16.41534867 | M90: =SUM(N90:T90) -> 16.41534867 | N90: =-N89*$I$90 -> 2.173417139 | O90: =-O89*$I$90 -> 0.1060252797 | P90: 0.8399495243 | Q90: 0.5626633362 | R90: 3.109605862 | S90: 2.023072122 | T90: 7.600615407 | U90: 5.883914022 | V90: 4.081976623 | W90: 0.2527848645 | X90: 0.7449130927 | Y90: 0.5887800755 | Z90: 0.005094727256 | AA90: 1.011109248 | AB90: 103.6333887 | AC90: 0
C92: B.2.3 7 Factor Reclassifications
C94: 7 Factor Reclassification of Transmission Lines to Production Gen-tie
C95: =C169 -> 230 kV OH - UPPER GORGE-MIDDLE GORGE | D95: =CELL("Address",R95)&_xlfn.FORMULATEXT(R95) -> $R$95=-AR169 | F95: =G95+AR95+AU95 -> 8.596910368 | G95: =H95+AD95+AO95+AP95+AQ95 -> 8.596910368 | H95: 8.596910368 | J95: =K95+U95+V95+W95+X95+Y95+Z95+AA95+AB95+AC95 -> 8.596910368 | K95: =L95+M95 -> 8.596910368 | M95: =SUM(N95:T95) -> 8.596910368 | R95: =-AR169 -> 8.596910368
C96: =C170 -> 230 kV OH - MIDDLE GORGE-CONTROL GORGE | D96: =CELL("Address",S96)&_xlfn.FORMULATEXT(S96) -> $S$96=-AR170 | F96: =G96+AR96+AU96 -> 15.80314406 | G96: =H96+AD96+AO96+AP96+AQ96 -> 15.80314406 | H96: 15.80314406 | J96: =K96+U96+V96+W96+X96+Y96+Z96+AA96+AB96+AC96 -> 15.80314406 | K96: =L96+M96 -> 15.80314406 | M96: =SUM(N96:T96) -> 15.80314406 | S96: =-AR170 -> 15.80314406
C97: =C171 -> 230 kV OH - CONTROL GORGE-INYO LINE to Production | D97: =CELL("Address",T97)&_xlfn.FORMULATEXT(T97) -> $T$97=-AR171 | F97: =G97+AR97+AU97 -> 15.01298686 | G97: =H97+AD97+AO97+AP97+AQ97 -> 15.01298686 | H97: 15.01298686 | J97: =K97+U97+V97+W97+X97+Y97+Z97+AA97+AB97+AC97 -> 15.01298686 | K97: =L97+M97 -> 15.01298686 | M97: =SUM(N97:T97) -> 15.01298686 | T97: =-AR171 -> 15.01298686
C98: Total 7 Factor Reclassification | D98: =CELL("Address",F98)&_xlfn.FORMULATEXT(F98) -> $F$98=SUM(F95:F97) | F98: =SUM(F95:F97) -> 39.41304128 | G98: 39.41304128 | H98: 39.41304128 | I98: 0 | J98: 39.41304128 | K98: 39.41304128 | L98: 0 | M98: 39.41304128 | N98: 0 | O98: 0 | P98: 0 | Q98: 0 | R98: 8.596910368 | S98: 15.80314406 | T98: =SUM(T95:T97) -> 15.01298686 | U98: 0 | V98: 0 | W98: 0 | X98: 0 | Y98: 0 | Z98: 0 | AA98: 0 | AB98: 0 | AC98: 0
C100: 7 Factor Olive Switchyard Reclassification
C101: 115kW LINE ALLOCATOR | D101: =CELL("Address",U101)&_xlfn.FORMULATEXT(U101) -> $U$101='Allocation Factors'!O23 | F101: =G101+AR101+AU101 -> 1 | G101: =H101+AD101+AO101+AP101+AQ101 -> 1 | H101: =I101+J101 -> 1 | J101: =K101+U101+V101+W101+X101+Y101+Z101+AA101+AB101+AC101 -> 1 | K101: =L101+M101 -> 0 | U101: ='Allocation Factors'!O23 -> 0.6229802513 | V101: ='Allocation Factors'!P23 -> 0.3770197487
C102: 7 Factor Olive Switchyard Reclassification | D102: =CELL("Address",U102)&_xlfn.FORMULATEXT(U102) -> $U$102=-U101*$AR$176 | F102: =G102+AR102+AU102 -> 259.711429 | G102: =H102+AD102+AO102+AP102+AQ102 -> 259.711429 | H102: =I102+J102 -> 259.711429 | J102: =K102+U102+V102+W102+X102+Y102+Z102+AA102+AB102+AC102 -> 259.711429 | K102: =L102+M102 -> 0 | U102: =-U101*$AR$176 -> 161.7950913 | V102: =-V101*$AR$176 -> 97.91633769
C104: Total 7 Factor Reclassification | D104: =CELL("Address",U104)&_xlfn.FORMULATEXT(U104) -> $U$104=U102+U98 | F104: =F102+F98 -> 299.1244703 | G104: =G102+G98 -> 299.1244703 | H104: 299.1244703 | I104: 0 | J104: 299.1244703 | K104: 39.41304128 | L104: 0 | M104: 39.41304128 | N104: 0 | O104: 0 | P104: 0 | Q104: 0 | R104: 8.596910368 | S104: 15.80314406 | T104: 15.01298686 | U104: 161.7950913 | V104: 97.91633769 | W104: 0 | X104: 0 | Y104: 0 | Z104: 0 | AA104: 0 | AB104: 0 | AC104: 0 | AD104: 0 | AE104: 0 | AF104: 0 | AG104: 0 | AH104: 0 | AI104: 0 | AJ104: 0 | AK104: 0 | AL104: 0 | AM104: 0 | AN104: 0 | AO104: 0 | AP104: 0 | AQ104: 0 | AR104: 0 | AU104: 0 | AV104: 0
C105: Check | F105: =I104+L104+N104+O104+P104+Q104+R104+S104+T104+U104+V104+W104+X104+Y104+Z104+AA104+AB104+AC104+AE104++AH104+AJ104+AK104+AL104+AM104+AN104+AO104+AP104+AQ104+AR104+AU104 -> 299.1244703
C107: Total Reclassified Hydro Depreciation Expense | D107: =CELL("Address",F107)&_xlfn.FORMULATEXT(F107) -> $F$107=F90+F86+F104 | F107: =F90+F86+F104 -> 18078.7275 | G107: =G90+G86+G104 -> 18078.7275 | H107: 18078.7275 | I107: 0 | J107: 18078.7275 | K107: 2240.16936 | L107: 0 | M107: 2240.16936 | N107: 291.3834849 | O107: 14.21448968 | P107: 112.609501 | Q107: 75.43457756 | R107: 425.4923957 | S107: 287.0303257 | T107: 1034.004585 | U107: 950.6337096 | V107: 645.1746401 | W107: 33.89010486 | X107: 99.86825309 | Y107: 78.93597008 | Z107: 0.6830347273 | AA107: 135.5563692 | AB107: 13893.81606 | AC107: 0 | AD107: 0 | AE107: 0 | AF107: 0 | AG107: 0 | AH107: 0 | AI107: 0 | AJ107: 0 | AK107: 0 | AL107: 0 | AM107: 0 | AN107: 0 | AO107: 0 | AP107: 0 | AQ107: 0 | AR107: 0 | AU107: 0 | AV107: 0
C108: Check | F108: =I107+L107+N107+O107+P107+Q107+R107+S107+T107+U107+V107+W107+X107+Y107+Z107+AA107+AB107+AC107+AE107++AH107+AJ107+AK107+AL107+AM107+AN107+AO107+AP107+AQ107+AR107+AU107 -> 18078.7275
N110: Owens Valley | AG110: LA BASIN
N111: Hydro | O111: Hydro | P111: Hydro | Q111: Hydro | R111: Hydro | S111: Hydro | T111: Hydro | U111: Hydro | V111: Hydro | W111: Hydro | X111: Hydro | Y111: Hydro | Z111: Hydro | AA111: Hydro | AB111: Hydro | AC111: Hydro | AD111: Steam | AF111: Steam | AG111: Steam | AH111: Steam | AI111: Steam | AJ111: Steam | AK111: Steam | AL111: Steam | AM111: Steam | AN111: Steam | AO111: Nuclear | AP111: Other Prod | AQ111: Other Prod | AR111: Transmission
B112: C. NUCLEAR DEPRECIATION EXPENSE | D112: Reference | F112: Total P,T,D | G112: Total Production Stations | H112: Total Hydro With Common Hydro | I112: Common Hydro | J112: Total Hydro With Owens Valley | K112: Total Owens Valley with OV Common Costs | L112: Owens Valley Common | M112: Total Owens Valley Before OV Common Costs | N112: Cottonwood | O112: Division Creek | P112: Big Pine | Q112: Pleasant Valley | R112: Upper Gorge | S112: Middle Gorge | T112: Control Gorge | U112: S.F. 1 | V112: S.F. 2 | W112: San Fernando | X112: Foothill | Y112: Franklin | Z112: Sawtelle | AA112: Haiwee | AB112: Pump Storage Castaic | AC112: Hoover | AD112: Total Steam with Common Costs and Tank Farms | AE112: Tank Farms | AF112: Total Steam With Miscel Steam | AG112: Total LA BASIN with LA Basin Common | AH112: LA Basin Common Steam | AI112: Total LA Basin | AJ112: Harbor | AK112: Valley | AL112: Scattergood | AM112: Haynes | AN112: Navajo | AO112: Palo Verde | AP112: Wind | AQ112: Solar | AR112: Total Transmission | AS112: Transmission ECC (Sch. 1) | AT112: Transmission GRID (Sch 7 and 8) | AU112: Distribution | AV112: General Plant
C114: Palo Verde | D114: LADWP Power Plant | F114: =G114+AR114+AU114 -> 16605.40815 | G114: =H114+AD114+AO114+AP114+AQ114 -> 16605.40815 | H114: =I114+J114 -> 0 | J114: =K114+U114+V114+W114+X114+Y114+Z114+AA114+AB114+AC114 -> 0 | K114: =L114+M114 -> 0 | M114: =SUM(N114:T114) -> 0 | AD114: =AE114+AF114 -> 0 | AF114: =+AG114+AN114 -> 0 | AG114: =AH114+AI114 -> 0 | AI114: =SUM(AJ114:AM114) -> 0 | AO114: 16605.40815
C116: Total Nuclear Depreciation Expense | D116: =CELL("Address",F116)&_xlfn.FORMULATEXT(F116) -> $F$116=F114 | F116: =F114 -> 16605.40815 | G116: 16605.40815 | H116: 0 | I116: 0 | J116: 0 | K116: 0 | L116: 0 | M116: 0 | N116: 0 | O116: 0 | P116: 0 | Q116: 0 | R116: 0 | S116: 0 | T116: 0 | U116: 0 | V116: 0 | W116: 0 | X116: 0 | Y116: 0 | Z116: 0 | AA116: 0 | AB116: 0 | AC116: 0 | AD116: 0 | AE116: 0 | AF116: 0 | AG116: 0 | AH116: 0 | AI116: 0 | AJ116: 0 | AK116: 0 | AL116: 0 | AM116: 0 | AN116: 0 | AO116: 16605.40815 | AP116: 0 | AQ116: 0 | AR116: 0 | AS116: 0 | AT116: 0 | AU116: 0 | AV116: 0
C117: Check | F117: =I116+L116+N116+O116+P116+Q116+R116+S116+T116+U116+V116+W116+X116+Y116+Z116+AA116+AB116+AC116+AE116++AH116+AJ116+AK116+AL116+AM116+AN116+AO116+AP116+AQ116+AR116+AU116 -> 16605.40815
B121: D. OTHER PRODUCTION DEPRECIATION EXPENSE
C123: D.1 Power Plant Details -503123 -Depreciation Expense
AF125: =+AG125+AN125 -> 0
C126: Solar | D126: LADWP Power Plant | F126: =G126+AR126+AU126 -> 5110.19225 | G126: =H126+AD126+AO126+AP126+AQ126 -> 5110.19225 | H126: =I126+J126 -> 0 | J126: =K126+U126+V126+W126+X126+Y126+Z126+AA126+AB126+AC126 -> 0 | K126: =L126+M126 -> 0 | M126: =SUM(N126:T126) -> 0 | AD126: =AE126+AF126 -> 0 | AF126: =+AG126+AN126 -> 0 | AG126: =AH126+AI126 -> 0 | AI126: =SUM(AJ126:AM126) -> 0 | AQ126: 5110.19225
C127: Wind Farm | D127: LADWP Power Plant | F127: =G127+AR127+AU127 -> 18097.87611 | G127: =H127+AD127+AO127+AP127+AQ127 -> 18097.87611 | H127: =I127+J127 -> 0 | J127: =K127+U127+V127+W127+X127+Y127+Z127+AA127+AB127+AC127 -> 0 | K127: =L127+M127 -> 0 | M127: =SUM(N127:T127) -> 0 | AD127: =AE127+AF127 -> 0 | AF127: =+AG127+AN127 -> 0 | AG127: =AH127+AI127 -> 0 | AI127: =SUM(AJ127:AM127) -> 0 | AP127: 18097.87611
C128: Total | D128: =CELL("Address",F128)&_xlfn.FORMULATEXT(F128) -> $F$128=SUM(F126:F127) | F128: =SUM(F126:F127) -> 23208.06836 | G128: 23208.06836 | H128: 0 | I128: =SUM(I126:I127) -> 0 | J128: 0 | K128: 0 | L128: 0 | M128: 0 | N128: 0 | O128: 0 | P128: 0 | Q128: 0 | R128: 0 | S128: 0 | T128: 0 | U128: 0 | V128: 0 | W128: 0 | X128: 0 | Y128: 0 | Z128: 0 | AA128: 0 | AB128: 0 | AC128: 0 | AD128: 0 | AE128: 0 | AF128: 0 | AG128: 0 | AH128: 0 | AI128: 0 | AJ128: 0 | AK128: 0 | AL128: 0 | AM128: 0 | AN128: 0 | AO128: 0 | AP128: 18097.87611 | AQ128: 5110.19225 | AR128: 0 | AU128: 0
C130: D. 2 7 Factor Reclassification of Transmission to Production Gen-tie
C131: =C168&" Allocator" -> 230 kV OH - PINETREE BARREN-RIDGE LINE (Wind + Solar) Allocator | D131: =CELL("Address",AP131)&_xlfn.FORMULATEXT(AP131) -> $AP$131='Allocation Factors'!AD111 | AP131: ='Allocation Factors'!AD111 -> 0.9407665505 | AQ131: ='Allocation Factors'!AE111 -> 0.05923344948
C132: =C168 -> 230 kV OH - PINETREE BARREN-RIDGE LINE (Wind + Solar) | D132: =CELL("Address",AP132)&_xlfn.FORMULATEXT(AP132) -> $AP$132=-AP131*$AR$168 | F132: =G132+AR132+AU132 -> 26.1858097 | G132: =H132+AD132+AO132+AP132+AQ132 -> 26.1858097 | AP132: =-AP131*$AR$168 -> 24.63473387 | AQ132: =-AQ131*$AR$168 -> 1.551075836
C135: Total Other Production Depreciation Expense | D135: =CELL("Address",F135)&_xlfn.FORMULATEXT(F135) -> $F$135=F128+F132 | F135: =F128+F132 -> 23234.25417 | G135: 23234.25417 | H135: 0 | I135: 0 | J135: 0 | K135: 0 | L135: 0 | M135: 0 | N135: 0 | O135: 0 | P135: 0 | Q135: 0 | R135: 0 | S135: 0 | T135: 0 | U135: 0 | V135: 0 | W135: 0 | X135: 0 | Y135: 0 | Z135: 0 | AA135: 0 | AB135: 0 | AC135: 0 | AD135: 0 | AE135: 0 | AF135: 0 | AG135: 0 | AH135: 0 | AI135: 0 | AJ135: 0 | AK135: 0 | AL135: 0 | AM135: 0 | AN135: 0 | AO135: 0 | AP135: 18122.51084 | AQ135: 5111.743326 | AR135: 0 | AU135: =AU128+AU132 -> 0
C136: Check | F136: =I135+L135+N135+O135+P135+Q135+R135+S135+T135+U135+V135+W135+X135+Y135+Z135+AA135+AB135+AC135+AE135++AH135+AJ135+AK135+AL135+AM135+AN135+AO135+AP135+AQ135+AR135+AU135 -> 23234.25417
N140: Owens Valley | AG140: LA BASIN
N141: Hydro | O141: Hydro | P141: Hydro | Q141: Hydro | R141: Hydro | S141: Hydro | T141: Hydro | U141: Hydro | V141: Hydro | W141: Hydro | X141: Hydro | Y141: Hydro | Z141: Hydro | AA141: Hydro | AB141: Hydro | AC141: Hydro | AD141: Steam | AF141: Steam | AG141: Steam | AH141: Steam | AI141: Steam | AJ141: Steam | AK141: Steam | AL141: Steam | AM141: Steam | AN141: Steam | AO141: Nuclear | AP141: Other Prod | AQ141: Other Prod | AR141: Transmission
B142: E. TRANSMISSION DEPRECIATION EXPENSE | D142: Reference | F142: Total P,T,D | G142: Total Production Stations | H142: Total Hydro With Common Hydro | I142: Common Hydro | J142: Total Hydro With Owens Valley | K142: Total Owens Valley with OV Common Costs | L142: Owens Valley Common | M142: Total Owens Valley Before OV Common Costs | N142: Cottonwood | O142: Division Creek | P142: Big Pine | Q142: Pleasant Valley | R142: Upper Gorge | S142: Middle Gorge | T142: Control Gorge | U142: S.F. 1 | V142: S.F. 2 | W142: San Fernando | X142: Foothill | Y142: Franklin | Z142: Sawtelle | AA142: Haiwee | AB142: Pump Storage Castaic | AC142: Hoover | AD142: Total Steam with Tank Farms | AE142: Tank Farms | AF142: Total Steam | AG142: Total LA BASIN with LA Basin Common | AH142: LA Basin Common Steam | AI142: Total LA Basin | AJ142: Harbor | AK142: Valley | AL142: Scattergood | AM142: Haynes | AN142: Navajo | AO142: Palo Verde | AP142: Wind | AQ142: Solar | AR142: Total Transmission | AS142: Transmission ECC (Sch. 1) | AT142: Transmission GRID (Sch 7 and 8) | AU142: Distribution | AV142: General Plant
C144: E.1 Power Plant Transmission Depreciation
C145: Transmission Depreciation (Excl Transmission CIAC) | D145: LADWP GL | F145: =G145+AR145+AU145 -> 27146.06508 | G145: =H145+AD145+AO145+AP145+AQ145 -> 0 | H145: =I145+J145 -> 0 | J145: =K145+U145+V145+W145+X145+Y145+Z145+AA145+AB145+AC145 -> 0 | K145: =L145+M145 -> 0 | M145: =SUM(N145:T145) -> 0 | AD145: =AE145+AF145 -> 0 | AF145: =+AG145+AN145 -> 0 | AG145: =AH145+AI145 -> 0 | AI145: =SUM(AJ145:AM145) -> 0 | AR145: =SUM(AS145:AT145) -> 27146.06508 | AT145: 27146.06508
C147: E.2 Remove General Plant Depreciation
C148: Remove General Plant Depreciation included in Transmission | D148: LADWP Workpaper Provided at LADWP | F148: =G148+AR148+AU148 -> -2535.61715 | G148: =H148+AD148+AO148+AP148+AQ148 -> 0 | H148: =I148+J148 -> 0 | J148: =K148+U148+V148+W148+X148+Y148+Z148+AA148+AB148+AC148 -> 0 | K148: =L148+M148 -> 0 | M148: =SUM(N148:T148) -> 0 | AD148: =AE148+AF148 -> 0 | AF148: =+AG148+AN148 -> 0 | AG148: =AH148+AI148 -> 0 | AI148: =SUM(AJ148:AM148) -> 0 | AR148: =SUM(AS148:AT148) -> -2535.61715 | AT148: =-2535617.15/1000 -> -2535.61715
C150: E.3 Transmission Depreciation Reclassifications
C152: E.3.1 Reclassify Distribution Receiving Stations to Transmission
C153: Receiving Station Study Allocation
C154: Total Dist. Receiving Station Reclassified from Distribution | D154: =CELL("Address",E154)&_xlfn.FORMULATEXT(E154) -> $E$154=-$AU$212 | E154: =-$AU$212 -> 24306.387
C155: Transmission Allocation | D155: =CELL("Address",E155)&_xlfn.FORMULATEXT(E155) -> $E$155='Control Sheet'!H27 | E155: ='Control Sheet'!H27 -> 0.4399
C156: Receiving Station Allocated to Transmission | D156: =CELL("Address",E156)&_xlfn.FORMULATEXT(E156) -> $E$156=E154*E155 | E156: =E154*E155 -> 10692.37964 | F156: =G156+AR156+AU156 -> 10692.37964 | G156: =H156+AD156+AO156+AP156+AQ156 -> 0 | H156: =I156+J156 -> 0 | J156: =K156+U156+V156+W156+X156+Y156+Z156+AA156+AB156+AC156 -> 0 | K156: =L156+M156 -> 0 | M156: =SUM(N156:T156) -> 0 | AD156: =AE156+AF156 -> 0 | AF156: =+AG156+AN156 -> 0 | AG156: =AH156+AI156 -> 0 | AI156: =SUM(AJ156:AM156) -> 0 | AR156: =SUM(AS156:AT156) -> 10692.37964 | AT156: =E156 -> 10692.37964
C158: E.3.2 7 Factor Reclassifications
C159: 7 Factor Transmission Lines Reclassifications
C160: Reclassify portion of 138kV OH Lines as Dist | D160: =CELL("Address",AT160)&_xlfn.FORMULATEXT(AT160) -> $AT$160=-'7 Factor Summary'!L41 | F160: =G160+AR160+AU160 -> -56.76126173 | AR160: =SUM(AS160:AT160) -> -56.76126173 | AT160: =-'7 Factor Summary'!L41 -> -56.76126173
C161: Reclassify portion of 138kV UG Lines as Dist | D161: =CELL("Address",AT161)&_xlfn.FORMULATEXT(AT161) -> $AT$161=-'7 Factor Summary'!L42 | F161: =G161+AR161+AU161 -> -41.2190722 | AR161: =SUM(AS161:AT161) -> -41.2190722 | AT161: =-'7 Factor Summary'!L42 -> -41.2190722
C162: ='7 Factor Summary'!C59 -> 230 kV OH - LAGUNA BELL-VELASCO LINE 1 to Distribution | D162: =CELL("Address",AT162)&_xlfn.FORMULATEXT(AT162) -> $AT$162=-'7 Factor Summary'!L59 | F162: =G162+AR162+AU162 -> -50.57006099 | AR162: =SUM(AS162:AT162) -> -50.57006099 | AT162: =-'7 Factor Summary'!L59 -> -50.57006099
C163: ='7 Factor Summary'!C56 -> 230 kV OH - CONTROL GORGE-INYO LINE to Distribution | D163: =CELL("Address",AT163)&_xlfn.FORMULATEXT(AT163) -> $AT$163=-'7 Factor Summary'!L56 | F163: =G163+AR163+AU163 -> -15.01298686 | AR163: =SUM(AS163:AT163) -> -15.01298686 | AT163: =-'7 Factor Summary'!L56 -> -15.01298686
C164: Reclassify portion of 230kV UG Lines as Dist. | D164: =CELL("Address",AT164)&_xlfn.FORMULATEXT(AT164) -> $AT$164=-'7 Factor Summary'!L63 | F164: =G164+AR164+AU164 -> -1196.315179 | AR164: =SUM(AS164:AT164) -> -1196.315179 | AT164: =-'7 Factor Summary'!L63 -> -1196.315179
C165: Total Reclassifications to Distribution | D165: =CELL("Address",F165)&_xlfn.FORMULATEXT(F165) -> $F$165=SUM(F160:F164) | F165: =SUM(F160:F164) -> -1359.878561 | AR165: =SUM(AR160:AR164) -> -1359.878561 | AS165: =SUM(AS160:AS164) -> 0 | AT165: =SUM(AT160:AT164) -> -1359.878561
C167: Reclassify portion of 230kV OH Lines as Production Gen-tie
C168: ='7 Factor Summary'!C47 -> 230 kV OH - PINETREE BARREN-RIDGE LINE (Wind + Solar) | D168: =CELL("Address",AT168)&_xlfn.FORMULATEXT(AT168) -> $AT$168=-'7 Factor Summary'!L47 | F168: =G168+AR168+AU168 -> -26.1858097 | AR168: =SUM(AS168:AT168) -> -26.1858097 | AT168: =-'7 Factor Summary'!L47 -> -26.1858097
C169: ='7 Factor Summary'!C48 -> 230 kV OH - UPPER GORGE-MIDDLE GORGE | D169: =CELL("Address",AT169)&_xlfn.FORMULATEXT(AT169) -> $AT$169=-'7 Factor Summary'!L48 | F169: =G169+AR169+AU169 -> -8.596910368 | AR169: =SUM(AS169:AT169) -> -8.596910368 | AT169: =-'7 Factor Summary'!L48 -> -8.596910368
C170: ='7 Factor Summary'!C49 -> 230 kV OH - MIDDLE GORGE-CONTROL GORGE | D170: =CELL("Address",AT170)&_xlfn.FORMULATEXT(AT170) -> $AT$170=-'7 Factor Summary'!L49 | F170: =G170+AR170+AU170 -> -15.80314406 | AR170: =SUM(AS170:AT170) -> -15.80314406 | AT170: =-'7 Factor Summary'!L49 -> -15.80314406
C171: ='7 Factor Summary'!C55 -> 230 kV OH - CONTROL GORGE-INYO LINE to Production | D171: =CELL("Address",AT171)&_xlfn.FORMULATEXT(AT171) -> $AT$171=-'7 Factor Summary'!L55 | F171: =G171+AR171+AU171 -> -15.01298686 | AR171: =SUM(AS171:AT171) -> -15.01298686 | AT171: =-'7 Factor Summary'!L55 -> -15.01298686
C172: Total Reclassifications to Production | D172: =CELL("Address",F172)&_xlfn.FORMULATEXT(F172) -> $F$172=SUM(F168:F171) | F172: =SUM(F168:F171) -> -65.59885099 | AR172: =SUM(AR168:AR171) -> -65.59885099 | AS172: =SUM(AS168:AS171) -> 0 | AT172: =SUM(AT168:AT171) -> -65.59885099
C174: 7 Factor Olive Switchyard Reclassification
C176: Switchyard Direct Assignment to Production (SF1 and SF2) | D176: =CELL("Address",AT176)&_xlfn.FORMULATEXT(AT176) -> $AT$176='7 Factor Summary'!H117 | F176: =G176+AR176+AU176 -> -259.711429 | AR176: =SUM(AS176:AT176) -> -259.711429 | AT176: ='7 Factor Summary'!H117 -> -259.711429
C178: Total 7 Factor Reclassification | D178: =CELL("Address",F178)&_xlfn.FORMULATEXT(F178) -> $F$178=F172+F165+F176 | F178: =F172+F165+F176 -> -1685.188841 | G178: 0 | H178: 0 | I178: 0 | J178: 0 | K178: 0 | L178: 0 | M178: 0 | N178: 0 | O178: 0 | P178: 0 | Q178: 0 | R178: 0 | S178: 0 | T178: 0 | U178: 0 | V178: 0 | W178: 0 | X178: 0 | Y178: 0 | Z178: 0 | AA178: 0 | AB178: 0 | AC178: 0 | AD178: 0 | AE178: 0 | AF178: 0 | AG178: 0 | AH178: 0 | AI178: 0 | AJ178: 0 | AK178: 0 | AL178: 0 | AM178: 0 | AN178: 0 | AO178: 0 | AP178: 0 | AQ178: 0 | AR178: -1685.188841 | AS178: 0 | AT178: -1685.188841
C179: Check | F179: =I178+L178+N178+O178+P178+Q178+R178+S178+T178+U178+V178+W178+X178+Y178+Z178+AA178+AB178+AC178+AE178+AH178+AJ178+AK178+AL178+AM178+AN178+AO178+AP178+AQ178+AR178+AU178 -> -1685.188841
C182: Total Transmission Depreciation Expense | D182: =CELL("Address",F182)&_xlfn.FORMULATEXT(F182) -> $F$182=F145+F156+F178+F148 | F182: =F145+F156+F178+F148 -> 33617.63873 | G182: 0 | H182: 0 | I182: 0 | J182: 0 | K182: 0 | L182: 0 | M182: 0 | N182: 0 | O182: 0 | P182: 0 | Q182: 0 | R182: 0 | S182: 0 | T182: 0 | U182: 0 | V182: 0 | W182: 0 | X182: 0 | Y182: 0 | Z182: 0 | AA182: 0 | AB182: 0 | AC182: 0 | AD182: 0 | AE182: 0 | AF182: 0 | AG182: 0 | AH182: 0 | AI182: 0 | AJ182: 0 | AK182: 0 | AL182: 0 | AM182: 0 | AN182: 0 | AO182: 0 | AP182: 0 | AQ182: 0 | AR182: 33617.63873 | AS182: 0 | AT182: 33617.63873
C183: Check | F183: =I182+L182+N182+O182+P182+Q182+R182+S182+T182+U182+V182+W182+X182+Y182+Z182+AA182+AB182+AC182+AE182+AH182+AJ182+AK182+AL182+AM182+AN182+AO182+AP182+AQ182+AR182+AU182 -> 33617.63873
N186: Owens Valley | AG186: LA BASIN
N187: Hydro | O187: Hydro | P187: Hydro | Q187: Hydro | R187: Hydro | S187: Hydro | T187: Hydro | U187: Hydro | V187: Hydro | W187: Hydro | X187: Hydro | Y187: Hydro | Z187: Hydro | AA187: Hydro | AB187: Hydro | AC187: Hydro | AD187: Steam | AF187: Steam | AG187: Steam | AH187: Steam | AI187: Steam | AJ187: Steam | AK187: Steam | AL187: Steam | AM187: Steam | AN187: Steam | AO187: Nuclear | AP187: Other Prod | AQ187: Other Prod | AR187: Transmission
B188: F. DISTRIBUTION DEPRECIATION EXPENSE | D188: Reference | F188: Total P,T,D | G188: Total Production Stations | H188: Total Hydro With Common Hydro | I188: Common Hydro | J188: Total Hydro With Owens Valley | K188: Total Owens Valley with OV Common Costs | L188: Owens Valley Common | M188: Total Owens Valley Before OV Common Costs | N188: Cottonwood | O188: Division Creek | P188: Big Pine | Q188: Pleasant Valley | R188: Upper Gorge | S188: Middle Gorge | T188: Control Gorge | U188: S.F. 1 | V188: S.F. 2 | W188: San Fernando | X188: Foothill | Y188: Franklin | Z188: Sawtelle | AA188: Haiwee | AB188: Pump Storage Castaic | AC188: Hoover | AD188: Total Steam with Tank Farms | AE188: Tank Farms | AF188: Total Steam | AG188: Total LA BASIN with LA Basin Common | AH188: LA Basin Common Steam | AI188: Total LA Basin | AJ188: Harbor | AK188: Valley | AL188: Scattergood | AM188: Haynes | AN188: Navajo | AO188: Palo Verde | AP188: Wind | AQ188: Solar | AR188: Total Transmission | AS188: Transmission ECC (Sch. 1) | AT188: Transmission GRID (Sch 7 and 8) | AU188: Distribution | AV188: General Plant
C192: F.1. Distribution Depreciation Expense
C194: Total GL Distribution Expense | D194: LADWP GL/Power Plant | E194: =252266889.08/1000 -> 252266.8891
C196: Distribution Depreciation | E196: Distribution Depreciation
C197: General Plant Depreciation | D197: =CELL("Address",AU197)&_xlfn.FORMULATEXT(AU197) -> $AU$197=E197 | E197: 10046.78491 | F197: =G197+AR197+AU197 -> 10046.78491 | G197: =H197+AD197+AO197+AP197+AQ197 -> 0 | H197: =I197+J197 -> 0 | J197: =K197+U197+V197+W197+X197+Y197+Z197+AA197+AB197+AC197 -> 0 | K197: =L197+M197 -> 0 | M197: =SUM(N197:T197) -> 0 | AD197: =AE197+AF197 -> 0 | AF197: =+AG197+AN197 -> 0 | AG197: =AH197+AI197 -> 0 | AI197: =SUM(AJ197:AM197) -> 0 | AU197: =E197 -> 10046.78491
C198: Receiving Station - Based on RS Study | D198: =CELL("Address",AU198)&_xlfn.FORMULATEXT(AU198) -> $AU$198=E198 | E198: 24306.387 | F198: =G198+AR198+AU198 -> 24306.387 | G198: =H198+AD198+AO198+AP198+AQ198 -> 0 | H198: =I198+J198 -> 0 | J198: =K198+U198+V198+W198+X198+Y198+Z198+AA198+AB198+AC198 -> 0 | K198: =L198+M198 -> 0 | M198: =SUM(N198:T198) -> 0 | AU198: =E198 -> 24306.387
C199: ECC | D199: =CELL("Address",AU199)&_xlfn.FORMULATEXT(AU199) -> $AU$199=E199 | E199: 1510.91185 | F199: =G199+AR199+AU199 -> 1510.91185 | G199: =H199+AD199+AO199+AP199+AQ199 -> 0 | H199: =I199+J199 -> 0 | J199: =K199+U199+V199+W199+X199+Y199+Z199+AA199+AB199+AC199 -> 0 | K199: =L199+M199 -> 0 | M199: =SUM(N199:T199) -> 0 | AU199: =E199 -> 1510.91185
C200: Other Distribution | D200: =CELL("Address",AU200)&_xlfn.FORMULATEXT(AU200) -> $AU$200=E200 | E200: =E194-E197-E198-E199 -> 216402.8053 | F200: =G200+AR200+AU200 -> 216402.8053 | G200: =H200+AD200+AO200+AP200+AQ200 -> 0 | H200: =I200+J200 -> 0 | J200: =K200+U200+V200+W200+X200+Y200+Z200+AA200+AB200+AC200 -> 0 | K200: =L200+M200 -> 0 | M200: =SUM(N200:T200) -> 0 | AU200: =E200 -> 216402.8053
